Workbook

Sheet Impressum
D2: Levelized Cost Analysis of Heating Technologies in Germany
D6: February 2023

Sheet User Guide
D4: LCOH-Excel Tool User Guide

Sheet Glossary
C3: Glossary
D7: Capex | E7: Capital expenditures
D8: CF | E8: Capacity factor
D9: EQ | E9: Additional equipment
D10: HP | E10: Heat pump
D11: hp_atw | E11: Air-to-water heat pump
D12: hp_btw | E12: Brine-to-water heat pump
D13: hp_wtw | E13: Water-to-water heat pump
D14: HU | E14: Heat unit
D15: IC | E15: Investment cost
D16: LCI | E16: Levelized cost of investment
D17: LCM | E17: Levelized cost of maintenance
D18: LCOE | E18: Levelised Cost of Energy
D19: LCOH | E19: Levelised Cost of Heat
D20: lMFH | E20: large Multi family house
D21: OPEX | E21: Operational expenditures
D22: SFH | E22: Single family house
D23: sMFH | E23: small Multi family house
D24: FOM cost | E24: OPEX without fuel cost
D25: HDD | E25: Heating degree days
D26: CDD | E26: Cooling degree days

Sheet 1. User Cockpit
Y9: Baden-Württemberg
Y10: Bavaria
Y11: Berlin
Y12: Brandenburg
Y13: Bremen
C14: Interest rate | Y14: Hamburg
Y15: Hesse
C16: Interest rate | G16: % p.a. | Y16: Mecklenburg-Western Pomerania
Y17: Lower Saxony
E24: Annual conversion energy efficiency improvements | J24: Annual cost reduction of heating unit
C27: Gas boiler | G27: % p.a. | K27: % p.a.
C28: HP brine-to-water | G28: % p.a. | K28: % p.a.
C29: HP air-to-water | G29: % p.a. | K29: % p.a.
C30: Pellet boiler | G30: % p.a. | K30: % p.a.
C31: Gas Solar Hybrid | G31: % p.a. | K31: % p.a.
C32: Pellet Solar Hybrid | G32: % p.a. | K32: % p.a.
C38: Subsidies on the upfront investment cost
F40: Heating unit | J40: Additional equipment
C42: Gas boiler | E42: gas | G42: % | K42: %
C43: HP brine-to-water | E43: hp_btw | G43: % | K43: %
C44: HP air-to-water | G44: % | K44: %
C45: Pellet boiler | E45: pellet | G45: % | K45: %
C46: Gas Solar Hybrid | E46: gas_solar | G46: % | K46: %
C47: Pellet Solar Hybrid | E47: pellet_solar | G47: % | K47: %
D48: Default value currently set corresponds to the latest funding conditions of the BEG individual funding excluding both the heating replacement bonus (10%) and additional bonus for heat pumps (5%).
C53: Subsidies for heat pumps in unrefurbished buildings
F55: Heating unit | J55: Additional equipment
C57: HP brine-to-water | G57: % | K57: %
C58: HP air-to-water | G58: % | K58: %
D59: Default value for heat pumps in unrefurbished buildings assumed to be 0, as energy efficiency standards impose refurbishment measures as an indirect prerequisite for heat pump subsidies.

Sheet 2. Parameter Overview>>>

Sheet 2.1 Building Specifics
A4: Building specifics
A21: Data tables
A23: Average Building size and heating/cooling demand
A25: Building type & refurbishment state | B25: Building type | C25: Energy demand | D25: average floor size | E25: average number of flats | F25: space heat demand | G25: hot water demand | H25: cooling demand
D26: [m²] | E26: [#] | F26: [kWh/m²] | G26: [kWh/m²] | H26: [kWh/m²]
A27: SFH_high | B27: Single Family Home | C27: high | D27: =AVERAGEIFS('5.8 Building Specifics'!$K:$K, '5.8 Building Specifics'!$B:$B, $A27) -> 130 | E27: =AVERAGEIFS('5.8 Building Specifics'!$L:$L, '5.8 Building Specifics'!$B:$B, $A27) -> 1 | F27: =AVERAGEIFS('5.8 Building Specifics'!$E:$E, '5.8 Building Specifics'!$B:$B, $A27) -> 185.3482148 | G27: =AVERAGEIFS('5.8 Building Specifics'!$F:$F, '5.8 Building Specifics'!$B:$B, $A27) -> 22.95273104 | H27: =AVERAGEIFS('5.8 Building Specifics'!$G:$G, '5.8 Building Specifics'!$B:$B, $A27) -> 0.4 | Q27: Floor space
A28: SFH_medium | C28: medium | D28: =AVERAGEIFS('5.8 Building Specifics'!$K:$K, '5.8 Building Specifics'!$B:$B, $A28) -> 130 | E28: =AVERAGEIFS('5.8 Building Specifics'!$L:$L, '5.8 Building Specifics'!$B:$B, $A28) -> 1 | F28: =AVERAGEIFS('5.8 Building Specifics'!$E:$E, '5.8 Building Specifics'!$B:$B, $A28) -> 126.5157679 | G28: =AVERAGEIFS('5.8 Building Specifics'!$F:$F, '5.8 Building Specifics'!$B:$B, $A28) -> 23.55978746 | H28: =AVERAGEIFS('5.8 Building Specifics'!$G:$G, '5.8 Building Specifics'!$B:$B, $A28) -> 0.4
A29: SFH_low | C29: low | D29: =AVERAGEIFS('5.8 Building Specifics'!$K:$K, '5.8 Building Specifics'!$B:$B, $A29) -> 130 | E29: =AVERAGEIFS('5.8 Building Specifics'!$L:$L, '5.8 Building Specifics'!$B:$B, $A29) -> 1 | F29: =AVERAGEIFS('5.8 Building Specifics'!$E:$E, '5.8 Building Specifics'!$B:$B, $A29) -> 76.37296381 | G29: =AVERAGEIFS('5.8 Building Specifics'!$F:$F, '5.8 Building Specifics'!$B:$B, $A29) -> 23.25860854 | H29: =AVERAGEIFS('5.8 Building Specifics'!$G:$G, '5.8 Building Specifics'!$B:$B, $A29) -> 0.4
A30: sMFH_high | B30: small Multi Family Home | C30: high | D30: =AVERAGEIFS('5.8 Building Specifics'!$K:$K, '5.8 Building Specifics'!$B:$B, $A30) -> 75 | E30: =AVERAGEIFS('5.8 Building Specifics'!$L:$L, '5.8 Building Specifics'!$B:$B, $A30) -> 6 | F30: =AVERAGEIFS('5.8 Building Specifics'!$E:$E, '5.8 Building Specifics'!$B:$B, $A30) -> 111.639319 | G30: =AVERAGEIFS('5.8 Building Specifics'!$F:$F, '5.8 Building Specifics'!$B:$B, $A30) -> 13.95242807 | H30: =AVERAGEIFS('5.8 Building Specifics'!$G:$G, '5.8 Building Specifics'!$B:$B, $A30) -> 0.4
A31: sMFH_medium | C31: medium | D31: =AVERAGEIFS('5.8 Building Specifics'!$K:$K, '5.8 Building Specifics'!$B:$B, $A31) -> 75 | E31: =AVERAGEIFS('5.8 Building Specifics'!$L:$L, '5.8 Building Specifics'!$B:$B, $A31) -> 6 | F31: =AVERAGEIFS('5.8 Building Specifics'!$E:$E, '5.8 Building Specifics'!$B:$B, $A31) -> 59.84953299 | G31: =AVERAGEIFS('5.8 Building Specifics'!$F:$F, '5.8 Building Specifics'!$B:$B, $A31) -> 14.48189347 | H31: =AVERAGEIFS('5.8 Building Specifics'!$G:$G, '5.8 Building Specifics'!$B:$B, $A31) -> 0.4
A32: sMFH_low | C32: low | D32: =AVERAGEIFS('5.8 Building Specifics'!$K:$K, '5.8 Building Specifics'!$B:$B, $A32) -> 75 | E32: =AVERAGEIFS('5.8 Building Specifics'!$L:$L, '5.8 Building Specifics'!$B:$B, $A32) -> 6 | F32: =AVERAGEIFS('5.8 Building Specifics'!$E:$E, '5.8 Building Specifics'!$B:$B, $A32) -> 42.31927548 | G32: =AVERAGEIFS('5.8 Building Specifics'!$F:$F, '5.8 Building Specifics'!$B:$B, $A32) -> 14.2976526 | H32: =AVERAGEIFS('5.8 Building Specifics'!$G:$G, '5.8 Building Specifics'!$B:$B, $A32) -> 0.4
A33: lMFH_high | B33: large Multi Family Home | C33: high | D33: =AVERAGEIFS('5.8 Building Specifics'!$K:$K, '5.8 Building Specifics'!$B:$B, $A33) -> 43 | E33: =AVERAGEIFS('5.8 Building Specifics'!$L:$L, '5.8 Building Specifics'!$B:$B, $A33) -> 32 | F33: =AVERAGEIFS('5.8 Building Specifics'!$E:$E, '5.8 Building Specifics'!$B:$B, $A33) -> 117.1886931 | G33: =AVERAGEIFS('5.8 Building Specifics'!$F:$F, '5.8 Building Specifics'!$B:$B, $A33) -> 19.67055625 | H33: =AVERAGEIFS('5.8 Building Specifics'!$G:$G, '5.8 Building Specifics'!$B:$B, $A33) -> 0.4
A34: lMFH_medium | C34: medium | D34: =AVERAGEIFS('5.8 Building Specifics'!$K:$K, '5.8 Building Specifics'!$B:$B, $A34) -> 43 | E34: =AVERAGEIFS('5.8 Building Specifics'!$L:$L, '5.8 Building Specifics'!$B:$B, $A34) -> 32 | F34: =AVERAGEIFS('5.8 Building Specifics'!$E:$E, '5.8 Building Specifics'!$B:$B, $A34) -> 79.75330707 | G34: =AVERAGEIFS('5.8 Building Specifics'!$F:$F, '5.8 Building Specifics'!$B:$B, $A34) -> 20.55967588 | H34: =AVERAGEIFS('5.8 Building Specifics'!$G:$G, '5.8 Building Specifics'!$B:$B, $A34) -> 0.4
A35: lMFH_low | C35: low | D35: =AVERAGEIFS('5.8 Building Specifics'!$K:$K, '5.8 Building Specifics'!$B:$B, $A35) -> 43 | E35: =AVERAGEIFS('5.8 Building Specifics'!$L:$L, '5.8 Building Specifics'!$B:$B, $A35) -> 32 | F35: =AVERAGEIFS('5.8 Building Specifics'!$E:$E, '5.8 Building Specifics'!$B:$B, $A35) -> 56.7318681 | G35: =AVERAGEIFS('5.8 Building Specifics'!$F:$F, '5.8 Building Specifics'!$B:$B, $A35) -> 20.5364677 | H35: =AVERAGEIFS('5.8 Building Specifics'!$G:$G, '5.8 Building Specifics'!$B:$B, $A35) -> 0.4

Sheet 2.2 Technology Specifics
A2: State: | B2: Northrhine-Westphalia | C2: energy demand | E2: Low
A4: Investment cost
A21: Data tables
A24: Investment cost in selected market [EUR/kW] | C24: =IF($E$2="High","SFH_high",IF($E$2="Medium","SFH_medium",IF($E$2="Low","SFH_low"))) -> SFH_low | D24: =IF($E$2="High","SFH_high",IF($E$2="Medium","SFH_medium",IF($E$2="Low","SFH_low"))) -> SFH_low | E24: SFH_low | F24: SFH_low | I24: =IF($E$2="High","sMFH_high",IF($E$2="Medium","sMFH_medium",IF($E$2="Low","sMFH_low"))) -> sMFH_low | J24: =IF($E$2="High","sMFH_high",IF($E$2="Medium","sMFH_medium",IF($E$2="Low","sMFH_low"))) -> sMFH_low | K24: sMFH_low | L24: sMFH_low | O24: =IF($E$2="High","lMFH_high",IF($E$2="Medium","lMFH_medium",IF($E$2="Low","lMFH_low"))) -> lMFH_low | P24: =IF($E$2="High","lMFH_high",IF($E$2="Medium","lMFH_medium",IF($E$2="Low","lMFH_low"))) -> lMFH_low | Q24: lMFH_low | R24: lMFH_low
B25: high | C25: SFH | I25: sMFH | O25: lMFH
B26: Technology | C26: 2023 | D26: 2025 | E26: 2028 | F26: 2030 | H26: Technology | I26: 2023 | J26: 2025 | K26: 2028 | L26: 2030 | N26: Technology | O26: 2023 | P26: 2025 | Q26: 2028 | R26: 2030
A27: gas | B27: Gas boiler | C27: =(SUMIFS('4.1. CAPEX'!$I:$I,'4.1. CAPEX'!$C:$C,$A27,'4.1. CAPEX'!$D:$D,$B$2,'4.1. CAPEX'!$E:$E,C$24,'4.1. CAPEX'!$G:$G,C$26,'4.1. CAPEX'!$F:$F,$B$25)+SUMIFS('4.1. CAPEX'!$L:$L,'4.1. CAPEX'!$C:$C,$A27,'4.1. CAPEX'!$D:$D,$B$2,'4.1. CAPEX'!$E:$E,C$24,'4.1. CAPEX'!$G:$G,C$26,'4.1. CAPEX'!$F:$F,$B$25)) -> 1153.18835 | D27: =(SUMIFS('4.1. CAPEX'!$I:$I,'4.1. CAPEX'!$C:$C,$A27,'4.1. CAPEX'!$D:$D,$B$2,'4.1. CAPEX'!$E:$E,D$24,'4.1. CAPEX'!$G:$G,D$26,'4.1. CAPEX'!$F:$F,$B$25)+SUMIFS('4.1. CAPEX'!$L:$L,'4.1. CAPEX'!$C:$C,$A27,'4.1. CAPEX'!$D:$D,$B$2,'4.1. CAPEX'!$E:$E,D$24,'4.1. CAPEX'!$G:$G,D$26,'4.1. CAPEX'!$F:$F,$B$25)) -> 1137.967461 | E27: =(SUMIFS('4.1. CAPEX'!$I:$I,'4.1. CAPEX'!$C:$C,$A27,'4.1. CAPEX'!$D:$D,$B$2,'4.1. CAPEX'!$E:$E,E$24,'4.1. CAPEX'!$G:$G,E$26,'4.1. CAPEX'!$F:$F,$B$25)+SUMIFS('4.1. CAPEX'!$L:$L,'4.1. CAPEX'!$C:$C,$A27,'4.1. CAPEX'!$D:$D,$B$2,'4.1. CAPEX'!$E:$E,E$24,'4.1. CAPEX'!$G:$G,E$26,'4.1. CAPEX'!$F:$F,$B$25)) -> 1115.136127 | F27: =(SUMIFS('4.1. CAPEX'!$I:$I,'4.1. CAPEX'!$C:$C,$A27,'4.1. CAPEX'!$D:$D,$B$2,'4.1. CAPEX'!$E:$E,F$24,'4.1. CAPEX'!$G:$G,F$26,'4.1. CAPEX'!$F:$F,$B$25)+SUMIFS('4.1. CAPEX'!$L:$L,'4.1. CAPEX'!$C:$C,$A27,'4.1. CAPEX'!$D:$D,$B$2,'4.1. CAPEX'!$E:$E,F$24,'4.1. CAPEX'!$G:$G,F$26,'4.1. CAPEX'!$F:$F,$B$25)) -> 1099.915238 | H27: Gas boiler | I27: =(SUMIFS('4.1. CAPEX'!$I:$I,'4.1. CAPEX'!$C:$C,$A27,'4.1. CAPEX'!$D:$D,$B$2,'4.1. CAPEX'!$E:$E,I$24,'4.1. CAPEX'!$G:$G,I$26,'4.1. CAPEX'!$F:$F,$B$25)+SUMIFS('4.1. CAPEX'!$L:$L,'4.1. CAPEX'!$C:$C,$A27,'4.1. CAPEX'!$D:$D,$B$2,'4.1. CAPEX'!$E:$E,I$24,'4.1. CAPEX'!$G:$G,C$26,'4.1. CAPEX'!$F:$F,$B$25)) -> 825.0283932 | J27: =(SUMIFS('4.1. CAPEX'!$I:$I,'4.1. CAPEX'!$C:$C,$A27,'4.1. CAPEX'!$D:$D,$B$2,'4.1. CAPEX'!$E:$E,J$24,'4.1. CAPEX'!$G:$G,J$26,'4.1. CAPEX'!$F:$F,$B$25)+SUMIFS('4.1. CAPEX'!$L:$L,'4.1. CAPEX'!$C:$C,$A27,'4.1. CAPEX'!$D:$D,$B$2,'4.1. CAPEX'!$E:$E,J$24,'4.1. CAPEX'!$G:$G,D$26,'4.1. CAPEX'!$F:$F,$B$25)) -> 814.5588602 | K27: =(SUMIFS('4.1. CAPEX'!$I:$I,'4.1. CAPEX'!$C:$C,$A27,'4.1. CAPEX'!$D:$D,$B$2,'4.1. CAPEX'!$E:$E,K$24,'4.1. CAPEX'!$G:$G,K$26,'4.1. CAPEX'!$F:$F,$B$25)+SUMIFS('4.1. CAPEX'!$L:$L,'4.1. CAPEX'!$C:$C,$A27,'4.1. CAPEX'!$D:$D,$B$2,'4.1. CAPEX'!$E:$E,K$24,'4.1. CAPEX'!$G:$G,E$26,'4.1. CAPEX'!$F:$F,$B$25)) -> 798.8545608 | L27: =(SUMIFS('4.1. CAPEX'!$I:$I,'4.1. CAPEX'!$C:$C,$A27,'4.1. CAPEX'!$D:$D,$B$2,'4.1. CAPEX'!$E:$E,L$24,'4.1. CAPEX'!$G:$G,L$26,'4.1. CAPEX'!$F:$F,$B$25)+SUMIFS('4.1. CAPEX'!$L:$L,'4.1. CAPEX'!$C:$C,$A27,'4.1. CAPEX'!$D:$D,$B$2,'4.1. CAPEX'!$E:$E,L$24,'4.1. CAPEX'!$G:$G,F$26,'4.1. CAPEX'!$F:$F,$B$25)) -> 788.3850278 | N27: Gas boiler | O27: =(SUMIFS('4.1. CAPEX'!$I:$I,'4.1. CAPEX'!$C:$C,$A27,'4.1. CAPEX'!$D:$D,$B$2,'4.1. CAPEX'!$E:$E,O$24,'4.1. CAPEX'!$G:$G,O$26,'4.1. CAPEX'!$F:$F,$B$25)+SUMIFS('4.1. CAPEX'!$L:$L,'4.1. CAPEX'!$C:$C,$A27,'4.1. CAPEX'!$D:$D,$B$2,'4.1. CAPEX'!$E:$E,I$24,'4.1. CAPEX'!$G:$G,C$26,'4.1. CAPEX'!$F:$F,$B$25)) -> 485.1145039 | P27: =(SUMIFS('4.1. CAPEX'!$I:$I,'4.1. CAPEX'!$C:$C,$A27,'4.1. CAPEX'!$D:$D,$B$2,'4.1. CAPEX'!$E:$E,P$24,'4.1. CAPEX'!$G:$G,P$26,'4.1. CAPEX'!$F:$F,$B$25)+SUMIFS('4.1. CAPEX'!$L:$L,'4.1. CAPEX'!$C:$C,$A27,'4.1. CAPEX'!$D:$D,$B$2,'4.1. CAPEX'!$E:$E,J$24,'4.1. CAPEX'!$G:$G,D$26,'4.1. CAPEX'!$F:$F,$B$25)) -> 480.8189871 | Q27: =(SUMIFS('4.1. CAPEX'!$I:$I,'4.1. CAPEX'!$C:$C,$A27,'4.1. CAPEX'!$D:$D,$B$2,'4.1. CAPEX'!$E:$E,Q$24,'4.1. CAPEX'!$G:$G,Q$26,'4.1. CAPEX'!$F:$F,$B$25)+SUMIFS('4.1. CAPEX'!$L:$L,'4.1. CAPEX'!$C:$C,$A27,'4.1. CAPEX'!$D:$D,$B$2,'4.1. CAPEX'!$E:$E,K$24,'4.1. CAPEX'!$G:$G,E$26,'4.1. CAPEX'!$F:$F,$B$25)) -> 474.3757119 | R27: =(SUMIFS('4.1. CAPEX'!$I:$I,'4.1. CAPEX'!$C:$C,$A27,'4.1. CAPEX'!$D:$D,$B$2,'4.1. CAPEX'!$E:$E,R$24,'4.1. CAPEX'!$G:$G,R$26,'4.1. CAPEX'!$F:$F,$B$25)+SUMIFS('4.1. CAPEX'!$L:$L,'4.1. CAPEX'!$C:$C,$A27,'4.1. CAPEX'!$D:$D,$B$2,'4.1. CAPEX'!$E:$E,L$24,'4.1. CAPEX'!$G:$G,F$26,'4.1. CAPEX'!$F:$F,$B$25)) -> 470.0801951
A28: hp_btw | B28: HP brine-to-water | C28: =(SUMIFS('4.1. CAPEX'!$I:$I,'4.1. CAPEX'!$C:$C,$A28,'4.1. CAPEX'!$D:$D,$B$2,'4.1. CAPEX'!$E:$E,C$24,'4.1. CAPEX'!$G:$G,C$26,'4.1. CAPEX'!$F:$F,$B$25)+SUMIFS('4.1. CAPEX'!$L:$L,'4.1. CAPEX'!$C:$C,$A28,'4.1. CAPEX'!$D:$D,$B$2,'4.1. CAPEX'!$E:$E,C$24,'4.1. CAPEX'!$G:$G,C$26,'4.1. CAPEX'!$F:$F,$B$25)) -> 2986.640004 | D28: =(SUMIFS('4.1. CAPEX'!$I:$I,'4.1. CAPEX'!$C:$C,$A28,'4.1. CAPEX'!$D:$D,$B$2,'4.1. CAPEX'!$E:$E,D$24,'4.1. CAPEX'!$G:$G,D$26,'4.1. CAPEX'!$F:$F,$B$25)+SUMIFS('4.1. CAPEX'!$L:$L,'4.1. CAPEX'!$C:$C,$A28,'4.1. CAPEX'!$D:$D,$B$2,'4.1. CAPEX'!$E:$E,D$24,'4.1. CAPEX'!$G:$G,D$26,'4.1. CAPEX'!$F:$F,$B$25)) -> 2602.484151 | E28: =(SUMIFS('4.1. CAPEX'!$I:$I,'4.1. CAPEX'!$C:$C,$A28,'4.1. CAPEX'!$D:$D,$B$2,'4.1. CAPEX'!$E:$E,E$24,'4.1. CAPEX'!$G:$G,E$26,'4.1. CAPEX'!$F:$F,$B$25)+SUMIFS('4.1. CAPEX'!$L:$L,'4.1. CAPEX'!$C:$C,$A28,'4.1. CAPEX'!$D:$D,$B$2,'4.1. CAPEX'!$E:$E,E$24,'4.1. CAPEX'!$G:$G,E$26,'4.1. CAPEX'!$F:$F,$B$25)) -> 2026.250372 | F28: =(SUMIFS('4.1. CAPEX'!$I:$I,'4.1. CAPEX'!$C:$C,$A28,'4.1. CAPEX'!$D:$D,$B$2,'4.1. CAPEX'!$E:$E,F$24,'4.1. CAPEX'!$G:$G,F$26,'4.1. CAPEX'!$F:$F,$B$25)+SUMIFS('4.1. CAPEX'!$L:$L,'4.1. CAPEX'!$C:$C,$A28,'4.1. CAPEX'!$D:$D,$B$2,'4.1. CAPEX'!$E:$E,F$24,'4.1. CAPEX'!$G:$G,F$26,'4.1. CAPEX'!$F:$F,$B$25)) -> 1642.094519 | H28: HP brine-to-water | I28: =(SUMIFS('4.1. CAPEX'!$I:$I,'4.1. CAPEX'!$C:$C,$A28,'4.1. CAPEX'!$D:$D,$B$2,'4.1. CAPEX'!$E:$E,I$24,'4.1. CAPEX'!$G:$G,I$26,'4.1. CAPEX'!$F:$F,$B$25)+SUMIFS('4.1. CAPEX'!$L:$L,'4.1. CAPEX'!$C:$C,$A28,'4.1. CAPEX'!$D:$D,$B$2,'4.1. CAPEX'!$E:$E,I$24,'4.1. CAPEX'!$G:$G,C$26,'4.1. CAPEX'!$F:$F,$B$25)) -> 2150.967909 | J28: =(SUMIFS('4.1. CAPEX'!$I:$I,'4.1. CAPEX'!$C:$C,$A28,'4.1. CAPEX'!$D:$D,$B$2,'4.1. CAPEX'!$E:$E,J$24,'4.1. CAPEX'!$G:$G,J$26,'4.1. CAPEX'!$F:$F,$B$25)+SUMIFS('4.1. CAPEX'!$L:$L,'4.1. CAPEX'!$C:$C,$A28,'4.1. CAPEX'!$D:$D,$B$2,'4.1. CAPEX'!$E:$E,J$24,'4.1. CAPEX'!$G:$G,D$26,'4.1. CAPEX'!$F:$F,$B$25)) -> 1888.51614 | K28: =(SUMIFS('4.1. CAPEX'!$I:$I,'4.1. CAPEX'!$C:$C,$A28,'4.1. CAPEX'!$D:$D,$B$2,'4.1. CAPEX'!$E:$E,K$24,'4.1. CAPEX'!$G:$G,K$26,'4.1. CAPEX'!$F:$F,$B$25)+SUMIFS('4.1. CAPEX'!$L:$L,'4.1. CAPEX'!$C:$C,$A28,'4.1. CAPEX'!$D:$D,$B$2,'4.1. CAPEX'!$E:$E,K$24,'4.1. CAPEX'!$G:$G,E$26,'4.1. CAPEX'!$F:$F,$B$25)) -> 1494.838486 | L28: =(SUMIFS('4.1. CAPEX'!$I:$I,'4.1. CAPEX'!$C:$C,$A28,'4.1. CAPEX'!$D:$D,$B$2,'4.1. CAPEX'!$E:$E,L$24,'4.1. CAPEX'!$G:$G,L$26,'4.1. CAPEX'!$F:$F,$B$25)+SUMIFS('4.1. CAPEX'!$L:$L,'4.1. CAPEX'!$C:$C,$A28,'4.1. CAPEX'!$D:$D,$B$2,'4.1. CAPEX'!$E:$E,L$24,'4.1. CAPEX'!$G:$G,F$26,'4.1. CAPEX'!$F:$F,$B$25)) -> 1232.386716 | N28: HP brine-to-water | O28: =(SUMIFS('4.1. CAPEX'!$I:$I,'4.1. CAPEX'!$C:$C,$A28,'4.1. CAPEX'!$D:$D,$B$2,'4.1. CAPEX'!$E:$E,O$24,'4.1. CAPEX'!$G:$G,O$26,'4.1. CAPEX'!$F:$F,$B$25)+SUMIFS('4.1. CAPEX'!$L:$L,'4.1. CAPEX'!$C:$C,$A28,'4.1. CAPEX'!$D:$D,$B$2,'4.1. CAPEX'!$E:$E,I$24,'4.1. CAPEX'!$G:$G,C$26,'4.1. CAPEX'!$F:$F,$B$25)) -> 1122.666379 | P28: =(SUMIFS('4.1. CAPEX'!$I:$I,'4.1. CAPEX'!$C:$C,$A28,'4.1. CAPEX'!$D:$D,$B$2,'4.1. CAPEX'!$E:$E,P$24,'4.1. CAPEX'!$G:$G,P$26,'4.1. CAPEX'!$F:$F,$B$25)+SUMIFS('4.1. CAPEX'!$L:$L,'4.1. CAPEX'!$C:$C,$A28,'4.1. CAPEX'!$D:$D,$B$2,'4.1. CAPEX'!$E:$E,J$24,'4.1. CAPEX'!$G:$G,D$26,'4.1. CAPEX'!$F:$F,$B$25)) -> 1010.83241 | Q28: =(SUMIFS('4.1. CAPEX'!$I:$I,'4.1. CAPEX'!$C:$C,$A28,'4.1. CAPEX'!$D:$D,$B$2,'4.1. CAPEX'!$E:$E,Q$24,'4.1. CAPEX'!$G:$G,Q$26,'4.1. CAPEX'!$F:$F,$B$25)+SUMIFS('4.1. CAPEX'!$L:$L,'4.1. CAPEX'!$C:$C,$A28,'4.1. CAPEX'!$D:$D,$B$2,'4.1. CAPEX'!$E:$E,K$24,'4.1. CAPEX'!$G:$G,E$26,'4.1. CAPEX'!$F:$F,$B$25)) -> 843.0814569 | R28: =(SUMIFS('4.1. CAPEX'!$I:$I,'4.1. CAPEX'!$C:$C,$A28,'4.1. CAPEX'!$D:$D,$B$2,'4.1. CAPEX'!$E:$E,R$24,'4.1. CAPEX'!$G:$G,R$26,'4.1. CAPEX'!$F:$F,$B$25)+SUMIFS('4.1. CAPEX'!$L:$L,'4.1. CAPEX'!$C:$C,$A28,'4.1. CAPEX'!$D:$D,$B$2,'4.1. CAPEX'!$E:$E,L$24,'4.1. CAPEX'!$G:$G,F$26,'4.1. CAPEX'!$F:$F,$B$25)) -> 731.247488
A29: hp_atw | B29: HP air-to-water | C29: =(SUMIFS('4.1. CAPEX'!$I:$I,'4.1. CAPEX'!$C:$C,$A29,'4.1. CAPEX'!$D:$D,$B$2,'4.1. CAPEX'!$E:$E,C$24,'4.1. CAPEX'!$G:$G,C$26,'4.1. CAPEX'!$F:$F,$B$25)+SUMIFS('4.1. CAPEX'!$L:$L,'4.1. CAPEX'!$C:$C,$A29,'4.1. CAPEX'!$D:$D,$B$2,'4.1. CAPEX'!$E:$E,C$24,'4.1. CAPEX'!$G:$G,C$26,'4.1. CAPEX'!$F:$F,$B$25)) -> 1399.003593 | D29: =(SUMIFS('4.1. CAPEX'!$I:$I,'4.1. CAPEX'!$C:$C,$A29,'4.1. CAPEX'!$D:$D,$B$2,'4.1. CAPEX'!$E:$E,D$24,'4.1. CAPEX'!$G:$G,D$26,'4.1. CAPEX'!$F:$F,$B$25)+SUMIFS('4.1. CAPEX'!$L:$L,'4.1. CAPEX'!$C:$C,$A29,'4.1. CAPEX'!$D:$D,$B$2,'4.1. CAPEX'!$E:$E,D$24,'4.1. CAPEX'!$G:$G,D$26,'4.1. CAPEX'!$F:$F,$B$25)) -> 1254.618767 | E29: =(SUMIFS('4.1. CAPEX'!$I:$I,'4.1. CAPEX'!$C:$C,$A29,'4.1. CAPEX'!$D:$D,$B$2,'4.1. CAPEX'!$E:$E,E$24,'4.1. CAPEX'!$G:$G,E$26,'4.1. CAPEX'!$F:$F,$B$25)+SUMIFS('4.1. CAPEX'!$L:$L,'4.1. CAPEX'!$C:$C,$A29,'4.1. CAPEX'!$D:$D,$B$2,'4.1. CAPEX'!$E:$E,E$24,'4.1. CAPEX'!$G:$G,E$26,'4.1. CAPEX'!$F:$F,$B$25)) -> 1038.041527 | F29: =(SUMIFS('4.1. CAPEX'!$I:$I,'4.1. CAPEX'!$C:$C,$A29,'4.1. CAPEX'!$D:$D,$B$2,'4.1. CAPEX'!$E:$E,F$24,'4.1. CAPEX'!$G:$G,F$26,'4.1. CAPEX'!$F:$F,$B$25)+SUMIFS('4.1. CAPEX'!$L:$L,'4.1. CAPEX'!$C:$C,$A29,'4.1. CAPEX'!$D:$D,$B$2,'4.1. CAPEX'!$E:$E,F$24,'4.1. CAPEX'!$G:$G,F$26,'4.1. CAPEX'!$F:$F,$B$25)) -> 893.6566998 | H29: HP air-to-water | I29: =(SUMIFS('4.1. CAPEX'!$I:$I,'4.1. CAPEX'!$C:$C,$A29,'4.1. CAPEX'!$D:$D,$B$2,'4.1. CAPEX'!$E:$E,I$24,'4.1. CAPEX'!$G:$G,I$26,'4.1. CAPEX'!$F:$F,$B$25)+SUMIFS('4.1. CAPEX'!$L:$L,'4.1. CAPEX'!$C:$C,$A29,'4.1. CAPEX'!$D:$D,$B$2,'4.1. CAPEX'!$E:$E,I$24,'4.1. CAPEX'!$G:$G,C$26,'4.1. CAPEX'!$F:$F,$B$25)) -> 1184.982448 | J29: =(SUMIFS('4.1. CAPEX'!$I:$I,'4.1. CAPEX'!$C:$C,$A29,'4.1. CAPEX'!$D:$D,$B$2,'4.1. CAPEX'!$E:$E,J$24,'4.1. CAPEX'!$G:$G,J$26,'4.1. CAPEX'!$F:$F,$B$25)+SUMIFS('4.1. CAPEX'!$L:$L,'4.1. CAPEX'!$C:$C,$A29,'4.1. CAPEX'!$D:$D,$B$2,'4.1. CAPEX'!$E:$E,J$24,'4.1. CAPEX'!$G:$G,D$26,'4.1. CAPEX'!$F:$F,$B$25)) -> 1071.187643 | K29: =(SUMIFS('4.1. CAPEX'!$I:$I,'4.1. CAPEX'!$C:$C,$A29,'4.1. CAPEX'!$D:$D,$B$2,'4.1. CAPEX'!$E:$E,K$24,'4.1. CAPEX'!$G:$G,K$26,'4.1. CAPEX'!$F:$F,$B$25)+SUMIFS('4.1. CAPEX'!$L:$L,'4.1. CAPEX'!$C:$C,$A29,'4.1. CAPEX'!$D:$D,$B$2,'4.1. CAPEX'!$E:$E,K$24,'4.1. CAPEX'!$G:$G,E$26,'4.1. CAPEX'!$F:$F,$B$25)) -> 900.4954356 | L29: =(SUMIFS('4.1. CAPEX'!$I:$I,'4.1. CAPEX'!$C:$C,$A29,'4.1. CAPEX'!$D:$D,$B$2,'4.1. CAPEX'!$E:$E,L$24,'4.1. CAPEX'!$G:$G,L$26,'4.1. CAPEX'!$F:$F,$B$25)+SUMIFS('4.1. CAPEX'!$L:$L,'4.1. CAPEX'!$C:$C,$A29,'4.1. CAPEX'!$D:$D,$B$2,'4.1. CAPEX'!$E:$E,L$24,'4.1. CAPEX'!$G:$G,F$26,'4.1. CAPEX'!$F:$F,$B$25)) -> 786.7006307 | N29: HP air-to-water | O29: =(SUMIFS('4.1. CAPEX'!$I:$I,'4.1. CAPEX'!$C:$C,$A29,'4.1. CAPEX'!$D:$D,$B$2,'4.1. CAPEX'!$E:$E,O$24,'4.1. CAPEX'!$G:$G,O$26,'4.1. CAPEX'!$F:$F,$B$25)+SUMIFS('4.1. CAPEX'!$L:$L,'4.1. CAPEX'!$C:$C,$A29,'4.1. CAPEX'!$D:$D,$B$2,'4.1. CAPEX'!$E:$E,I$24,'4.1. CAPEX'!$G:$G,C$26,'4.1. CAPEX'!$F:$F,$B$25)) -> 851.1484588 | P29: =(SUMIFS('4.1. CAPEX'!$I:$I,'4.1. CAPEX'!$C:$C,$A29,'4.1. CAPEX'!$D:$D,$B$2,'4.1. CAPEX'!$E:$E,P$24,'4.1. CAPEX'!$G:$G,P$26,'4.1. CAPEX'!$F:$F,$B$25)+SUMIFS('4.1. CAPEX'!$L:$L,'4.1. CAPEX'!$C:$C,$A29,'4.1. CAPEX'!$D:$D,$B$2,'4.1. CAPEX'!$E:$E,J$24,'4.1. CAPEX'!$G:$G,D$26,'4.1. CAPEX'!$F:$F,$B$25)) -> 786.2511219 | Q29: =(SUMIFS('4.1. CAPEX'!$I:$I,'4.1. CAPEX'!$C:$C,$A29,'4.1. CAPEX'!$D:$D,$B$2,'4.1. CAPEX'!$E:$E,Q$24,'4.1. CAPEX'!$G:$G,Q$26,'4.1. CAPEX'!$F:$F,$B$25)+SUMIFS('4.1. CAPEX'!$L:$L,'4.1. CAPEX'!$C:$C,$A29,'4.1. CAPEX'!$D:$D,$B$2,'4.1. CAPEX'!$E:$E,K$24,'4.1. CAPEX'!$G:$G,E$26,'4.1. CAPEX'!$F:$F,$B$25)) -> 688.9051166 | R29: =(SUMIFS('4.1. CAPEX'!$I:$I,'4.1. CAPEX'!$C:$C,$A29,'4.1. CAPEX'!$D:$D,$B$2,'4.1. CAPEX'!$E:$E,R$24,'4.1. CAPEX'!$G:$G,R$26,'4.1. CAPEX'!$F:$F,$B$25)+SUMIFS('4.1. CAPEX'!$L:$L,'4.1. CAPEX'!$C:$C,$A29,'4.1. CAPEX'!$D:$D,$B$2,'4.1. CAPEX'!$E:$E,L$24,'4.1. CAPEX'!$G:$G,F$26,'4.1. CAPEX'!$F:$F,$B$25)) -> 624.0077797
A30: pellet | B30: Pellet boiler | C30: =(SUMIFS('4.1. CAPEX'!$I:$I,'4.1. CAPEX'!$C:$C,$A30,'4.1. CAPEX'!$D:$D,$B$2,'4.1. CAPEX'!$E:$E,C$24,'4.1. CAPEX'!$G:$G,C$26,'4.1. CAPEX'!$F:$F,$B$25)+SUMIFS('4.1. CAPEX'!$L:$L,'4.1. CAPEX'!$C:$C,$A30,'4.1. CAPEX'!$D:$D,$B$2,'4.1. CAPEX'!$E:$E,C$24,'4.1. CAPEX'!$G:$G,C$26,'4.1. CAPEX'!$F:$F,$B$25)) -> 2549.184818 | D30: =(SUMIFS('4.1. CAPEX'!$I:$I,'4.1. CAPEX'!$C:$C,$A30,'4.1. CAPEX'!$D:$D,$B$2,'4.1. CAPEX'!$E:$E,D$24,'4.1. CAPEX'!$G:$G,D$26,'4.1. CAPEX'!$F:$F,$B$25)+SUMIFS('4.1. CAPEX'!$L:$L,'4.1. CAPEX'!$C:$C,$A30,'4.1. CAPEX'!$D:$D,$B$2,'4.1. CAPEX'!$E:$E,D$24,'4.1. CAPEX'!$G:$G,D$26,'4.1. CAPEX'!$F:$F,$B$25)) -> 2521.896994 | E30: =(SUMIFS('4.1. CAPEX'!$I:$I,'4.1. CAPEX'!$C:$C,$A30,'4.1. CAPEX'!$D:$D,$B$2,'4.1. CAPEX'!$E:$E,E$24,'4.1. CAPEX'!$G:$G,E$26,'4.1. CAPEX'!$F:$F,$B$25)+SUMIFS('4.1. CAPEX'!$L:$L,'4.1. CAPEX'!$C:$C,$A30,'4.1. CAPEX'!$D:$D,$B$2,'4.1. CAPEX'!$E:$E,E$24,'4.1. CAPEX'!$G:$G,E$26,'4.1. CAPEX'!$F:$F,$B$25)) -> 2480.965256 | F30: =(SUMIFS('4.1. CAPEX'!$I:$I,'4.1. CAPEX'!$C:$C,$A30,'4.1. CAPEX'!$D:$D,$B$2,'4.1. CAPEX'!$E:$E,F$24,'4.1. CAPEX'!$G:$G,F$26,'4.1. CAPEX'!$F:$F,$B$25)+SUMIFS('4.1. CAPEX'!$L:$L,'4.1. CAPEX'!$C:$C,$A30,'4.1. CAPEX'!$D:$D,$B$2,'4.1. CAPEX'!$E:$E,F$24,'4.1. CAPEX'!$G:$G,F$26,'4.1. CAPEX'!$F:$F,$B$25)) -> 2453.677431 | H30: Pellet boiler | I30: =(SUMIFS('4.1. CAPEX'!$I:$I,'4.1. CAPEX'!$C:$C,$A30,'4.1. CAPEX'!$D:$D,$B$2,'4.1. CAPEX'!$E:$E,I$24,'4.1. CAPEX'!$G:$G,I$26,'4.1. CAPEX'!$F:$F,$B$25)+SUMIFS('4.1. CAPEX'!$L:$L,'4.1. CAPEX'!$C:$C,$A30,'4.1. CAPEX'!$D:$D,$B$2,'4.1. CAPEX'!$E:$E,I$24,'4.1. CAPEX'!$G:$G,C$26,'4.1. CAPEX'!$F:$F,$B$25)) -> 1810.957479 | J30: =(SUMIFS('4.1. CAPEX'!$I:$I,'4.1. CAPEX'!$C:$C,$A30,'4.1. CAPEX'!$D:$D,$B$2,'4.1. CAPEX'!$E:$E,J$24,'4.1. CAPEX'!$G:$G,J$26,'4.1. CAPEX'!$F:$F,$B$25)+SUMIFS('4.1. CAPEX'!$L:$L,'4.1. CAPEX'!$C:$C,$A30,'4.1. CAPEX'!$D:$D,$B$2,'4.1. CAPEX'!$E:$E,J$24,'4.1. CAPEX'!$G:$G,D$26,'4.1. CAPEX'!$F:$F,$B$25)) -> 1791.152535 | K30: =(SUMIFS('4.1. CAPEX'!$I:$I,'4.1. CAPEX'!$C:$C,$A30,'4.1. CAPEX'!$D:$D,$B$2,'4.1. CAPEX'!$E:$E,K$24,'4.1. CAPEX'!$G:$G,K$26,'4.1. CAPEX'!$F:$F,$B$25)+SUMIFS('4.1. CAPEX'!$L:$L,'4.1. CAPEX'!$C:$C,$A30,'4.1. CAPEX'!$D:$D,$B$2,'4.1. CAPEX'!$E:$E,K$24,'4.1. CAPEX'!$G:$G,E$26,'4.1. CAPEX'!$F:$F,$B$25)) -> 1761.445119 | L30: =(SUMIFS('4.1. CAPEX'!$I:$I,'4.1. CAPEX'!$C:$C,$A30,'4.1. CAPEX'!$D:$D,$B$2,'4.1. CAPEX'!$E:$E,L$24,'4.1. CAPEX'!$G:$G,L$26,'4.1. CAPEX'!$F:$F,$B$25)+SUMIFS('4.1. CAPEX'!$L:$L,'4.1. CAPEX'!$C:$C,$A30,'4.1. CAPEX'!$D:$D,$B$2,'4.1. CAPEX'!$E:$E,L$24,'4.1. CAPEX'!$G:$G,F$26,'4.1. CAPEX'!$F:$F,$B$25)) -> 1741.640174 | N30: Pellet boiler | O30: =(SUMIFS('4.1. CAPEX'!$I:$I,'4.1. CAPEX'!$C:$C,$A30,'4.1. CAPEX'!$D:$D,$B$2,'4.1. CAPEX'!$E:$E,O$24,'4.1. CAPEX'!$G:$G,O$26,'4.1. CAPEX'!$F:$F,$B$25)+SUMIFS('4.1. CAPEX'!$L:$L,'4.1. CAPEX'!$C:$C,$A30,'4.1. CAPEX'!$D:$D,$B$2,'4.1. CAPEX'!$E:$E,I$24,'4.1. CAPEX'!$G:$G,C$26,'4.1. CAPEX'!$F:$F,$B$25)) -> 1188.396629 | P30: =(SUMIFS('4.1. CAPEX'!$I:$I,'4.1. CAPEX'!$C:$C,$A30,'4.1. CAPEX'!$D:$D,$B$2,'4.1. CAPEX'!$E:$E,P$24,'4.1. CAPEX'!$G:$G,P$26,'4.1. CAPEX'!$F:$F,$B$25)+SUMIFS('4.1. CAPEX'!$L:$L,'4.1. CAPEX'!$C:$C,$A30,'4.1. CAPEX'!$D:$D,$B$2,'4.1. CAPEX'!$E:$E,J$24,'4.1. CAPEX'!$G:$G,D$26,'4.1. CAPEX'!$F:$F,$B$25)) -> 1172.33829 | Q30: =(SUMIFS('4.1. CAPEX'!$I:$I,'4.1. CAPEX'!$C:$C,$A30,'4.1. CAPEX'!$D:$D,$B$2,'4.1. CAPEX'!$E:$E,Q$24,'4.1. CAPEX'!$G:$G,Q$26,'4.1. CAPEX'!$F:$F,$B$25)+SUMIFS('4.1. CAPEX'!$L:$L,'4.1. CAPEX'!$C:$C,$A30,'4.1. CAPEX'!$D:$D,$B$2,'4.1. CAPEX'!$E:$E,K$24,'4.1. CAPEX'!$G:$G,E$26,'4.1. CAPEX'!$F:$F,$B$25)) -> 1148.250781 | R30: =(SUMIFS('4.1. CAPEX'!$I:$I,'4.1. CAPEX'!$C:$C,$A30,'4.1. CAPEX'!$D:$D,$B$2,'4.1. CAPEX'!$E:$E,R$24,'4.1. CAPEX'!$G:$G,R$26,'4.1. CAPEX'!$F:$F,$B$25)+SUMIFS('4.1. CAPEX'!$L:$L,'4.1. CAPEX'!$C:$C,$A30,'4.1. CAPEX'!$D:$D,$B$2,'4.1. CAPEX'!$E:$E,L$24,'4.1. CAPEX'!$G:$G,F$26,'4.1. CAPEX'!$F:$F,$B$25)) -> 1132.192442
A31: gas_solar | B31: Gas Solar Hybrid | C31: =(SUMIFS('4.1. CAPEX'!$I:$I,'4.1. CAPEX'!$C:$C,$A31,'4.1. CAPEX'!$D:$D,$B$2,'4.1. CAPEX'!$E:$E,C$24,'4.1. CAPEX'!$G:$G,C$26,'4.1. CAPEX'!$F:$F,$B$25)+SUMIFS('4.1. CAPEX'!$L:$L,'4.1. CAPEX'!$C:$C,$A31,'4.1. CAPEX'!$D:$D,$B$2,'4.1. CAPEX'!$E:$E,C$24,'4.1. CAPEX'!$G:$G,C$26,'4.1. CAPEX'!$F:$F,$B$25)) -> 2285.332447 | D31: =(SUMIFS('4.1. CAPEX'!$I:$I,'4.1. CAPEX'!$C:$C,$A31,'4.1. CAPEX'!$D:$D,$B$2,'4.1. CAPEX'!$E:$E,D$24,'4.1. CAPEX'!$G:$G,D$26,'4.1. CAPEX'!$F:$F,$B$25)+SUMIFS('4.1. CAPEX'!$L:$L,'4.1. CAPEX'!$C:$C,$A31,'4.1. CAPEX'!$D:$D,$B$2,'4.1. CAPEX'!$E:$E,D$24,'4.1. CAPEX'!$G:$G,D$26,'4.1. CAPEX'!$F:$F,$B$25)) -> 2249.708485 | E31: =(SUMIFS('4.1. CAPEX'!$I:$I,'4.1. CAPEX'!$C:$C,$A31,'4.1. CAPEX'!$D:$D,$B$2,'4.1. CAPEX'!$E:$E,E$24,'4.1. CAPEX'!$G:$G,E$26,'4.1. CAPEX'!$F:$F,$B$25)+SUMIFS('4.1. CAPEX'!$L:$L,'4.1. CAPEX'!$C:$C,$A31,'4.1. CAPEX'!$D:$D,$B$2,'4.1. CAPEX'!$E:$E,E$24,'4.1. CAPEX'!$G:$G,E$26,'4.1. CAPEX'!$F:$F,$B$25)) -> 2196.272542 | F31: =(SUMIFS('4.1. CAPEX'!$I:$I,'4.1. CAPEX'!$C:$C,$A31,'4.1. CAPEX'!$D:$D,$B$2,'4.1. CAPEX'!$E:$E,F$24,'4.1. CAPEX'!$G:$G,F$26,'4.1. CAPEX'!$F:$F,$B$25)+SUMIFS('4.1. CAPEX'!$L:$L,'4.1. CAPEX'!$C:$C,$A31,'4.1. CAPEX'!$D:$D,$B$2,'4.1. CAPEX'!$E:$E,F$24,'4.1. CAPEX'!$G:$G,F$26,'4.1. CAPEX'!$F:$F,$B$25)) -> 2160.64858 | H31: Gas Solar Hybrid | I31: =(SUMIFS('4.1. CAPEX'!$I:$I,'4.1. CAPEX'!$C:$C,$A31,'4.1. CAPEX'!$D:$D,$B$2,'4.1. CAPEX'!$E:$E,I$24,'4.1. CAPEX'!$G:$G,I$26,'4.1. CAPEX'!$F:$F,$B$25)+SUMIFS('4.1. CAPEX'!$L:$L,'4.1. CAPEX'!$C:$C,$A31,'4.1. CAPEX'!$D:$D,$B$2,'4.1. CAPEX'!$E:$E,I$24,'4.1. CAPEX'!$G:$G,C$26,'4.1. CAPEX'!$F:$F,$B$25)) -> 1964.306728 | J31: =(SUMIFS('4.1. CAPEX'!$I:$I,'4.1. CAPEX'!$C:$C,$A31,'4.1. CAPEX'!$D:$D,$B$2,'4.1. CAPEX'!$E:$E,J$24,'4.1. CAPEX'!$G:$G,J$26,'4.1. CAPEX'!$F:$F,$B$25)+SUMIFS('4.1. CAPEX'!$L:$L,'4.1. CAPEX'!$C:$C,$A31,'4.1. CAPEX'!$D:$D,$B$2,'4.1. CAPEX'!$E:$E,J$24,'4.1. CAPEX'!$G:$G,D$26,'4.1. CAPEX'!$F:$F,$B$25)) -> 1933.189635 | K31: =(SUMIFS('4.1. CAPEX'!$I:$I,'4.1. CAPEX'!$C:$C,$A31,'4.1. CAPEX'!$D:$D,$B$2,'4.1. CAPEX'!$E:$E,K$24,'4.1. CAPEX'!$G:$G,K$26,'4.1. CAPEX'!$F:$F,$B$25)+SUMIFS('4.1. CAPEX'!$L:$L,'4.1. CAPEX'!$C:$C,$A31,'4.1. CAPEX'!$D:$D,$B$2,'4.1. CAPEX'!$E:$E,K$24,'4.1. CAPEX'!$G:$G,E$26,'4.1. CAPEX'!$F:$F,$B$25)) -> 1886.513995 | L31: =(SUMIFS('4.1. CAPEX'!$I:$I,'4.1. CAPEX'!$C:$C,$A31,'4.1. CAPEX'!$D:$D,$B$2,'4.1. CAPEX'!$E:$E,L$24,'4.1. CAPEX'!$G:$G,L$26,'4.1. CAPEX'!$F:$F,$B$25)+SUMIFS('4.1. CAPEX'!$L:$L,'4.1. CAPEX'!$C:$C,$A31,'4.1. CAPEX'!$D:$D,$B$2,'4.1. CAPEX'!$E:$E,L$24,'4.1. CAPEX'!$G:$G,F$26,'4.1. CAPEX'!$F:$F,$B$25)) -> 1855.396902 | N31: Gas Solar Hybrid | O31: =(SUMIFS('4.1. CAPEX'!$I:$I,'4.1. CAPEX'!$C:$C,$A31,'4.1. CAPEX'!$D:$D,$B$2,'4.1. CAPEX'!$E:$E,O$24,'4.1. CAPEX'!$G:$G,O$26,'4.1. CAPEX'!$F:$F,$B$25)+SUMIFS('4.1. CAPEX'!$L:$L,'4.1. CAPEX'!$C:$C,$A31,'4.1. CAPEX'!$D:$D,$B$2,'4.1. CAPEX'!$E:$E,I$24,'4.1. CAPEX'!$G:$G,C$26,'4.1. CAPEX'!$F:$F,$B$25)) -> 983.6059129 | P31: =(SUMIFS('4.1. CAPEX'!$I:$I,'4.1. CAPEX'!$C:$C,$A31,'4.1. CAPEX'!$D:$D,$B$2,'4.1. CAPEX'!$E:$E,P$24,'4.1. CAPEX'!$G:$G,P$26,'4.1. CAPEX'!$F:$F,$B$25)+SUMIFS('4.1. CAPEX'!$L:$L,'4.1. CAPEX'!$C:$C,$A31,'4.1. CAPEX'!$D:$D,$B$2,'4.1. CAPEX'!$E:$E,J$24,'4.1. CAPEX'!$G:$G,D$26,'4.1. CAPEX'!$F:$F,$B$25)) -> 970.3017507 | Q31: =(SUMIFS('4.1. CAPEX'!$I:$I,'4.1. CAPEX'!$C:$C,$A31,'4.1. CAPEX'!$D:$D,$B$2,'4.1. CAPEX'!$E:$E,Q$24,'4.1. CAPEX'!$G:$G,Q$26,'4.1. CAPEX'!$F:$F,$B$25)+SUMIFS('4.1. CAPEX'!$L:$L,'4.1. CAPEX'!$C:$C,$A31,'4.1. CAPEX'!$D:$D,$B$2,'4.1. CAPEX'!$E:$E,K$24,'4.1. CAPEX'!$G:$G,E$26,'4.1. CAPEX'!$F:$F,$B$25)) -> 950.3455075 | R31: =(SUMIFS('4.1. CAPEX'!$I:$I,'4.1. CAPEX'!$C:$C,$A31,'4.1. CAPEX'!$D:$D,$B$2,'4.1. CAPEX'!$E:$E,R$24,'4.1. CAPEX'!$G:$G,R$26,'4.1. CAPEX'!$F:$F,$B$25)+SUMIFS('4.1. CAPEX'!$L:$L,'4.1. CAPEX'!$C:$C,$A31,'4.1. CAPEX'!$D:$D,$B$2,'4.1. CAPEX'!$E:$E,L$24,'4.1. CAPEX'!$G:$G,F$26,'4.1. CAPEX'!$F:$F,$B$25)) -> 937.0413453
A32: pellet_solar | B32: Pellet Solar Hybrid | C32: =(SUMIFS('4.1. CAPEX'!$I:$I,'4.1. CAPEX'!$C:$C,$A32,'4.1. CAPEX'!$D:$D,$B$2,'4.1. CAPEX'!$E:$E,C$24,'4.1. CAPEX'!$G:$G,C$26,'4.1. CAPEX'!$F:$F,$B$25)+SUMIFS('4.1. CAPEX'!$L:$L,'4.1. CAPEX'!$C:$C,$A32,'4.1. CAPEX'!$D:$D,$B$2,'4.1. CAPEX'!$E:$E,C$24,'4.1. CAPEX'!$G:$G,C$26,'4.1. CAPEX'!$F:$F,$B$25)) -> 3197.37864 | D32: =(SUMIFS('4.1. CAPEX'!$I:$I,'4.1. CAPEX'!$C:$C,$A32,'4.1. CAPEX'!$D:$D,$B$2,'4.1. CAPEX'!$E:$E,D$24,'4.1. CAPEX'!$G:$G,D$26,'4.1. CAPEX'!$F:$F,$B$25)+SUMIFS('4.1. CAPEX'!$L:$L,'4.1. CAPEX'!$C:$C,$A32,'4.1. CAPEX'!$D:$D,$B$2,'4.1. CAPEX'!$E:$E,D$24,'4.1. CAPEX'!$G:$G,D$26,'4.1. CAPEX'!$F:$F,$B$25)) -> 3168.181065 | E32: =(SUMIFS('4.1. CAPEX'!$I:$I,'4.1. CAPEX'!$C:$C,$A32,'4.1. CAPEX'!$D:$D,$B$2,'4.1. CAPEX'!$E:$E,E$24,'4.1. CAPEX'!$G:$G,E$26,'4.1. CAPEX'!$F:$F,$B$25)+SUMIFS('4.1. CAPEX'!$L:$L,'4.1. CAPEX'!$C:$C,$A32,'4.1. CAPEX'!$D:$D,$B$2,'4.1. CAPEX'!$E:$E,E$24,'4.1. CAPEX'!$G:$G,E$26,'4.1. CAPEX'!$F:$F,$B$25)) -> 3124.384703 | F32: =(SUMIFS('4.1. CAPEX'!$I:$I,'4.1. CAPEX'!$C:$C,$A32,'4.1. CAPEX'!$D:$D,$B$2,'4.1. CAPEX'!$E:$E,F$24,'4.1. CAPEX'!$G:$G,F$26,'4.1. CAPEX'!$F:$F,$B$25)+SUMIFS('4.1. CAPEX'!$L:$L,'4.1. CAPEX'!$C:$C,$A32,'4.1. CAPEX'!$D:$D,$B$2,'4.1. CAPEX'!$E:$E,F$24,'4.1. CAPEX'!$G:$G,F$26,'4.1. CAPEX'!$F:$F,$B$25)) -> 3095.187128 | H32: Pellet Solar Hybrid | I32: =(SUMIFS('4.1. CAPEX'!$I:$I,'4.1. CAPEX'!$C:$C,$A32,'4.1. CAPEX'!$D:$D,$B$2,'4.1. CAPEX'!$E:$E,I$24,'4.1. CAPEX'!$G:$G,I$26,'4.1. CAPEX'!$F:$F,$B$25)+SUMIFS('4.1. CAPEX'!$L:$L,'4.1. CAPEX'!$C:$C,$A32,'4.1. CAPEX'!$D:$D,$B$2,'4.1. CAPEX'!$E:$E,I$24,'4.1. CAPEX'!$G:$G,C$26,'4.1. CAPEX'!$F:$F,$B$25)) -> 2516.240022 | J32: =(SUMIFS('4.1. CAPEX'!$I:$I,'4.1. CAPEX'!$C:$C,$A32,'4.1. CAPEX'!$D:$D,$B$2,'4.1. CAPEX'!$E:$E,J$24,'4.1. CAPEX'!$G:$G,J$26,'4.1. CAPEX'!$F:$F,$B$25)+SUMIFS('4.1. CAPEX'!$L:$L,'4.1. CAPEX'!$C:$C,$A32,'4.1. CAPEX'!$D:$D,$B$2,'4.1. CAPEX'!$E:$E,J$24,'4.1. CAPEX'!$G:$G,D$26,'4.1. CAPEX'!$F:$F,$B$25)) -> 2493.675067 | K32: =(SUMIFS('4.1. CAPEX'!$I:$I,'4.1. CAPEX'!$C:$C,$A32,'4.1. CAPEX'!$D:$D,$B$2,'4.1. CAPEX'!$E:$E,K$24,'4.1. CAPEX'!$G:$G,K$26,'4.1. CAPEX'!$F:$F,$B$25)+SUMIFS('4.1. CAPEX'!$L:$L,'4.1. CAPEX'!$C:$C,$A32,'4.1. CAPEX'!$D:$D,$B$2,'4.1. CAPEX'!$E:$E,K$24,'4.1. CAPEX'!$G:$G,E$26,'4.1. CAPEX'!$F:$F,$B$25)) -> 2459.827633 | L32: =(SUMIFS('4.1. CAPEX'!$I:$I,'4.1. CAPEX'!$C:$C,$A32,'4.1. CAPEX'!$D:$D,$B$2,'4.1. CAPEX'!$E:$E,L$24,'4.1. CAPEX'!$G:$G,L$26,'4.1. CAPEX'!$F:$F,$B$25)+SUMIFS('4.1. CAPEX'!$L:$L,'4.1. CAPEX'!$C:$C,$A32,'4.1. CAPEX'!$D:$D,$B$2,'4.1. CAPEX'!$E:$E,L$24,'4.1. CAPEX'!$G:$G,F$26,'4.1. CAPEX'!$F:$F,$B$25)) -> 2437.262678 | N32: Pellet Solar Hybrid | O32: =(SUMIFS('4.1. CAPEX'!$I:$I,'4.1. CAPEX'!$C:$C,$A32,'4.1. CAPEX'!$D:$D,$B$2,'4.1. CAPEX'!$E:$E,O$24,'4.1. CAPEX'!$G:$G,O$26,'4.1. CAPEX'!$F:$F,$B$25)+SUMIFS('4.1. CAPEX'!$L:$L,'4.1. CAPEX'!$C:$C,$A32,'4.1. CAPEX'!$D:$D,$B$2,'4.1. CAPEX'!$E:$E,I$24,'4.1. CAPEX'!$G:$G,C$26,'4.1. CAPEX'!$F:$F,$B$25)) -> 1436.120761 | P32: =(SUMIFS('4.1. CAPEX'!$I:$I,'4.1. CAPEX'!$C:$C,$A32,'4.1. CAPEX'!$D:$D,$B$2,'4.1. CAPEX'!$E:$E,P$24,'4.1. CAPEX'!$G:$G,P$26,'4.1. CAPEX'!$F:$F,$B$25)+SUMIFS('4.1. CAPEX'!$L:$L,'4.1. CAPEX'!$C:$C,$A32,'4.1. CAPEX'!$D:$D,$B$2,'4.1. CAPEX'!$E:$E,J$24,'4.1. CAPEX'!$G:$G,D$26,'4.1. CAPEX'!$F:$F,$B$25)) -> 1420.056021 | Q32: =(SUMIFS('4.1. CAPEX'!$I:$I,'4.1. CAPEX'!$C:$C,$A32,'4.1. CAPEX'!$D:$D,$B$2,'4.1. CAPEX'!$E:$E,Q$24,'4.1. CAPEX'!$G:$G,Q$26,'4.1. CAPEX'!$F:$F,$B$25)+SUMIFS('4.1. CAPEX'!$L:$L,'4.1. CAPEX'!$C:$C,$A32,'4.1. CAPEX'!$D:$D,$B$2,'4.1. CAPEX'!$E:$E,K$24,'4.1. CAPEX'!$G:$G,E$26,'4.1. CAPEX'!$F:$F,$B$25)) -> 1395.958912 | R32: =(SUMIFS('4.1. CAPEX'!$I:$I,'4.1. CAPEX'!$C:$C,$A32,'4.1. CAPEX'!$D:$D,$B$2,'4.1. CAPEX'!$E:$E,R$24,'4.1. CAPEX'!$G:$G,R$26,'4.1. CAPEX'!$F:$F,$B$25)+SUMIFS('4.1. CAPEX'!$L:$L,'4.1. CAPEX'!$C:$C,$A32,'4.1. CAPEX'!$D:$D,$B$2,'4.1. CAPEX'!$E:$E,L$24,'4.1. CAPEX'!$G:$G,F$26,'4.1. CAPEX'!$F:$F,$B$25)) -> 1379.894173
A34: Average investment cost (all markets) [EUR/kW] | I34: TFH | J34: TFH | K34: TFH | L34: TFH | O34: MFH | P34: MFH | Q34: MFH | R34: MFH
C35: SFH | I35: sMFH | O35: lMFH
B36: Technology | C36: 2023 | D36: 2025 | E36: 2028 | F36: 2030 | H36: Technology | I36: 2023 | J36: 2025 | K36: 2028 | L36: 2030 | N36: Technology | O36: 2023 | P36: 2025 | Q36: 2028 | R36: 2030
B37: Gas boiler | C37: =((SUMIFS('4.1. CAPEX'!$I:$I,'4.1. CAPEX'!$C:$C,$A27,'4.1. CAPEX'!$E:$E,C$24,'4.1. CAPEX'!$G:$G,C$36,'4.1. CAPEX'!$F:$F,$B$25)+SUMIFS('4.1. CAPEX'!$L:$L,'4.1. CAPEX'!$C:$C,$A27,'4.1. CAPEX'!$E:$E,C$24,'4.1. CAPEX'!$G:$G,C$36,'4.1. CAPEX'!$F:$F,$B$25))/16) -> 1112.448046 | D37: =((SUMIFS('4.1. CAPEX'!$I:$I,'4.1. CAPEX'!$C:$C,$A27,'4.1. CAPEX'!$E:$E,D$24,'4.1. CAPEX'!$G:$G,D$36,'4.1. CAPEX'!$F:$F,$B$25)+SUMIFS('4.1. CAPEX'!$L:$L,'4.1. CAPEX'!$C:$C,$A27,'4.1. CAPEX'!$E:$E,D$24,'4.1. CAPEX'!$G:$G,D$36,'4.1. CAPEX'!$F:$F,$B$25))/16) -> 1097.823469 | E37: =((SUMIFS('4.1. CAPEX'!$I:$I,'4.1. CAPEX'!$C:$C,$A27,'4.1. CAPEX'!$E:$E,E$24,'4.1. CAPEX'!$G:$G,E$36,'4.1. CAPEX'!$F:$F,$B$25)+SUMIFS('4.1. CAPEX'!$L:$L,'4.1. CAPEX'!$C:$C,$A27,'4.1. CAPEX'!$E:$E,E$24,'4.1. CAPEX'!$G:$G,E$36,'4.1. CAPEX'!$F:$F,$B$25))/16) -> 1075.886603 | F37: =((SUMIFS('4.1. CAPEX'!$I:$I,'4.1. CAPEX'!$C:$C,$A27,'4.1. CAPEX'!$E:$E,F$24,'4.1. CAPEX'!$G:$G,F$36,'4.1. CAPEX'!$F:$F,$B$25)+SUMIFS('4.1. CAPEX'!$L:$L,'4.1. CAPEX'!$C:$C,$A27,'4.1. CAPEX'!$E:$E,F$24,'4.1. CAPEX'!$G:$G,F$36,'4.1. CAPEX'!$F:$F,$B$25))/16) -> 1061.262026 | H37: Gas boiler | I37: =((SUMIFS('4.1. CAPEX'!$I:$I,'4.1. CAPEX'!$C:$C,$A27,'4.1. CAPEX'!$E:$E,I$24,'4.1. CAPEX'!$G:$G,I$36,'4.1. CAPEX'!$F:$F,$B$25)+SUMIFS('4.1. CAPEX'!$L:$L,'4.1. CAPEX'!$C:$C,$A27,'4.1. CAPEX'!$E:$E,I$24,'4.1. CAPEX'!$G:$G,I$36,'4.1. CAPEX'!$F:$F,$B$25))/16) -> 796.207056 | J37: =((SUMIFS('4.1. CAPEX'!$I:$I,'4.1. CAPEX'!$C:$C,$A27,'4.1. CAPEX'!$E:$E,J$24,'4.1. CAPEX'!$G:$G,J$36,'4.1. CAPEX'!$F:$F,$B$25)+SUMIFS('4.1. CAPEX'!$L:$L,'4.1. CAPEX'!$C:$C,$A27,'4.1. CAPEX'!$E:$E,J$24,'4.1. CAPEX'!$G:$G,J$36,'4.1. CAPEX'!$F:$F,$B$25))/16) -> 786.1476902 | K37: =((SUMIFS('4.1. CAPEX'!$I:$I,'4.1. CAPEX'!$C:$C,$A27,'4.1. CAPEX'!$E:$E,K$24,'4.1. CAPEX'!$G:$G,K$36,'4.1. CAPEX'!$F:$F,$B$25)+SUMIFS('4.1. CAPEX'!$L:$L,'4.1. CAPEX'!$C:$C,$A27,'4.1. CAPEX'!$E:$E,K$24,'4.1. CAPEX'!$G:$G,K$36,'4.1. CAPEX'!$F:$F,$B$25))/16) -> 771.0586414 | L37: =((SUMIFS('4.1. CAPEX'!$I:$I,'4.1. CAPEX'!$C:$C,$A27,'4.1. CAPEX'!$E:$E,L$24,'4.1. CAPEX'!$G:$G,L$36,'4.1. CAPEX'!$F:$F,$B$25)+SUMIFS('4.1. CAPEX'!$L:$L,'4.1. CAPEX'!$C:$C,$A27,'4.1. CAPEX'!$E:$E,L$24,'4.1. CAPEX'!$G:$G,L$36,'4.1. CAPEX'!$F:$F,$B$25))/16) -> 760.9992755 | N37: Gas boiler | O37: =((SUMIFS('4.1. CAPEX'!$I:$I,'4.1. CAPEX'!$C:$C,$A27,'4.1. CAPEX'!$E:$E,O$24,'4.1. CAPEX'!$G:$G,O$36,'4.1. CAPEX'!$F:$F,$B$25)+SUMIFS('4.1. CAPEX'!$L:$L,'4.1. CAPEX'!$C:$C,$A27,'4.1. CAPEX'!$E:$E,O$24,'4.1. CAPEX'!$G:$G,O$36,'4.1. CAPEX'!$F:$F,$B$25))/16) -> 365.008118 | P37: =((SUMIFS('4.1. CAPEX'!$I:$I,'4.1. CAPEX'!$C:$C,$A27,'4.1. CAPEX'!$E:$E,P$24,'4.1. CAPEX'!$G:$G,P$36,'4.1. CAPEX'!$F:$F,$B$25)+SUMIFS('4.1. CAPEX'!$L:$L,'4.1. CAPEX'!$C:$C,$A27,'4.1. CAPEX'!$E:$E,P$24,'4.1. CAPEX'!$G:$G,P$36,'4.1. CAPEX'!$F:$F,$B$25))/16) -> 360.8808876 | Q37: =((SUMIFS('4.1. CAPEX'!$I:$I,'4.1. CAPEX'!$C:$C,$A27,'4.1. CAPEX'!$E:$E,Q$24,'4.1. CAPEX'!$G:$G,Q$36,'4.1. CAPEX'!$F:$F,$B$25)+SUMIFS('4.1. CAPEX'!$L:$L,'4.1. CAPEX'!$C:$C,$A27,'4.1. CAPEX'!$E:$E,Q$24,'4.1. CAPEX'!$G:$G,Q$36,'4.1. CAPEX'!$F:$F,$B$25))/16) -> 354.6900419 | R37: =((SUMIFS('4.1. CAPEX'!$I:$I,'4.1. CAPEX'!$C:$C,$A27,'4.1. CAPEX'!$E:$E,R$24,'4.1. CAPEX'!$G:$G,R$36,'4.1. CAPEX'!$F:$F,$B$25)+SUMIFS('4.1. CAPEX'!$L:$L,'4.1. CAPEX'!$C:$C,$A27,'4.1. CAPEX'!$E:$E,R$24,'4.1. CAPEX'!$G:$G,R$36,'4.1. CAPEX'!$F:$F,$B$25))/16) -> 350.5628115
B38: HP brine-to-water | C38: =((SUMIFS('4.1. CAPEX'!$I:$I,'4.1. CAPEX'!$C:$C,$A28,'4.1. CAPEX'!$E:$E,C$24,'4.1. CAPEX'!$G:$G,C$36,'4.1. CAPEX'!$F:$F,$B$25)+SUMIFS('4.1. CAPEX'!$L:$L,'4.1. CAPEX'!$C:$C,$A28,'4.1. CAPEX'!$E:$E,C$24,'4.1. CAPEX'!$G:$G,C$36,'4.1. CAPEX'!$F:$F,$B$25))/16) -> 2885.766525 | D38: =((SUMIFS('4.1. CAPEX'!$I:$I,'4.1. CAPEX'!$C:$C,$A28,'4.1. CAPEX'!$E:$E,D$24,'4.1. CAPEX'!$G:$G,D$36,'4.1. CAPEX'!$F:$F,$B$25)+SUMIFS('4.1. CAPEX'!$L:$L,'4.1. CAPEX'!$C:$C,$A28,'4.1. CAPEX'!$E:$E,D$24,'4.1. CAPEX'!$G:$G,D$36,'4.1. CAPEX'!$F:$F,$B$25))/16) -> 2516.313492 | E38: =((SUMIFS('4.1. CAPEX'!$I:$I,'4.1. CAPEX'!$C:$C,$A28,'4.1. CAPEX'!$E:$E,E$24,'4.1. CAPEX'!$G:$G,E$36,'4.1. CAPEX'!$F:$F,$B$25)+SUMIFS('4.1. CAPEX'!$L:$L,'4.1. CAPEX'!$C:$C,$A28,'4.1. CAPEX'!$E:$E,E$24,'4.1. CAPEX'!$G:$G,E$36,'4.1. CAPEX'!$F:$F,$B$25))/16) -> 1962.133944 | F38: =((SUMIFS('4.1. CAPEX'!$I:$I,'4.1. CAPEX'!$C:$C,$A28,'4.1. CAPEX'!$E:$E,F$24,'4.1. CAPEX'!$G:$G,F$36,'4.1. CAPEX'!$F:$F,$B$25)+SUMIFS('4.1. CAPEX'!$L:$L,'4.1. CAPEX'!$C:$C,$A28,'4.1. CAPEX'!$E:$E,F$24,'4.1. CAPEX'!$G:$G,F$36,'4.1. CAPEX'!$F:$F,$B$25))/16) -> 1592.680911 | H38: HP brine-to-water | I38: =((SUMIFS('4.1. CAPEX'!$I:$I,'4.1. CAPEX'!$C:$C,$A28,'4.1. CAPEX'!$E:$E,I$24,'4.1. CAPEX'!$G:$G,I$36,'4.1. CAPEX'!$F:$F,$B$25)+SUMIFS('4.1. CAPEX'!$L:$L,'4.1. CAPEX'!$C:$C,$A28,'4.1. CAPEX'!$E:$E,I$24,'4.1. CAPEX'!$G:$G,I$36,'4.1. CAPEX'!$F:$F,$B$25))/16) -> 2082.49818 | J38: =((SUMIFS('4.1. CAPEX'!$I:$I,'4.1. CAPEX'!$C:$C,$A28,'4.1. CAPEX'!$E:$E,J$24,'4.1. CAPEX'!$G:$G,J$36,'4.1. CAPEX'!$F:$F,$B$25)+SUMIFS('4.1. CAPEX'!$L:$L,'4.1. CAPEX'!$C:$C,$A28,'4.1. CAPEX'!$E:$E,J$24,'4.1. CAPEX'!$G:$G,J$36,'4.1. CAPEX'!$F:$F,$B$25))/16) -> 1830.003925 | K38: =((SUMIFS('4.1. CAPEX'!$I:$I,'4.1. CAPEX'!$C:$C,$A28,'4.1. CAPEX'!$E:$E,K$24,'4.1. CAPEX'!$G:$G,K$36,'4.1. CAPEX'!$F:$F,$B$25)+SUMIFS('4.1. CAPEX'!$L:$L,'4.1. CAPEX'!$C:$C,$A28,'4.1. CAPEX'!$E:$E,K$24,'4.1. CAPEX'!$G:$G,K$36,'4.1. CAPEX'!$F:$F,$B$25))/16) -> 1451.262541 | L38: =((SUMIFS('4.1. CAPEX'!$I:$I,'4.1. CAPEX'!$C:$C,$A28,'4.1. CAPEX'!$E:$E,L$24,'4.1. CAPEX'!$G:$G,L$36,'4.1. CAPEX'!$F:$F,$B$25)+SUMIFS('4.1. CAPEX'!$L:$L,'4.1. CAPEX'!$C:$C,$A28,'4.1. CAPEX'!$E:$E,L$24,'4.1. CAPEX'!$G:$G,L$36,'4.1. CAPEX'!$F:$F,$B$25))/16) -> 1198.768286 | N38: HP brine-to-water | O38: =((SUMIFS('4.1. CAPEX'!$I:$I,'4.1. CAPEX'!$C:$C,$A28,'4.1. CAPEX'!$E:$E,O$24,'4.1. CAPEX'!$G:$G,O$36,'4.1. CAPEX'!$F:$F,$B$25)+SUMIFS('4.1. CAPEX'!$L:$L,'4.1. CAPEX'!$C:$C,$A28,'4.1. CAPEX'!$E:$E,O$24,'4.1. CAPEX'!$G:$G,O$36,'4.1. CAPEX'!$F:$F,$B$25))/16) -> 1082.110128 | P38: =((SUMIFS('4.1. CAPEX'!$I:$I,'4.1. CAPEX'!$C:$C,$A28,'4.1. CAPEX'!$E:$E,P$24,'4.1. CAPEX'!$G:$G,P$36,'4.1. CAPEX'!$F:$F,$B$25)+SUMIFS('4.1. CAPEX'!$L:$L,'4.1. CAPEX'!$C:$C,$A28,'4.1. CAPEX'!$E:$E,P$24,'4.1. CAPEX'!$G:$G,P$36,'4.1. CAPEX'!$F:$F,$B$25))/16) -> 974.5804206 | Q38: =((SUMIFS('4.1. CAPEX'!$I:$I,'4.1. CAPEX'!$C:$C,$A28,'4.1. CAPEX'!$E:$E,Q$24,'4.1. CAPEX'!$G:$G,Q$36,'4.1. CAPEX'!$F:$F,$B$25)+SUMIFS('4.1. CAPEX'!$L:$L,'4.1. CAPEX'!$C:$C,$A28,'4.1. CAPEX'!$E:$E,Q$24,'4.1. CAPEX'!$G:$G,Q$36,'4.1. CAPEX'!$F:$F,$B$25))/16) -> 813.28586 | R38: =((SUMIFS('4.1. CAPEX'!$I:$I,'4.1. CAPEX'!$C:$C,$A28,'4.1. CAPEX'!$E:$E,R$24,'4.1. CAPEX'!$G:$G,R$36,'4.1. CAPEX'!$F:$F,$B$25)+SUMIFS('4.1. CAPEX'!$L:$L,'4.1. CAPEX'!$C:$C,$A28,'4.1. CAPEX'!$E:$E,R$24,'4.1. CAPEX'!$G:$G,R$36,'4.1. CAPEX'!$F:$F,$B$25))/16) -> 705.756153
B39: HP air-to-water | C39: =((SUMIFS('4.1. CAPEX'!$I:$I,'4.1. CAPEX'!$C:$C,$A29,'4.1. CAPEX'!$E:$E,C$24,'4.1. CAPEX'!$G:$G,C$36,'4.1. CAPEX'!$F:$F,$B$25)+SUMIFS('4.1. CAPEX'!$L:$L,'4.1. CAPEX'!$C:$C,$A29,'4.1. CAPEX'!$E:$E,C$24,'4.1. CAPEX'!$G:$G,C$36,'4.1. CAPEX'!$F:$F,$B$25))/16) -> 1373.60412 | D39: =((SUMIFS('4.1. CAPEX'!$I:$I,'4.1. CAPEX'!$C:$C,$A29,'4.1. CAPEX'!$E:$E,D$24,'4.1. CAPEX'!$G:$G,D$36,'4.1. CAPEX'!$F:$F,$B$25)+SUMIFS('4.1. CAPEX'!$L:$L,'4.1. CAPEX'!$C:$C,$A29,'4.1. CAPEX'!$E:$E,D$24,'4.1. CAPEX'!$G:$G,D$36,'4.1. CAPEX'!$F:$F,$B$25))/16) -> 1232.857445 | E39: =((SUMIFS('4.1. CAPEX'!$I:$I,'4.1. CAPEX'!$C:$C,$A29,'4.1. CAPEX'!$E:$E,E$24,'4.1. CAPEX'!$G:$G,E$36,'4.1. CAPEX'!$F:$F,$B$25)+SUMIFS('4.1. CAPEX'!$L:$L,'4.1. CAPEX'!$C:$C,$A29,'4.1. CAPEX'!$E:$E,E$24,'4.1. CAPEX'!$G:$G,E$36,'4.1. CAPEX'!$F:$F,$B$25))/16) -> 1021.737433 | F39: =((SUMIFS('4.1. CAPEX'!$I:$I,'4.1. CAPEX'!$C:$C,$A29,'4.1. CAPEX'!$E:$E,F$24,'4.1. CAPEX'!$G:$G,F$36,'4.1. CAPEX'!$F:$F,$B$25)+SUMIFS('4.1. CAPEX'!$L:$L,'4.1. CAPEX'!$C:$C,$A29,'4.1. CAPEX'!$E:$E,F$24,'4.1. CAPEX'!$G:$G,F$36,'4.1. CAPEX'!$F:$F,$B$25))/16) -> 880.9907578 | H39: HP air-to-water | I39: =((SUMIFS('4.1. CAPEX'!$I:$I,'4.1. CAPEX'!$C:$C,$A29,'4.1. CAPEX'!$E:$E,I$24,'4.1. CAPEX'!$G:$G,I$36,'4.1. CAPEX'!$F:$F,$B$25)+SUMIFS('4.1. CAPEX'!$L:$L,'4.1. CAPEX'!$C:$C,$A29,'4.1. CAPEX'!$E:$E,I$24,'4.1. CAPEX'!$G:$G,I$36,'4.1. CAPEX'!$F:$F,$B$25))/16) -> 1164.852394 | J39: =((SUMIFS('4.1. CAPEX'!$I:$I,'4.1. CAPEX'!$C:$C,$A29,'4.1. CAPEX'!$E:$E,J$24,'4.1. CAPEX'!$G:$G,J$36,'4.1. CAPEX'!$F:$F,$B$25)+SUMIFS('4.1. CAPEX'!$L:$L,'4.1. CAPEX'!$C:$C,$A29,'4.1. CAPEX'!$E:$E,J$24,'4.1. CAPEX'!$G:$G,J$36,'4.1. CAPEX'!$F:$F,$B$25))/16) -> 1053.924945 | K39: =((SUMIFS('4.1. CAPEX'!$I:$I,'4.1. CAPEX'!$C:$C,$A29,'4.1. CAPEX'!$E:$E,K$24,'4.1. CAPEX'!$G:$G,K$36,'4.1. CAPEX'!$F:$F,$B$25)+SUMIFS('4.1. CAPEX'!$L:$L,'4.1. CAPEX'!$C:$C,$A29,'4.1. CAPEX'!$E:$E,K$24,'4.1. CAPEX'!$G:$G,K$36,'4.1. CAPEX'!$F:$F,$B$25))/16) -> 887.5337727 | L39: =((SUMIFS('4.1. CAPEX'!$I:$I,'4.1. CAPEX'!$C:$C,$A29,'4.1. CAPEX'!$E:$E,L$24,'4.1. CAPEX'!$G:$G,L$36,'4.1. CAPEX'!$F:$F,$B$25)+SUMIFS('4.1. CAPEX'!$L:$L,'4.1. CAPEX'!$C:$C,$A29,'4.1. CAPEX'!$E:$E,L$24,'4.1. CAPEX'!$G:$G,L$36,'4.1. CAPEX'!$F:$F,$B$25))/16) -> 776.6063243 | N39: HP air-to-water | O39: =((SUMIFS('4.1. CAPEX'!$I:$I,'4.1. CAPEX'!$C:$C,$A29,'4.1. CAPEX'!$E:$E,O$24,'4.1. CAPEX'!$G:$G,O$36,'4.1. CAPEX'!$F:$F,$B$25)+SUMIFS('4.1. CAPEX'!$L:$L,'4.1. CAPEX'!$C:$C,$A29,'4.1. CAPEX'!$E:$E,O$24,'4.1. CAPEX'!$G:$G,O$36,'4.1. CAPEX'!$F:$F,$B$25))/16) -> 827.4923136 | P39: =((SUMIFS('4.1. CAPEX'!$I:$I,'4.1. CAPEX'!$C:$C,$A29,'4.1. CAPEX'!$E:$E,P$24,'4.1. CAPEX'!$G:$G,P$36,'4.1. CAPEX'!$F:$F,$B$25)+SUMIFS('4.1. CAPEX'!$L:$L,'4.1. CAPEX'!$C:$C,$A29,'4.1. CAPEX'!$E:$E,P$24,'4.1. CAPEX'!$G:$G,P$36,'4.1. CAPEX'!$F:$F,$B$25))/16) -> 764.2302342 | Q39: =((SUMIFS('4.1. CAPEX'!$I:$I,'4.1. CAPEX'!$C:$C,$A29,'4.1. CAPEX'!$E:$E,Q$24,'4.1. CAPEX'!$G:$G,Q$36,'4.1. CAPEX'!$F:$F,$B$25)+SUMIFS('4.1. CAPEX'!$L:$L,'4.1. CAPEX'!$C:$C,$A29,'4.1. CAPEX'!$E:$E,Q$24,'4.1. CAPEX'!$G:$G,Q$36,'4.1. CAPEX'!$F:$F,$B$25))/16) -> 669.337115 | R39: =((SUMIFS('4.1. CAPEX'!$I:$I,'4.1. CAPEX'!$C:$C,$A29,'4.1. CAPEX'!$E:$E,R$24,'4.1. CAPEX'!$G:$G,R$36,'4.1. CAPEX'!$F:$F,$B$25)+SUMIFS('4.1. CAPEX'!$L:$L,'4.1. CAPEX'!$C:$C,$A29,'4.1. CAPEX'!$E:$E,R$24,'4.1. CAPEX'!$G:$G,R$36,'4.1. CAPEX'!$F:$F,$B$25))/16) -> 606.0750355
B40: Pellet boiler | C40: =((SUMIFS('4.1. CAPEX'!$I:$I,'4.1. CAPEX'!$C:$C,$A30,'4.1. CAPEX'!$E:$E,C$24,'4.1. CAPEX'!$G:$G,C$36,'4.1. CAPEX'!$F:$F,$B$25)+SUMIFS('4.1. CAPEX'!$L:$L,'4.1. CAPEX'!$C:$C,$A30,'4.1. CAPEX'!$E:$E,C$24,'4.1. CAPEX'!$G:$G,C$36,'4.1. CAPEX'!$F:$F,$B$25))/16) -> 2463.720734 | D40: =((SUMIFS('4.1. CAPEX'!$I:$I,'4.1. CAPEX'!$C:$C,$A30,'4.1. CAPEX'!$E:$E,D$24,'4.1. CAPEX'!$G:$G,D$36,'4.1. CAPEX'!$F:$F,$B$25)+SUMIFS('4.1. CAPEX'!$L:$L,'4.1. CAPEX'!$C:$C,$A30,'4.1. CAPEX'!$E:$E,D$24,'4.1. CAPEX'!$G:$G,D$36,'4.1. CAPEX'!$F:$F,$B$25))/16) -> 2437.291782 | E40: =((SUMIFS('4.1. CAPEX'!$I:$I,'4.1. CAPEX'!$C:$C,$A30,'4.1. CAPEX'!$E:$E,E$24,'4.1. CAPEX'!$G:$G,E$36,'4.1. CAPEX'!$F:$F,$B$25)+SUMIFS('4.1. CAPEX'!$L:$L,'4.1. CAPEX'!$C:$C,$A30,'4.1. CAPEX'!$E:$E,E$24,'4.1. CAPEX'!$G:$G,E$36,'4.1. CAPEX'!$F:$F,$B$25))/16) -> 2397.648353 | F40: =((SUMIFS('4.1. CAPEX'!$I:$I,'4.1. CAPEX'!$C:$C,$A30,'4.1. CAPEX'!$E:$E,F$24,'4.1. CAPEX'!$G:$G,F$36,'4.1. CAPEX'!$F:$F,$B$25)+SUMIFS('4.1. CAPEX'!$L:$L,'4.1. CAPEX'!$C:$C,$A30,'4.1. CAPEX'!$E:$E,F$24,'4.1. CAPEX'!$G:$G,F$36,'4.1. CAPEX'!$F:$F,$B$25))/16) -> 2371.219401 | H40: Pellet boiler | I40: =((SUMIFS('4.1. CAPEX'!$I:$I,'4.1. CAPEX'!$C:$C,$A30,'4.1. CAPEX'!$E:$E,I$24,'4.1. CAPEX'!$G:$G,I$36,'4.1. CAPEX'!$F:$F,$B$25)+SUMIFS('4.1. CAPEX'!$L:$L,'4.1. CAPEX'!$C:$C,$A30,'4.1. CAPEX'!$E:$E,I$24,'4.1. CAPEX'!$G:$G,I$36,'4.1. CAPEX'!$F:$F,$B$25))/16) -> 1750.500391 | J40: =((SUMIFS('4.1. CAPEX'!$I:$I,'4.1. CAPEX'!$C:$C,$A30,'4.1. CAPEX'!$E:$E,J$24,'4.1. CAPEX'!$G:$G,J$36,'4.1. CAPEX'!$F:$F,$B$25)+SUMIFS('4.1. CAPEX'!$L:$L,'4.1. CAPEX'!$C:$C,$A30,'4.1. CAPEX'!$E:$E,J$24,'4.1. CAPEX'!$G:$G,J$36,'4.1. CAPEX'!$F:$F,$B$25))/16) -> 1731.316146 | K40: =((SUMIFS('4.1. CAPEX'!$I:$I,'4.1. CAPEX'!$C:$C,$A30,'4.1. CAPEX'!$E:$E,K$24,'4.1. CAPEX'!$G:$G,K$36,'4.1. CAPEX'!$F:$F,$B$25)+SUMIFS('4.1. CAPEX'!$L:$L,'4.1. CAPEX'!$C:$C,$A30,'4.1. CAPEX'!$E:$E,K$24,'4.1. CAPEX'!$G:$G,K$36,'4.1. CAPEX'!$F:$F,$B$25))/16) -> 1702.539778 | L40: =((SUMIFS('4.1. CAPEX'!$I:$I,'4.1. CAPEX'!$C:$C,$A30,'4.1. CAPEX'!$E:$E,L$24,'4.1. CAPEX'!$G:$G,L$36,'4.1. CAPEX'!$F:$F,$B$25)+SUMIFS('4.1. CAPEX'!$L:$L,'4.1. CAPEX'!$C:$C,$A30,'4.1. CAPEX'!$E:$E,L$24,'4.1. CAPEX'!$G:$G,L$36,'4.1. CAPEX'!$F:$F,$B$25))/16) -> 1683.355533 | N40: Pellet boiler | O40: =((SUMIFS('4.1. CAPEX'!$I:$I,'4.1. CAPEX'!$C:$C,$A30,'4.1. CAPEX'!$E:$E,O$24,'4.1. CAPEX'!$G:$G,O$36,'4.1. CAPEX'!$F:$F,$B$25)+SUMIFS('4.1. CAPEX'!$L:$L,'4.1. CAPEX'!$C:$C,$A30,'4.1. CAPEX'!$E:$E,O$24,'4.1. CAPEX'!$G:$G,O$36,'4.1. CAPEX'!$F:$F,$B$25))/16) -> 808.6267711 | P40: =((SUMIFS('4.1. CAPEX'!$I:$I,'4.1. CAPEX'!$C:$C,$A30,'4.1. CAPEX'!$E:$E,P$24,'4.1. CAPEX'!$G:$G,P$36,'4.1. CAPEX'!$F:$F,$B$25)+SUMIFS('4.1. CAPEX'!$L:$L,'4.1. CAPEX'!$C:$C,$A30,'4.1. CAPEX'!$E:$E,P$24,'4.1. CAPEX'!$G:$G,P$36,'4.1. CAPEX'!$F:$F,$B$25))/16) -> 799.3274979 | Q40: =((SUMIFS('4.1. CAPEX'!$I:$I,'4.1. CAPEX'!$C:$C,$A30,'4.1. CAPEX'!$E:$E,Q$24,'4.1. CAPEX'!$G:$G,Q$36,'4.1. CAPEX'!$F:$F,$B$25)+SUMIFS('4.1. CAPEX'!$L:$L,'4.1. CAPEX'!$C:$C,$A30,'4.1. CAPEX'!$E:$E,Q$24,'4.1. CAPEX'!$G:$G,Q$36,'4.1. CAPEX'!$F:$F,$B$25))/16) -> 785.3785881 | R40: =((SUMIFS('4.1. CAPEX'!$I:$I,'4.1. CAPEX'!$C:$C,$A30,'4.1. CAPEX'!$E:$E,R$24,'4.1. CAPEX'!$G:$G,R$36,'4.1. CAPEX'!$F:$F,$B$25)+SUMIFS('4.1. CAPEX'!$L:$L,'4.1. CAPEX'!$C:$C,$A30,'4.1. CAPEX'!$E:$E,R$24,'4.1. CAPEX'!$G:$G,R$36,'4.1. CAPEX'!$F:$F,$B$25))/16) -> 776.0793149
B41: Gas Solar Hybrid | C41: =((SUMIFS('4.1. CAPEX'!$I:$I,'4.1. CAPEX'!$C:$C,$A31,'4.1. CAPEX'!$E:$E,C$24,'4.1. CAPEX'!$G:$G,C$36,'4.1. CAPEX'!$F:$F,$B$25)+SUMIFS('4.1. CAPEX'!$L:$L,'4.1. CAPEX'!$C:$C,$A31,'4.1. CAPEX'!$E:$E,C$24,'4.1. CAPEX'!$G:$G,C$36,'4.1. CAPEX'!$F:$F,$B$25))/16) -> 2204.809005 | D41: =((SUMIFS('4.1. CAPEX'!$I:$I,'4.1. CAPEX'!$C:$C,$A31,'4.1. CAPEX'!$E:$E,D$24,'4.1. CAPEX'!$G:$G,D$36,'4.1. CAPEX'!$F:$F,$B$25)+SUMIFS('4.1. CAPEX'!$L:$L,'4.1. CAPEX'!$C:$C,$A31,'4.1. CAPEX'!$E:$E,D$24,'4.1. CAPEX'!$G:$G,D$36,'4.1. CAPEX'!$F:$F,$B$25))/16) -> 2170.499924 | E41: =((SUMIFS('4.1. CAPEX'!$I:$I,'4.1. CAPEX'!$C:$C,$A31,'4.1. CAPEX'!$E:$E,E$24,'4.1. CAPEX'!$G:$G,E$36,'4.1. CAPEX'!$F:$F,$B$25)+SUMIFS('4.1. CAPEX'!$L:$L,'4.1. CAPEX'!$C:$C,$A31,'4.1. CAPEX'!$E:$E,E$24,'4.1. CAPEX'!$G:$G,E$36,'4.1. CAPEX'!$F:$F,$B$25))/16) -> 2119.036304 | F41: =((SUMIFS('4.1. CAPEX'!$I:$I,'4.1. CAPEX'!$C:$C,$A31,'4.1. CAPEX'!$E:$E,F$24,'4.1. CAPEX'!$G:$G,F$36,'4.1. CAPEX'!$F:$F,$B$25)+SUMIFS('4.1. CAPEX'!$L:$L,'4.1. CAPEX'!$C:$C,$A31,'4.1. CAPEX'!$E:$E,F$24,'4.1. CAPEX'!$G:$G,F$36,'4.1. CAPEX'!$F:$F,$B$25))/16) -> 2084.727224 | H41: Gas Solar Hybrid | I41: =((SUMIFS('4.1. CAPEX'!$I:$I,'4.1. CAPEX'!$C:$C,$A31,'4.1. CAPEX'!$E:$E,I$24,'4.1. CAPEX'!$G:$G,I$36,'4.1. CAPEX'!$F:$F,$B$25)+SUMIFS('4.1. CAPEX'!$L:$L,'4.1. CAPEX'!$C:$C,$A31,'4.1. CAPEX'!$E:$E,I$24,'4.1. CAPEX'!$G:$G,I$36,'4.1. CAPEX'!$F:$F,$B$25))/16) -> 1895.549494 | J41: =((SUMIFS('4.1. CAPEX'!$I:$I,'4.1. CAPEX'!$C:$C,$A31,'4.1. CAPEX'!$E:$E,J$24,'4.1. CAPEX'!$G:$G,J$36,'4.1. CAPEX'!$F:$F,$B$25)+SUMIFS('4.1. CAPEX'!$L:$L,'4.1. CAPEX'!$C:$C,$A31,'4.1. CAPEX'!$E:$E,J$24,'4.1. CAPEX'!$G:$G,J$36,'4.1. CAPEX'!$F:$F,$B$25))/16) -> 1865.566795 | K41: =((SUMIFS('4.1. CAPEX'!$I:$I,'4.1. CAPEX'!$C:$C,$A31,'4.1. CAPEX'!$E:$E,K$24,'4.1. CAPEX'!$G:$G,K$36,'4.1. CAPEX'!$F:$F,$B$25)+SUMIFS('4.1. CAPEX'!$L:$L,'4.1. CAPEX'!$C:$C,$A31,'4.1. CAPEX'!$E:$E,K$24,'4.1. CAPEX'!$G:$G,K$36,'4.1. CAPEX'!$F:$F,$B$25))/16) -> 1820.592748 | L41: =((SUMIFS('4.1. CAPEX'!$I:$I,'4.1. CAPEX'!$C:$C,$A31,'4.1. CAPEX'!$E:$E,L$24,'4.1. CAPEX'!$G:$G,L$36,'4.1. CAPEX'!$F:$F,$B$25)+SUMIFS('4.1. CAPEX'!$L:$L,'4.1. CAPEX'!$C:$C,$A31,'4.1. CAPEX'!$E:$E,L$24,'4.1. CAPEX'!$G:$G,L$36,'4.1. CAPEX'!$F:$F,$B$25))/16) -> 1790.61005 | N41: Gas Solar Hybrid | O41: =((SUMIFS('4.1. CAPEX'!$I:$I,'4.1. CAPEX'!$C:$C,$A31,'4.1. CAPEX'!$E:$E,O$24,'4.1. CAPEX'!$G:$G,O$36,'4.1. CAPEX'!$F:$F,$B$25)+SUMIFS('4.1. CAPEX'!$L:$L,'4.1. CAPEX'!$C:$C,$A31,'4.1. CAPEX'!$E:$E,O$24,'4.1. CAPEX'!$G:$G,O$36,'4.1. CAPEX'!$F:$F,$B$25))/16) -> 842.8354921 | P41: =((SUMIFS('4.1. CAPEX'!$I:$I,'4.1. CAPEX'!$C:$C,$A31,'4.1. CAPEX'!$E:$E,P$24,'4.1. CAPEX'!$G:$G,P$36,'4.1. CAPEX'!$F:$F,$B$25)+SUMIFS('4.1. CAPEX'!$L:$L,'4.1. CAPEX'!$C:$C,$A31,'4.1. CAPEX'!$E:$E,P$24,'4.1. CAPEX'!$G:$G,P$36,'4.1. CAPEX'!$F:$F,$B$25))/16) -> 830.0163423 | Q41: =((SUMIFS('4.1. CAPEX'!$I:$I,'4.1. CAPEX'!$C:$C,$A31,'4.1. CAPEX'!$E:$E,Q$24,'4.1. CAPEX'!$G:$G,Q$36,'4.1. CAPEX'!$F:$F,$B$25)+SUMIFS('4.1. CAPEX'!$L:$L,'4.1. CAPEX'!$C:$C,$A31,'4.1. CAPEX'!$E:$E,Q$24,'4.1. CAPEX'!$G:$G,Q$36,'4.1. CAPEX'!$F:$F,$B$25))/16) -> 810.7876176 | R41: =((SUMIFS('4.1. CAPEX'!$I:$I,'4.1. CAPEX'!$C:$C,$A31,'4.1. CAPEX'!$E:$E,R$24,'4.1. CAPEX'!$G:$G,R$36,'4.1. CAPEX'!$F:$F,$B$25)+SUMIFS('4.1. CAPEX'!$L:$L,'4.1. CAPEX'!$C:$C,$A31,'4.1. CAPEX'!$E:$E,R$24,'4.1. CAPEX'!$G:$G,R$36,'4.1. CAPEX'!$F:$F,$B$25))/16) -> 797.9684679
B42: Pellet Solar Hybrid | C42: =((SUMIFS('4.1. CAPEX'!$I:$I,'4.1. CAPEX'!$C:$C,$A32,'4.1. CAPEX'!$E:$E,C$24,'4.1. CAPEX'!$G:$G,C$36,'4.1. CAPEX'!$F:$F,$B$25)+SUMIFS('4.1. CAPEX'!$L:$L,'4.1. CAPEX'!$C:$C,$A32,'4.1. CAPEX'!$E:$E,C$24,'4.1. CAPEX'!$G:$G,C$36,'4.1. CAPEX'!$F:$F,$B$25))/16) -> 3088.594872 | D42: =((SUMIFS('4.1. CAPEX'!$I:$I,'4.1. CAPEX'!$C:$C,$A32,'4.1. CAPEX'!$E:$E,D$24,'4.1. CAPEX'!$G:$G,D$36,'4.1. CAPEX'!$F:$F,$B$25)+SUMIFS('4.1. CAPEX'!$L:$L,'4.1. CAPEX'!$C:$C,$A32,'4.1. CAPEX'!$E:$E,D$24,'4.1. CAPEX'!$G:$G,D$36,'4.1. CAPEX'!$F:$F,$B$25))/16) -> 3060.339084 | E42: =((SUMIFS('4.1. CAPEX'!$I:$I,'4.1. CAPEX'!$C:$C,$A32,'4.1. CAPEX'!$E:$E,E$24,'4.1. CAPEX'!$G:$G,E$36,'4.1. CAPEX'!$F:$F,$B$25)+SUMIFS('4.1. CAPEX'!$L:$L,'4.1. CAPEX'!$C:$C,$A32,'4.1. CAPEX'!$E:$E,E$24,'4.1. CAPEX'!$G:$G,E$36,'4.1. CAPEX'!$F:$F,$B$25))/16) -> 3017.955403 | F42: =((SUMIFS('4.1. CAPEX'!$I:$I,'4.1. CAPEX'!$C:$C,$A32,'4.1. CAPEX'!$E:$E,F$24,'4.1. CAPEX'!$G:$G,F$36,'4.1. CAPEX'!$F:$F,$B$25)+SUMIFS('4.1. CAPEX'!$L:$L,'4.1. CAPEX'!$C:$C,$A32,'4.1. CAPEX'!$E:$E,F$24,'4.1. CAPEX'!$G:$G,F$36,'4.1. CAPEX'!$F:$F,$B$25))/16) -> 2989.699615 | H42: Pellet Solar Hybrid | I42: =((SUMIFS('4.1. CAPEX'!$I:$I,'4.1. CAPEX'!$C:$C,$A32,'4.1. CAPEX'!$E:$E,I$24,'4.1. CAPEX'!$G:$G,I$36,'4.1. CAPEX'!$F:$F,$B$25)+SUMIFS('4.1. CAPEX'!$L:$L,'4.1. CAPEX'!$C:$C,$A32,'4.1. CAPEX'!$E:$E,I$24,'4.1. CAPEX'!$G:$G,I$36,'4.1. CAPEX'!$F:$F,$B$25))/16) -> 2430.616214 | J42: =((SUMIFS('4.1. CAPEX'!$I:$I,'4.1. CAPEX'!$C:$C,$A32,'4.1. CAPEX'!$E:$E,J$24,'4.1. CAPEX'!$G:$G,J$36,'4.1. CAPEX'!$F:$F,$B$25)+SUMIFS('4.1. CAPEX'!$L:$L,'4.1. CAPEX'!$C:$C,$A32,'4.1. CAPEX'!$E:$E,J$24,'4.1. CAPEX'!$G:$G,J$36,'4.1. CAPEX'!$F:$F,$B$25))/16) -> 2408.780602 | K42: =((SUMIFS('4.1. CAPEX'!$I:$I,'4.1. CAPEX'!$C:$C,$A32,'4.1. CAPEX'!$E:$E,K$24,'4.1. CAPEX'!$G:$G,K$36,'4.1. CAPEX'!$F:$F,$B$25)+SUMIFS('4.1. CAPEX'!$L:$L,'4.1. CAPEX'!$C:$C,$A32,'4.1. CAPEX'!$E:$E,K$24,'4.1. CAPEX'!$G:$G,K$36,'4.1. CAPEX'!$F:$F,$B$25))/16) -> 2376.027183 | L42: =((SUMIFS('4.1. CAPEX'!$I:$I,'4.1. CAPEX'!$C:$C,$A32,'4.1. CAPEX'!$E:$E,L$24,'4.1. CAPEX'!$G:$G,L$36,'4.1. CAPEX'!$F:$F,$B$25)+SUMIFS('4.1. CAPEX'!$L:$L,'4.1. CAPEX'!$C:$C,$A32,'4.1. CAPEX'!$E:$E,L$24,'4.1. CAPEX'!$G:$G,L$36,'4.1. CAPEX'!$F:$F,$B$25))/16) -> 2354.191571 | N42: Pellet Solar Hybrid | O42: =((SUMIFS('4.1. CAPEX'!$I:$I,'4.1. CAPEX'!$C:$C,$A32,'4.1. CAPEX'!$E:$E,O$24,'4.1. CAPEX'!$G:$G,O$36,'4.1. CAPEX'!$F:$F,$B$25)+SUMIFS('4.1. CAPEX'!$L:$L,'4.1. CAPEX'!$C:$C,$A32,'4.1. CAPEX'!$E:$E,O$24,'4.1. CAPEX'!$G:$G,O$36,'4.1. CAPEX'!$F:$F,$B$25))/16) -> 1104.036106 | P42: =((SUMIFS('4.1. CAPEX'!$I:$I,'4.1. CAPEX'!$C:$C,$A32,'4.1. CAPEX'!$E:$E,P$24,'4.1. CAPEX'!$G:$G,P$36,'4.1. CAPEX'!$F:$F,$B$25)+SUMIFS('4.1. CAPEX'!$L:$L,'4.1. CAPEX'!$C:$C,$A32,'4.1. CAPEX'!$E:$E,P$24,'4.1. CAPEX'!$G:$G,P$36,'4.1. CAPEX'!$F:$F,$B$25))/16) -> 1093.697863 | Q42: =((SUMIFS('4.1. CAPEX'!$I:$I,'4.1. CAPEX'!$C:$C,$A32,'4.1. CAPEX'!$E:$E,Q$24,'4.1. CAPEX'!$G:$G,Q$36,'4.1. CAPEX'!$F:$F,$B$25)+SUMIFS('4.1. CAPEX'!$L:$L,'4.1. CAPEX'!$C:$C,$A32,'4.1. CAPEX'!$E:$E,Q$24,'4.1. CAPEX'!$G:$G,Q$36,'4.1. CAPEX'!$F:$F,$B$25))/16) -> 1078.190497 | R42: =((SUMIFS('4.1. CAPEX'!$I:$I,'4.1. CAPEX'!$C:$C,$A32,'4.1. CAPEX'!$E:$E,R$24,'4.1. CAPEX'!$G:$G,R$36,'4.1. CAPEX'!$F:$F,$B$25)+SUMIFS('4.1. CAPEX'!$L:$L,'4.1. CAPEX'!$C:$C,$A32,'4.1. CAPEX'!$E:$E,R$24,'4.1. CAPEX'!$G:$G,R$36,'4.1. CAPEX'!$F:$F,$B$25))/16) -> 1067.852254
A44: Efficiency of heating technologies (constant over all markets) [%]
B46: Technology | C46: 2023 | D46: 2025 | E46: 2028 | F46: 2030
B47: Gas boiler | C47: =SUMIFS('5.1 General Data'!$D$8:$D$13,'5.1 General Data'!$C$8:$C$13,$A27)+SUMIFS('5.1 General Data'!$E$8:$E$13,'5.1 General Data'!$C$8:$C$13,$A27)*(C$46-$C$46) -> 1.019301097 | D47: =SUMIFS('5.1 General Data'!$D$8:$D$13,'5.1 General Data'!$C$8:$C$13,$A27)+SUMIFS('5.1 General Data'!$E$8:$E$13,'5.1 General Data'!$C$8:$C$13,$A27)*(D$46-$C$46) -> 1.019301097 | E47: =SUMIFS('5.1 General Data'!$D$8:$D$13,'5.1 General Data'!$C$8:$C$13,$A27)+SUMIFS('5.1 General Data'!$E$8:$E$13,'5.1 General Data'!$C$8:$C$13,$A27)*(E$46-$C$46) -> 1.019301097 | F47: =SUMIFS('5.1 General Data'!$D$8:$D$13,'5.1 General Data'!$C$8:$C$13,$A27)+SUMIFS('5.1 General Data'!$E$8:$E$13,'5.1 General Data'!$C$8:$C$13,$A27)*(F$46-$C$46) -> 1.019301097
B48: HP brine-to-water | C48: =SUMIFS('5.1 General Data'!$D$8:$D$13,'5.1 General Data'!$C$8:$C$13,$A28)+SUMIFS('5.1 General Data'!$E$8:$E$13,'5.1 General Data'!$C$8:$C$13,$A28)*(C$46-$C$46) -> 3.622254758 | D48: =SUMIFS('5.1 General Data'!$D$8:$D$13,'5.1 General Data'!$C$8:$C$13,$A28)+SUMIFS('5.1 General Data'!$E$8:$E$13,'5.1 General Data'!$C$8:$C$13,$A28)*(D$46-$C$46) -> 3.629526758 | E48: =SUMIFS('5.1 General Data'!$D$8:$D$13,'5.1 General Data'!$C$8:$C$13,$A28)+SUMIFS('5.1 General Data'!$E$8:$E$13,'5.1 General Data'!$C$8:$C$13,$A28)*(E$46-$C$46) -> 3.640434758 | F48: =SUMIFS('5.1 General Data'!$D$8:$D$13,'5.1 General Data'!$C$8:$C$13,$A28)+SUMIFS('5.1 General Data'!$E$8:$E$13,'5.1 General Data'!$C$8:$C$13,$A28)*(F$46-$C$46) -> 3.647706758
B49: HP air-to-water | C49: =SUMIFS('5.1 General Data'!$D$8:$D$13,'5.1 General Data'!$C$8:$C$13,$A29)+SUMIFS('5.1 General Data'!$E$8:$E$13,'5.1 General Data'!$C$8:$C$13,$A29)*(C$46-$C$46) -> 2.791240469 | D49: =SUMIFS('5.1 General Data'!$D$8:$D$13,'5.1 General Data'!$C$8:$C$13,$A29)+SUMIFS('5.1 General Data'!$E$8:$E$13,'5.1 General Data'!$C$8:$C$13,$A29)*(D$46-$C$46) -> 2.798512469 | E49: =SUMIFS('5.1 General Data'!$D$8:$D$13,'5.1 General Data'!$C$8:$C$13,$A29)+SUMIFS('5.1 General Data'!$E$8:$E$13,'5.1 General Data'!$C$8:$C$13,$A29)*(E$46-$C$46) -> 2.809420469 | F49: =SUMIFS('5.1 General Data'!$D$8:$D$13,'5.1 General Data'!$C$8:$C$13,$A29)+SUMIFS('5.1 General Data'!$E$8:$E$13,'5.1 General Data'!$C$8:$C$13,$A29)*(F$46-$C$46) -> 2.816692469
B50: Pellet boiler | C50: =SUMIFS('5.1 General Data'!$D$8:$D$13,'5.1 General Data'!$C$8:$C$13,$A30)+SUMIFS('5.1 General Data'!$E$8:$E$13,'5.1 General Data'!$C$8:$C$13,$A30)*(C$46-$C$46) -> 0.9248276918 | D50: =SUMIFS('5.1 General Data'!$D$8:$D$13,'5.1 General Data'!$C$8:$C$13,$A30)+SUMIFS('5.1 General Data'!$E$8:$E$13,'5.1 General Data'!$C$8:$C$13,$A30)*(D$46-$C$46) -> 0.9308276918 | E50: =SUMIFS('5.1 General Data'!$D$8:$D$13,'5.1 General Data'!$C$8:$C$13,$A30)+SUMIFS('5.1 General Data'!$E$8:$E$13,'5.1 General Data'!$C$8:$C$13,$A30)*(E$46-$C$46) -> 0.9398276918 | F50: =SUMIFS('5.1 General Data'!$D$8:$D$13,'5.1 General Data'!$C$8:$C$13,$A30)+SUMIFS('5.1 General Data'!$E$8:$E$13,'5.1 General Data'!$C$8:$C$13,$A30)*(F$46-$C$46) -> 0.9458276918
B51: Gas Solar Hybrid | C51: =SUMIFS('5.1 General Data'!$D$8:$D$13,'5.1 General Data'!$C$8:$C$13,$A31)+SUMIFS('5.1 General Data'!$E$8:$E$13,'5.1 General Data'!$C$8:$C$13,$A31)*(C$46-$C$46) -> 1.130082216 | D51: =SUMIFS('5.1 General Data'!$D$8:$D$13,'5.1 General Data'!$C$8:$C$13,$A31)+SUMIFS('5.1 General Data'!$E$8:$E$13,'5.1 General Data'!$C$8:$C$13,$A31)*(D$46-$C$46) -> 1.131900398 | E51: =SUMIFS('5.1 General Data'!$D$8:$D$13,'5.1 General Data'!$C$8:$C$13,$A31)+SUMIFS('5.1 General Data'!$E$8:$E$13,'5.1 General Data'!$C$8:$C$13,$A31)*(E$46-$C$46) -> 1.134627671 | F51: =SUMIFS('5.1 General Data'!$D$8:$D$13,'5.1 General Data'!$C$8:$C$13,$A31)+SUMIFS('5.1 General Data'!$E$8:$E$13,'5.1 General Data'!$C$8:$C$13,$A31)*(F$46-$C$46) -> 1.136445853
B52: Pellet Solar Hybrid | C52: =SUMIFS('5.1 General Data'!$D$8:$D$13,'5.1 General Data'!$C$8:$C$13,$A32)+SUMIFS('5.1 General Data'!$E$8:$E$13,'5.1 General Data'!$C$8:$C$13,$A32)*(C$46-$C$46) -> 0.9934593262 | D52: =SUMIFS('5.1 General Data'!$D$8:$D$13,'5.1 General Data'!$C$8:$C$13,$A32)+SUMIFS('5.1 General Data'!$E$8:$E$13,'5.1 General Data'!$C$8:$C$13,$A32)*(D$46-$C$46) -> 1.000732053 | E52: =SUMIFS('5.1 General Data'!$D$8:$D$13,'5.1 General Data'!$C$8:$C$13,$A32)+SUMIFS('5.1 General Data'!$E$8:$E$13,'5.1 General Data'!$C$8:$C$13,$A32)*(E$46-$C$46) -> 1.011641144 | F52: =SUMIFS('5.1 General Data'!$D$8:$D$13,'5.1 General Data'!$C$8:$C$13,$A32)+SUMIFS('5.1 General Data'!$E$8:$E$13,'5.1 General Data'!$C$8:$C$13,$A32)*(F$46-$C$46) -> 1.018913872

Sheet 2.3 Market Specifics
A1: Selected state: | B1: Northrhine-Westphalia
A4: Regional distribution
A21: Data tables
B23: Regional distribution in the markets [%] | H23: selected state:
B24: Bavaria | D24: Rural | E24: Towns | F24: Cities | H24: =B1 -> Northrhine-Westphalia | J24: Rural | K24: Towns | L24: Cities
B25: Building type | C25: Building type | D25: Rural | E25: Semi-Urban | F25: Urban | H25: Building type | I25: Building type | J25: Rural | K25: Semi-Urban | L25: Urban
B26: SFH | C26: Single Family Home | D26: =SUMIFS('5.9 Regional Distribution'!$E:$E, '5.9 Regional Distribution'!$A:$A,D$25, '5.9 Regional Distribution'!$B:$B,$B24, '5.9 Regional Distribution'!$C:$C, $B26) -> 0.698280609 | E26: =SUMIFS('5.9 Regional Distribution'!$E:$E, '5.9 Regional Distribution'!$A:$A,E$25, '5.9 Regional Distribution'!$B:$B,$B24, '5.9 Regional Distribution'!$C:$C, $B26) -> 0.6555264142 | F26: =SUMIFS('5.9 Regional Distribution'!$E:$E, '5.9 Regional Distribution'!$A:$A,F$25, '5.9 Regional Distribution'!$B:$B,$B24, '5.9 Regional Distribution'!$C:$C, $B26) -> 0.5349660456 | H26: SFH | I26: Single Family Home | J26: =SUMIFS('5.9 Regional Distribution'!$E:$E, '5.9 Regional Distribution'!$A:$A,J$25, '5.9 Regional Distribution'!$B:$B,$H$24, '5.9 Regional Distribution'!$C:$C, $H26) -> 0.6865023512 | K26: =SUMIFS('5.9 Regional Distribution'!$E:$E, '5.9 Regional Distribution'!$A:$A,K$25, '5.9 Regional Distribution'!$B:$B,$H$24, '5.9 Regional Distribution'!$C:$C, $H26) -> 0.6521320091 | L26: =SUMIFS('5.9 Regional Distribution'!$E:$E, '5.9 Regional Distribution'!$A:$A,L$25, '5.9 Regional Distribution'!$B:$B,$H$24, '5.9 Regional Distribution'!$C:$C, $H26) -> 0.4911378587
B27: sMFH | C27: small Multi Family Home | D27: =SUMIFS('5.9 Regional Distribution'!$E:$E, '5.9 Regional Distribution'!$A:$A,D$25, '5.9 Regional Distribution'!$B:$B,$B$24, '5.9 Regional Distribution'!$C:$C, $B27) -> 0.202542342 | E27: =SUMIFS('5.9 Regional Distribution'!$E:$E, '5.9 Regional Distribution'!$A:$A,E$25, '5.9 Regional Distribution'!$B:$B,$B$24, '5.9 Regional Distribution'!$C:$C, $B27) -> 0.1388252139 | F27: =SUMIFS('5.9 Regional Distribution'!$E:$E, '5.9 Regional Distribution'!$A:$A,F$25, '5.9 Regional Distribution'!$B:$B,$B$24, '5.9 Regional Distribution'!$C:$C, $B27) -> 0.08957075538 | H27: sMFH | I27: small Multi Family Home | J27: =SUMIFS('5.9 Regional Distribution'!$E:$E, '5.9 Regional Distribution'!$A:$A,J$25, '5.9 Regional Distribution'!$B:$B,$H$24, '5.9 Regional Distribution'!$C:$C, $H27) -> 0.2037506081 | K27: =SUMIFS('5.9 Regional Distribution'!$E:$E, '5.9 Regional Distribution'!$A:$A,K$25, '5.9 Regional Distribution'!$B:$B,$H$24, '5.9 Regional Distribution'!$C:$C, $H27) -> 0.1634094384 | L27: =SUMIFS('5.9 Regional Distribution'!$E:$E, '5.9 Regional Distribution'!$A:$A,L$25, '5.9 Regional Distribution'!$B:$B,$H$24, '5.9 Regional Distribution'!$C:$C, $H27) -> 0.1252094644
B28: lMFH | C28: large Multi Family Home | D28: =SUMIFS('5.9 Regional Distribution'!$E:$E, '5.9 Regional Distribution'!$A:$A,D$25, '5.9 Regional Distribution'!$B:$B,$B$24, '5.9 Regional Distribution'!$C:$C, $B28) -> 0.09917704899 | E28: =SUMIFS('5.9 Regional Distribution'!$E:$E, '5.9 Regional Distribution'!$A:$A,E$25, '5.9 Regional Distribution'!$B:$B,$B$24, '5.9 Regional Distribution'!$C:$C, $B28) -> 0.2056483719 | F28: =SUMIFS('5.9 Regional Distribution'!$E:$E, '5.9 Regional Distribution'!$A:$A,F$25, '5.9 Regional Distribution'!$B:$B,$B$24, '5.9 Regional Distribution'!$C:$C, $B28) -> 0.375463199 | H28: lMFH | I28: large Multi Family Home | J28: =SUMIFS('5.9 Regional Distribution'!$E:$E, '5.9 Regional Distribution'!$A:$A,J$25, '5.9 Regional Distribution'!$B:$B,$H$24, '5.9 Regional Distribution'!$C:$C, $H28) -> 0.1097470407 | K28: =SUMIFS('5.9 Regional Distribution'!$E:$E, '5.9 Regional Distribution'!$A:$A,K$25, '5.9 Regional Distribution'!$B:$B,$H$24, '5.9 Regional Distribution'!$C:$C, $H28) -> 0.1844585525 | L28: =SUMIFS('5.9 Regional Distribution'!$E:$E, '5.9 Regional Distribution'!$A:$A,L$25, '5.9 Regional Distribution'!$B:$B,$H$24, '5.9 Regional Distribution'!$C:$C, $H28) -> 0.3836526768
B29: Baden-Württemberg
B30: Building type | C30: Building type | D30: Rural | E30: Semi-Urban | F30: Urban
B31: SFH | C31: Single Family Home | D31: =SUMIFS('5.9 Regional Distribution'!$E:$E, '5.9 Regional Distribution'!$A:$A,D$25, '5.9 Regional Distribution'!$B:$B,$B29, '5.9 Regional Distribution'!$C:$C, $B31) -> 0.6475938128 | E31: =SUMIFS('5.9 Regional Distribution'!$E:$E, '5.9 Regional Distribution'!$A:$A,E$25, '5.9 Regional Distribution'!$B:$B,$B29, '5.9 Regional Distribution'!$C:$C, $B31) -> 0.611272289 | F31: =SUMIFS('5.9 Regional Distribution'!$E:$E, '5.9 Regional Distribution'!$A:$A,F$25, '5.9 Regional Distribution'!$B:$B,$B29, '5.9 Regional Distribution'!$C:$C, $B31) -> 0.4184077038
B32: sMFH | C32: small Multi Family Home | D32: =SUMIFS('5.9 Regional Distribution'!$E:$E, '5.9 Regional Distribution'!$A:$A,D$25, '5.9 Regional Distribution'!$B:$B,$B29, '5.9 Regional Distribution'!$C:$C, $B32) -> 0.2214577251 | E32: =SUMIFS('5.9 Regional Distribution'!$E:$E, '5.9 Regional Distribution'!$A:$A,E$25, '5.9 Regional Distribution'!$B:$B,$B29, '5.9 Regional Distribution'!$C:$C, $B32) -> 0.206378541 | F32: =SUMIFS('5.9 Regional Distribution'!$E:$E, '5.9 Regional Distribution'!$A:$A,F$25, '5.9 Regional Distribution'!$B:$B,$B29, '5.9 Regional Distribution'!$C:$C, $B32) -> 0.1455798183
B33: lMFH | C33: large Multi Family Home | D33: =SUMIFS('5.9 Regional Distribution'!$E:$E, '5.9 Regional Distribution'!$A:$A,D$25, '5.9 Regional Distribution'!$B:$B,$B29, '5.9 Regional Distribution'!$C:$C, $B33) -> 0.1309484621 | E33: =SUMIFS('5.9 Regional Distribution'!$E:$E, '5.9 Regional Distribution'!$A:$A,E$25, '5.9 Regional Distribution'!$B:$B,$B29, '5.9 Regional Distribution'!$C:$C, $B33) -> 0.18234917 | F33: =SUMIFS('5.9 Regional Distribution'!$E:$E, '5.9 Regional Distribution'!$A:$A,F$25, '5.9 Regional Distribution'!$B:$B,$B29, '5.9 Regional Distribution'!$C:$C, $B33) -> 0.436012478
B34: Berlin
B35: Building type | C35: Building type | D35: Rural | E35: Semi-Urban | F35: Urban
B36: SFH | C36: Single Family Home | D36: =SUMIFS('5.9 Regional Distribution'!$E:$E, '5.9 Regional Distribution'!$A:$A,D$25, '5.9 Regional Distribution'!$B:$B,$B34, '5.9 Regional Distribution'!$C:$C, $B36) -> 0 | E36: =SUMIFS('5.9 Regional Distribution'!$E:$E, '5.9 Regional Distribution'!$A:$A,E$25, '5.9 Regional Distribution'!$B:$B,$B34, '5.9 Regional Distribution'!$C:$C, $B36) -> 0 | F36: =SUMIFS('5.9 Regional Distribution'!$E:$E, '5.9 Regional Distribution'!$A:$A,F$25, '5.9 Regional Distribution'!$B:$B,$B34, '5.9 Regional Distribution'!$C:$C, $B36) -> 0.5193096393
B37: sMFH | C37: small Multi Family Home | D37: =SUMIFS('5.9 Regional Distribution'!$E:$E, '5.9 Regional Distribution'!$A:$A,D$25, '5.9 Regional Distribution'!$B:$B,$B34, '5.9 Regional Distribution'!$C:$C, $B37) -> 0 | E37: =SUMIFS('5.9 Regional Distribution'!$E:$E, '5.9 Regional Distribution'!$A:$A,E$25, '5.9 Regional Distribution'!$B:$B,$B34, '5.9 Regional Distribution'!$C:$C, $B37) -> 0 | F37: =SUMIFS('5.9 Regional Distribution'!$E:$E, '5.9 Regional Distribution'!$A:$A,F$25, '5.9 Regional Distribution'!$B:$B,$B34, '5.9 Regional Distribution'!$C:$C, $B37) -> 0.05289667223
B38: lMFH | C38: large Multi Family Home | D38: =SUMIFS('5.9 Regional Distribution'!$E:$E, '5.9 Regional Distribution'!$A:$A,D$25, '5.9 Regional Distribution'!$B:$B,$B34, '5.9 Regional Distribution'!$C:$C, $B38) -> 0 | E38: =SUMIFS('5.9 Regional Distribution'!$E:$E, '5.9 Regional Distribution'!$A:$A,E$25, '5.9 Regional Distribution'!$B:$B,$B34, '5.9 Regional Distribution'!$C:$C, $B38) -> 0 | F38: =SUMIFS('5.9 Regional Distribution'!$E:$E, '5.9 Regional Distribution'!$A:$A,F$25, '5.9 Regional Distribution'!$B:$B,$B34, '5.9 Regional Distribution'!$C:$C, $B38) -> 0.4277936885
B39: Brandenburg
B40: Building type | C40: Building type | D40: Rural | E40: Semi-Urban | F40: Urban
B41: SFH | C41: Single Family Home | D41: =SUMIFS('5.9 Regional Distribution'!$E:$E, '5.9 Regional Distribution'!$A:$A,D$25, '5.9 Regional Distribution'!$B:$B,$B39, '5.9 Regional Distribution'!$C:$C, $B41) -> 0.7901778677 | E41: =SUMIFS('5.9 Regional Distribution'!$E:$E, '5.9 Regional Distribution'!$A:$A,E$25, '5.9 Regional Distribution'!$B:$B,$B39, '5.9 Regional Distribution'!$C:$C, $B41) -> 0.6048161222 | F41: =SUMIFS('5.9 Regional Distribution'!$E:$E, '5.9 Regional Distribution'!$A:$A,F$25, '5.9 Regional Distribution'!$B:$B,$B39, '5.9 Regional Distribution'!$C:$C, $B41) -> 0
B42: sMFH | C42: small Multi Family Home | D42: =SUMIFS('5.9 Regional Distribution'!$E:$E, '5.9 Regional Distribution'!$A:$A,D$25, '5.9 Regional Distribution'!$B:$B,$B39, '5.9 Regional Distribution'!$C:$C, $B42) -> 0.1007545566 | E42: =SUMIFS('5.9 Regional Distribution'!$E:$E, '5.9 Regional Distribution'!$A:$A,E$25, '5.9 Regional Distribution'!$B:$B,$B39, '5.9 Regional Distribution'!$C:$C, $B42) -> 0.0763850909 | F42: =SUMIFS('5.9 Regional Distribution'!$E:$E, '5.9 Regional Distribution'!$A:$A,F$25, '5.9 Regional Distribution'!$B:$B,$B39, '5.9 Regional Distribution'!$C:$C, $B42) -> 0
B43: lMFH | C43: large Multi Family Home | D43: =SUMIFS('5.9 Regional Distribution'!$E:$E, '5.9 Regional Distribution'!$A:$A,D$25, '5.9 Regional Distribution'!$B:$B,$B39, '5.9 Regional Distribution'!$C:$C, $B43) -> 0.1090675757 | E43: =SUMIFS('5.9 Regional Distribution'!$E:$E, '5.9 Regional Distribution'!$A:$A,E$25, '5.9 Regional Distribution'!$B:$B,$B39, '5.9 Regional Distribution'!$C:$C, $B43) -> 0.3187987869 | F43: =SUMIFS('5.9 Regional Distribution'!$E:$E, '5.9 Regional Distribution'!$A:$A,F$25, '5.9 Regional Distribution'!$B:$B,$B39, '5.9 Regional Distribution'!$C:$C, $B43) -> 0
B44: Bremen
B45: Building type | C45: Building type | D45: Rural | E45: Semi-Urban | F45: Urban
B46: SFH | C46: Single Family Home | D46: =SUMIFS('5.9 Regional Distribution'!$E:$E, '5.9 Regional Distribution'!$A:$A,D$25, '5.9 Regional Distribution'!$B:$B,$B44, '5.9 Regional Distribution'!$C:$C, $B46) -> 0 | E46: =SUMIFS('5.9 Regional Distribution'!$E:$E, '5.9 Regional Distribution'!$A:$A,E$25, '5.9 Regional Distribution'!$B:$B,$B44, '5.9 Regional Distribution'!$C:$C, $B46) -> 0.661427575 | F46: =SUMIFS('5.9 Regional Distribution'!$E:$E, '5.9 Regional Distribution'!$A:$A,F$25, '5.9 Regional Distribution'!$B:$B,$B44, '5.9 Regional Distribution'!$C:$C, $B46) -> 0.674833484
B47: sMFH | C47: small Multi Family Home | D47: =SUMIFS('5.9 Regional Distribution'!$E:$E, '5.9 Regional Distribution'!$A:$A,D$25, '5.9 Regional Distribution'!$B:$B,$B44, '5.9 Regional Distribution'!$C:$C, $B47) -> 0 | E47: =SUMIFS('5.9 Regional Distribution'!$E:$E, '5.9 Regional Distribution'!$A:$A,E$25, '5.9 Regional Distribution'!$B:$B,$B44, '5.9 Regional Distribution'!$C:$C, $B47) -> 0.07458730528 | F47: =SUMIFS('5.9 Regional Distribution'!$E:$E, '5.9 Regional Distribution'!$A:$A,F$25, '5.9 Regional Distribution'!$B:$B,$B44, '5.9 Regional Distribution'!$C:$C, $B47) -> 0.1014911136
B48: lMFH | C48: large Multi Family Home | D48: =SUMIFS('5.9 Regional Distribution'!$E:$E, '5.9 Regional Distribution'!$A:$A,D$25, '5.9 Regional Distribution'!$B:$B,$B44, '5.9 Regional Distribution'!$C:$C, $B48) -> 0 | E48: =SUMIFS('5.9 Regional Distribution'!$E:$E, '5.9 Regional Distribution'!$A:$A,E$25, '5.9 Regional Distribution'!$B:$B,$B44, '5.9 Regional Distribution'!$C:$C, $B48) -> 0.2639851197 | F48: =SUMIFS('5.9 Regional Distribution'!$E:$E, '5.9 Regional Distribution'!$A:$A,F$25, '5.9 Regional Distribution'!$B:$B,$B44, '5.9 Regional Distribution'!$C:$C, $B48) -> 0.2236754025
B49: Hamburg
B50: Building type | C50: Building type | D50: Rural | E50: Semi-Urban | F50: Urban
B51: SFH | C51: Single Family Home | D51: =SUMIFS('5.9 Regional Distribution'!$E:$E, '5.9 Regional Distribution'!$A:$A,D$25, '5.9 Regional Distribution'!$B:$B,$B49, '5.9 Regional Distribution'!$C:$C, $B51) -> 0 | E51: =SUMIFS('5.9 Regional Distribution'!$E:$E, '5.9 Regional Distribution'!$A:$A,E$25, '5.9 Regional Distribution'!$B:$B,$B49, '5.9 Regional Distribution'!$C:$C, $B51) -> 0 | F51: =SUMIFS('5.9 Regional Distribution'!$E:$E, '5.9 Regional Distribution'!$A:$A,F$25, '5.9 Regional Distribution'!$B:$B,$B49, '5.9 Regional Distribution'!$C:$C, $B51) -> 0.5950730793
B52: sMFH | C52: small Multi Family Home | D52: =SUMIFS('5.9 Regional Distribution'!$E:$E, '5.9 Regional Distribution'!$A:$A,D$25, '5.9 Regional Distribution'!$B:$B,$B49, '5.9 Regional Distribution'!$C:$C, $B52) -> 0 | E52: =SUMIFS('5.9 Regional Distribution'!$E:$E, '5.9 Regional Distribution'!$A:$A,E$25, '5.9 Regional Distribution'!$B:$B,$B49, '5.9 Regional Distribution'!$C:$C, $B52) -> 0 | F52: =SUMIFS('5.9 Regional Distribution'!$E:$E, '5.9 Regional Distribution'!$A:$A,F$25, '5.9 Regional Distribution'!$B:$B,$B49, '5.9 Regional Distribution'!$C:$C, $B52) -> 0.08000995652
B53: lMFH | C53: large Multi Family Home | D53: =SUMIFS('5.9 Regional Distribution'!$E:$E, '5.9 Regional Distribution'!$A:$A,D$25, '5.9 Regional Distribution'!$B:$B,$B49, '5.9 Regional Distribution'!$C:$C, $B53) -> 0 | E53: =SUMIFS('5.9 Regional Distribution'!$E:$E, '5.9 Regional Distribution'!$A:$A,E$25, '5.9 Regional Distribution'!$B:$B,$B49, '5.9 Regional Distribution'!$C:$C, $B53) -> 0 | F53: =SUMIFS('5.9 Regional Distribution'!$E:$E, '5.9 Regional Distribution'!$A:$A,F$25, '5.9 Regional Distribution'!$B:$B,$B49, '5.9 Regional Distribution'!$C:$C, $B53) -> 0.3249169642
B54: Hesse
B55: Building type | C55: Building type | D55: Rural | E55: Semi-Urban | F55: Urban
B56: SFH | C56: Single Family Home | D56: =SUMIFS('5.9 Regional Distribution'!$E:$E, '5.9 Regional Distribution'!$A:$A,D$25, '5.9 Regional Distribution'!$B:$B,$B54, '5.9 Regional Distribution'!$C:$C, $B56) -> 0.6547425558 | E56: =SUMIFS('5.9 Regional Distribution'!$E:$E, '5.9 Regional Distribution'!$A:$A,E$25, '5.9 Regional Distribution'!$B:$B,$B54, '5.9 Regional Distribution'!$C:$C, $B56) -> 0.6188034256 | F56: =SUMIFS('5.9 Regional Distribution'!$E:$E, '5.9 Regional Distribution'!$A:$A,F$25, '5.9 Regional Distribution'!$B:$B,$B54, '5.9 Regional Distribution'!$C:$C, $B56) -> 0.4303232908
B57: sMFH | C57: small Multi Family Home | D57: =SUMIFS('5.9 Regional Distribution'!$E:$E, '5.9 Regional Distribution'!$A:$A,D$25, '5.9 Regional Distribution'!$B:$B,$B54, '5.9 Regional Distribution'!$C:$C, $B57) -> 0.2327230058 | E57: =SUMIFS('5.9 Regional Distribution'!$E:$E, '5.9 Regional Distribution'!$A:$A,E$25, '5.9 Regional Distribution'!$B:$B,$B54, '5.9 Regional Distribution'!$C:$C, $B57) -> 0.1984900483 | F57: =SUMIFS('5.9 Regional Distribution'!$E:$E, '5.9 Regional Distribution'!$A:$A,F$25, '5.9 Regional Distribution'!$B:$B,$B54, '5.9 Regional Distribution'!$C:$C, $B57) -> 0.119311835
B58: lMFH | C58: large Multi Family Home | D58: =SUMIFS('5.9 Regional Distribution'!$E:$E, '5.9 Regional Distribution'!$A:$A,D$25, '5.9 Regional Distribution'!$B:$B,$B54, '5.9 Regional Distribution'!$C:$C, $B58) -> 0.1125344384 | E58: =SUMIFS('5.9 Regional Distribution'!$E:$E, '5.9 Regional Distribution'!$A:$A,E$25, '5.9 Regional Distribution'!$B:$B,$B54, '5.9 Regional Distribution'!$C:$C, $B58) -> 0.1827065261 | F58: =SUMIFS('5.9 Regional Distribution'!$E:$E, '5.9 Regional Distribution'!$A:$A,F$25, '5.9 Regional Distribution'!$B:$B,$B54, '5.9 Regional Distribution'!$C:$C, $B58) -> 0.4503648742
B59: Mecklenburg-Western Pomerania
B60: Building type | C60: Building type | D60: Rural | E60: Semi-Urban | F60: Urban
B61: SFH | C61: Single Family Home | D61: =SUMIFS('5.9 Regional Distribution'!$E:$E, '5.9 Regional Distribution'!$A:$A,D$25, '5.9 Regional Distribution'!$B:$B,$B59, '5.9 Regional Distribution'!$C:$C, $B61) -> 0.7646823093 | E61: =SUMIFS('5.9 Regional Distribution'!$E:$E, '5.9 Regional Distribution'!$A:$A,E$25, '5.9 Regional Distribution'!$B:$B,$B59, '5.9 Regional Distribution'!$C:$C, $B61) -> 0.5123102401 | F61: =SUMIFS('5.9 Regional Distribution'!$E:$E, '5.9 Regional Distribution'!$A:$A,F$25, '5.9 Regional Distribution'!$B:$B,$B59, '5.9 Regional Distribution'!$C:$C, $B61) -> 0
B62: sMFH | C62: small Multi Family Home | D62: =SUMIFS('5.9 Regional Distribution'!$E:$E, '5.9 Regional Distribution'!$A:$A,D$25, '5.9 Regional Distribution'!$B:$B,$B59, '5.9 Regional Distribution'!$C:$C, $B62) -> 0.09962406527 | E62: =SUMIFS('5.9 Regional Distribution'!$E:$E, '5.9 Regional Distribution'!$A:$A,E$25, '5.9 Regional Distribution'!$B:$B,$B59, '5.9 Regional Distribution'!$C:$C, $B62) -> 0.05939828871 | F62: =SUMIFS('5.9 Regional Distribution'!$E:$E, '5.9 Regional Distribution'!$A:$A,F$25, '5.9 Regional Distribution'!$B:$B,$B59, '5.9 Regional Distribution'!$C:$C, $B62) -> 0
B63: lMFH | C63: large Multi Family Home | D63: =SUMIFS('5.9 Regional Distribution'!$E:$E, '5.9 Regional Distribution'!$A:$A,D$25, '5.9 Regional Distribution'!$B:$B,$B59, '5.9 Regional Distribution'!$C:$C, $B63) -> 0.1356936255 | E63: =SUMIFS('5.9 Regional Distribution'!$E:$E, '5.9 Regional Distribution'!$A:$A,E$25, '5.9 Regional Distribution'!$B:$B,$B59, '5.9 Regional Distribution'!$C:$C, $B63) -> 0.4282914712 | F63: =SUMIFS('5.9 Regional Distribution'!$E:$E, '5.9 Regional Distribution'!$A:$A,F$25, '5.9 Regional Distribution'!$B:$B,$B59, '5.9 Regional Distribution'!$C:$C, $B63) -> 0
B64: Lower Saxony
B65: Building type | C65: Building type | D65: Rural | E65: Semi-Urban | F65: Urban
B66: SFH | C66: Single Family Home | D66: =SUMIFS('5.9 Regional Distribution'!$E:$E, '5.9 Regional Distribution'!$A:$A,D$25, '5.9 Regional Distribution'!$B:$B,$B64, '5.9 Regional Distribution'!$C:$C, $B66) -> 0.763933704 | E66: =SUMIFS('5.9 Regional Distribution'!$E:$E, '5.9 Regional Distribution'!$A:$A,E$25, '5.9 Regional Distribution'!$B:$B,$B64, '5.9 Regional Distribution'!$C:$C, $B66) -> 0.6498776093 | F66: =SUMIFS('5.9 Regional Distribution'!$E:$E, '5.9 Regional Distribution'!$A:$A,F$25, '5.9 Regional Distribution'!$B:$B,$B64, '5.9 Regional Distribution'!$C:$C, $B66) -> 0.7133676658
B67: sMFH | C67: small Multi Family Home | D67: =SUMIFS('5.9 Regional Distribution'!$E:$E, '5.9 Regional Distribution'!$A:$A,D$25, '5.9 Regional Distribution'!$B:$B,$B64, '5.9 Regional Distribution'!$C:$C, $B67) -> 0.1508638128 | E67: =SUMIFS('5.9 Regional Distribution'!$E:$E, '5.9 Regional Distribution'!$A:$A,E$25, '5.9 Regional Distribution'!$B:$B,$B64, '5.9 Regional Distribution'!$C:$C, $B67) -> 0.1258341509 | F67: =SUMIFS('5.9 Regional Distribution'!$E:$E, '5.9 Regional Distribution'!$A:$A,F$25, '5.9 Regional Distribution'!$B:$B,$B64, '5.9 Regional Distribution'!$C:$C, $B67) -> 0.1183150667
B68: lMFH | C68: large Multi Family Home | D68: =SUMIFS('5.9 Regional Distribution'!$E:$E, '5.9 Regional Distribution'!$A:$A,D$25, '5.9 Regional Distribution'!$B:$B,$B64, '5.9 Regional Distribution'!$C:$C, $B68) -> 0.08520248321 | E68: =SUMIFS('5.9 Regional Distribution'!$E:$E, '5.9 Regional Distribution'!$A:$A,E$25, '5.9 Regional Distribution'!$B:$B,$B64, '5.9 Regional Distribution'!$C:$C, $B68) -> 0.2242882398 | F68: =SUMIFS('5.9 Regional Distribution'!$E:$E, '5.9 Regional Distribution'!$A:$A,F$25, '5.9 Regional Distribution'!$B:$B,$B64, '5.9 Regional Distribution'!$C:$C, $B68) -> 0.1683172675
B69: Northrhine-Westphalia
B70: Building type | C70: Building type | D70: Rural | E70: Semi-Urban | F70: Urban
B71: SFH | C71: Single Family Home | D71: =SUMIFS('5.9 Regional Distribution'!$E:$E, '5.9 Regional Distribution'!$A:$A,D$25, '5.9 Regional Distribution'!$B:$B,$B69, '5.9 Regional Distribution'!$C:$C, $B71) -> 0.6865023512 | E71: =SUMIFS('5.9 Regional Distribution'!$E:$E, '5.9 Regional Distribution'!$A:$A,E$25, '5.9 Regional Distribution'!$B:$B,$B69, '5.9 Regional Distribution'!$C:$C, $B71) -> 0.6521320091 | F71: =SUMIFS('5.9 Regional Distribution'!$E:$E, '5.9 Regional Distribution'!$A:$A,F$25, '5.9 Regional Distribution'!$B:$B,$B69, '5.9 Regional Distribution'!$C:$C, $B71) -> 0.4911378587
B72: sMFH | C72: small Multi Family Home | D72: =SUMIFS('5.9 Regional Distribution'!$E:$E, '5.9 Regional Distribution'!$A:$A,D$25, '5.9 Regional Distribution'!$B:$B,$B69, '5.9 Regional Distribution'!$C:$C, $B72) -> 0.2037506081 | E72: =SUMIFS('5.9 Regional Distribution'!$E:$E, '5.9 Regional Distribution'!$A:$A,E$25, '5.9 Regional Distribution'!$B:$B,$B69, '5.9 Regional Distribution'!$C:$C, $B72) -> 0.1634094384 | F72: =SUMIFS('5.9 Regional Distribution'!$E:$E, '5.9 Regional Distribution'!$A:$A,F$25, '5.9 Regional Distribution'!$B:$B,$B69, '5.9 Regional Distribution'!$C:$C, $B72) -> 0.1252094644
B73: lMFH | C73: large Multi Family Home | D73: =SUMIFS('5.9 Regional Distribution'!$E:$E, '5.9 Regional Distribution'!$A:$A,D$25, '5.9 Regional Distribution'!$B:$B,$B69, '5.9 Regional Distribution'!$C:$C, $B73) -> 0.1097470407 | E73: =SUMIFS('5.9 Regional Distribution'!$E:$E, '5.9 Regional Distribution'!$A:$A,E$25, '5.9 Regional Distribution'!$B:$B,$B69, '5.9 Regional Distribution'!$C:$C, $B73) -> 0.1844585525 | F73: =SUMIFS('5.9 Regional Distribution'!$E:$E, '5.9 Regional Distribution'!$A:$A,F$25, '5.9 Regional Distribution'!$B:$B,$B69, '5.9 Regional Distribution'!$C:$C, $B73) -> 0.3836526768
B74: Rhineland-Palatinate
B75: Building type | C75: Building type | D75: Rural | E75: Semi-Urban | F75: Urban
B76: SFH | C76: Single Family Home | D76: =SUMIFS('5.9 Regional Distribution'!$E:$E, '5.9 Regional Distribution'!$A:$A,D$25, '5.9 Regional Distribution'!$B:$B,$B74, '5.9 Regional Distribution'!$C:$C, $B76) -> 0.7567679446 | E76: =SUMIFS('5.9 Regional Distribution'!$E:$E, '5.9 Regional Distribution'!$A:$A,E$25, '5.9 Regional Distribution'!$B:$B,$B74, '5.9 Regional Distribution'!$C:$C, $B76) -> 0.6649074023 | F76: =SUMIFS('5.9 Regional Distribution'!$E:$E, '5.9 Regional Distribution'!$A:$A,F$25, '5.9 Regional Distribution'!$B:$B,$B74, '5.9 Regional Distribution'!$C:$C, $B76) -> 0.5909746445
B77: sMFH | C77: small Multi Family Home | D77: =SUMIFS('5.9 Regional Distribution'!$E:$E, '5.9 Regional Distribution'!$A:$A,D$25, '5.9 Regional Distribution'!$B:$B,$B74, '5.9 Regional Distribution'!$C:$C, $B77) -> 0.16100035 | E77: =SUMIFS('5.9 Regional Distribution'!$E:$E, '5.9 Regional Distribution'!$A:$A,E$25, '5.9 Regional Distribution'!$B:$B,$B74, '5.9 Regional Distribution'!$C:$C, $B77) -> 0.1522210056 | F77: =SUMIFS('5.9 Regional Distribution'!$E:$E, '5.9 Regional Distribution'!$A:$A,F$25, '5.9 Regional Distribution'!$B:$B,$B74, '5.9 Regional Distribution'!$C:$C, $B77) -> 0.1328816743
B78: lMFH | C78: large Multi Family Home | D78: =SUMIFS('5.9 Regional Distribution'!$E:$E, '5.9 Regional Distribution'!$A:$A,D$25, '5.9 Regional Distribution'!$B:$B,$B74, '5.9 Regional Distribution'!$C:$C, $B78) -> 0.08223170535 | E78: =SUMIFS('5.9 Regional Distribution'!$E:$E, '5.9 Regional Distribution'!$A:$A,E$25, '5.9 Regional Distribution'!$B:$B,$B74, '5.9 Regional Distribution'!$C:$C, $B78) -> 0.1828715921 | F78: =SUMIFS('5.9 Regional Distribution'!$E:$E, '5.9 Regional Distribution'!$A:$A,F$25, '5.9 Regional Distribution'!$B:$B,$B74, '5.9 Regional Distribution'!$C:$C, $B78) -> 0.2761436812
B79: Saarland
B80: Building type | C80: Building type | D80: Rural | E80: Semi-Urban | F80: Urban
B81: SFH | C81: Single Family Home | D81: =SUMIFS('5.9 Regional Distribution'!$E:$E, '5.9 Regional Distribution'!$A:$A,D$25, '5.9 Regional Distribution'!$B:$B,$B79, '5.9 Regional Distribution'!$C:$C, $B81) -> 0.7715373217 | E81: =SUMIFS('5.9 Regional Distribution'!$E:$E, '5.9 Regional Distribution'!$A:$A,E$25, '5.9 Regional Distribution'!$B:$B,$B79, '5.9 Regional Distribution'!$C:$C, $B81) -> 0.6698872045 | F81: =SUMIFS('5.9 Regional Distribution'!$E:$E, '5.9 Regional Distribution'!$A:$A,F$25, '5.9 Regional Distribution'!$B:$B,$B79, '5.9 Regional Distribution'!$C:$C, $B81) -> 0
B82: sMFH | C82: small Multi Family Home | D82: =SUMIFS('5.9 Regional Distribution'!$E:$E, '5.9 Regional Distribution'!$A:$A,D$25, '5.9 Regional Distribution'!$B:$B,$B79, '5.9 Regional Distribution'!$C:$C, $B82) -> 0.1808118081 | E82: =SUMIFS('5.9 Regional Distribution'!$E:$E, '5.9 Regional Distribution'!$A:$A,E$25, '5.9 Regional Distribution'!$B:$B,$B79, '5.9 Regional Distribution'!$C:$C, $B82) -> 0.2186467888 | F82: =SUMIFS('5.9 Regional Distribution'!$E:$E, '5.9 Regional Distribution'!$A:$A,F$25, '5.9 Regional Distribution'!$B:$B,$B79, '5.9 Regional Distribution'!$C:$C, $B82) -> 0
B83: lMFH | C83: large Multi Family Home | D83: =SUMIFS('5.9 Regional Distribution'!$E:$E, '5.9 Regional Distribution'!$A:$A,D$25, '5.9 Regional Distribution'!$B:$B,$B79, '5.9 Regional Distribution'!$C:$C, $B83) -> 0.04765087021 | E83: =SUMIFS('5.9 Regional Distribution'!$E:$E, '5.9 Regional Distribution'!$A:$A,E$25, '5.9 Regional Distribution'!$B:$B,$B79, '5.9 Regional Distribution'!$C:$C, $B83) -> 0.1114660067 | F83: =SUMIFS('5.9 Regional Distribution'!$E:$E, '5.9 Regional Distribution'!$A:$A,F$25, '5.9 Regional Distribution'!$B:$B,$B79, '5.9 Regional Distribution'!$C:$C, $B83) -> 0
B84: Saxony
B85: Building type | C85: Building type | D85: Rural | E85: Semi-Urban | F85: Urban
B86: SFH | C86: Single Family Home | D86: =SUMIFS('5.9 Regional Distribution'!$E:$E, '5.9 Regional Distribution'!$A:$A,D$25, '5.9 Regional Distribution'!$B:$B,$B84, '5.9 Regional Distribution'!$C:$C, $B86) -> 0.641780878 | E86: =SUMIFS('5.9 Regional Distribution'!$E:$E, '5.9 Regional Distribution'!$A:$A,E$25, '5.9 Regional Distribution'!$B:$B,$B84, '5.9 Regional Distribution'!$C:$C, $B86) -> 0.5275308982 | F86: =SUMIFS('5.9 Regional Distribution'!$E:$E, '5.9 Regional Distribution'!$A:$A,F$25, '5.9 Regional Distribution'!$B:$B,$B84, '5.9 Regional Distribution'!$C:$C, $B86) -> 0.4781657767
B87: sMFH | C87: small Multi Family Home | D87: =SUMIFS('5.9 Regional Distribution'!$E:$E, '5.9 Regional Distribution'!$A:$A,D$25, '5.9 Regional Distribution'!$B:$B,$B84, '5.9 Regional Distribution'!$C:$C, $B87) -> 0.1732475316 | E87: =SUMIFS('5.9 Regional Distribution'!$E:$E, '5.9 Regional Distribution'!$A:$A,E$25, '5.9 Regional Distribution'!$B:$B,$B84, '5.9 Regional Distribution'!$C:$C, $B87) -> 0.1671488328 | F87: =SUMIFS('5.9 Regional Distribution'!$E:$E, '5.9 Regional Distribution'!$A:$A,F$25, '5.9 Regional Distribution'!$B:$B,$B84, '5.9 Regional Distribution'!$C:$C, $B87) -> 0.07474228931
B88: lMFH | C88: large Multi Family Home | D88: =SUMIFS('5.9 Regional Distribution'!$E:$E, '5.9 Regional Distribution'!$A:$A,D$25, '5.9 Regional Distribution'!$B:$B,$B84, '5.9 Regional Distribution'!$C:$C, $B88) -> 0.1849715904 | E88: =SUMIFS('5.9 Regional Distribution'!$E:$E, '5.9 Regional Distribution'!$A:$A,E$25, '5.9 Regional Distribution'!$B:$B,$B84, '5.9 Regional Distribution'!$C:$C, $B88) -> 0.305320269 | F88: =SUMIFS('5.9 Regional Distribution'!$E:$E, '5.9 Regional Distribution'!$A:$A,F$25, '5.9 Regional Distribution'!$B:$B,$B84, '5.9 Regional Distribution'!$C:$C, $B88) -> 0.447091934
B89: Saxony-Anhalt
B90: Building type | C90: Building type | D90: Rural | E90: Semi-Urban | F90: Urban
B91: SFH | C91: Single Family Home | D91: =SUMIFS('5.9 Regional Distribution'!$E:$E, '5.9 Regional Distribution'!$A:$A,D$25, '5.9 Regional Distribution'!$B:$B,$B89, '5.9 Regional Distribution'!$C:$C, $B91) -> 0.7319941303 | E91: =SUMIFS('5.9 Regional Distribution'!$E:$E, '5.9 Regional Distribution'!$A:$A,E$25, '5.9 Regional Distribution'!$B:$B,$B89, '5.9 Regional Distribution'!$C:$C, $B91) -> 0.6209114574 | F91: =SUMIFS('5.9 Regional Distribution'!$E:$E, '5.9 Regional Distribution'!$A:$A,F$25, '5.9 Regional Distribution'!$B:$B,$B89, '5.9 Regional Distribution'!$C:$C, $B91) -> 0.4966580276
B92: sMFH | C92: small Multi Family Home | D92: =SUMIFS('5.9 Regional Distribution'!$E:$E, '5.9 Regional Distribution'!$A:$A,D$25, '5.9 Regional Distribution'!$B:$B,$B89, '5.9 Regional Distribution'!$C:$C, $B92) -> 0.1311360701 | E92: =SUMIFS('5.9 Regional Distribution'!$E:$E, '5.9 Regional Distribution'!$A:$A,E$25, '5.9 Regional Distribution'!$B:$B,$B89, '5.9 Regional Distribution'!$C:$C, $B92) -> 0.07392386917 | F92: =SUMIFS('5.9 Regional Distribution'!$E:$E, '5.9 Regional Distribution'!$A:$A,F$25, '5.9 Regional Distribution'!$B:$B,$B89, '5.9 Regional Distribution'!$C:$C, $B92) -> 0.06949938617
B93: lMFH | C93: large Multi Family Home | D93: =SUMIFS('5.9 Regional Distribution'!$E:$E, '5.9 Regional Distribution'!$A:$A,D$25, '5.9 Regional Distribution'!$B:$B,$B89, '5.9 Regional Distribution'!$C:$C, $B93) -> 0.1368697996 | E93: =SUMIFS('5.9 Regional Distribution'!$E:$E, '5.9 Regional Distribution'!$A:$A,E$25, '5.9 Regional Distribution'!$B:$B,$B89, '5.9 Regional Distribution'!$C:$C, $B93) -> 0.3051646735 | F93: =SUMIFS('5.9 Regional Distribution'!$E:$E, '5.9 Regional Distribution'!$A:$A,F$25, '5.9 Regional Distribution'!$B:$B,$B89, '5.9 Regional Distribution'!$C:$C, $B93) -> 0.4338425863
B94: Schleswig-Holstein
B95: Building type | C95: Building type | D95: Rural | E95: Semi-Urban | F95: Urban
B96: SFH | C96: Single Family Home | D96: =SUMIFS('5.9 Regional Distribution'!$E:$E, '5.9 Regional Distribution'!$A:$A,D$25, '5.9 Regional Distribution'!$B:$B,$B94, '5.9 Regional Distribution'!$C:$C, $B96) -> 0.8114882627 | E96: =SUMIFS('5.9 Regional Distribution'!$E:$E, '5.9 Regional Distribution'!$A:$A,E$25, '5.9 Regional Distribution'!$B:$B,$B94, '5.9 Regional Distribution'!$C:$C, $B96) -> 0.7686813846 | F96: =SUMIFS('5.9 Regional Distribution'!$E:$E, '5.9 Regional Distribution'!$A:$A,F$25, '5.9 Regional Distribution'!$B:$B,$B94, '5.9 Regional Distribution'!$C:$C, $B96) -> 0.6297216791
B97: sMFH | C97: small Multi Family Home | D97: =SUMIFS('5.9 Regional Distribution'!$E:$E, '5.9 Regional Distribution'!$A:$A,D$25, '5.9 Regional Distribution'!$B:$B,$B94, '5.9 Regional Distribution'!$C:$C, $B97) -> 0.1045321237 | E97: =SUMIFS('5.9 Regional Distribution'!$E:$E, '5.9 Regional Distribution'!$A:$A,E$25, '5.9 Regional Distribution'!$B:$B,$B94, '5.9 Regional Distribution'!$C:$C, $B97) -> 0.09235201241 | F97: =SUMIFS('5.9 Regional Distribution'!$E:$E, '5.9 Regional Distribution'!$A:$A,F$25, '5.9 Regional Distribution'!$B:$B,$B94, '5.9 Regional Distribution'!$C:$C, $B97) -> 0.05920944427
B98: lMFH | C98: large Multi Family Home | D98: =SUMIFS('5.9 Regional Distribution'!$E:$E, '5.9 Regional Distribution'!$A:$A,D$25, '5.9 Regional Distribution'!$B:$B,$B94, '5.9 Regional Distribution'!$C:$C, $B98) -> 0.08397961366 | E98: =SUMIFS('5.9 Regional Distribution'!$E:$E, '5.9 Regional Distribution'!$A:$A,E$25, '5.9 Regional Distribution'!$B:$B,$B94, '5.9 Regional Distribution'!$C:$C, $B98) -> 0.138966603 | F98: =SUMIFS('5.9 Regional Distribution'!$E:$E, '5.9 Regional Distribution'!$A:$A,F$25, '5.9 Regional Distribution'!$B:$B,$B94, '5.9 Regional Distribution'!$C:$C, $B98) -> 0.3110688767
B99: Thuringia
B100: Building type | C100: Building type | D100: Rural | E100: Semi-Urban | F100: Urban
B101: SFH | C101: Single Family Home | D101: =SUMIFS('5.9 Regional Distribution'!$E:$E, '5.9 Regional Distribution'!$A:$A,D$25, '5.9 Regional Distribution'!$B:$B,$B99, '5.9 Regional Distribution'!$C:$C, $B101) -> 0.6817871157 | E101: =SUMIFS('5.9 Regional Distribution'!$E:$E, '5.9 Regional Distribution'!$A:$A,E$25, '5.9 Regional Distribution'!$B:$B,$B99, '5.9 Regional Distribution'!$C:$C, $B101) -> 0.5561509696 | F101: =SUMIFS('5.9 Regional Distribution'!$E:$E, '5.9 Regional Distribution'!$A:$A,F$25, '5.9 Regional Distribution'!$B:$B,$B99, '5.9 Regional Distribution'!$C:$C, $B101) -> 0
B102: sMFH | C102: small Multi Family Home | D102: =SUMIFS('5.9 Regional Distribution'!$E:$E, '5.9 Regional Distribution'!$A:$A,D$25, '5.9 Regional Distribution'!$B:$B,$B99, '5.9 Regional Distribution'!$C:$C, $B102) -> 0.1867252444 | E102: =SUMIFS('5.9 Regional Distribution'!$E:$E, '5.9 Regional Distribution'!$A:$A,E$25, '5.9 Regional Distribution'!$B:$B,$B99, '5.9 Regional Distribution'!$C:$C, $B102) -> 0.1075214927 | F102: =SUMIFS('5.9 Regional Distribution'!$E:$E, '5.9 Regional Distribution'!$A:$A,F$25, '5.9 Regional Distribution'!$B:$B,$B99, '5.9 Regional Distribution'!$C:$C, $B102) -> 0
B103: lMFH | C103: large Multi Family Home | D103: =SUMIFS('5.9 Regional Distribution'!$E:$E, '5.9 Regional Distribution'!$A:$A,D$25, '5.9 Regional Distribution'!$B:$B,$B99, '5.9 Regional Distribution'!$C:$C, $B103) -> 0.1314876399 | E103: =SUMIFS('5.9 Regional Distribution'!$E:$E, '5.9 Regional Distribution'!$A:$A,E$25, '5.9 Regional Distribution'!$B:$B,$B99, '5.9 Regional Distribution'!$C:$C, $B103) -> 0.3363275377 | F103: =SUMIFS('5.9 Regional Distribution'!$E:$E, '5.9 Regional Distribution'!$A:$A,F$25, '5.9 Regional Distribution'!$B:$B,$B99, '5.9 Regional Distribution'!$C:$C, $B103) -> 0

Sheet 2.4 Energy Prices
A4: Fuel prices* | I4: CO2 prices
A19: * Fuel prices incl. Externalities (CO2 Price)
A21: Data tables
A23: Fuel prices incl. Externalities (CO2 Price) in [EUR/kWh]
F24: 2020
B25: Scenario | C25: Fuel | D25: 2023 | E25: 2024 | F25: 2025 | G25: 2026 | H25: 2027 | I25: 2028 | J25: 2029 | K25: 2030 | L25: 2031 | M25: 2032 | N25: 2033 | O25: 2034 | P25: 2035 | Q25: 2036 | R25: 2037 | S25: 2038 | T25: 2039 | U25: 2040
B26: high | C26: Gas | D26: =SUMIFS('5.3 Fuel Prices'!$D:$D,'5.3 Fuel Prices'!$A:$A,'2.4 Energy Prices'!D$25,'5.3 Fuel Prices'!$B:$B,'2.4 Energy Prices'!$C26,'5.3 Fuel Prices'!$C:$C,$B26) -> 0.2717618224 | E26: =SUMIFS('5.3 Fuel Prices'!$D:$D,'5.3 Fuel Prices'!$A:$A,'2.4 Energy Prices'!E$25,'5.3 Fuel Prices'!$B:$B,'2.4 Energy Prices'!$C26,'5.3 Fuel Prices'!$C:$C,$B26) -> 0.2232233055 | F26: =SUMIFS('5.3 Fuel Prices'!$D:$D,'5.3 Fuel Prices'!$A:$A,'2.4 Energy Prices'!F$25,'5.3 Fuel Prices'!$B:$B,'2.4 Energy Prices'!$C26,'5.3 Fuel Prices'!$C:$C,$B26) -> 0.1747131112 | G26: =SUMIFS('5.3 Fuel Prices'!$D:$D,'5.3 Fuel Prices'!$A:$A,'2.4 Energy Prices'!G$25,'5.3 Fuel Prices'!$B:$B,'2.4 Energy Prices'!$C26,'5.3 Fuel Prices'!$C:$C,$B26) -> 0.1251231136 | H26: =SUMIFS('5.3 Fuel Prices'!$D:$D,'5.3 Fuel Prices'!$A:$A,'2.4 Energy Prices'!H$25,'5.3 Fuel Prices'!$B:$B,'2.4 Energy Prices'!$C26,'5.3 Fuel Prices'!$C:$C,$B26) -> 0.1293558135 | I26: =SUMIFS('5.3 Fuel Prices'!$D:$D,'5.3 Fuel Prices'!$A:$A,'2.4 Energy Prices'!I$25,'5.3 Fuel Prices'!$B:$B,'2.4 Energy Prices'!$C26,'5.3 Fuel Prices'!$C:$C,$B26) -> 0.1323728245 | J26: =SUMIFS('5.3 Fuel Prices'!$D:$D,'5.3 Fuel Prices'!$A:$A,'2.4 Energy Prices'!J$25,'5.3 Fuel Prices'!$B:$B,'2.4 Energy Prices'!$C26,'5.3 Fuel Prices'!$C:$C,$B26) -> 0.1352904925 | K26: =SUMIFS('5.3 Fuel Prices'!$D:$D,'5.3 Fuel Prices'!$A:$A,'2.4 Energy Prices'!K$25,'5.3 Fuel Prices'!$B:$B,'2.4 Energy Prices'!$C26,'5.3 Fuel Prices'!$C:$C,$B26) -> 0.1370738055 | L26: =SUMIFS('5.3 Fuel Prices'!$D:$D,'5.3 Fuel Prices'!$A:$A,'2.4 Energy Prices'!L$25,'5.3 Fuel Prices'!$B:$B,'2.4 Energy Prices'!$C26,'5.3 Fuel Prices'!$C:$C,$B26) -> 0.1412428917 | M26: =SUMIFS('5.3 Fuel Prices'!$D:$D,'5.3 Fuel Prices'!$A:$A,'2.4 Energy Prices'!M$25,'5.3 Fuel Prices'!$B:$B,'2.4 Energy Prices'!$C26,'5.3 Fuel Prices'!$C:$C,$B26) -> 0.1451878253 | N26: =SUMIFS('5.3 Fuel Prices'!$D:$D,'5.3 Fuel Prices'!$A:$A,'2.4 Energy Prices'!N$25,'5.3 Fuel Prices'!$B:$B,'2.4 Energy Prices'!$C26,'5.3 Fuel Prices'!$C:$C,$B26) -> 0.1490123722 | O26: =SUMIFS('5.3 Fuel Prices'!$D:$D,'5.3 Fuel Prices'!$A:$A,'2.4 Energy Prices'!O$25,'5.3 Fuel Prices'!$B:$B,'2.4 Energy Prices'!$C26,'5.3 Fuel Prices'!$C:$C,$B26) -> 0.1527201979 | P26: =SUMIFS('5.3 Fuel Prices'!$D:$D,'5.3 Fuel Prices'!$A:$A,'2.4 Energy Prices'!P$25,'5.3 Fuel Prices'!$B:$B,'2.4 Energy Prices'!$C26,'5.3 Fuel Prices'!$C:$C,$B26) -> 0.1564148708 | Q26: =SUMIFS('5.3 Fuel Prices'!$D:$D,'5.3 Fuel Prices'!$A:$A,'2.4 Energy Prices'!Q$25,'5.3 Fuel Prices'!$B:$B,'2.4 Energy Prices'!$C26,'5.3 Fuel Prices'!$C:$C,$B26) -> 0.159899864 | R26: =SUMIFS('5.3 Fuel Prices'!$D:$D,'5.3 Fuel Prices'!$A:$A,'2.4 Energy Prices'!R$25,'5.3 Fuel Prices'!$B:$B,'2.4 Energy Prices'!$C26,'5.3 Fuel Prices'!$C:$C,$B26) -> 0.163278558 | S26: =SUMIFS('5.3 Fuel Prices'!$D:$D,'5.3 Fuel Prices'!$A:$A,'2.4 Energy Prices'!S$25,'5.3 Fuel Prices'!$B:$B,'2.4 Energy Prices'!$C26,'5.3 Fuel Prices'!$C:$C,$B26) -> 0.1645445895 | T26: =SUMIFS('5.3 Fuel Prices'!$D:$D,'5.3 Fuel Prices'!$A:$A,'2.4 Energy Prices'!T$25,'5.3 Fuel Prices'!$B:$B,'2.4 Energy Prices'!$C26,'5.3 Fuel Prices'!$C:$C,$B26) -> 0.1657488917 | U26: =SUMIFS('5.3 Fuel Prices'!$D:$D,'5.3 Fuel Prices'!$A:$A,'2.4 Energy Prices'!U$25,'5.3 Fuel Prices'!$B:$B,'2.4 Energy Prices'!$C26,'5.3 Fuel Prices'!$C:$C,$B26) -> 0.1668385136
C27: Electricity | D27: =SUMIFS('5.3 Fuel Prices'!$D:$D,'5.3 Fuel Prices'!$A:$A,'2.4 Energy Prices'!D$25,'5.3 Fuel Prices'!$B:$B,'2.4 Energy Prices'!$C27,'5.3 Fuel Prices'!$C:$C,$B26) -> 0.752 | E27: =SUMIFS('5.3 Fuel Prices'!$D:$D,'5.3 Fuel Prices'!$A:$A,'2.4 Energy Prices'!E$25,'5.3 Fuel Prices'!$B:$B,'2.4 Energy Prices'!$C27,'5.3 Fuel Prices'!$C:$C,$B26) -> 0.6312 | F27: =SUMIFS('5.3 Fuel Prices'!$D:$D,'5.3 Fuel Prices'!$A:$A,'2.4 Energy Prices'!F$25,'5.3 Fuel Prices'!$B:$B,'2.4 Energy Prices'!$C27,'5.3 Fuel Prices'!$C:$C,$B26) -> 0.5105 | G27: =SUMIFS('5.3 Fuel Prices'!$D:$D,'5.3 Fuel Prices'!$A:$A,'2.4 Energy Prices'!G$25,'5.3 Fuel Prices'!$B:$B,'2.4 Energy Prices'!$C27,'5.3 Fuel Prices'!$C:$C,$B26) -> 0.3897 | H27: =SUMIFS('5.3 Fuel Prices'!$D:$D,'5.3 Fuel Prices'!$A:$A,'2.4 Energy Prices'!H$25,'5.3 Fuel Prices'!$B:$B,'2.4 Energy Prices'!$C27,'5.3 Fuel Prices'!$C:$C,$B26) -> 0.3816 | I27: =SUMIFS('5.3 Fuel Prices'!$D:$D,'5.3 Fuel Prices'!$A:$A,'2.4 Energy Prices'!I$25,'5.3 Fuel Prices'!$B:$B,'2.4 Energy Prices'!$C27,'5.3 Fuel Prices'!$C:$C,$B26) -> 0.3735 | J27: =SUMIFS('5.3 Fuel Prices'!$D:$D,'5.3 Fuel Prices'!$A:$A,'2.4 Energy Prices'!J$25,'5.3 Fuel Prices'!$B:$B,'2.4 Energy Prices'!$C27,'5.3 Fuel Prices'!$C:$C,$B26) -> 0.3654 | K27: =SUMIFS('5.3 Fuel Prices'!$D:$D,'5.3 Fuel Prices'!$A:$A,'2.4 Energy Prices'!K$25,'5.3 Fuel Prices'!$B:$B,'2.4 Energy Prices'!$C27,'5.3 Fuel Prices'!$C:$C,$B26) -> 0.3573 | L27: =SUMIFS('5.3 Fuel Prices'!$D:$D,'5.3 Fuel Prices'!$A:$A,'2.4 Energy Prices'!L$25,'5.3 Fuel Prices'!$B:$B,'2.4 Energy Prices'!$C27,'5.3 Fuel Prices'!$C:$C,$B26) -> 0.3553 | M27: =SUMIFS('5.3 Fuel Prices'!$D:$D,'5.3 Fuel Prices'!$A:$A,'2.4 Energy Prices'!M$25,'5.3 Fuel Prices'!$B:$B,'2.4 Energy Prices'!$C27,'5.3 Fuel Prices'!$C:$C,$B26) -> 0.3534 | N27: =SUMIFS('5.3 Fuel Prices'!$D:$D,'5.3 Fuel Prices'!$A:$A,'2.4 Energy Prices'!N$25,'5.3 Fuel Prices'!$B:$B,'2.4 Energy Prices'!$C27,'5.3 Fuel Prices'!$C:$C,$B26) -> 0.3514 | O27: =SUMIFS('5.3 Fuel Prices'!$D:$D,'5.3 Fuel Prices'!$A:$A,'2.4 Energy Prices'!O$25,'5.3 Fuel Prices'!$B:$B,'2.4 Energy Prices'!$C27,'5.3 Fuel Prices'!$C:$C,$B26) -> 0.3494 | P27: =SUMIFS('5.3 Fuel Prices'!$D:$D,'5.3 Fuel Prices'!$A:$A,'2.4 Energy Prices'!P$25,'5.3 Fuel Prices'!$B:$B,'2.4 Energy Prices'!$C27,'5.3 Fuel Prices'!$C:$C,$B26) -> 0.3475 | Q27: =SUMIFS('5.3 Fuel Prices'!$D:$D,'5.3 Fuel Prices'!$A:$A,'2.4 Energy Prices'!Q$25,'5.3 Fuel Prices'!$B:$B,'2.4 Energy Prices'!$C27,'5.3 Fuel Prices'!$C:$C,$B26) -> 0.3455 | R27: =SUMIFS('5.3 Fuel Prices'!$D:$D,'5.3 Fuel Prices'!$A:$A,'2.4 Energy Prices'!R$25,'5.3 Fuel Prices'!$B:$B,'2.4 Energy Prices'!$C27,'5.3 Fuel Prices'!$C:$C,$B26) -> 0.3436 | S27: =SUMIFS('5.3 Fuel Prices'!$D:$D,'5.3 Fuel Prices'!$A:$A,'2.4 Energy Prices'!S$25,'5.3 Fuel Prices'!$B:$B,'2.4 Energy Prices'!$C27,'5.3 Fuel Prices'!$C:$C,$B26) -> 0.3416 | T27: =SUMIFS('5.3 Fuel Prices'!$D:$D,'5.3 Fuel Prices'!$A:$A,'2.4 Energy Prices'!T$25,'5.3 Fuel Prices'!$B:$B,'2.4 Energy Prices'!$C27,'5.3 Fuel Prices'!$C:$C,$B26) -> 0.3397 | U27: =SUMIFS('5.3 Fuel Prices'!$D:$D,'5.3 Fuel Prices'!$A:$A,'2.4 Energy Prices'!U$25,'5.3 Fuel Prices'!$B:$B,'2.4 Energy Prices'!$C27,'5.3 Fuel Prices'!$C:$C,$B26) -> 0.3377
C28: Pellet | D28: =SUMIFS('5.3 Fuel Prices'!$D:$D,'5.3 Fuel Prices'!$A:$A,'2.4 Energy Prices'!D$25,'5.3 Fuel Prices'!$B:$B,'2.4 Energy Prices'!$C28,'5.3 Fuel Prices'!$C:$C,$B26) -> 0.200234 | E28: =SUMIFS('5.3 Fuel Prices'!$D:$D,'5.3 Fuel Prices'!$A:$A,'2.4 Energy Prices'!E$25,'5.3 Fuel Prices'!$B:$B,'2.4 Energy Prices'!$C28,'5.3 Fuel Prices'!$C:$C,$B26) -> 0.16222732 | F28: =SUMIFS('5.3 Fuel Prices'!$D:$D,'5.3 Fuel Prices'!$A:$A,'2.4 Energy Prices'!F$25,'5.3 Fuel Prices'!$B:$B,'2.4 Energy Prices'!$C28,'5.3 Fuel Prices'!$C:$C,$B26) -> 0.1242962 | G28: =SUMIFS('5.3 Fuel Prices'!$D:$D,'5.3 Fuel Prices'!$A:$A,'2.4 Energy Prices'!G$25,'5.3 Fuel Prices'!$B:$B,'2.4 Energy Prices'!$C28,'5.3 Fuel Prices'!$C:$C,$B26) -> 0.08628952 | H28: =SUMIFS('5.3 Fuel Prices'!$D:$D,'5.3 Fuel Prices'!$A:$A,'2.4 Energy Prices'!H$25,'5.3 Fuel Prices'!$B:$B,'2.4 Energy Prices'!$C28,'5.3 Fuel Prices'!$C:$C,$B26) -> 0.08492944 | I28: =SUMIFS('5.3 Fuel Prices'!$D:$D,'5.3 Fuel Prices'!$A:$A,'2.4 Energy Prices'!I$25,'5.3 Fuel Prices'!$B:$B,'2.4 Energy Prices'!$C28,'5.3 Fuel Prices'!$C:$C,$B26) -> 0.0834938 | J28: =SUMIFS('5.3 Fuel Prices'!$D:$D,'5.3 Fuel Prices'!$A:$A,'2.4 Energy Prices'!J$25,'5.3 Fuel Prices'!$B:$B,'2.4 Energy Prices'!$C28,'5.3 Fuel Prices'!$C:$C,$B26) -> 0.08213372 | K28: =SUMIFS('5.3 Fuel Prices'!$D:$D,'5.3 Fuel Prices'!$A:$A,'2.4 Energy Prices'!K$25,'5.3 Fuel Prices'!$B:$B,'2.4 Energy Prices'!$C28,'5.3 Fuel Prices'!$C:$C,$B26) -> 0.08069808 | L28: =SUMIFS('5.3 Fuel Prices'!$D:$D,'5.3 Fuel Prices'!$A:$A,'2.4 Energy Prices'!L$25,'5.3 Fuel Prices'!$B:$B,'2.4 Energy Prices'!$C28,'5.3 Fuel Prices'!$C:$C,$B26) -> 0.08168036 | M28: =SUMIFS('5.3 Fuel Prices'!$D:$D,'5.3 Fuel Prices'!$A:$A,'2.4 Energy Prices'!M$25,'5.3 Fuel Prices'!$B:$B,'2.4 Energy Prices'!$C28,'5.3 Fuel Prices'!$C:$C,$B26) -> 0.08258708 | N28: =SUMIFS('5.3 Fuel Prices'!$D:$D,'5.3 Fuel Prices'!$A:$A,'2.4 Energy Prices'!N$25,'5.3 Fuel Prices'!$B:$B,'2.4 Energy Prices'!$C28,'5.3 Fuel Prices'!$C:$C,$B26) -> 0.0834938 | O28: =SUMIFS('5.3 Fuel Prices'!$D:$D,'5.3 Fuel Prices'!$A:$A,'2.4 Energy Prices'!O$25,'5.3 Fuel Prices'!$B:$B,'2.4 Energy Prices'!$C28,'5.3 Fuel Prices'!$C:$C,$B26) -> 0.08440052 | P28: =SUMIFS('5.3 Fuel Prices'!$D:$D,'5.3 Fuel Prices'!$A:$A,'2.4 Energy Prices'!P$25,'5.3 Fuel Prices'!$B:$B,'2.4 Energy Prices'!$C28,'5.3 Fuel Prices'!$C:$C,$B26) -> 0.0853828 | Q28: =SUMIFS('5.3 Fuel Prices'!$D:$D,'5.3 Fuel Prices'!$A:$A,'2.4 Energy Prices'!Q$25,'5.3 Fuel Prices'!$B:$B,'2.4 Energy Prices'!$C28,'5.3 Fuel Prices'!$C:$C,$B26) -> 0.08628952 | R28: =SUMIFS('5.3 Fuel Prices'!$D:$D,'5.3 Fuel Prices'!$A:$A,'2.4 Energy Prices'!R$25,'5.3 Fuel Prices'!$B:$B,'2.4 Energy Prices'!$C28,'5.3 Fuel Prices'!$C:$C,$B26) -> 0.08719624 | S28: =SUMIFS('5.3 Fuel Prices'!$D:$D,'5.3 Fuel Prices'!$A:$A,'2.4 Energy Prices'!S$25,'5.3 Fuel Prices'!$B:$B,'2.4 Energy Prices'!$C28,'5.3 Fuel Prices'!$C:$C,$B26) -> 0.08810296 | T28: =SUMIFS('5.3 Fuel Prices'!$D:$D,'5.3 Fuel Prices'!$A:$A,'2.4 Energy Prices'!T$25,'5.3 Fuel Prices'!$B:$B,'2.4 Energy Prices'!$C28,'5.3 Fuel Prices'!$C:$C,$B26) -> 0.08908524 | U28: =SUMIFS('5.3 Fuel Prices'!$D:$D,'5.3 Fuel Prices'!$A:$A,'2.4 Energy Prices'!U$25,'5.3 Fuel Prices'!$B:$B,'2.4 Energy Prices'!$C28,'5.3 Fuel Prices'!$C:$C,$B26) -> 0.08999196
B30: Scenario | C30: Fuel | D30: 2023 | E30: 2024 | F30: 2025 | G30: 2026 | H30: 2027 | I30: 2028 | J30: 2029 | K30: 2030 | L30: 2031 | M30: 2032 | N30: 2033 | O30: 2034 | P30: 2035 | Q30: 2036 | R30: 2037 | S30: 2038 | T30: 2039 | U30: 2040
B31: mid | C31: Gas | D31: =SUMIFS('5.3 Fuel Prices'!$D:$D,'5.3 Fuel Prices'!$A:$A,'2.4 Energy Prices'!D$25,'5.3 Fuel Prices'!$B:$B,'2.4 Energy Prices'!$C31,'5.3 Fuel Prices'!$C:$C,$B31) -> 0.1596618224 | E31: =SUMIFS('5.3 Fuel Prices'!$D:$D,'5.3 Fuel Prices'!$A:$A,'2.4 Energy Prices'!E$25,'5.3 Fuel Prices'!$B:$B,'2.4 Energy Prices'!$C31,'5.3 Fuel Prices'!$C:$C,$B31) -> 0.1393233055 | F31: =SUMIFS('5.3 Fuel Prices'!$D:$D,'5.3 Fuel Prices'!$A:$A,'2.4 Energy Prices'!F$25,'5.3 Fuel Prices'!$B:$B,'2.4 Energy Prices'!$C31,'5.3 Fuel Prices'!$C:$C,$B31) -> 0.1110931112 | G31: =SUMIFS('5.3 Fuel Prices'!$D:$D,'5.3 Fuel Prices'!$A:$A,'2.4 Energy Prices'!G$25,'5.3 Fuel Prices'!$B:$B,'2.4 Energy Prices'!$C31,'5.3 Fuel Prices'!$C:$C,$B31) -> 0.09772311357 | H31: =SUMIFS('5.3 Fuel Prices'!$D:$D,'5.3 Fuel Prices'!$A:$A,'2.4 Energy Prices'!H$25,'5.3 Fuel Prices'!$B:$B,'2.4 Energy Prices'!$C31,'5.3 Fuel Prices'!$C:$C,$B31) -> 0.09510168264 | I31: =SUMIFS('5.3 Fuel Prices'!$D:$D,'5.3 Fuel Prices'!$A:$A,'2.4 Energy Prices'!I$25,'5.3 Fuel Prices'!$B:$B,'2.4 Energy Prices'!$C31,'5.3 Fuel Prices'!$C:$C,$B31) -> 0.09233571608 | J31: =SUMIFS('5.3 Fuel Prices'!$D:$D,'5.3 Fuel Prices'!$A:$A,'2.4 Energy Prices'!J$25,'5.3 Fuel Prices'!$B:$B,'2.4 Energy Prices'!$C31,'5.3 Fuel Prices'!$C:$C,$B31) -> 0.08942950612 | K31: =SUMIFS('5.3 Fuel Prices'!$D:$D,'5.3 Fuel Prices'!$A:$A,'2.4 Energy Prices'!K$25,'5.3 Fuel Prices'!$B:$B,'2.4 Energy Prices'!$C31,'5.3 Fuel Prices'!$C:$C,$B31) -> 0.08638723222 | L31: =SUMIFS('5.3 Fuel Prices'!$D:$D,'5.3 Fuel Prices'!$A:$A,'2.4 Energy Prices'!L$25,'5.3 Fuel Prices'!$B:$B,'2.4 Energy Prices'!$C31,'5.3 Fuel Prices'!$C:$C,$B31) -> 0.08765795128 | M31: =SUMIFS('5.3 Fuel Prices'!$D:$D,'5.3 Fuel Prices'!$A:$A,'2.4 Energy Prices'!M$25,'5.3 Fuel Prices'!$B:$B,'2.4 Energy Prices'!$C31,'5.3 Fuel Prices'!$C:$C,$B31) -> 0.08887338369 | N31: =SUMIFS('5.3 Fuel Prices'!$D:$D,'5.3 Fuel Prices'!$A:$A,'2.4 Energy Prices'!N$25,'5.3 Fuel Prices'!$B:$B,'2.4 Energy Prices'!$C31,'5.3 Fuel Prices'!$C:$C,$B31) -> 0.09013524745 | O31: =SUMIFS('5.3 Fuel Prices'!$D:$D,'5.3 Fuel Prices'!$A:$A,'2.4 Energy Prices'!O$25,'5.3 Fuel Prices'!$B:$B,'2.4 Energy Prices'!$C31,'5.3 Fuel Prices'!$C:$C,$B31) -> 0.09124521445 | P31: =SUMIFS('5.3 Fuel Prices'!$D:$D,'5.3 Fuel Prices'!$A:$A,'2.4 Energy Prices'!P$25,'5.3 Fuel Prices'!$B:$B,'2.4 Energy Prices'!$C31,'5.3 Fuel Prices'!$C:$C,$B31) -> 0.09230491159 | Q31: =SUMIFS('5.3 Fuel Prices'!$D:$D,'5.3 Fuel Prices'!$A:$A,'2.4 Energy Prices'!Q$25,'5.3 Fuel Prices'!$B:$B,'2.4 Energy Prices'!$C31,'5.3 Fuel Prices'!$C:$C,$B31) -> 0.09331592195 | R31: =SUMIFS('5.3 Fuel Prices'!$D:$D,'5.3 Fuel Prices'!$A:$A,'2.4 Energy Prices'!R$25,'5.3 Fuel Prices'!$B:$B,'2.4 Energy Prices'!$C31,'5.3 Fuel Prices'!$C:$C,$B31) -> 0.09427978584 | S31: =SUMIFS('5.3 Fuel Prices'!$D:$D,'5.3 Fuel Prices'!$A:$A,'2.4 Energy Prices'!S$25,'5.3 Fuel Prices'!$B:$B,'2.4 Energy Prices'!$C31,'5.3 Fuel Prices'!$C:$C,$B31) -> 0.09529800189 | T31: =SUMIFS('5.3 Fuel Prices'!$D:$D,'5.3 Fuel Prices'!$A:$A,'2.4 Energy Prices'!T$25,'5.3 Fuel Prices'!$B:$B,'2.4 Energy Prices'!$C31,'5.3 Fuel Prices'!$C:$C,$B31) -> 0.09617202808 | U31: =SUMIFS('5.3 Fuel Prices'!$D:$D,'5.3 Fuel Prices'!$A:$A,'2.4 Energy Prices'!U$25,'5.3 Fuel Prices'!$B:$B,'2.4 Energy Prices'!$C31,'5.3 Fuel Prices'!$C:$C,$B31) -> 0.09700328276
C32: Electricity | D32: =SUMIFS('5.3 Fuel Prices'!$D:$D,'5.3 Fuel Prices'!$A:$A,'2.4 Energy Prices'!D$25,'5.3 Fuel Prices'!$B:$B,'2.4 Energy Prices'!$C32,'5.3 Fuel Prices'!$C:$C,$B31) -> 0.4122 | E32: =SUMIFS('5.3 Fuel Prices'!$D:$D,'5.3 Fuel Prices'!$A:$A,'2.4 Energy Prices'!E$25,'5.3 Fuel Prices'!$B:$B,'2.4 Energy Prices'!$C32,'5.3 Fuel Prices'!$C:$C,$B31) -> 0.3964 | F32: =SUMIFS('5.3 Fuel Prices'!$D:$D,'5.3 Fuel Prices'!$A:$A,'2.4 Energy Prices'!F$25,'5.3 Fuel Prices'!$B:$B,'2.4 Energy Prices'!$C32,'5.3 Fuel Prices'!$C:$C,$B31) -> 0.3806 | G32: =SUMIFS('5.3 Fuel Prices'!$D:$D,'5.3 Fuel Prices'!$A:$A,'2.4 Energy Prices'!G$25,'5.3 Fuel Prices'!$B:$B,'2.4 Energy Prices'!$C32,'5.3 Fuel Prices'!$C:$C,$B31) -> 0.3647 | H32: =SUMIFS('5.3 Fuel Prices'!$D:$D,'5.3 Fuel Prices'!$A:$A,'2.4 Energy Prices'!H$25,'5.3 Fuel Prices'!$B:$B,'2.4 Energy Prices'!$C32,'5.3 Fuel Prices'!$C:$C,$B31) -> 0.348 | I32: =SUMIFS('5.3 Fuel Prices'!$D:$D,'5.3 Fuel Prices'!$A:$A,'2.4 Energy Prices'!I$25,'5.3 Fuel Prices'!$B:$B,'2.4 Energy Prices'!$C32,'5.3 Fuel Prices'!$C:$C,$B31) -> 0.3313 | J32: =SUMIFS('5.3 Fuel Prices'!$D:$D,'5.3 Fuel Prices'!$A:$A,'2.4 Energy Prices'!J$25,'5.3 Fuel Prices'!$B:$B,'2.4 Energy Prices'!$C32,'5.3 Fuel Prices'!$C:$C,$B31) -> 0.3146 | K32: =SUMIFS('5.3 Fuel Prices'!$D:$D,'5.3 Fuel Prices'!$A:$A,'2.4 Energy Prices'!K$25,'5.3 Fuel Prices'!$B:$B,'2.4 Energy Prices'!$C32,'5.3 Fuel Prices'!$C:$C,$B31) -> 0.2978 | L32: =SUMIFS('5.3 Fuel Prices'!$D:$D,'5.3 Fuel Prices'!$A:$A,'2.4 Energy Prices'!L$25,'5.3 Fuel Prices'!$B:$B,'2.4 Energy Prices'!$C32,'5.3 Fuel Prices'!$C:$C,$B31) -> 0.2953 | M32: =SUMIFS('5.3 Fuel Prices'!$D:$D,'5.3 Fuel Prices'!$A:$A,'2.4 Energy Prices'!M$25,'5.3 Fuel Prices'!$B:$B,'2.4 Energy Prices'!$C32,'5.3 Fuel Prices'!$C:$C,$B31) -> 0.2928 | N32: =SUMIFS('5.3 Fuel Prices'!$D:$D,'5.3 Fuel Prices'!$A:$A,'2.4 Energy Prices'!N$25,'5.3 Fuel Prices'!$B:$B,'2.4 Energy Prices'!$C32,'5.3 Fuel Prices'!$C:$C,$B31) -> 0.2903 | O32: =SUMIFS('5.3 Fuel Prices'!$D:$D,'5.3 Fuel Prices'!$A:$A,'2.4 Energy Prices'!O$25,'5.3 Fuel Prices'!$B:$B,'2.4 Energy Prices'!$C32,'5.3 Fuel Prices'!$C:$C,$B31) -> 0.2878 | P32: =SUMIFS('5.3 Fuel Prices'!$D:$D,'5.3 Fuel Prices'!$A:$A,'2.4 Energy Prices'!P$25,'5.3 Fuel Prices'!$B:$B,'2.4 Energy Prices'!$C32,'5.3 Fuel Prices'!$C:$C,$B31) -> 0.2853 | Q32: =SUMIFS('5.3 Fuel Prices'!$D:$D,'5.3 Fuel Prices'!$A:$A,'2.4 Energy Prices'!Q$25,'5.3 Fuel Prices'!$B:$B,'2.4 Energy Prices'!$C32,'5.3 Fuel Prices'!$C:$C,$B31) -> 0.2827 | R32: =SUMIFS('5.3 Fuel Prices'!$D:$D,'5.3 Fuel Prices'!$A:$A,'2.4 Energy Prices'!R$25,'5.3 Fuel Prices'!$B:$B,'2.4 Energy Prices'!$C32,'5.3 Fuel Prices'!$C:$C,$B31) -> 0.2802 | S32: =SUMIFS('5.3 Fuel Prices'!$D:$D,'5.3 Fuel Prices'!$A:$A,'2.4 Energy Prices'!S$25,'5.3 Fuel Prices'!$B:$B,'2.4 Energy Prices'!$C32,'5.3 Fuel Prices'!$C:$C,$B31) -> 0.2777 | T32: =SUMIFS('5.3 Fuel Prices'!$D:$D,'5.3 Fuel Prices'!$A:$A,'2.4 Energy Prices'!T$25,'5.3 Fuel Prices'!$B:$B,'2.4 Energy Prices'!$C32,'5.3 Fuel Prices'!$C:$C,$B31) -> 0.2752 | U32: =SUMIFS('5.3 Fuel Prices'!$D:$D,'5.3 Fuel Prices'!$A:$A,'2.4 Energy Prices'!U$25,'5.3 Fuel Prices'!$B:$B,'2.4 Energy Prices'!$C32,'5.3 Fuel Prices'!$C:$C,$B31) -> 0.2727
C33: Pellet | D33: =SUMIFS('5.3 Fuel Prices'!$D:$D,'5.3 Fuel Prices'!$A:$A,'2.4 Energy Prices'!D$25,'5.3 Fuel Prices'!$B:$B,'2.4 Energy Prices'!$C33,'5.3 Fuel Prices'!$C:$C,$B31) -> 0.11553124 | E33: =SUMIFS('5.3 Fuel Prices'!$D:$D,'5.3 Fuel Prices'!$A:$A,'2.4 Energy Prices'!E$25,'5.3 Fuel Prices'!$B:$B,'2.4 Energy Prices'!$C33,'5.3 Fuel Prices'!$C:$C,$B31) -> 0.09883248 | F33: =SUMIFS('5.3 Fuel Prices'!$D:$D,'5.3 Fuel Prices'!$A:$A,'2.4 Energy Prices'!F$25,'5.3 Fuel Prices'!$B:$B,'2.4 Energy Prices'!$C33,'5.3 Fuel Prices'!$C:$C,$B31) -> 0.076224928 | G33: =SUMIFS('5.3 Fuel Prices'!$D:$D,'5.3 Fuel Prices'!$A:$A,'2.4 Energy Prices'!G$25,'5.3 Fuel Prices'!$B:$B,'2.4 Energy Prices'!$C33,'5.3 Fuel Prices'!$C:$C,$B31) -> 0.06558608 | H33: =SUMIFS('5.3 Fuel Prices'!$D:$D,'5.3 Fuel Prices'!$A:$A,'2.4 Energy Prices'!H$25,'5.3 Fuel Prices'!$B:$B,'2.4 Energy Prices'!$C33,'5.3 Fuel Prices'!$C:$C,$B31) -> 0.06090136 | I33: =SUMIFS('5.3 Fuel Prices'!$D:$D,'5.3 Fuel Prices'!$A:$A,'2.4 Energy Prices'!I$25,'5.3 Fuel Prices'!$B:$B,'2.4 Energy Prices'!$C33,'5.3 Fuel Prices'!$C:$C,$B31) -> 0.05621664 | J33: =SUMIFS('5.3 Fuel Prices'!$D:$D,'5.3 Fuel Prices'!$A:$A,'2.4 Energy Prices'!J$25,'5.3 Fuel Prices'!$B:$B,'2.4 Energy Prices'!$C33,'5.3 Fuel Prices'!$C:$C,$B31) -> 0.05153192 | K33: =SUMIFS('5.3 Fuel Prices'!$D:$D,'5.3 Fuel Prices'!$A:$A,'2.4 Energy Prices'!K$25,'5.3 Fuel Prices'!$B:$B,'2.4 Energy Prices'!$C33,'5.3 Fuel Prices'!$C:$C,$B31) -> 0.0468472 | L33: =SUMIFS('5.3 Fuel Prices'!$D:$D,'5.3 Fuel Prices'!$A:$A,'2.4 Energy Prices'!L$25,'5.3 Fuel Prices'!$B:$B,'2.4 Energy Prices'!$C33,'5.3 Fuel Prices'!$C:$C,$B31) -> 0.04692276 | M33: =SUMIFS('5.3 Fuel Prices'!$D:$D,'5.3 Fuel Prices'!$A:$A,'2.4 Energy Prices'!M$25,'5.3 Fuel Prices'!$B:$B,'2.4 Energy Prices'!$C33,'5.3 Fuel Prices'!$C:$C,$B31) -> 0.04699832 | N33: =SUMIFS('5.3 Fuel Prices'!$D:$D,'5.3 Fuel Prices'!$A:$A,'2.4 Energy Prices'!N$25,'5.3 Fuel Prices'!$B:$B,'2.4 Energy Prices'!$C33,'5.3 Fuel Prices'!$C:$C,$B31) -> 0.04714944 | O33: =SUMIFS('5.3 Fuel Prices'!$D:$D,'5.3 Fuel Prices'!$A:$A,'2.4 Energy Prices'!O$25,'5.3 Fuel Prices'!$B:$B,'2.4 Energy Prices'!$C33,'5.3 Fuel Prices'!$C:$C,$B31) -> 0.047225 | P33: =SUMIFS('5.3 Fuel Prices'!$D:$D,'5.3 Fuel Prices'!$A:$A,'2.4 Energy Prices'!P$25,'5.3 Fuel Prices'!$B:$B,'2.4 Energy Prices'!$C33,'5.3 Fuel Prices'!$C:$C,$B31) -> 0.04730056 | Q33: =SUMIFS('5.3 Fuel Prices'!$D:$D,'5.3 Fuel Prices'!$A:$A,'2.4 Energy Prices'!Q$25,'5.3 Fuel Prices'!$B:$B,'2.4 Energy Prices'!$C33,'5.3 Fuel Prices'!$C:$C,$B31) -> 0.04737612 | R33: =SUMIFS('5.3 Fuel Prices'!$D:$D,'5.3 Fuel Prices'!$A:$A,'2.4 Energy Prices'!R$25,'5.3 Fuel Prices'!$B:$B,'2.4 Energy Prices'!$C33,'5.3 Fuel Prices'!$C:$C,$B31) -> 0.04745168 | S33: =SUMIFS('5.3 Fuel Prices'!$D:$D,'5.3 Fuel Prices'!$A:$A,'2.4 Energy Prices'!S$25,'5.3 Fuel Prices'!$B:$B,'2.4 Energy Prices'!$C33,'5.3 Fuel Prices'!$C:$C,$B31) -> 0.0476028 | T33: =SUMIFS('5.3 Fuel Prices'!$D:$D,'5.3 Fuel Prices'!$A:$A,'2.4 Energy Prices'!T$25,'5.3 Fuel Prices'!$B:$B,'2.4 Energy Prices'!$C33,'5.3 Fuel Prices'!$C:$C,$B31) -> 0.04767836 | U33: =SUMIFS('5.3 Fuel Prices'!$D:$D,'5.3 Fuel Prices'!$A:$A,'2.4 Energy Prices'!U$25,'5.3 Fuel Prices'!$B:$B,'2.4 Energy Prices'!$C33,'5.3 Fuel Prices'!$C:$C,$B31) -> 0.04775392
B35: Scenario | C35: Fuel | D35: 2023 | E35: 2024 | F35: 2025 | G35: 2026 | H35: 2027 | I35: 2028 | J35: 2029 | K35: 2030 | L35: 2031 | M35: 2032 | N35: 2033 | O35: 2034 | P35: 2035 | Q35: 2036 | R35: 2037 | S35: 2038 | T35: 2039 | U35: 2040
B36: low | C36: Gas | D36: =SUMIFS('5.3 Fuel Prices'!$D:$D,'5.3 Fuel Prices'!$A:$A,'2.4 Energy Prices'!D$25,'5.3 Fuel Prices'!$B:$B,'2.4 Energy Prices'!$C36,'5.3 Fuel Prices'!$C:$C,$B36) -> 0.1067618224 | E36: =SUMIFS('5.3 Fuel Prices'!$D:$D,'5.3 Fuel Prices'!$A:$A,'2.4 Energy Prices'!E$25,'5.3 Fuel Prices'!$B:$B,'2.4 Energy Prices'!$C36,'5.3 Fuel Prices'!$C:$C,$B36) -> 0.09692330552 | F36: =SUMIFS('5.3 Fuel Prices'!$D:$D,'5.3 Fuel Prices'!$A:$A,'2.4 Energy Prices'!F$25,'5.3 Fuel Prices'!$B:$B,'2.4 Energy Prices'!$C36,'5.3 Fuel Prices'!$C:$C,$B36) -> 0.08711311118 | G36: =SUMIFS('5.3 Fuel Prices'!$D:$D,'5.3 Fuel Prices'!$A:$A,'2.4 Energy Prices'!G$25,'5.3 Fuel Prices'!$B:$B,'2.4 Energy Prices'!$C36,'5.3 Fuel Prices'!$C:$C,$B36) -> 0.07622311357 | H36: =SUMIFS('5.3 Fuel Prices'!$D:$D,'5.3 Fuel Prices'!$A:$A,'2.4 Energy Prices'!H$25,'5.3 Fuel Prices'!$B:$B,'2.4 Energy Prices'!$C36,'5.3 Fuel Prices'!$C:$C,$B36) -> 0.0751583106 | I36: =SUMIFS('5.3 Fuel Prices'!$D:$D,'5.3 Fuel Prices'!$A:$A,'2.4 Energy Prices'!I$25,'5.3 Fuel Prices'!$B:$B,'2.4 Energy Prices'!$C36,'5.3 Fuel Prices'!$C:$C,$B36) -> 0.0741487121 | J36: =SUMIFS('5.3 Fuel Prices'!$D:$D,'5.3 Fuel Prices'!$A:$A,'2.4 Energy Prices'!J$25,'5.3 Fuel Prices'!$B:$B,'2.4 Energy Prices'!$C36,'5.3 Fuel Prices'!$C:$C,$B36) -> 0.07299567673 | K36: =SUMIFS('5.3 Fuel Prices'!$D:$D,'5.3 Fuel Prices'!$A:$A,'2.4 Energy Prices'!K$25,'5.3 Fuel Prices'!$B:$B,'2.4 Energy Prices'!$C36,'5.3 Fuel Prices'!$C:$C,$B36) -> 0.07180052714 | L36: =SUMIFS('5.3 Fuel Prices'!$D:$D,'5.3 Fuel Prices'!$A:$A,'2.4 Energy Prices'!L$25,'5.3 Fuel Prices'!$B:$B,'2.4 Energy Prices'!$C36,'5.3 Fuel Prices'!$C:$C,$B36) -> 0.07316455079 | M36: =SUMIFS('5.3 Fuel Prices'!$D:$D,'5.3 Fuel Prices'!$A:$A,'2.4 Energy Prices'!M$25,'5.3 Fuel Prices'!$B:$B,'2.4 Energy Prices'!$C36,'5.3 Fuel Prices'!$C:$C,$B36) -> 0.07448900083 | N36: =SUMIFS('5.3 Fuel Prices'!$D:$D,'5.3 Fuel Prices'!$A:$A,'2.4 Energy Prices'!N$25,'5.3 Fuel Prices'!$B:$B,'2.4 Energy Prices'!$C36,'5.3 Fuel Prices'!$C:$C,$B36) -> 0.07577509698 | O36: =SUMIFS('5.3 Fuel Prices'!$D:$D,'5.3 Fuel Prices'!$A:$A,'2.4 Energy Prices'!O$25,'5.3 Fuel Prices'!$B:$B,'2.4 Energy Prices'!$C36,'5.3 Fuel Prices'!$C:$C,$B36) -> 0.07712402635 | P36: =SUMIFS('5.3 Fuel Prices'!$D:$D,'5.3 Fuel Prices'!$A:$A,'2.4 Energy Prices'!P$25,'5.3 Fuel Prices'!$B:$B,'2.4 Energy Prices'!$C36,'5.3 Fuel Prices'!$C:$C,$B36) -> 0.07833694423 | Q36: =SUMIFS('5.3 Fuel Prices'!$D:$D,'5.3 Fuel Prices'!$A:$A,'2.4 Energy Prices'!Q$25,'5.3 Fuel Prices'!$B:$B,'2.4 Energy Prices'!$C36,'5.3 Fuel Prices'!$C:$C,$B36) -> 0.07951497489 | R36: =SUMIFS('5.3 Fuel Prices'!$D:$D,'5.3 Fuel Prices'!$A:$A,'2.4 Energy Prices'!R$25,'5.3 Fuel Prices'!$B:$B,'2.4 Energy Prices'!$C36,'5.3 Fuel Prices'!$C:$C,$B36) -> 0.08065921237 | S36: =SUMIFS('5.3 Fuel Prices'!$D:$D,'5.3 Fuel Prices'!$A:$A,'2.4 Energy Prices'!S$25,'5.3 Fuel Prices'!$B:$B,'2.4 Energy Prices'!$C36,'5.3 Fuel Prices'!$C:$C,$B36) -> 0.08177072121 | T36: =SUMIFS('5.3 Fuel Prices'!$D:$D,'5.3 Fuel Prices'!$A:$A,'2.4 Energy Prices'!T$25,'5.3 Fuel Prices'!$B:$B,'2.4 Energy Prices'!$C36,'5.3 Fuel Prices'!$C:$C,$B36) -> 0.08285053719 | U36: =SUMIFS('5.3 Fuel Prices'!$D:$D,'5.3 Fuel Prices'!$A:$A,'2.4 Energy Prices'!U$25,'5.3 Fuel Prices'!$B:$B,'2.4 Energy Prices'!$C36,'5.3 Fuel Prices'!$C:$C,$B36) -> 0.08399966807
C37: Electricity | D37: =SUMIFS('5.3 Fuel Prices'!$D:$D,'5.3 Fuel Prices'!$A:$A,'2.4 Energy Prices'!D$25,'5.3 Fuel Prices'!$B:$B,'2.4 Energy Prices'!$C37,'5.3 Fuel Prices'!$C:$C,$B36) -> 0.3702 | E37: =SUMIFS('5.3 Fuel Prices'!$D:$D,'5.3 Fuel Prices'!$A:$A,'2.4 Energy Prices'!E$25,'5.3 Fuel Prices'!$B:$B,'2.4 Energy Prices'!$C37,'5.3 Fuel Prices'!$C:$C,$B36) -> 0.3537 | F37: =SUMIFS('5.3 Fuel Prices'!$D:$D,'5.3 Fuel Prices'!$A:$A,'2.4 Energy Prices'!F$25,'5.3 Fuel Prices'!$B:$B,'2.4 Energy Prices'!$C37,'5.3 Fuel Prices'!$C:$C,$B36) -> 0.3372 | G37: =SUMIFS('5.3 Fuel Prices'!$D:$D,'5.3 Fuel Prices'!$A:$A,'2.4 Energy Prices'!G$25,'5.3 Fuel Prices'!$B:$B,'2.4 Energy Prices'!$C37,'5.3 Fuel Prices'!$C:$C,$B36) -> 0.3207 | H37: =SUMIFS('5.3 Fuel Prices'!$D:$D,'5.3 Fuel Prices'!$A:$A,'2.4 Energy Prices'!H$25,'5.3 Fuel Prices'!$B:$B,'2.4 Energy Prices'!$C37,'5.3 Fuel Prices'!$C:$C,$B36) -> 0.3019 | I37: =SUMIFS('5.3 Fuel Prices'!$D:$D,'5.3 Fuel Prices'!$A:$A,'2.4 Energy Prices'!I$25,'5.3 Fuel Prices'!$B:$B,'2.4 Energy Prices'!$C37,'5.3 Fuel Prices'!$C:$C,$B36) -> 0.2831 | J37: =SUMIFS('5.3 Fuel Prices'!$D:$D,'5.3 Fuel Prices'!$A:$A,'2.4 Energy Prices'!J$25,'5.3 Fuel Prices'!$B:$B,'2.4 Energy Prices'!$C37,'5.3 Fuel Prices'!$C:$C,$B36) -> 0.2643 | K37: =SUMIFS('5.3 Fuel Prices'!$D:$D,'5.3 Fuel Prices'!$A:$A,'2.4 Energy Prices'!K$25,'5.3 Fuel Prices'!$B:$B,'2.4 Energy Prices'!$C37,'5.3 Fuel Prices'!$C:$C,$B36) -> 0.2455 | L37: =SUMIFS('5.3 Fuel Prices'!$D:$D,'5.3 Fuel Prices'!$A:$A,'2.4 Energy Prices'!L$25,'5.3 Fuel Prices'!$B:$B,'2.4 Energy Prices'!$C37,'5.3 Fuel Prices'!$C:$C,$B36) -> 0.2425 | M37: =SUMIFS('5.3 Fuel Prices'!$D:$D,'5.3 Fuel Prices'!$A:$A,'2.4 Energy Prices'!M$25,'5.3 Fuel Prices'!$B:$B,'2.4 Energy Prices'!$C37,'5.3 Fuel Prices'!$C:$C,$B36) -> 0.2394 | N37: =SUMIFS('5.3 Fuel Prices'!$D:$D,'5.3 Fuel Prices'!$A:$A,'2.4 Energy Prices'!N$25,'5.3 Fuel Prices'!$B:$B,'2.4 Energy Prices'!$C37,'5.3 Fuel Prices'!$C:$C,$B36) -> 0.2363 | O37: =SUMIFS('5.3 Fuel Prices'!$D:$D,'5.3 Fuel Prices'!$A:$A,'2.4 Energy Prices'!O$25,'5.3 Fuel Prices'!$B:$B,'2.4 Energy Prices'!$C37,'5.3 Fuel Prices'!$C:$C,$B36) -> 0.2333 | P37: =SUMIFS('5.3 Fuel Prices'!$D:$D,'5.3 Fuel Prices'!$A:$A,'2.4 Energy Prices'!P$25,'5.3 Fuel Prices'!$B:$B,'2.4 Energy Prices'!$C37,'5.3 Fuel Prices'!$C:$C,$B36) -> 0.2302 | Q37: =SUMIFS('5.3 Fuel Prices'!$D:$D,'5.3 Fuel Prices'!$A:$A,'2.4 Energy Prices'!Q$25,'5.3 Fuel Prices'!$B:$B,'2.4 Energy Prices'!$C37,'5.3 Fuel Prices'!$C:$C,$B36) -> 0.2271 | R37: =SUMIFS('5.3 Fuel Prices'!$D:$D,'5.3 Fuel Prices'!$A:$A,'2.4 Energy Prices'!R$25,'5.3 Fuel Prices'!$B:$B,'2.4 Energy Prices'!$C37,'5.3 Fuel Prices'!$C:$C,$B36) -> 0.224 | S37: =SUMIFS('5.3 Fuel Prices'!$D:$D,'5.3 Fuel Prices'!$A:$A,'2.4 Energy Prices'!S$25,'5.3 Fuel Prices'!$B:$B,'2.4 Energy Prices'!$C37,'5.3 Fuel Prices'!$C:$C,$B36) -> 0.221 | T37: =SUMIFS('5.3 Fuel Prices'!$D:$D,'5.3 Fuel Prices'!$A:$A,'2.4 Energy Prices'!T$25,'5.3 Fuel Prices'!$B:$B,'2.4 Energy Prices'!$C37,'5.3 Fuel Prices'!$C:$C,$B36) -> 0.2179 | U37: =SUMIFS('5.3 Fuel Prices'!$D:$D,'5.3 Fuel Prices'!$A:$A,'2.4 Energy Prices'!U$25,'5.3 Fuel Prices'!$B:$B,'2.4 Energy Prices'!$C37,'5.3 Fuel Prices'!$C:$C,$B36) -> 0.2148
C38: Pellet | D38: =SUMIFS('5.3 Fuel Prices'!$D:$D,'5.3 Fuel Prices'!$A:$A,'2.4 Energy Prices'!D$25,'5.3 Fuel Prices'!$B:$B,'2.4 Energy Prices'!$C38,'5.3 Fuel Prices'!$C:$C,$B36) -> 0.07556 | E38: =SUMIFS('5.3 Fuel Prices'!$D:$D,'5.3 Fuel Prices'!$A:$A,'2.4 Energy Prices'!E$25,'5.3 Fuel Prices'!$B:$B,'2.4 Energy Prices'!$C38,'5.3 Fuel Prices'!$C:$C,$B36) -> 0.06679504 | F38: =SUMIFS('5.3 Fuel Prices'!$D:$D,'5.3 Fuel Prices'!$A:$A,'2.4 Energy Prices'!F$25,'5.3 Fuel Prices'!$B:$B,'2.4 Energy Prices'!$C38,'5.3 Fuel Prices'!$C:$C,$B36) -> 0.05810564 | G38: =SUMIFS('5.3 Fuel Prices'!$D:$D,'5.3 Fuel Prices'!$A:$A,'2.4 Energy Prices'!G$25,'5.3 Fuel Prices'!$B:$B,'2.4 Energy Prices'!$C38,'5.3 Fuel Prices'!$C:$C,$B36) -> 0.04934068 | H38: =SUMIFS('5.3 Fuel Prices'!$D:$D,'5.3 Fuel Prices'!$A:$A,'2.4 Energy Prices'!H$25,'5.3 Fuel Prices'!$B:$B,'2.4 Energy Prices'!$C38,'5.3 Fuel Prices'!$C:$C,$B36) -> 0.04775392 | I38: =SUMIFS('5.3 Fuel Prices'!$D:$D,'5.3 Fuel Prices'!$A:$A,'2.4 Energy Prices'!I$25,'5.3 Fuel Prices'!$B:$B,'2.4 Energy Prices'!$C38,'5.3 Fuel Prices'!$C:$C,$B36) -> 0.04624272 | J38: =SUMIFS('5.3 Fuel Prices'!$D:$D,'5.3 Fuel Prices'!$A:$A,'2.4 Energy Prices'!J$25,'5.3 Fuel Prices'!$B:$B,'2.4 Energy Prices'!$C38,'5.3 Fuel Prices'!$C:$C,$B36) -> 0.04465596 | K38: =SUMIFS('5.3 Fuel Prices'!$D:$D,'5.3 Fuel Prices'!$A:$A,'2.4 Energy Prices'!K$25,'5.3 Fuel Prices'!$B:$B,'2.4 Energy Prices'!$C38,'5.3 Fuel Prices'!$C:$C,$B36) -> 0.0430692 | L38: =SUMIFS('5.3 Fuel Prices'!$D:$D,'5.3 Fuel Prices'!$A:$A,'2.4 Energy Prices'!L$25,'5.3 Fuel Prices'!$B:$B,'2.4 Energy Prices'!$C38,'5.3 Fuel Prices'!$C:$C,$B36) -> 0.043447 | M38: =SUMIFS('5.3 Fuel Prices'!$D:$D,'5.3 Fuel Prices'!$A:$A,'2.4 Energy Prices'!M$25,'5.3 Fuel Prices'!$B:$B,'2.4 Energy Prices'!$C38,'5.3 Fuel Prices'!$C:$C,$B36) -> 0.0438248 | N38: =SUMIFS('5.3 Fuel Prices'!$D:$D,'5.3 Fuel Prices'!$A:$A,'2.4 Energy Prices'!N$25,'5.3 Fuel Prices'!$B:$B,'2.4 Energy Prices'!$C38,'5.3 Fuel Prices'!$C:$C,$B36) -> 0.0442026 | O38: =SUMIFS('5.3 Fuel Prices'!$D:$D,'5.3 Fuel Prices'!$A:$A,'2.4 Energy Prices'!O$25,'5.3 Fuel Prices'!$B:$B,'2.4 Energy Prices'!$C38,'5.3 Fuel Prices'!$C:$C,$B36) -> 0.04465596 | P38: =SUMIFS('5.3 Fuel Prices'!$D:$D,'5.3 Fuel Prices'!$A:$A,'2.4 Energy Prices'!P$25,'5.3 Fuel Prices'!$B:$B,'2.4 Energy Prices'!$C38,'5.3 Fuel Prices'!$C:$C,$B36) -> 0.04503376 | Q38: =SUMIFS('5.3 Fuel Prices'!$D:$D,'5.3 Fuel Prices'!$A:$A,'2.4 Energy Prices'!Q$25,'5.3 Fuel Prices'!$B:$B,'2.4 Energy Prices'!$C38,'5.3 Fuel Prices'!$C:$C,$B36) -> 0.04541156 | R38: =SUMIFS('5.3 Fuel Prices'!$D:$D,'5.3 Fuel Prices'!$A:$A,'2.4 Energy Prices'!R$25,'5.3 Fuel Prices'!$B:$B,'2.4 Energy Prices'!$C38,'5.3 Fuel Prices'!$C:$C,$B36) -> 0.04578936 | S38: =SUMIFS('5.3 Fuel Prices'!$D:$D,'5.3 Fuel Prices'!$A:$A,'2.4 Energy Prices'!S$25,'5.3 Fuel Prices'!$B:$B,'2.4 Energy Prices'!$C38,'5.3 Fuel Prices'!$C:$C,$B36) -> 0.04616716 | T38: =SUMIFS('5.3 Fuel Prices'!$D:$D,'5.3 Fuel Prices'!$A:$A,'2.4 Energy Prices'!T$25,'5.3 Fuel Prices'!$B:$B,'2.4 Energy Prices'!$C38,'5.3 Fuel Prices'!$C:$C,$B36) -> 0.04654496 | U38: =SUMIFS('5.3 Fuel Prices'!$D:$D,'5.3 Fuel Prices'!$A:$A,'2.4 Energy Prices'!U$25,'5.3 Fuel Prices'!$B:$B,'2.4 Energy Prices'!$C38,'5.3 Fuel Prices'!$C:$C,$B36) -> 0.04699832
A41: CO2 price [EUR2018/t CO2]
B43: Scenario | D43: 2023 | E43: 2024 | F43: 2025 | G43: 2026 | H43: 2027 | I43: 2028 | J43: 2029 | K43: 2030 | L43: 2031 | M43: 2032 | N43: 2033 | O43: 2034 | P43: 2035 | Q43: 2036 | R43: 2037 | S43: 2038 | T43: 2039 | U43: 2040
B44: high | D44: =SUMIFS('5.3 Fuel Prices'!$G:$G,'5.3 Fuel Prices'!$C:$C,$B44,'5.3 Fuel Prices'!$A:$A,D$43) -> 33.64090734 | E44: =SUMIFS('5.3 Fuel Prices'!$G:$G,'5.3 Fuel Prices'!$C:$C,$B44,'5.3 Fuel Prices'!$A:$A,E$43) -> 42.40450505 | F44: =SUMIFS('5.3 Fuel Prices'!$G:$G,'5.3 Fuel Prices'!$C:$C,$B44,'5.3 Fuel Prices'!$A:$A,F$43) -> 50.81149843 | G44: =SUMIFS('5.3 Fuel Prices'!$G:$G,'5.3 Fuel Prices'!$C:$C,$B44,'5.3 Fuel Prices'!$A:$A,G$43) -> 54.34384859 | H44: =SUMIFS('5.3 Fuel Prices'!$G:$G,'5.3 Fuel Prices'!$C:$C,$B44,'5.3 Fuel Prices'!$A:$A,H$43) -> 84.35728131 | I44: =SUMIFS('5.3 Fuel Prices'!$G:$G,'5.3 Fuel Prices'!$C:$C,$B44,'5.3 Fuel Prices'!$A:$A,I$43) -> 108.8200223 | J44: =SUMIFS('5.3 Fuel Prices'!$G:$G,'5.3 Fuel Prices'!$C:$C,$B44,'5.3 Fuel Prices'!$A:$A,J$43) -> 132.2910075 | K44: =SUMIFS('5.3 Fuel Prices'!$G:$G,'5.3 Fuel Prices'!$C:$C,$B44,'5.3 Fuel Prices'!$A:$A,K$43) -> 150.6159479 | L44: =SUMIFS('5.3 Fuel Prices'!$G:$G,'5.3 Fuel Prices'!$C:$C,$B44,'5.3 Fuel Prices'!$A:$A,L$43) -> 164.8900083 | M44: =SUMIFS('5.3 Fuel Prices'!$G:$G,'5.3 Fuel Prices'!$C:$C,$B44,'5.3 Fuel Prices'!$A:$A,M$43) -> 178.5463947 | N44: =SUMIFS('5.3 Fuel Prices'!$G:$G,'5.3 Fuel Prices'!$C:$C,$B44,'5.3 Fuel Prices'!$A:$A,N$43) -> 191.6038417 | O44: =SUMIFS('5.3 Fuel Prices'!$G:$G,'5.3 Fuel Prices'!$C:$C,$B44,'5.3 Fuel Prices'!$A:$A,O$43) -> 204.0805866 | P44: =SUMIFS('5.3 Fuel Prices'!$G:$G,'5.3 Fuel Prices'!$C:$C,$B44,'5.3 Fuel Prices'!$A:$A,P$43) -> 215.994382 | Q44: =SUMIFS('5.3 Fuel Prices'!$G:$G,'5.3 Fuel Prices'!$C:$C,$B44,'5.3 Fuel Prices'!$A:$A,Q$43) -> 227.3625074 | R44: =SUMIFS('5.3 Fuel Prices'!$G:$G,'5.3 Fuel Prices'!$C:$C,$B44,'5.3 Fuel Prices'!$A:$A,R$43) -> 238.2017811 | S44: =SUMIFS('5.3 Fuel Prices'!$G:$G,'5.3 Fuel Prices'!$C:$C,$B44,'5.3 Fuel Prices'!$A:$A,S$43) -> 238.5302959 | T44: =SUMIFS('5.3 Fuel Prices'!$G:$G,'5.3 Fuel Prices'!$C:$C,$B44,'5.3 Fuel Prices'!$A:$A,T$43) -> 238.0541875 | U44: =SUMIFS('5.3 Fuel Prices'!$G:$G,'5.3 Fuel Prices'!$C:$C,$B44,'5.3 Fuel Prices'!$A:$A,U$43) -> 237.5050429
B45: mid | D45: =SUMIFS('5.3 Fuel Prices'!$G:$G,'5.3 Fuel Prices'!$C:$C,$B45,'5.3 Fuel Prices'!$A:$A,D$43) -> 33.64090734 | E45: =SUMIFS('5.3 Fuel Prices'!$G:$G,'5.3 Fuel Prices'!$C:$C,$B45,'5.3 Fuel Prices'!$A:$A,E$43) -> 42.40450505 | F45: =SUMIFS('5.3 Fuel Prices'!$G:$G,'5.3 Fuel Prices'!$C:$C,$B45,'5.3 Fuel Prices'!$A:$A,F$43) -> 50.81149843 | G45: =SUMIFS('5.3 Fuel Prices'!$G:$G,'5.3 Fuel Prices'!$C:$C,$B45,'5.3 Fuel Prices'!$A:$A,G$43) -> 54.34384859 | H45: =SUMIFS('5.3 Fuel Prices'!$G:$G,'5.3 Fuel Prices'!$C:$C,$B45,'5.3 Fuel Prices'!$A:$A,H$43) -> 72.1476748 | I45: =SUMIFS('5.3 Fuel Prices'!$G:$G,'5.3 Fuel Prices'!$C:$C,$B45,'5.3 Fuel Prices'!$A:$A,I$43) -> 89.23241831 | J45: =SUMIFS('5.3 Fuel Prices'!$G:$G,'5.3 Fuel Prices'!$C:$C,$B45,'5.3 Fuel Prices'!$A:$A,J$43) -> 105.6194334 | K45: =SUMIFS('5.3 Fuel Prices'!$G:$G,'5.3 Fuel Prices'!$C:$C,$B45,'5.3 Fuel Prices'!$A:$A,K$43) -> 121.3295136 | L45: =SUMIFS('5.3 Fuel Prices'!$G:$G,'5.3 Fuel Prices'!$C:$C,$B45,'5.3 Fuel Prices'!$A:$A,L$43) -> 127.1539865 | M45: =SUMIFS('5.3 Fuel Prices'!$G:$G,'5.3 Fuel Prices'!$C:$C,$B45,'5.3 Fuel Prices'!$A:$A,M$43) -> 132.7034015 | N45: =SUMIFS('5.3 Fuel Prices'!$G:$G,'5.3 Fuel Prices'!$C:$C,$B45,'5.3 Fuel Prices'!$A:$A,N$43) -> 137.9863057 | O45: =SUMIFS('5.3 Fuel Prices'!$G:$G,'5.3 Fuel Prices'!$C:$C,$B45,'5.3 Fuel Prices'!$A:$A,O$43) -> 143.0110171 | P45: =SUMIFS('5.3 Fuel Prices'!$G:$G,'5.3 Fuel Prices'!$C:$C,$B45,'5.3 Fuel Prices'!$A:$A,P$43) -> 147.7856298 | Q45: =SUMIFS('5.3 Fuel Prices'!$G:$G,'5.3 Fuel Prices'!$C:$C,$B45,'5.3 Fuel Prices'!$A:$A,Q$43) -> 152.3180196 | R45: =SUMIFS('5.3 Fuel Prices'!$G:$G,'5.3 Fuel Prices'!$C:$C,$B45,'5.3 Fuel Prices'!$A:$A,R$43) -> 156.6158499 | S45: =SUMIFS('5.3 Fuel Prices'!$G:$G,'5.3 Fuel Prices'!$C:$C,$B45,'5.3 Fuel Prices'!$A:$A,S$43) -> 160.6865766 | T45: =SUMIFS('5.3 Fuel Prices'!$G:$G,'5.3 Fuel Prices'!$C:$C,$B45,'5.3 Fuel Prices'!$A:$A,T$43) -> 164.5374531 | U45: =SUMIFS('5.3 Fuel Prices'!$G:$G,'5.3 Fuel Prices'!$C:$C,$B45,'5.3 Fuel Prices'!$A:$A,U$43) -> 168.1755361
B46: low | D46: =SUMIFS('5.3 Fuel Prices'!$G:$G,'5.3 Fuel Prices'!$C:$C,$B46,'5.3 Fuel Prices'!$A:$A,D$43) -> 33.64090734 | E46: =SUMIFS('5.3 Fuel Prices'!$G:$G,'5.3 Fuel Prices'!$C:$C,$B46,'5.3 Fuel Prices'!$A:$A,E$43) -> 42.40450505 | F46: =SUMIFS('5.3 Fuel Prices'!$G:$G,'5.3 Fuel Prices'!$C:$C,$B46,'5.3 Fuel Prices'!$A:$A,F$43) -> 50.81149843 | G46: =SUMIFS('5.3 Fuel Prices'!$G:$G,'5.3 Fuel Prices'!$C:$C,$B46,'5.3 Fuel Prices'!$A:$A,G$43) -> 54.34384859 | H46: =SUMIFS('5.3 Fuel Prices'!$G:$G,'5.3 Fuel Prices'!$C:$C,$B46,'5.3 Fuel Prices'!$A:$A,H$43) -> 59.49408261 | I46: =SUMIFS('5.3 Fuel Prices'!$G:$G,'5.3 Fuel Prices'!$C:$C,$B46,'5.3 Fuel Prices'!$A:$A,I$43) -> 64.42145322 | J46: =SUMIFS('5.3 Fuel Prices'!$G:$G,'5.3 Fuel Prices'!$C:$C,$B46,'5.3 Fuel Prices'!$A:$A,J$43) -> 69.13272007 | K46: =SUMIFS('5.3 Fuel Prices'!$G:$G,'5.3 Fuel Prices'!$C:$C,$B46,'5.3 Fuel Prices'!$A:$A,K$43) -> 73.6344634 | L46: =SUMIFS('5.3 Fuel Prices'!$G:$G,'5.3 Fuel Prices'!$C:$C,$B46,'5.3 Fuel Prices'!$A:$A,L$43) -> 77.93308849 | M46: =SUMIFS('5.3 Fuel Prices'!$G:$G,'5.3 Fuel Prices'!$C:$C,$B46,'5.3 Fuel Prices'!$A:$A,M$43) -> 82.03482999 | N46: =SUMIFS('5.3 Fuel Prices'!$G:$G,'5.3 Fuel Prices'!$C:$C,$B46,'5.3 Fuel Prices'!$A:$A,N$43) -> 85.94575614 | O46: =SUMIFS('5.3 Fuel Prices'!$G:$G,'5.3 Fuel Prices'!$C:$C,$B46,'5.3 Fuel Prices'!$A:$A,O$43) -> 89.67177291 | P46: =SUMIFS('5.3 Fuel Prices'!$G:$G,'5.3 Fuel Prices'!$C:$C,$B46,'5.3 Fuel Prices'!$A:$A,P$43) -> 93.21862802 | Q46: =SUMIFS('5.3 Fuel Prices'!$G:$G,'5.3 Fuel Prices'!$C:$C,$B46,'5.3 Fuel Prices'!$A:$A,Q$43) -> 96.5919149 | R46: =SUMIFS('5.3 Fuel Prices'!$G:$G,'5.3 Fuel Prices'!$C:$C,$B46,'5.3 Fuel Prices'!$A:$A,R$43) -> 99.79707648 | S46: =SUMIFS('5.3 Fuel Prices'!$G:$G,'5.3 Fuel Prices'!$C:$C,$B46,'5.3 Fuel Prices'!$A:$A,S$43) -> 102.839409 | T46: =SUMIFS('5.3 Fuel Prices'!$G:$G,'5.3 Fuel Prices'!$C:$C,$B46,'5.3 Fuel Prices'!$A:$A,T$43) -> 105.7240656 | U46: =SUMIFS('5.3 Fuel Prices'!$G:$G,'5.3 Fuel Prices'!$C:$C,$B46,'5.3 Fuel Prices'!$A:$A,U$43) -> 108.45606

Sheet 3. LCOE Results>>>
G2: Technologies | I2: Buiding Types | J2: Szenarios | K2: Markets | L2: Refurbishment
G3: Gas boiler | H3: gas | I3: SFH_high | J3: high | K3: Baden-Württemberg | L3: High | M3: Single Family Home | N3: SFH | P3: high energy demand | Q3: igh
G4: HP brine-to-water | H4: hp_btw | I4: sMFH_high | J4: mid | K4: Bavaria | L4: Medium | M4: small Multi Family Home | N4: sMFH | P4: medium energy demand | Q4: ium
G5: HP air-to-water | H5: hp_atw | I5: lMFH_high | J5: low | K5: Berlin | L5: Low | M5: large Multi Family Home | N5: lMFH | P5: low energy demand | Q5: low
G6: Pellet boiler | H6: pellet | I6: SFH_medium | K6: Brandenburg
G7: Gas Solar Hybrid | H7: gas_solar | I7: sMFH_medium | K7: Bremen | M7: Single Family Home | N7: SFH
G8: Pellet Solar Hybrid | H8: pellet_solar | I8: lMFH_medium | K8: Hamburg | M8: small Multi Family Home | N8: sMF
I9: SFH_low | K9: Hesse | M9: large Multi Family Home | N9: lMF
I10: sMFH_low | K10: Mecklenburg-Western Pomerania | N10: =LEFT(B10,3) -> 
I11: lMFH_low | K11: Lower Saxony
K12: Northrhine-Westphalia
K13: Rhineland-Palatinate
K14: Saarland
K15: Saxony
K16: Saxony-Anhalt
K17: Schleswig-Holstein
K18: Thuringia

Sheet 3.1 per Market
A1: Select:
A2: Building Type: | B2: Single Family Home | C2: Energy Price Scenario: | F2: mid
A3: Disclaimer: The feed-in of solar thermal energy is based on a German average and not on the different federal states.
A5: LCOH for Baden-Württemberg | I5: Composition of LCOH for Baden-Württemberg
A20: LCOH for Schleswig-Holstein | I20: Composition of LCOH for Schleswig-Holstein
A35: Data tables
A37: LCOE per state for selected building type [EUR/MWh] | M37: Composition of LCOE per state for selected building type [EUR/MWh]
B39: Baden-Württemberg | N39: Baden-Württemberg
B40: Technology\Year | C40: 2022 | D40: 2023 | E40: 2024 | F40: 2025 | G40: 2026 | H40: 2027 | I40: 2028 | J40: 2029 | K40: 2030 | N40: Technology | O40: Gas boiler | P40: Gas boiler | Q40: Gas boiler | R40: Gas boiler | U40: HP brine-to-water | AA40: HP air-to-water | AG40: Pellet boiler | AM40: Gas Solar Hybrid | AS40: Pellet Solar Hybrid
B41: Gas boiler | C41: =(SUMIFS('4.6 LCOE_Weighted'!$L:$L,'4.6 LCOE_Weighted'!$B:$B,VLOOKUP('3.1 per Market'!$B41,'3. LCOE Results>>>'!$G$3:$H$10,2,FALSE),'4.6 LCOE_Weighted'!$C:$C,'3.1 per Market'!$B$39,'4.6 LCOE_Weighted'!$D:$D,VLOOKUP($B$2,'3. LCOE Results>>>'!$M$3:$N$5,2,FALSE),'4.6 LCOE_Weighted'!$E:$E,'3.1 per Market'!$F$2,'4.6 LCOE_Weighted'!$F:$F,'3.1 per Market'!C$40)) -> 149.9840663 | D41: =(SUMIFS('4.6 LCOE_Weighted'!$L:$L,'4.6 LCOE_Weighted'!$B:$B,VLOOKUP('3.1 per Market'!$B41,'3. LCOE Results>>>'!$G$3:$H$10,2,FALSE),'4.6 LCOE_Weighted'!$C:$C,'3.1 per Market'!$B$39,'4.6 LCOE_Weighted'!$D:$D,VLOOKUP($B$2,'3. LCOE Results>>>'!$M$3:$N$5,2,FALSE),'4.6 LCOE_Weighted'!$E:$E,'3.1 per Market'!$F$2,'4.6 LCOE_Weighted'!$F:$F,'3.1 per Market'!D$40)) -> 157.3986637 | E41: =(SUMIFS('4.6 LCOE_Weighted'!$L:$L,'4.6 LCOE_Weighted'!$B:$B,VLOOKUP('3.1 per Market'!$B41,'3. LCOE Results>>>'!$G$3:$H$10,2,FALSE),'4.6 LCOE_Weighted'!$C:$C,'3.1 per Market'!$B$39,'4.6 LCOE_Weighted'!$D:$D,VLOOKUP($B$2,'3. LCOE Results>>>'!$M$3:$N$5,2,FALSE),'4.6 LCOE_Weighted'!$E:$E,'3.1 per Market'!$F$2,'4.6 LCOE_Weighted'!$F:$F,'3.1 per Market'!E$40)) -> 152.2838809 | F41: =(SUMIFS('4.6 LCOE_Weighted'!$L:$L,'4.6 LCOE_Weighted'!$B:$B,VLOOKUP('3.1 per Market'!$B41,'3. LCOE Results>>>'!$G$3:$H$10,2,FALSE),'4.6 LCOE_Weighted'!$C:$C,'3.1 per Market'!$B$39,'4.6 LCOE_Weighted'!$D:$D,VLOOKUP($B$2,'3. LCOE Results>>>'!$M$3:$N$5,2,FALSE),'4.6 LCOE_Weighted'!$E:$E,'3.1 per Market'!$F$2,'4.6 LCOE_Weighted'!$F:$F,'3.1 per Market'!F$40)) -> 148.6003865 | G41: =(SUMIFS('4.6 LCOE_Weighted'!$L:$L,'4.6 LCOE_Weighted'!$B:$B,VLOOKUP('3.1 per Market'!$B41,'3. LCOE Results>>>'!$G$3:$H$10,2,FALSE),'4.6 LCOE_Weighted'!$C:$C,'3.1 per Market'!$B$39,'4.6 LCOE_Weighted'!$D:$D,VLOOKUP($B$2,'3. LCOE Results>>>'!$M$3:$N$5,2,FALSE),'4.6 LCOE_Weighted'!$E:$E,'3.1 per Market'!$F$2,'4.6 LCOE_Weighted'!$F:$F,'3.1 per Market'!G$40)) -> 147.0418311 | H41: =(SUMIFS('4.6 LCOE_Weighted'!$L:$L,'4.6 LCOE_Weighted'!$B:$B,VLOOKUP('3.1 per Market'!$B41,'3. LCOE Results>>>'!$G$3:$H$10,2,FALSE),'4.6 LCOE_Weighted'!$C:$C,'3.1 per Market'!$B$39,'4.6 LCOE_Weighted'!$D:$D,VLOOKUP($B$2,'3. LCOE Results>>>'!$M$3:$N$5,2,FALSE),'4.6 LCOE_Weighted'!$E:$E,'3.1 per Market'!$F$2,'4.6 LCOE_Weighted'!$F:$F,'3.1 per Market'!H$40)) -> 146.5081379 | I41: =(SUMIFS('4.6 LCOE_Weighted'!$L:$L,'4.6 LCOE_Weighted'!$B:$B,VLOOKUP('3.1 per Market'!$B41,'3. LCOE Results>>>'!$G$3:$H$10,2,FALSE),'4.6 LCOE_Weighted'!$C:$C,'3.1 per Market'!$B$39,'4.6 LCOE_Weighted'!$D:$D,VLOOKUP($B$2,'3. LCOE Results>>>'!$M$3:$N$5,2,FALSE),'4.6 LCOE_Weighted'!$E:$E,'3.1 per Market'!$F$2,'4.6 LCOE_Weighted'!$F:$F,'3.1 per Market'!I$40)) -> 146.1780009 | J41: =(SUMIFS('4.6 LCOE_Weighted'!$L:$L,'4.6 LCOE_Weighted'!$B:$B,VLOOKUP('3.1 per Market'!$B41,'3. LCOE Results>>>'!$G$3:$H$10,2,FALSE),'4.6 LCOE_Weighted'!$C:$C,'3.1 per Market'!$B$39,'4.6 LCOE_Weighted'!$D:$D,VLOOKUP($B$2,'3. LCOE Results>>>'!$M$3:$N$5,2,FALSE),'4.6 LCOE_Weighted'!$E:$E,'3.1 per Market'!$F$2,'4.6 LCOE_Weighted'!$F:$F,'3.1 per Market'!J$40)) -> 146.073331 | K41: =(SUMIFS('4.6 LCOE_Weighted'!$L:$L,'4.6 LCOE_Weighted'!$B:$B,VLOOKUP('3.1 per Market'!$B41,'3. LCOE Results>>>'!$G$3:$H$10,2,FALSE),'4.6 LCOE_Weighted'!$C:$C,'3.1 per Market'!$B$39,'4.6 LCOE_Weighted'!$D:$D,VLOOKUP($B$2,'3. LCOE Results>>>'!$M$3:$N$5,2,FALSE),'4.6 LCOE_Weighted'!$E:$E,'3.1 per Market'!$F$2,'4.6 LCOE_Weighted'!$F:$F,'3.1 per Market'!K$40)) -> 146.2167862 | N41: Cost composition\Year | O41: 2023 | P41: 2025 | Q41: 2028 | R41: 2030 | U41: 2023 | V41: 2025 | W41: 2028 | X41: 2030 | AA41: 2023 | AB41: 2025 | AC41: 2028 | AD41: 2030 | AG41: 2023 | AH41: 2025 | AI41: 2028 | AJ41: 2030 | AM41: 2023 | AN41: 2025 | AO41: 2028 | AP41: 2030 | AS41: 2023 | AT41: 2025 | AU41: 2028 | AV41: 2030
B42: HP brine-to-water | C42: =(SUMIFS('4.6 LCOE_Weighted'!$L:$L,'4.6 LCOE_Weighted'!$B:$B,VLOOKUP('3.1 per Market'!$B42,'3. LCOE Results>>>'!$G$3:$H$10,2,FALSE),'4.6 LCOE_Weighted'!$C:$C,'3.1 per Market'!$B$39,'4.6 LCOE_Weighted'!$D:$D,VLOOKUP($B$2,'3. LCOE Results>>>'!$M$3:$N$5,2,FALSE),'4.6 LCOE_Weighted'!$E:$E,'3.1 per Market'!$F$2,'4.6 LCOE_Weighted'!$F:$F,'3.1 per Market'!C$40)) -> 193.7903759 | D42: =(SUMIFS('4.6 LCOE_Weighted'!$L:$L,'4.6 LCOE_Weighted'!$B:$B,VLOOKUP('3.1 per Market'!$B42,'3. LCOE Results>>>'!$G$3:$H$10,2,FALSE),'4.6 LCOE_Weighted'!$C:$C,'3.1 per Market'!$B$39,'4.6 LCOE_Weighted'!$D:$D,VLOOKUP($B$2,'3. LCOE Results>>>'!$M$3:$N$5,2,FALSE),'4.6 LCOE_Weighted'!$E:$E,'3.1 per Market'!$F$2,'4.6 LCOE_Weighted'!$F:$F,'3.1 per Market'!D$40)) -> 192.9308859 | E42: =(SUMIFS('4.6 LCOE_Weighted'!$L:$L,'4.6 LCOE_Weighted'!$B:$B,VLOOKUP('3.1 per Market'!$B42,'3. LCOE Results>>>'!$G$3:$H$10,2,FALSE),'4.6 LCOE_Weighted'!$C:$C,'3.1 per Market'!$B$39,'4.6 LCOE_Weighted'!$D:$D,VLOOKUP($B$2,'3. LCOE Results>>>'!$M$3:$N$5,2,FALSE),'4.6 LCOE_Weighted'!$E:$E,'3.1 per Market'!$F$2,'4.6 LCOE_Weighted'!$F:$F,'3.1 per Market'!E$40)) -> 184.4242005 | F42: =(SUMIFS('4.6 LCOE_Weighted'!$L:$L,'4.6 LCOE_Weighted'!$B:$B,VLOOKUP('3.1 per Market'!$B42,'3. LCOE Results>>>'!$G$3:$H$10,2,FALSE),'4.6 LCOE_Weighted'!$C:$C,'3.1 per Market'!$B$39,'4.6 LCOE_Weighted'!$D:$D,VLOOKUP($B$2,'3. LCOE Results>>>'!$M$3:$N$5,2,FALSE),'4.6 LCOE_Weighted'!$E:$E,'3.1 per Market'!$F$2,'4.6 LCOE_Weighted'!$F:$F,'3.1 per Market'!F$40)) -> 176.1188653 | G42: =(SUMIFS('4.6 LCOE_Weighted'!$L:$L,'4.6 LCOE_Weighted'!$B:$B,VLOOKUP('3.1 per Market'!$B42,'3. LCOE Results>>>'!$G$3:$H$10,2,FALSE),'4.6 LCOE_Weighted'!$C:$C,'3.1 per Market'!$B$39,'4.6 LCOE_Weighted'!$D:$D,VLOOKUP($B$2,'3. LCOE Results>>>'!$M$3:$N$5,2,FALSE),'4.6 LCOE_Weighted'!$E:$E,'3.1 per Market'!$F$2,'4.6 LCOE_Weighted'!$F:$F,'3.1 per Market'!G$40)) -> 168.0242016 | H42: =(SUMIFS('4.6 LCOE_Weighted'!$L:$L,'4.6 LCOE_Weighted'!$B:$B,VLOOKUP('3.1 per Market'!$B42,'3. LCOE Results>>>'!$G$3:$H$10,2,FALSE),'4.6 LCOE_Weighted'!$C:$C,'3.1 per Market'!$B$39,'4.6 LCOE_Weighted'!$D:$D,VLOOKUP($B$2,'3. LCOE Results>>>'!$M$3:$N$5,2,FALSE),'4.6 LCOE_Weighted'!$E:$E,'3.1 per Market'!$F$2,'4.6 LCOE_Weighted'!$F:$F,'3.1 per Market'!H$40)) -> 160.1519046 | I42: =(SUMIFS('4.6 LCOE_Weighted'!$L:$L,'4.6 LCOE_Weighted'!$B:$B,VLOOKUP('3.1 per Market'!$B42,'3. LCOE Results>>>'!$G$3:$H$10,2,FALSE),'4.6 LCOE_Weighted'!$C:$C,'3.1 per Market'!$B$39,'4.6 LCOE_Weighted'!$D:$D,VLOOKUP($B$2,'3. LCOE Results>>>'!$M$3:$N$5,2,FALSE),'4.6 LCOE_Weighted'!$E:$E,'3.1 per Market'!$F$2,'4.6 LCOE_Weighted'!$F:$F,'3.1 per Market'!I$40)) -> 152.5276308 | J42: =(SUMIFS('4.6 LCOE_Weighted'!$L:$L,'4.6 LCOE_Weighted'!$B:$B,VLOOKUP('3.1 per Market'!$B42,'3. LCOE Results>>>'!$G$3:$H$10,2,FALSE),'4.6 LCOE_Weighted'!$C:$C,'3.1 per Market'!$B$39,'4.6 LCOE_Weighted'!$D:$D,VLOOKUP($B$2,'3. LCOE Results>>>'!$M$3:$N$5,2,FALSE),'4.6 LCOE_Weighted'!$E:$E,'3.1 per Market'!$F$2,'4.6 LCOE_Weighted'!$F:$F,'3.1 per Market'!J$40)) -> 145.1629666 | K42: =(SUMIFS('4.6 LCOE_Weighted'!$L:$L,'4.6 LCOE_Weighted'!$B:$B,VLOOKUP('3.1 per Market'!$B42,'3. LCOE Results>>>'!$G$3:$H$10,2,FALSE),'4.6 LCOE_Weighted'!$C:$C,'3.1 per Market'!$B$39,'4.6 LCOE_Weighted'!$D:$D,VLOOKUP($B$2,'3. LCOE Results>>>'!$M$3:$N$5,2,FALSE),'4.6 LCOE_Weighted'!$E:$E,'3.1 per Market'!$F$2,'4.6 LCOE_Weighted'!$F:$F,'3.1 per Market'!K$40)) -> 138.0700691 | N42: CAPEX heating unit | O42: =SUMIFS('4.6 LCOE_Weighted'!$G:$G,'4.6 LCOE_Weighted'!$B:$B,VLOOKUP('3.1 per Market'!O$40,'3. LCOE Results>>>'!$G$3:$H$10,2,FALSE),'4.6 LCOE_Weighted'!$C:$C,$N$39,'4.6 LCOE_Weighted'!$D:$D,VLOOKUP($B$2,'3. LCOE Results>>>'!$M$3:$N$5,2,FALSE),'4.6 LCOE_Weighted'!$E:$E,$F$2,'4.6 LCOE_Weighted'!$F:$F,O$41) -> 38.40200342 | P42: =SUMIFS('4.6 LCOE_Weighted'!$G:$G,'4.6 LCOE_Weighted'!$B:$B,VLOOKUP('3.1 per Market'!O$40,'3. LCOE Results>>>'!$G$3:$H$10,2,FALSE),'4.6 LCOE_Weighted'!$C:$C,$N$39,'4.6 LCOE_Weighted'!$D:$D,VLOOKUP($B$2,'3. LCOE Results>>>'!$M$3:$N$5,2,FALSE),'4.6 LCOE_Weighted'!$E:$E,$F$2,'4.6 LCOE_Weighted'!$F:$F,P$41) -> 37.70448974 | Q42: =SUMIFS('4.6 LCOE_Weighted'!$G:$G,'4.6 LCOE_Weighted'!$B:$B,VLOOKUP('3.1 per Market'!O$40,'3. LCOE Results>>>'!$G$3:$H$10,2,FALSE),'4.6 LCOE_Weighted'!$C:$C,$N$39,'4.6 LCOE_Weighted'!$D:$D,VLOOKUP($B$2,'3. LCOE Results>>>'!$M$3:$N$5,2,FALSE),'4.6 LCOE_Weighted'!$E:$E,$F$2,'4.6 LCOE_Weighted'!$F:$F,Q$41) -> 36.65821921 | R42: =SUMIFS('4.6 LCOE_Weighted'!$G:$G,'4.6 LCOE_Weighted'!$B:$B,VLOOKUP('3.1 per Market'!O$40,'3. LCOE Results>>>'!$G$3:$H$10,2,FALSE),'4.6 LCOE_Weighted'!$C:$C,$N$39,'4.6 LCOE_Weighted'!$D:$D,VLOOKUP($B$2,'3. LCOE Results>>>'!$M$3:$N$5,2,FALSE),'4.6 LCOE_Weighted'!$E:$E,$F$2,'4.6 LCOE_Weighted'!$F:$F,R$41) -> 35.96070552 | T42: CAPEX heating unit | U42: =SUMIFS('4.6 LCOE_Weighted'!$G:$G,'4.6 LCOE_Weighted'!$B:$B,VLOOKUP('3.1 per Market'!U$40,'3. LCOE Results>>>'!$G$3:$H$10,2,FALSE),'4.6 LCOE_Weighted'!$C:$C,$N$39,'4.6 LCOE_Weighted'!$D:$D,VLOOKUP($B$2,'3. LCOE Results>>>'!$M$3:$N$5,2,FALSE),'4.6 LCOE_Weighted'!$E:$E,$F$2,'4.6 LCOE_Weighted'!$F:$F,U$41) -> 84.16069309 | V42: =SUMIFS('4.6 LCOE_Weighted'!$G:$G,'4.6 LCOE_Weighted'!$B:$B,VLOOKUP('3.1 per Market'!U$40,'3. LCOE Results>>>'!$G$3:$H$10,2,FALSE),'4.6 LCOE_Weighted'!$C:$C,$N$39,'4.6 LCOE_Weighted'!$D:$D,VLOOKUP($B$2,'3. LCOE Results>>>'!$M$3:$N$5,2,FALSE),'4.6 LCOE_Weighted'!$E:$E,$F$2,'4.6 LCOE_Weighted'!$F:$F,V$41) -> 71.83347378 | W42: =SUMIFS('4.6 LCOE_Weighted'!$G:$G,'4.6 LCOE_Weighted'!$B:$B,VLOOKUP('3.1 per Market'!U$40,'3. LCOE Results>>>'!$G$3:$H$10,2,FALSE),'4.6 LCOE_Weighted'!$C:$C,$N$39,'4.6 LCOE_Weighted'!$D:$D,VLOOKUP($B$2,'3. LCOE Results>>>'!$M$3:$N$5,2,FALSE),'4.6 LCOE_Weighted'!$E:$E,$F$2,'4.6 LCOE_Weighted'!$F:$F,W$41) -> 53.34264481 | X42: =SUMIFS('4.6 LCOE_Weighted'!$G:$G,'4.6 LCOE_Weighted'!$B:$B,VLOOKUP('3.1 per Market'!U$40,'3. LCOE Results>>>'!$G$3:$H$10,2,FALSE),'4.6 LCOE_Weighted'!$C:$C,$N$39,'4.6 LCOE_Weighted'!$D:$D,VLOOKUP($B$2,'3. LCOE Results>>>'!$M$3:$N$5,2,FALSE),'4.6 LCOE_Weighted'!$E:$E,$F$2,'4.6 LCOE_Weighted'!$F:$F,X$41) -> 41.0154255 | Z42: CAPEX heating unit | AA42: =SUMIFS('4.6 LCOE_Weighted'!$G:$G,'4.6 LCOE_Weighted'!$B:$B,VLOOKUP('3.1 per Market'!AA$40,'3. LCOE Results>>>'!$G$3:$H$10,2,FALSE),'4.6 LCOE_Weighted'!$C:$C,$N$39,'4.6 LCOE_Weighted'!$D:$D,VLOOKUP($B$2,'3. LCOE Results>>>'!$M$3:$N$5,2,FALSE),'4.6 LCOE_Weighted'!$E:$E,$F$2,'4.6 LCOE_Weighted'!$F:$F,AA$41) -> 68.98545744 | AB42: =SUMIFS('4.6 LCOE_Weighted'!$G:$G,'4.6 LCOE_Weighted'!$B:$B,VLOOKUP('3.1 per Market'!AA$40,'3. LCOE Results>>>'!$G$3:$H$10,2,FALSE),'4.6 LCOE_Weighted'!$C:$C,$N$39,'4.6 LCOE_Weighted'!$D:$D,VLOOKUP($B$2,'3. LCOE Results>>>'!$M$3:$N$5,2,FALSE),'4.6 LCOE_Weighted'!$E:$E,$F$2,'4.6 LCOE_Weighted'!$F:$F,AB$41) -> 58.88099142 | AC42: =SUMIFS('4.6 LCOE_Weighted'!$G:$G,'4.6 LCOE_Weighted'!$B:$B,VLOOKUP('3.1 per Market'!AA$40,'3. LCOE Results>>>'!$G$3:$H$10,2,FALSE),'4.6 LCOE_Weighted'!$C:$C,$N$39,'4.6 LCOE_Weighted'!$D:$D,VLOOKUP($B$2,'3. LCOE Results>>>'!$M$3:$N$5,2,FALSE),'4.6 LCOE_Weighted'!$E:$E,$F$2,'4.6 LCOE_Weighted'!$F:$F,AC$41) -> 43.7242924 | AD42: =SUMIFS('4.6 LCOE_Weighted'!$G:$G,'4.6 LCOE_Weighted'!$B:$B,VLOOKUP('3.1 per Market'!AA$40,'3. LCOE Results>>>'!$G$3:$H$10,2,FALSE),'4.6 LCOE_Weighted'!$C:$C,$N$39,'4.6 LCOE_Weighted'!$D:$D,VLOOKUP($B$2,'3. LCOE Results>>>'!$M$3:$N$5,2,FALSE),'4.6 LCOE_Weighted'!$E:$E,$F$2,'4.6 LCOE_Weighted'!$F:$F,AD$41) -> 33.61982639 | AF42: CAPEX heating unit | AG42: =SUMIFS('4.6 LCOE_Weighted'!$G:$G,'4.6 LCOE_Weighted'!$B:$B,VLOOKUP('3.1 per Market'!AG$40,'3. LCOE Results>>>'!$G$3:$H$10,2,FALSE),'4.6 LCOE_Weighted'!$C:$C,$N$39,'4.6 LCOE_Weighted'!$D:$D,VLOOKUP($B$2,'3. LCOE Results>>>'!$M$3:$N$5,2,FALSE),'4.6 LCOE_Weighted'!$E:$E,$F$2,'4.6 LCOE_Weighted'!$F:$F,AG$41) -> 54.31955682 | AH42: =SUMIFS('4.6 LCOE_Weighted'!$G:$G,'4.6 LCOE_Weighted'!$B:$B,VLOOKUP('3.1 per Market'!AG$40,'3. LCOE Results>>>'!$G$3:$H$10,2,FALSE),'4.6 LCOE_Weighted'!$C:$C,$N$39,'4.6 LCOE_Weighted'!$D:$D,VLOOKUP($B$2,'3. LCOE Results>>>'!$M$3:$N$5,2,FALSE),'4.6 LCOE_Weighted'!$E:$E,$F$2,'4.6 LCOE_Weighted'!$F:$F,AH$41) -> 53.99265878 | AI42: =SUMIFS('4.6 LCOE_Weighted'!$G:$G,'4.6 LCOE_Weighted'!$B:$B,VLOOKUP('3.1 per Market'!AG$40,'3. LCOE Results>>>'!$G$3:$H$10,2,FALSE),'4.6 LCOE_Weighted'!$C:$C,$N$39,'4.6 LCOE_Weighted'!$D:$D,VLOOKUP($B$2,'3. LCOE Results>>>'!$M$3:$N$5,2,FALSE),'4.6 LCOE_Weighted'!$E:$E,$F$2,'4.6 LCOE_Weighted'!$F:$F,AI$41) -> 53.50231173 | AJ42: =SUMIFS('4.6 LCOE_Weighted'!$G:$G,'4.6 LCOE_Weighted'!$B:$B,VLOOKUP('3.1 per Market'!AG$40,'3. LCOE Results>>>'!$G$3:$H$10,2,FALSE),'4.6 LCOE_Weighted'!$C:$C,$N$39,'4.6 LCOE_Weighted'!$D:$D,VLOOKUP($B$2,'3. LCOE Results>>>'!$M$3:$N$5,2,FALSE),'4.6 LCOE_Weighted'!$E:$E,$F$2,'4.6 LCOE_Weighted'!$F:$F,AJ$41) -> 53.17541369 | AL42: CAPEX heating unit | AM42: =SUMIFS('4.6 LCOE_Weighted'!$G:$G,'4.6 LCOE_Weighted'!$B:$B,VLOOKUP('3.1 per Market'!AM$40,'3. LCOE Results>>>'!$G$3:$H$10,2,FALSE),'4.6 LCOE_Weighted'!$C:$C,$N$39,'4.6 LCOE_Weighted'!$D:$D,VLOOKUP($B$2,'3. LCOE Results>>>'!$M$3:$N$5,2,FALSE),'4.6 LCOE_Weighted'!$E:$E,$F$2,'4.6 LCOE_Weighted'!$F:$F,AM$41) -> 57.32565114 | AN42: =SUMIFS('4.6 LCOE_Weighted'!$G:$G,'4.6 LCOE_Weighted'!$B:$B,VLOOKUP('3.1 per Market'!AM$40,'3. LCOE Results>>>'!$G$3:$H$10,2,FALSE),'4.6 LCOE_Weighted'!$C:$C,$N$39,'4.6 LCOE_Weighted'!$D:$D,VLOOKUP($B$2,'3. LCOE Results>>>'!$M$3:$N$5,2,FALSE),'4.6 LCOE_Weighted'!$E:$E,$F$2,'4.6 LCOE_Weighted'!$F:$F,AN$41) -> 56.28441832 | AO42: =SUMIFS('4.6 LCOE_Weighted'!$G:$G,'4.6 LCOE_Weighted'!$B:$B,VLOOKUP('3.1 per Market'!AM$40,'3. LCOE Results>>>'!$G$3:$H$10,2,FALSE),'4.6 LCOE_Weighted'!$C:$C,$N$39,'4.6 LCOE_Weighted'!$D:$D,VLOOKUP($B$2,'3. LCOE Results>>>'!$M$3:$N$5,2,FALSE),'4.6 LCOE_Weighted'!$E:$E,$F$2,'4.6 LCOE_Weighted'!$F:$F,AO$41) -> 54.7225691 | AP42: =SUMIFS('4.6 LCOE_Weighted'!$G:$G,'4.6 LCOE_Weighted'!$B:$B,VLOOKUP('3.1 per Market'!AM$40,'3. LCOE Results>>>'!$G$3:$H$10,2,FALSE),'4.6 LCOE_Weighted'!$C:$C,$N$39,'4.6 LCOE_Weighted'!$D:$D,VLOOKUP($B$2,'3. LCOE Results>>>'!$M$3:$N$5,2,FALSE),'4.6 LCOE_Weighted'!$E:$E,$F$2,'4.6 LCOE_Weighted'!$F:$F,AP$41) -> 53.68133628 | AR42: CAPEX heating unit | AS42: =SUMIFS('4.6 LCOE_Weighted'!$G:$G,'4.6 LCOE_Weighted'!$B:$B,VLOOKUP('3.1 per Market'!AS$40,'3. LCOE Results>>>'!$G$3:$H$10,2,FALSE),'4.6 LCOE_Weighted'!$C:$C,$N$39,'4.6 LCOE_Weighted'!$D:$D,VLOOKUP($B$2,'3. LCOE Results>>>'!$M$3:$N$5,2,FALSE),'4.6 LCOE_Weighted'!$E:$E,$F$2,'4.6 LCOE_Weighted'!$F:$F,AS$41) -> 78.7848598 | AT42: =SUMIFS('4.6 LCOE_Weighted'!$G:$G,'4.6 LCOE_Weighted'!$B:$B,VLOOKUP('3.1 per Market'!AS$40,'3. LCOE Results>>>'!$G$3:$H$10,2,FALSE),'4.6 LCOE_Weighted'!$C:$C,$N$39,'4.6 LCOE_Weighted'!$D:$D,VLOOKUP($B$2,'3. LCOE Results>>>'!$M$3:$N$5,2,FALSE),'4.6 LCOE_Weighted'!$E:$E,$F$2,'4.6 LCOE_Weighted'!$F:$F,AT$41) -> 78.31072825 | AU42: =SUMIFS('4.6 LCOE_Weighted'!$G:$G,'4.6 LCOE_Weighted'!$B:$B,VLOOKUP('3.1 per Market'!AS$40,'3. LCOE Results>>>'!$G$3:$H$10,2,FALSE),'4.6 LCOE_Weighted'!$C:$C,$N$39,'4.6 LCOE_Weighted'!$D:$D,VLOOKUP($B$2,'3. LCOE Results>>>'!$M$3:$N$5,2,FALSE),'4.6 LCOE_Weighted'!$E:$E,$F$2,'4.6 LCOE_Weighted'!$F:$F,AU$41) -> 77.59953092 | AV42: =SUMIFS('4.6 LCOE_Weighted'!$G:$G,'4.6 LCOE_Weighted'!$B:$B,VLOOKUP('3.1 per Market'!AS$40,'3. LCOE Results>>>'!$G$3:$H$10,2,FALSE),'4.6 LCOE_Weighted'!$C:$C,$N$39,'4.6 LCOE_Weighted'!$D:$D,VLOOKUP($B$2,'3. LCOE Results>>>'!$M$3:$N$5,2,FALSE),'4.6 LCOE_Weighted'!$E:$E,$F$2,'4.6 LCOE_Weighted'!$F:$F,AV$41) -> 77.12539936
B43: HP air-to-water | C43: =(SUMIFS('4.6 LCOE_Weighted'!$L:$L,'4.6 LCOE_Weighted'!$B:$B,VLOOKUP('3.1 per Market'!$B43,'3. LCOE Results>>>'!$G$3:$H$10,2,FALSE),'4.6 LCOE_Weighted'!$C:$C,'3.1 per Market'!$B$39,'4.6 LCOE_Weighted'!$D:$D,VLOOKUP($B$2,'3. LCOE Results>>>'!$M$3:$N$5,2,FALSE),'4.6 LCOE_Weighted'!$E:$E,'3.1 per Market'!$F$2,'4.6 LCOE_Weighted'!$F:$F,'3.1 per Market'!C$40)) -> 203.8992524 | D43: =(SUMIFS('4.6 LCOE_Weighted'!$L:$L,'4.6 LCOE_Weighted'!$B:$B,VLOOKUP('3.1 per Market'!$B43,'3. LCOE Results>>>'!$G$3:$H$10,2,FALSE),'4.6 LCOE_Weighted'!$C:$C,'3.1 per Market'!$B$39,'4.6 LCOE_Weighted'!$D:$D,VLOOKUP($B$2,'3. LCOE Results>>>'!$M$3:$N$5,2,FALSE),'4.6 LCOE_Weighted'!$E:$E,'3.1 per Market'!$F$2,'4.6 LCOE_Weighted'!$F:$F,'3.1 per Market'!D$40)) -> 205.8060144 | E43: =(SUMIFS('4.6 LCOE_Weighted'!$L:$L,'4.6 LCOE_Weighted'!$B:$B,VLOOKUP('3.1 per Market'!$B43,'3. LCOE Results>>>'!$G$3:$H$10,2,FALSE),'4.6 LCOE_Weighted'!$C:$C,'3.1 per Market'!$B$39,'4.6 LCOE_Weighted'!$D:$D,VLOOKUP($B$2,'3. LCOE Results>>>'!$M$3:$N$5,2,FALSE),'4.6 LCOE_Weighted'!$E:$E,'3.1 per Market'!$F$2,'4.6 LCOE_Weighted'!$F:$F,'3.1 per Market'!E$40)) -> 197.998569 | F43: =(SUMIFS('4.6 LCOE_Weighted'!$L:$L,'4.6 LCOE_Weighted'!$B:$B,VLOOKUP('3.1 per Market'!$B43,'3. LCOE Results>>>'!$G$3:$H$10,2,FALSE),'4.6 LCOE_Weighted'!$C:$C,'3.1 per Market'!$B$39,'4.6 LCOE_Weighted'!$D:$D,VLOOKUP($B$2,'3. LCOE Results>>>'!$M$3:$N$5,2,FALSE),'4.6 LCOE_Weighted'!$E:$E,'3.1 per Market'!$F$2,'4.6 LCOE_Weighted'!$F:$F,'3.1 per Market'!F$40)) -> 190.4231225 | G43: =(SUMIFS('4.6 LCOE_Weighted'!$L:$L,'4.6 LCOE_Weighted'!$B:$B,VLOOKUP('3.1 per Market'!$B43,'3. LCOE Results>>>'!$G$3:$H$10,2,FALSE),'4.6 LCOE_Weighted'!$C:$C,'3.1 per Market'!$B$39,'4.6 LCOE_Weighted'!$D:$D,VLOOKUP($B$2,'3. LCOE Results>>>'!$M$3:$N$5,2,FALSE),'4.6 LCOE_Weighted'!$E:$E,'3.1 per Market'!$F$2,'4.6 LCOE_Weighted'!$F:$F,'3.1 per Market'!G$40)) -> 183.1154285 | H43: =(SUMIFS('4.6 LCOE_Weighted'!$L:$L,'4.6 LCOE_Weighted'!$B:$B,VLOOKUP('3.1 per Market'!$B43,'3. LCOE Results>>>'!$G$3:$H$10,2,FALSE),'4.6 LCOE_Weighted'!$C:$C,'3.1 per Market'!$B$39,'4.6 LCOE_Weighted'!$D:$D,VLOOKUP($B$2,'3. LCOE Results>>>'!$M$3:$N$5,2,FALSE),'4.6 LCOE_Weighted'!$E:$E,'3.1 per Market'!$F$2,'4.6 LCOE_Weighted'!$F:$F,'3.1 per Market'!H$40)) -> 176.0901484 | I43: =(SUMIFS('4.6 LCOE_Weighted'!$L:$L,'4.6 LCOE_Weighted'!$B:$B,VLOOKUP('3.1 per Market'!$B43,'3. LCOE Results>>>'!$G$3:$H$10,2,FALSE),'4.6 LCOE_Weighted'!$C:$C,'3.1 per Market'!$B$39,'4.6 LCOE_Weighted'!$D:$D,VLOOKUP($B$2,'3. LCOE Results>>>'!$M$3:$N$5,2,FALSE),'4.6 LCOE_Weighted'!$E:$E,'3.1 per Market'!$F$2,'4.6 LCOE_Weighted'!$F:$F,'3.1 per Market'!I$40)) -> 169.3796093 | J43: =(SUMIFS('4.6 LCOE_Weighted'!$L:$L,'4.6 LCOE_Weighted'!$B:$B,VLOOKUP('3.1 per Market'!$B43,'3. LCOE Results>>>'!$G$3:$H$10,2,FALSE),'4.6 LCOE_Weighted'!$C:$C,'3.1 per Market'!$B$39,'4.6 LCOE_Weighted'!$D:$D,VLOOKUP($B$2,'3. LCOE Results>>>'!$M$3:$N$5,2,FALSE),'4.6 LCOE_Weighted'!$E:$E,'3.1 per Market'!$F$2,'4.6 LCOE_Weighted'!$F:$F,'3.1 per Market'!J$40)) -> 162.9983056 | K43: =(SUMIFS('4.6 LCOE_Weighted'!$L:$L,'4.6 LCOE_Weighted'!$B:$B,VLOOKUP('3.1 per Market'!$B43,'3. LCOE Results>>>'!$G$3:$H$10,2,FALSE),'4.6 LCOE_Weighted'!$C:$C,'3.1 per Market'!$B$39,'4.6 LCOE_Weighted'!$D:$D,VLOOKUP($B$2,'3. LCOE Results>>>'!$M$3:$N$5,2,FALSE),'4.6 LCOE_Weighted'!$E:$E,'3.1 per Market'!$F$2,'4.6 LCOE_Weighted'!$F:$F,'3.1 per Market'!K$40)) -> 156.9614438 | N43: CAPEX add. equipmet | O43: =SUMIFS('4.6 LCOE_Weighted'!$H:$H,'4.6 LCOE_Weighted'!$B:$B,VLOOKUP('3.1 per Market'!O$40,'3. LCOE Results>>>'!$G$3:$H$10,2,FALSE),'4.6 LCOE_Weighted'!$C:$C,$N$39,'4.6 LCOE_Weighted'!$D:$D,VLOOKUP($B$2,'3. LCOE Results>>>'!$M$3:$N$5,2,FALSE),'4.6 LCOE_Weighted'!$E:$E,$F$2,'4.6 LCOE_Weighted'!$F:$F,O$41) -> 10.59407444 | P43: =SUMIFS('4.6 LCOE_Weighted'!$H:$H,'4.6 LCOE_Weighted'!$B:$B,VLOOKUP('3.1 per Market'!O$40,'3. LCOE Results>>>'!$G$3:$H$10,2,FALSE),'4.6 LCOE_Weighted'!$C:$C,$N$39,'4.6 LCOE_Weighted'!$D:$D,VLOOKUP($B$2,'3. LCOE Results>>>'!$M$3:$N$5,2,FALSE),'4.6 LCOE_Weighted'!$E:$E,$F$2,'4.6 LCOE_Weighted'!$F:$F,P$41) -> 10.59407444 | Q43: =SUMIFS('4.6 LCOE_Weighted'!$H:$H,'4.6 LCOE_Weighted'!$B:$B,VLOOKUP('3.1 per Market'!O$40,'3. LCOE Results>>>'!$G$3:$H$10,2,FALSE),'4.6 LCOE_Weighted'!$C:$C,$N$39,'4.6 LCOE_Weighted'!$D:$D,VLOOKUP($B$2,'3. LCOE Results>>>'!$M$3:$N$5,2,FALSE),'4.6 LCOE_Weighted'!$E:$E,$F$2,'4.6 LCOE_Weighted'!$F:$F,Q$41) -> 10.59407444 | R43: =SUMIFS('4.6 LCOE_Weighted'!$H:$H,'4.6 LCOE_Weighted'!$B:$B,VLOOKUP('3.1 per Market'!O$40,'3. LCOE Results>>>'!$G$3:$H$10,2,FALSE),'4.6 LCOE_Weighted'!$C:$C,$N$39,'4.6 LCOE_Weighted'!$D:$D,VLOOKUP($B$2,'3. LCOE Results>>>'!$M$3:$N$5,2,FALSE),'4.6 LCOE_Weighted'!$E:$E,$F$2,'4.6 LCOE_Weighted'!$F:$F,R$41) -> 10.59407444 | T43: CAPEX add. equipmet | U43: =SUMIFS('4.6 LCOE_Weighted'!$H:$H,'4.6 LCOE_Weighted'!$B:$B,VLOOKUP('3.1 per Market'!U$40,'3. LCOE Results>>>'!$G$3:$H$10,2,FALSE),'4.6 LCOE_Weighted'!$C:$C,$N$39,'4.6 LCOE_Weighted'!$D:$D,VLOOKUP($B$2,'3. LCOE Results>>>'!$M$3:$N$5,2,FALSE),'4.6 LCOE_Weighted'!$E:$E,$F$2,'4.6 LCOE_Weighted'!$F:$F,U$41) -> 17.3492076 | V43: =SUMIFS('4.6 LCOE_Weighted'!$H:$H,'4.6 LCOE_Weighted'!$B:$B,VLOOKUP('3.1 per Market'!U$40,'3. LCOE Results>>>'!$G$3:$H$10,2,FALSE),'4.6 LCOE_Weighted'!$C:$C,$N$39,'4.6 LCOE_Weighted'!$D:$D,VLOOKUP($B$2,'3. LCOE Results>>>'!$M$3:$N$5,2,FALSE),'4.6 LCOE_Weighted'!$E:$E,$F$2,'4.6 LCOE_Weighted'!$F:$F,V$41) -> 17.03087352 | W43: =SUMIFS('4.6 LCOE_Weighted'!$H:$H,'4.6 LCOE_Weighted'!$B:$B,VLOOKUP('3.1 per Market'!U$40,'3. LCOE Results>>>'!$G$3:$H$10,2,FALSE),'4.6 LCOE_Weighted'!$C:$C,$N$39,'4.6 LCOE_Weighted'!$D:$D,VLOOKUP($B$2,'3. LCOE Results>>>'!$M$3:$N$5,2,FALSE),'4.6 LCOE_Weighted'!$E:$E,$F$2,'4.6 LCOE_Weighted'!$F:$F,W$41) -> 16.55337239 | X43: =SUMIFS('4.6 LCOE_Weighted'!$H:$H,'4.6 LCOE_Weighted'!$B:$B,VLOOKUP('3.1 per Market'!U$40,'3. LCOE Results>>>'!$G$3:$H$10,2,FALSE),'4.6 LCOE_Weighted'!$C:$C,$N$39,'4.6 LCOE_Weighted'!$D:$D,VLOOKUP($B$2,'3. LCOE Results>>>'!$M$3:$N$5,2,FALSE),'4.6 LCOE_Weighted'!$E:$E,$F$2,'4.6 LCOE_Weighted'!$F:$F,X$41) -> 16.23503831 | Z43: CAPEX add. equipmet | AA43: =SUMIFS('4.6 LCOE_Weighted'!$H:$H,'4.6 LCOE_Weighted'!$B:$B,VLOOKUP('3.1 per Market'!AA$40,'3. LCOE Results>>>'!$G$3:$H$10,2,FALSE),'4.6 LCOE_Weighted'!$C:$C,$N$39,'4.6 LCOE_Weighted'!$D:$D,VLOOKUP($B$2,'3. LCOE Results>>>'!$M$3:$N$5,2,FALSE),'4.6 LCOE_Weighted'!$E:$E,$F$2,'4.6 LCOE_Weighted'!$F:$F,AA$41) -> 31.01876738 | AB43: =SUMIFS('4.6 LCOE_Weighted'!$H:$H,'4.6 LCOE_Weighted'!$B:$B,VLOOKUP('3.1 per Market'!AA$40,'3. LCOE Results>>>'!$G$3:$H$10,2,FALSE),'4.6 LCOE_Weighted'!$C:$C,$N$39,'4.6 LCOE_Weighted'!$D:$D,VLOOKUP($B$2,'3. LCOE Results>>>'!$M$3:$N$5,2,FALSE),'4.6 LCOE_Weighted'!$E:$E,$F$2,'4.6 LCOE_Weighted'!$F:$F,AB$41) -> 31.01876738 | AC43: =SUMIFS('4.6 LCOE_Weighted'!$H:$H,'4.6 LCOE_Weighted'!$B:$B,VLOOKUP('3.1 per Market'!AA$40,'3. LCOE Results>>>'!$G$3:$H$10,2,FALSE),'4.6 LCOE_Weighted'!$C:$C,$N$39,'4.6 LCOE_Weighted'!$D:$D,VLOOKUP($B$2,'3. LCOE Results>>>'!$M$3:$N$5,2,FALSE),'4.6 LCOE_Weighted'!$E:$E,$F$2,'4.6 LCOE_Weighted'!$F:$F,AC$41) -> 31.01876738 | AD43: =SUMIFS('4.6 LCOE_Weighted'!$H:$H,'4.6 LCOE_Weighted'!$B:$B,VLOOKUP('3.1 per Market'!AA$40,'3. LCOE Results>>>'!$G$3:$H$10,2,FALSE),'4.6 LCOE_Weighted'!$C:$C,$N$39,'4.6 LCOE_Weighted'!$D:$D,VLOOKUP($B$2,'3. LCOE Results>>>'!$M$3:$N$5,2,FALSE),'4.6 LCOE_Weighted'!$E:$E,$F$2,'4.6 LCOE_Weighted'!$F:$F,AD$41) -> 31.01876738 | AF43: CAPEX add. equipmet | AG43: =SUMIFS('4.6 LCOE_Weighted'!$H:$H,'4.6 LCOE_Weighted'!$B:$B,VLOOKUP('3.1 per Market'!AG$40,'3. LCOE Results>>>'!$G$3:$H$10,2,FALSE),'4.6 LCOE_Weighted'!$C:$C,$N$39,'4.6 LCOE_Weighted'!$D:$D,VLOOKUP($B$2,'3. LCOE Results>>>'!$M$3:$N$5,2,FALSE),'4.6 LCOE_Weighted'!$E:$E,$F$2,'4.6 LCOE_Weighted'!$F:$F,AG$41) -> 36.73034192 | AH43: =SUMIFS('4.6 LCOE_Weighted'!$H:$H,'4.6 LCOE_Weighted'!$B:$B,VLOOKUP('3.1 per Market'!AG$40,'3. LCOE Results>>>'!$G$3:$H$10,2,FALSE),'4.6 LCOE_Weighted'!$C:$C,$N$39,'4.6 LCOE_Weighted'!$D:$D,VLOOKUP($B$2,'3. LCOE Results>>>'!$M$3:$N$5,2,FALSE),'4.6 LCOE_Weighted'!$E:$E,$F$2,'4.6 LCOE_Weighted'!$F:$F,AH$41) -> 36.05639069 | AI43: =SUMIFS('4.6 LCOE_Weighted'!$H:$H,'4.6 LCOE_Weighted'!$B:$B,VLOOKUP('3.1 per Market'!AG$40,'3. LCOE Results>>>'!$G$3:$H$10,2,FALSE),'4.6 LCOE_Weighted'!$C:$C,$N$39,'4.6 LCOE_Weighted'!$D:$D,VLOOKUP($B$2,'3. LCOE Results>>>'!$M$3:$N$5,2,FALSE),'4.6 LCOE_Weighted'!$E:$E,$F$2,'4.6 LCOE_Weighted'!$F:$F,AI$41) -> 35.04546385 | AJ43: =SUMIFS('4.6 LCOE_Weighted'!$H:$H,'4.6 LCOE_Weighted'!$B:$B,VLOOKUP('3.1 per Market'!AG$40,'3. LCOE Results>>>'!$G$3:$H$10,2,FALSE),'4.6 LCOE_Weighted'!$C:$C,$N$39,'4.6 LCOE_Weighted'!$D:$D,VLOOKUP($B$2,'3. LCOE Results>>>'!$M$3:$N$5,2,FALSE),'4.6 LCOE_Weighted'!$E:$E,$F$2,'4.6 LCOE_Weighted'!$F:$F,AJ$41) -> 34.37151262 | AL43: CAPEX add. equipmet | AM43: =SUMIFS('4.6 LCOE_Weighted'!$H:$H,'4.6 LCOE_Weighted'!$B:$B,VLOOKUP('3.1 per Market'!AM$40,'3. LCOE Results>>>'!$G$3:$H$10,2,FALSE),'4.6 LCOE_Weighted'!$C:$C,$N$39,'4.6 LCOE_Weighted'!$D:$D,VLOOKUP($B$2,'3. LCOE Results>>>'!$M$3:$N$5,2,FALSE),'4.6 LCOE_Weighted'!$E:$E,$F$2,'4.6 LCOE_Weighted'!$F:$F,AM$41) -> 10.69423457 | AN43: =SUMIFS('4.6 LCOE_Weighted'!$H:$H,'4.6 LCOE_Weighted'!$B:$B,VLOOKUP('3.1 per Market'!AM$40,'3. LCOE Results>>>'!$G$3:$H$10,2,FALSE),'4.6 LCOE_Weighted'!$C:$C,$N$39,'4.6 LCOE_Weighted'!$D:$D,VLOOKUP($B$2,'3. LCOE Results>>>'!$M$3:$N$5,2,FALSE),'4.6 LCOE_Weighted'!$E:$E,$F$2,'4.6 LCOE_Weighted'!$F:$F,AN$41) -> 10.69423457 | AO43: =SUMIFS('4.6 LCOE_Weighted'!$H:$H,'4.6 LCOE_Weighted'!$B:$B,VLOOKUP('3.1 per Market'!AM$40,'3. LCOE Results>>>'!$G$3:$H$10,2,FALSE),'4.6 LCOE_Weighted'!$C:$C,$N$39,'4.6 LCOE_Weighted'!$D:$D,VLOOKUP($B$2,'3. LCOE Results>>>'!$M$3:$N$5,2,FALSE),'4.6 LCOE_Weighted'!$E:$E,$F$2,'4.6 LCOE_Weighted'!$F:$F,AO$41) -> 10.69423457 | AP43: =SUMIFS('4.6 LCOE_Weighted'!$H:$H,'4.6 LCOE_Weighted'!$B:$B,VLOOKUP('3.1 per Market'!AM$40,'3. LCOE Results>>>'!$G$3:$H$10,2,FALSE),'4.6 LCOE_Weighted'!$C:$C,$N$39,'4.6 LCOE_Weighted'!$D:$D,VLOOKUP($B$2,'3. LCOE Results>>>'!$M$3:$N$5,2,FALSE),'4.6 LCOE_Weighted'!$E:$E,$F$2,'4.6 LCOE_Weighted'!$F:$F,AP$41) -> 10.69423457 | AR43: CAPEX add. equipmet | AS43: =SUMIFS('4.6 LCOE_Weighted'!$H:$H,'4.6 LCOE_Weighted'!$B:$B,VLOOKUP('3.1 per Market'!AS$40,'3. LCOE Results>>>'!$G$3:$H$10,2,FALSE),'4.6 LCOE_Weighted'!$C:$C,$N$39,'4.6 LCOE_Weighted'!$D:$D,VLOOKUP($B$2,'3. LCOE Results>>>'!$M$3:$N$5,2,FALSE),'4.6 LCOE_Weighted'!$E:$E,$F$2,'4.6 LCOE_Weighted'!$F:$F,AS$41) -> 28.56692822 | AT43: =SUMIFS('4.6 LCOE_Weighted'!$H:$H,'4.6 LCOE_Weighted'!$B:$B,VLOOKUP('3.1 per Market'!AS$40,'3. LCOE Results>>>'!$G$3:$H$10,2,FALSE),'4.6 LCOE_Weighted'!$C:$C,$N$39,'4.6 LCOE_Weighted'!$D:$D,VLOOKUP($B$2,'3. LCOE Results>>>'!$M$3:$N$5,2,FALSE),'4.6 LCOE_Weighted'!$E:$E,$F$2,'4.6 LCOE_Weighted'!$F:$F,AT$41) -> 28.0427644 | AU43: =SUMIFS('4.6 LCOE_Weighted'!$H:$H,'4.6 LCOE_Weighted'!$B:$B,VLOOKUP('3.1 per Market'!AS$40,'3. LCOE Results>>>'!$G$3:$H$10,2,FALSE),'4.6 LCOE_Weighted'!$C:$C,$N$39,'4.6 LCOE_Weighted'!$D:$D,VLOOKUP($B$2,'3. LCOE Results>>>'!$M$3:$N$5,2,FALSE),'4.6 LCOE_Weighted'!$E:$E,$F$2,'4.6 LCOE_Weighted'!$F:$F,AU$41) -> 27.25651867 | AV43: =SUMIFS('4.6 LCOE_Weighted'!$H:$H,'4.6 LCOE_Weighted'!$B:$B,VLOOKUP('3.1 per Market'!AS$40,'3. LCOE Results>>>'!$G$3:$H$10,2,FALSE),'4.6 LCOE_Weighted'!$C:$C,$N$39,'4.6 LCOE_Weighted'!$D:$D,VLOOKUP($B$2,'3. LCOE Results>>>'!$M$3:$N$5,2,FALSE),'4.6 LCOE_Weighted'!$E:$E,$F$2,'4.6 LCOE_Weighted'!$F:$F,AV$41) -> 26.73235485
B44: Pellet boiler | C44: =(SUMIFS('4.6 LCOE_Weighted'!$L:$L,'4.6 LCOE_Weighted'!$B:$B,VLOOKUP('3.1 per Market'!$B44,'3. LCOE Results>>>'!$G$3:$H$10,2,FALSE),'4.6 LCOE_Weighted'!$C:$C,'3.1 per Market'!$B$39,'4.6 LCOE_Weighted'!$D:$D,VLOOKUP($B$2,'3. LCOE Results>>>'!$M$3:$N$5,2,FALSE),'4.6 LCOE_Weighted'!$E:$E,'3.1 per Market'!$F$2,'4.6 LCOE_Weighted'!$F:$F,'3.1 per Market'!C$40)) -> 178.3648799 | D44: =(SUMIFS('4.6 LCOE_Weighted'!$L:$L,'4.6 LCOE_Weighted'!$B:$B,VLOOKUP('3.1 per Market'!$B44,'3. LCOE Results>>>'!$G$3:$H$10,2,FALSE),'4.6 LCOE_Weighted'!$C:$C,'3.1 per Market'!$B$39,'4.6 LCOE_Weighted'!$D:$D,VLOOKUP($B$2,'3. LCOE Results>>>'!$M$3:$N$5,2,FALSE),'4.6 LCOE_Weighted'!$E:$E,'3.1 per Market'!$F$2,'4.6 LCOE_Weighted'!$F:$F,'3.1 per Market'!D$40)) -> 182.6976068 | E44: =(SUMIFS('4.6 LCOE_Weighted'!$L:$L,'4.6 LCOE_Weighted'!$B:$B,VLOOKUP('3.1 per Market'!$B44,'3. LCOE Results>>>'!$G$3:$H$10,2,FALSE),'4.6 LCOE_Weighted'!$C:$C,'3.1 per Market'!$B$39,'4.6 LCOE_Weighted'!$D:$D,VLOOKUP($B$2,'3. LCOE Results>>>'!$M$3:$N$5,2,FALSE),'4.6 LCOE_Weighted'!$E:$E,'3.1 per Market'!$F$2,'4.6 LCOE_Weighted'!$F:$F,'3.1 per Market'!E$40)) -> 175.8525974 | F44: =(SUMIFS('4.6 LCOE_Weighted'!$L:$L,'4.6 LCOE_Weighted'!$B:$B,VLOOKUP('3.1 per Market'!$B44,'3. LCOE Results>>>'!$G$3:$H$10,2,FALSE),'4.6 LCOE_Weighted'!$C:$C,'3.1 per Market'!$B$39,'4.6 LCOE_Weighted'!$D:$D,VLOOKUP($B$2,'3. LCOE Results>>>'!$M$3:$N$5,2,FALSE),'4.6 LCOE_Weighted'!$E:$E,'3.1 per Market'!$F$2,'4.6 LCOE_Weighted'!$F:$F,'3.1 per Market'!F$40)) -> 170.4017662 | G44: =(SUMIFS('4.6 LCOE_Weighted'!$L:$L,'4.6 LCOE_Weighted'!$B:$B,VLOOKUP('3.1 per Market'!$B44,'3. LCOE Results>>>'!$G$3:$H$10,2,FALSE),'4.6 LCOE_Weighted'!$C:$C,'3.1 per Market'!$B$39,'4.6 LCOE_Weighted'!$D:$D,VLOOKUP($B$2,'3. LCOE Results>>>'!$M$3:$N$5,2,FALSE),'4.6 LCOE_Weighted'!$E:$E,'3.1 per Market'!$F$2,'4.6 LCOE_Weighted'!$F:$F,'3.1 per Market'!G$40)) -> 166.9794144 | H44: =(SUMIFS('4.6 LCOE_Weighted'!$L:$L,'4.6 LCOE_Weighted'!$B:$B,VLOOKUP('3.1 per Market'!$B44,'3. LCOE Results>>>'!$G$3:$H$10,2,FALSE),'4.6 LCOE_Weighted'!$C:$C,'3.1 per Market'!$B$39,'4.6 LCOE_Weighted'!$D:$D,VLOOKUP($B$2,'3. LCOE Results>>>'!$M$3:$N$5,2,FALSE),'4.6 LCOE_Weighted'!$E:$E,'3.1 per Market'!$F$2,'4.6 LCOE_Weighted'!$F:$F,'3.1 per Market'!H$40)) -> 164.5122517 | I44: =(SUMIFS('4.6 LCOE_Weighted'!$L:$L,'4.6 LCOE_Weighted'!$B:$B,VLOOKUP('3.1 per Market'!$B44,'3. LCOE Results>>>'!$G$3:$H$10,2,FALSE),'4.6 LCOE_Weighted'!$C:$C,'3.1 per Market'!$B$39,'4.6 LCOE_Weighted'!$D:$D,VLOOKUP($B$2,'3. LCOE Results>>>'!$M$3:$N$5,2,FALSE),'4.6 LCOE_Weighted'!$E:$E,'3.1 per Market'!$F$2,'4.6 LCOE_Weighted'!$F:$F,'3.1 per Market'!I$40)) -> 162.4322775 | J44: =(SUMIFS('4.6 LCOE_Weighted'!$L:$L,'4.6 LCOE_Weighted'!$B:$B,VLOOKUP('3.1 per Market'!$B44,'3. LCOE Results>>>'!$G$3:$H$10,2,FALSE),'4.6 LCOE_Weighted'!$C:$C,'3.1 per Market'!$B$39,'4.6 LCOE_Weighted'!$D:$D,VLOOKUP($B$2,'3. LCOE Results>>>'!$M$3:$N$5,2,FALSE),'4.6 LCOE_Weighted'!$E:$E,'3.1 per Market'!$F$2,'4.6 LCOE_Weighted'!$F:$F,'3.1 per Market'!J$40)) -> 160.7581101 | K44: =(SUMIFS('4.6 LCOE_Weighted'!$L:$L,'4.6 LCOE_Weighted'!$B:$B,VLOOKUP('3.1 per Market'!$B44,'3. LCOE Results>>>'!$G$3:$H$10,2,FALSE),'4.6 LCOE_Weighted'!$C:$C,'3.1 per Market'!$B$39,'4.6 LCOE_Weighted'!$D:$D,VLOOKUP($B$2,'3. LCOE Results>>>'!$M$3:$N$5,2,FALSE),'4.6 LCOE_Weighted'!$E:$E,'3.1 per Market'!$F$2,'4.6 LCOE_Weighted'!$F:$F,'3.1 per Market'!K$40)) -> 159.5057203 | N44: OPEX heating unit | O44: =SUMIFS('4.6 LCOE_Weighted'!$I:$I,'4.6 LCOE_Weighted'!$B:$B,VLOOKUP('3.1 per Market'!O$40,'3. LCOE Results>>>'!$G$3:$H$10,2,FALSE),'4.6 LCOE_Weighted'!$C:$C,$N$39,'4.6 LCOE_Weighted'!$D:$D,VLOOKUP($B$2,'3. LCOE Results>>>'!$M$3:$N$5,2,FALSE),'4.6 LCOE_Weighted'!$E:$E,$F$2,'4.6 LCOE_Weighted'!$F:$F,O$41) -> 9.512587972 | P44: =SUMIFS('4.6 LCOE_Weighted'!$I:$I,'4.6 LCOE_Weighted'!$B:$B,VLOOKUP('3.1 per Market'!O$40,'3. LCOE Results>>>'!$G$3:$H$10,2,FALSE),'4.6 LCOE_Weighted'!$C:$C,$N$39,'4.6 LCOE_Weighted'!$D:$D,VLOOKUP($B$2,'3. LCOE Results>>>'!$M$3:$N$5,2,FALSE),'4.6 LCOE_Weighted'!$E:$E,$F$2,'4.6 LCOE_Weighted'!$F:$F,P$41) -> 9.512587972 | Q44: =SUMIFS('4.6 LCOE_Weighted'!$I:$I,'4.6 LCOE_Weighted'!$B:$B,VLOOKUP('3.1 per Market'!O$40,'3. LCOE Results>>>'!$G$3:$H$10,2,FALSE),'4.6 LCOE_Weighted'!$C:$C,$N$39,'4.6 LCOE_Weighted'!$D:$D,VLOOKUP($B$2,'3. LCOE Results>>>'!$M$3:$N$5,2,FALSE),'4.6 LCOE_Weighted'!$E:$E,$F$2,'4.6 LCOE_Weighted'!$F:$F,Q$41) -> 9.512587972 | R44: =SUMIFS('4.6 LCOE_Weighted'!$I:$I,'4.6 LCOE_Weighted'!$B:$B,VLOOKUP('3.1 per Market'!O$40,'3. LCOE Results>>>'!$G$3:$H$10,2,FALSE),'4.6 LCOE_Weighted'!$C:$C,$N$39,'4.6 LCOE_Weighted'!$D:$D,VLOOKUP($B$2,'3. LCOE Results>>>'!$M$3:$N$5,2,FALSE),'4.6 LCOE_Weighted'!$E:$E,$F$2,'4.6 LCOE_Weighted'!$F:$F,R$41) -> 9.512587972 | T44: OPEX heating unit | U44: =SUMIFS('4.6 LCOE_Weighted'!$I:$I,'4.6 LCOE_Weighted'!$B:$B,VLOOKUP('3.1 per Market'!U$40,'3. LCOE Results>>>'!$G$3:$H$10,2,FALSE),'4.6 LCOE_Weighted'!$C:$C,$N$39,'4.6 LCOE_Weighted'!$D:$D,VLOOKUP($B$2,'3. LCOE Results>>>'!$M$3:$N$5,2,FALSE),'4.6 LCOE_Weighted'!$E:$E,$F$2,'4.6 LCOE_Weighted'!$F:$F,U$41) -> 11.81922483 | V44: =SUMIFS('4.6 LCOE_Weighted'!$I:$I,'4.6 LCOE_Weighted'!$B:$B,VLOOKUP('3.1 per Market'!U$40,'3. LCOE Results>>>'!$G$3:$H$10,2,FALSE),'4.6 LCOE_Weighted'!$C:$C,$N$39,'4.6 LCOE_Weighted'!$D:$D,VLOOKUP($B$2,'3. LCOE Results>>>'!$M$3:$N$5,2,FALSE),'4.6 LCOE_Weighted'!$E:$E,$F$2,'4.6 LCOE_Weighted'!$F:$F,V$41) -> 11.81922483 | W44: =SUMIFS('4.6 LCOE_Weighted'!$I:$I,'4.6 LCOE_Weighted'!$B:$B,VLOOKUP('3.1 per Market'!U$40,'3. LCOE Results>>>'!$G$3:$H$10,2,FALSE),'4.6 LCOE_Weighted'!$C:$C,$N$39,'4.6 LCOE_Weighted'!$D:$D,VLOOKUP($B$2,'3. LCOE Results>>>'!$M$3:$N$5,2,FALSE),'4.6 LCOE_Weighted'!$E:$E,$F$2,'4.6 LCOE_Weighted'!$F:$F,W$41) -> 11.81922483 | X44: =SUMIFS('4.6 LCOE_Weighted'!$I:$I,'4.6 LCOE_Weighted'!$B:$B,VLOOKUP('3.1 per Market'!U$40,'3. LCOE Results>>>'!$G$3:$H$10,2,FALSE),'4.6 LCOE_Weighted'!$C:$C,$N$39,'4.6 LCOE_Weighted'!$D:$D,VLOOKUP($B$2,'3. LCOE Results>>>'!$M$3:$N$5,2,FALSE),'4.6 LCOE_Weighted'!$E:$E,$F$2,'4.6 LCOE_Weighted'!$F:$F,X$41) -> 11.81922483 | Z44: OPEX heating unit | AA44: =SUMIFS('4.6 LCOE_Weighted'!$I:$I,'4.6 LCOE_Weighted'!$B:$B,VLOOKUP('3.1 per Market'!AA$40,'3. LCOE Results>>>'!$G$3:$H$10,2,FALSE),'4.6 LCOE_Weighted'!$C:$C,$N$39,'4.6 LCOE_Weighted'!$D:$D,VLOOKUP($B$2,'3. LCOE Results>>>'!$M$3:$N$5,2,FALSE),'4.6 LCOE_Weighted'!$E:$E,$F$2,'4.6 LCOE_Weighted'!$F:$F,AA$41) -> 9.087435174 | AB44: =SUMIFS('4.6 LCOE_Weighted'!$I:$I,'4.6 LCOE_Weighted'!$B:$B,VLOOKUP('3.1 per Market'!AA$40,'3. LCOE Results>>>'!$G$3:$H$10,2,FALSE),'4.6 LCOE_Weighted'!$C:$C,$N$39,'4.6 LCOE_Weighted'!$D:$D,VLOOKUP($B$2,'3. LCOE Results>>>'!$M$3:$N$5,2,FALSE),'4.6 LCOE_Weighted'!$E:$E,$F$2,'4.6 LCOE_Weighted'!$F:$F,AB$41) -> 9.087435174 | AC44: =SUMIFS('4.6 LCOE_Weighted'!$I:$I,'4.6 LCOE_Weighted'!$B:$B,VLOOKUP('3.1 per Market'!AA$40,'3. LCOE Results>>>'!$G$3:$H$10,2,FALSE),'4.6 LCOE_Weighted'!$C:$C,$N$39,'4.6 LCOE_Weighted'!$D:$D,VLOOKUP($B$2,'3. LCOE Results>>>'!$M$3:$N$5,2,FALSE),'4.6 LCOE_Weighted'!$E:$E,$F$2,'4.6 LCOE_Weighted'!$F:$F,AC$41) -> 9.087435174 | AD44: =SUMIFS('4.6 LCOE_Weighted'!$I:$I,'4.6 LCOE_Weighted'!$B:$B,VLOOKUP('3.1 per Market'!AA$40,'3. LCOE Results>>>'!$G$3:$H$10,2,FALSE),'4.6 LCOE_Weighted'!$C:$C,$N$39,'4.6 LCOE_Weighted'!$D:$D,VLOOKUP($B$2,'3. LCOE Results>>>'!$M$3:$N$5,2,FALSE),'4.6 LCOE_Weighted'!$E:$E,$F$2,'4.6 LCOE_Weighted'!$F:$F,AD$41) -> 9.087435174 | AF44: OPEX heating unit | AG44: =SUMIFS('4.6 LCOE_Weighted'!$I:$I,'4.6 LCOE_Weighted'!$B:$B,VLOOKUP('3.1 per Market'!AG$40,'3. LCOE Results>>>'!$G$3:$H$10,2,FALSE),'4.6 LCOE_Weighted'!$C:$C,$N$39,'4.6 LCOE_Weighted'!$D:$D,VLOOKUP($B$2,'3. LCOE Results>>>'!$M$3:$N$5,2,FALSE),'4.6 LCOE_Weighted'!$E:$E,$F$2,'4.6 LCOE_Weighted'!$F:$F,AG$41) -> 22.21914908 | AH44: =SUMIFS('4.6 LCOE_Weighted'!$I:$I,'4.6 LCOE_Weighted'!$B:$B,VLOOKUP('3.1 per Market'!AG$40,'3. LCOE Results>>>'!$G$3:$H$10,2,FALSE),'4.6 LCOE_Weighted'!$C:$C,$N$39,'4.6 LCOE_Weighted'!$D:$D,VLOOKUP($B$2,'3. LCOE Results>>>'!$M$3:$N$5,2,FALSE),'4.6 LCOE_Weighted'!$E:$E,$F$2,'4.6 LCOE_Weighted'!$F:$F,AH$41) -> 21.78730128 | AI44: =SUMIFS('4.6 LCOE_Weighted'!$I:$I,'4.6 LCOE_Weighted'!$B:$B,VLOOKUP('3.1 per Market'!AG$40,'3. LCOE Results>>>'!$G$3:$H$10,2,FALSE),'4.6 LCOE_Weighted'!$C:$C,$N$39,'4.6 LCOE_Weighted'!$D:$D,VLOOKUP($B$2,'3. LCOE Results>>>'!$M$3:$N$5,2,FALSE),'4.6 LCOE_Weighted'!$E:$E,$F$2,'4.6 LCOE_Weighted'!$F:$F,AI$41) -> 21.13952959 | AJ44: =SUMIFS('4.6 LCOE_Weighted'!$I:$I,'4.6 LCOE_Weighted'!$B:$B,VLOOKUP('3.1 per Market'!AG$40,'3. LCOE Results>>>'!$G$3:$H$10,2,FALSE),'4.6 LCOE_Weighted'!$C:$C,$N$39,'4.6 LCOE_Weighted'!$D:$D,VLOOKUP($B$2,'3. LCOE Results>>>'!$M$3:$N$5,2,FALSE),'4.6 LCOE_Weighted'!$E:$E,$F$2,'4.6 LCOE_Weighted'!$F:$F,AJ$41) -> 20.7076818 | AL44: OPEX heating unit | AM44: =SUMIFS('4.6 LCOE_Weighted'!$I:$I,'4.6 LCOE_Weighted'!$B:$B,VLOOKUP('3.1 per Market'!AM$40,'3. LCOE Results>>>'!$G$3:$H$10,2,FALSE),'4.6 LCOE_Weighted'!$C:$C,$N$39,'4.6 LCOE_Weighted'!$D:$D,VLOOKUP($B$2,'3. LCOE Results>>>'!$M$3:$N$5,2,FALSE),'4.6 LCOE_Weighted'!$E:$E,$F$2,'4.6 LCOE_Weighted'!$F:$F,AM$41) -> 14.2001784 | AN44: =SUMIFS('4.6 LCOE_Weighted'!$I:$I,'4.6 LCOE_Weighted'!$B:$B,VLOOKUP('3.1 per Market'!AM$40,'3. LCOE Results>>>'!$G$3:$H$10,2,FALSE),'4.6 LCOE_Weighted'!$C:$C,$N$39,'4.6 LCOE_Weighted'!$D:$D,VLOOKUP($B$2,'3. LCOE Results>>>'!$M$3:$N$5,2,FALSE),'4.6 LCOE_Weighted'!$E:$E,$F$2,'4.6 LCOE_Weighted'!$F:$F,AN$41) -> 14.2001784 | AO44: =SUMIFS('4.6 LCOE_Weighted'!$I:$I,'4.6 LCOE_Weighted'!$B:$B,VLOOKUP('3.1 per Market'!AM$40,'3. LCOE Results>>>'!$G$3:$H$10,2,FALSE),'4.6 LCOE_Weighted'!$C:$C,$N$39,'4.6 LCOE_Weighted'!$D:$D,VLOOKUP($B$2,'3. LCOE Results>>>'!$M$3:$N$5,2,FALSE),'4.6 LCOE_Weighted'!$E:$E,$F$2,'4.6 LCOE_Weighted'!$F:$F,AO$41) -> 14.2001784 | AP44: =SUMIFS('4.6 LCOE_Weighted'!$I:$I,'4.6 LCOE_Weighted'!$B:$B,VLOOKUP('3.1 per Market'!AM$40,'3. LCOE Results>>>'!$G$3:$H$10,2,FALSE),'4.6 LCOE_Weighted'!$C:$C,$N$39,'4.6 LCOE_Weighted'!$D:$D,VLOOKUP($B$2,'3. LCOE Results>>>'!$M$3:$N$5,2,FALSE),'4.6 LCOE_Weighted'!$E:$E,$F$2,'4.6 LCOE_Weighted'!$F:$F,AP$41) -> 14.2001784 | AR44: OPEX heating unit | AS44: =SUMIFS('4.6 LCOE_Weighted'!$I:$I,'4.6 LCOE_Weighted'!$B:$B,VLOOKUP('3.1 per Market'!AS$40,'3. LCOE Results>>>'!$G$3:$H$10,2,FALSE),'4.6 LCOE_Weighted'!$C:$C,$N$39,'4.6 LCOE_Weighted'!$D:$D,VLOOKUP($B$2,'3. LCOE Results>>>'!$M$3:$N$5,2,FALSE),'4.6 LCOE_Weighted'!$E:$E,$F$2,'4.6 LCOE_Weighted'!$F:$F,AS$41) -> 32.22656162 | AT44: =SUMIFS('4.6 LCOE_Weighted'!$I:$I,'4.6 LCOE_Weighted'!$B:$B,VLOOKUP('3.1 per Market'!AS$40,'3. LCOE Results>>>'!$G$3:$H$10,2,FALSE),'4.6 LCOE_Weighted'!$C:$C,$N$39,'4.6 LCOE_Weighted'!$D:$D,VLOOKUP($B$2,'3. LCOE Results>>>'!$M$3:$N$5,2,FALSE),'4.6 LCOE_Weighted'!$E:$E,$F$2,'4.6 LCOE_Weighted'!$F:$F,AT$41) -> 31.60021137 | AU44: =SUMIFS('4.6 LCOE_Weighted'!$I:$I,'4.6 LCOE_Weighted'!$B:$B,VLOOKUP('3.1 per Market'!AS$40,'3. LCOE Results>>>'!$G$3:$H$10,2,FALSE),'4.6 LCOE_Weighted'!$C:$C,$N$39,'4.6 LCOE_Weighted'!$D:$D,VLOOKUP($B$2,'3. LCOE Results>>>'!$M$3:$N$5,2,FALSE),'4.6 LCOE_Weighted'!$E:$E,$F$2,'4.6 LCOE_Weighted'!$F:$F,AU$41) -> 30.660686 | AV44: =SUMIFS('4.6 LCOE_Weighted'!$I:$I,'4.6 LCOE_Weighted'!$B:$B,VLOOKUP('3.1 per Market'!AS$40,'3. LCOE Results>>>'!$G$3:$H$10,2,FALSE),'4.6 LCOE_Weighted'!$C:$C,$N$39,'4.6 LCOE_Weighted'!$D:$D,VLOOKUP($B$2,'3. LCOE Results>>>'!$M$3:$N$5,2,FALSE),'4.6 LCOE_Weighted'!$E:$E,$F$2,'4.6 LCOE_Weighted'!$F:$F,AV$41) -> 30.03433575
B45: Gas Solar Hybrid | C45: =(SUMIFS('4.6 LCOE_Weighted'!$L:$L,'4.6 LCOE_Weighted'!$B:$B,VLOOKUP('3.1 per Market'!$B45,'3. LCOE Results>>>'!$G$3:$H$10,2,FALSE),'4.6 LCOE_Weighted'!$C:$C,'3.1 per Market'!$B$39,'4.6 LCOE_Weighted'!$D:$D,VLOOKUP($B$2,'3. LCOE Results>>>'!$M$3:$N$5,2,FALSE),'4.6 LCOE_Weighted'!$E:$E,'3.1 per Market'!$F$2,'4.6 LCOE_Weighted'!$F:$F,'3.1 per Market'!C$40)) -> 165.0088861 | D45: =(SUMIFS('4.6 LCOE_Weighted'!$L:$L,'4.6 LCOE_Weighted'!$B:$B,VLOOKUP('3.1 per Market'!$B45,'3. LCOE Results>>>'!$G$3:$H$10,2,FALSE),'4.6 LCOE_Weighted'!$C:$C,'3.1 per Market'!$B$39,'4.6 LCOE_Weighted'!$D:$D,VLOOKUP($B$2,'3. LCOE Results>>>'!$M$3:$N$5,2,FALSE),'4.6 LCOE_Weighted'!$E:$E,'3.1 per Market'!$F$2,'4.6 LCOE_Weighted'!$F:$F,'3.1 per Market'!D$40)) -> 171.4143203 | E45: =(SUMIFS('4.6 LCOE_Weighted'!$L:$L,'4.6 LCOE_Weighted'!$B:$B,VLOOKUP('3.1 per Market'!$B45,'3. LCOE Results>>>'!$G$3:$H$10,2,FALSE),'4.6 LCOE_Weighted'!$C:$C,'3.1 per Market'!$B$39,'4.6 LCOE_Weighted'!$D:$D,VLOOKUP($B$2,'3. LCOE Results>>>'!$M$3:$N$5,2,FALSE),'4.6 LCOE_Weighted'!$E:$E,'3.1 per Market'!$F$2,'4.6 LCOE_Weighted'!$F:$F,'3.1 per Market'!E$40)) -> 166.5347116 | F45: =(SUMIFS('4.6 LCOE_Weighted'!$L:$L,'4.6 LCOE_Weighted'!$B:$B,VLOOKUP('3.1 per Market'!$B45,'3. LCOE Results>>>'!$G$3:$H$10,2,FALSE),'4.6 LCOE_Weighted'!$C:$C,'3.1 per Market'!$B$39,'4.6 LCOE_Weighted'!$D:$D,VLOOKUP($B$2,'3. LCOE Results>>>'!$M$3:$N$5,2,FALSE),'4.6 LCOE_Weighted'!$E:$E,'3.1 per Market'!$F$2,'4.6 LCOE_Weighted'!$F:$F,'3.1 per Market'!F$40)) -> 162.948933 | G45: =(SUMIFS('4.6 LCOE_Weighted'!$L:$L,'4.6 LCOE_Weighted'!$B:$B,VLOOKUP('3.1 per Market'!$B45,'3. LCOE Results>>>'!$G$3:$H$10,2,FALSE),'4.6 LCOE_Weighted'!$C:$C,'3.1 per Market'!$B$39,'4.6 LCOE_Weighted'!$D:$D,VLOOKUP($B$2,'3. LCOE Results>>>'!$M$3:$N$5,2,FALSE),'4.6 LCOE_Weighted'!$E:$E,'3.1 per Market'!$F$2,'4.6 LCOE_Weighted'!$F:$F,'3.1 per Market'!G$40)) -> 161.2770207 | H45: =(SUMIFS('4.6 LCOE_Weighted'!$L:$L,'4.6 LCOE_Weighted'!$B:$B,VLOOKUP('3.1 per Market'!$B45,'3. LCOE Results>>>'!$G$3:$H$10,2,FALSE),'4.6 LCOE_Weighted'!$C:$C,'3.1 per Market'!$B$39,'4.6 LCOE_Weighted'!$D:$D,VLOOKUP($B$2,'3. LCOE Results>>>'!$M$3:$N$5,2,FALSE),'4.6 LCOE_Weighted'!$E:$E,'3.1 per Market'!$F$2,'4.6 LCOE_Weighted'!$F:$F,'3.1 per Market'!H$40)) -> 160.5269072 | I45: =(SUMIFS('4.6 LCOE_Weighted'!$L:$L,'4.6 LCOE_Weighted'!$B:$B,VLOOKUP('3.1 per Market'!$B45,'3. LCOE Results>>>'!$G$3:$H$10,2,FALSE),'4.6 LCOE_Weighted'!$C:$C,'3.1 per Market'!$B$39,'4.6 LCOE_Weighted'!$D:$D,VLOOKUP($B$2,'3. LCOE Results>>>'!$M$3:$N$5,2,FALSE),'4.6 LCOE_Weighted'!$E:$E,'3.1 per Market'!$F$2,'4.6 LCOE_Weighted'!$F:$F,'3.1 per Market'!I$40)) -> 159.9597345 | J45: =(SUMIFS('4.6 LCOE_Weighted'!$L:$L,'4.6 LCOE_Weighted'!$B:$B,VLOOKUP('3.1 per Market'!$B45,'3. LCOE Results>>>'!$G$3:$H$10,2,FALSE),'4.6 LCOE_Weighted'!$C:$C,'3.1 per Market'!$B$39,'4.6 LCOE_Weighted'!$D:$D,VLOOKUP($B$2,'3. LCOE Results>>>'!$M$3:$N$5,2,FALSE),'4.6 LCOE_Weighted'!$E:$E,'3.1 per Market'!$F$2,'4.6 LCOE_Weighted'!$F:$F,'3.1 per Market'!J$40)) -> 159.5947006 | K45: =(SUMIFS('4.6 LCOE_Weighted'!$L:$L,'4.6 LCOE_Weighted'!$B:$B,VLOOKUP('3.1 per Market'!$B45,'3. LCOE Results>>>'!$G$3:$H$10,2,FALSE),'4.6 LCOE_Weighted'!$C:$C,'3.1 per Market'!$B$39,'4.6 LCOE_Weighted'!$D:$D,VLOOKUP($B$2,'3. LCOE Results>>>'!$M$3:$N$5,2,FALSE),'4.6 LCOE_Weighted'!$E:$E,'3.1 per Market'!$F$2,'4.6 LCOE_Weighted'!$F:$F,'3.1 per Market'!K$40)) -> 159.4516111 | N45: OPEX add. equipmet | O45: =SUMIFS('4.6 LCOE_Weighted'!$J:$J,'4.6 LCOE_Weighted'!$B:$B,VLOOKUP('3.1 per Market'!O$40,'3. LCOE Results>>>'!$G$3:$H$10,2,FALSE),'4.6 LCOE_Weighted'!$C:$C,$N$39,'4.6 LCOE_Weighted'!$D:$D,VLOOKUP($B$2,'3. LCOE Results>>>'!$M$3:$N$5,2,FALSE),'4.6 LCOE_Weighted'!$E:$E,$F$2,'4.6 LCOE_Weighted'!$F:$F,O$41) -> 1.300323715 | P45: =SUMIFS('4.6 LCOE_Weighted'!$J:$J,'4.6 LCOE_Weighted'!$B:$B,VLOOKUP('3.1 per Market'!O$40,'3. LCOE Results>>>'!$G$3:$H$10,2,FALSE),'4.6 LCOE_Weighted'!$C:$C,$N$39,'4.6 LCOE_Weighted'!$D:$D,VLOOKUP($B$2,'3. LCOE Results>>>'!$M$3:$N$5,2,FALSE),'4.6 LCOE_Weighted'!$E:$E,$F$2,'4.6 LCOE_Weighted'!$F:$F,P$41) -> 1.300323715 | Q45: =SUMIFS('4.6 LCOE_Weighted'!$J:$J,'4.6 LCOE_Weighted'!$B:$B,VLOOKUP('3.1 per Market'!O$40,'3. LCOE Results>>>'!$G$3:$H$10,2,FALSE),'4.6 LCOE_Weighted'!$C:$C,$N$39,'4.6 LCOE_Weighted'!$D:$D,VLOOKUP($B$2,'3. LCOE Results>>>'!$M$3:$N$5,2,FALSE),'4.6 LCOE_Weighted'!$E:$E,$F$2,'4.6 LCOE_Weighted'!$F:$F,Q$41) -> 1.300323715 | R45: =SUMIFS('4.6 LCOE_Weighted'!$J:$J,'4.6 LCOE_Weighted'!$B:$B,VLOOKUP('3.1 per Market'!O$40,'3. LCOE Results>>>'!$G$3:$H$10,2,FALSE),'4.6 LCOE_Weighted'!$C:$C,$N$39,'4.6 LCOE_Weighted'!$D:$D,VLOOKUP($B$2,'3. LCOE Results>>>'!$M$3:$N$5,2,FALSE),'4.6 LCOE_Weighted'!$E:$E,$F$2,'4.6 LCOE_Weighted'!$F:$F,R$41) -> 1.300323715 | T45: OPEX add. equipmet | U45: =SUMIFS('4.6 LCOE_Weighted'!$J:$J,'4.6 LCOE_Weighted'!$B:$B,VLOOKUP('3.1 per Market'!U$40,'3. LCOE Results>>>'!$G$3:$H$10,2,FALSE),'4.6 LCOE_Weighted'!$C:$C,$N$39,'4.6 LCOE_Weighted'!$D:$D,VLOOKUP($B$2,'3. LCOE Results>>>'!$M$3:$N$5,2,FALSE),'4.6 LCOE_Weighted'!$E:$E,$F$2,'4.6 LCOE_Weighted'!$F:$F,U$41) -> 2.291027 | V45: =SUMIFS('4.6 LCOE_Weighted'!$J:$J,'4.6 LCOE_Weighted'!$B:$B,VLOOKUP('3.1 per Market'!U$40,'3. LCOE Results>>>'!$G$3:$H$10,2,FALSE),'4.6 LCOE_Weighted'!$C:$C,$N$39,'4.6 LCOE_Weighted'!$D:$D,VLOOKUP($B$2,'3. LCOE Results>>>'!$M$3:$N$5,2,FALSE),'4.6 LCOE_Weighted'!$E:$E,$F$2,'4.6 LCOE_Weighted'!$F:$F,V$41) -> 2.291027 | W45: =SUMIFS('4.6 LCOE_Weighted'!$J:$J,'4.6 LCOE_Weighted'!$B:$B,VLOOKUP('3.1 per Market'!U$40,'3. LCOE Results>>>'!$G$3:$H$10,2,FALSE),'4.6 LCOE_Weighted'!$C:$C,$N$39,'4.6 LCOE_Weighted'!$D:$D,VLOOKUP($B$2,'3. LCOE Results>>>'!$M$3:$N$5,2,FALSE),'4.6 LCOE_Weighted'!$E:$E,$F$2,'4.6 LCOE_Weighted'!$F:$F,W$41) -> 2.291027 | X45: =SUMIFS('4.6 LCOE_Weighted'!$J:$J,'4.6 LCOE_Weighted'!$B:$B,VLOOKUP('3.1 per Market'!U$40,'3. LCOE Results>>>'!$G$3:$H$10,2,FALSE),'4.6 LCOE_Weighted'!$C:$C,$N$39,'4.6 LCOE_Weighted'!$D:$D,VLOOKUP($B$2,'3. LCOE Results>>>'!$M$3:$N$5,2,FALSE),'4.6 LCOE_Weighted'!$E:$E,$F$2,'4.6 LCOE_Weighted'!$F:$F,X$41) -> 2.291027 | Z45: OPEX add. equipmet | AA45: =SUMIFS('4.6 LCOE_Weighted'!$J:$J,'4.6 LCOE_Weighted'!$B:$B,VLOOKUP('3.1 per Market'!AA$40,'3. LCOE Results>>>'!$G$3:$H$10,2,FALSE),'4.6 LCOE_Weighted'!$C:$C,$N$39,'4.6 LCOE_Weighted'!$D:$D,VLOOKUP($B$2,'3. LCOE Results>>>'!$M$3:$N$5,2,FALSE),'4.6 LCOE_Weighted'!$E:$E,$F$2,'4.6 LCOE_Weighted'!$F:$F,AA$41) -> 3.807264057 | AB45: =SUMIFS('4.6 LCOE_Weighted'!$J:$J,'4.6 LCOE_Weighted'!$B:$B,VLOOKUP('3.1 per Market'!AA$40,'3. LCOE Results>>>'!$G$3:$H$10,2,FALSE),'4.6 LCOE_Weighted'!$C:$C,$N$39,'4.6 LCOE_Weighted'!$D:$D,VLOOKUP($B$2,'3. LCOE Results>>>'!$M$3:$N$5,2,FALSE),'4.6 LCOE_Weighted'!$E:$E,$F$2,'4.6 LCOE_Weighted'!$F:$F,AB$41) -> 3.807264057 | AC45: =SUMIFS('4.6 LCOE_Weighted'!$J:$J,'4.6 LCOE_Weighted'!$B:$B,VLOOKUP('3.1 per Market'!AA$40,'3. LCOE Results>>>'!$G$3:$H$10,2,FALSE),'4.6 LCOE_Weighted'!$C:$C,$N$39,'4.6 LCOE_Weighted'!$D:$D,VLOOKUP($B$2,'3. LCOE Results>>>'!$M$3:$N$5,2,FALSE),'4.6 LCOE_Weighted'!$E:$E,$F$2,'4.6 LCOE_Weighted'!$F:$F,AC$41) -> 3.807264057 | AD45: =SUMIFS('4.6 LCOE_Weighted'!$J:$J,'4.6 LCOE_Weighted'!$B:$B,VLOOKUP('3.1 per Market'!AA$40,'3. LCOE Results>>>'!$G$3:$H$10,2,FALSE),'4.6 LCOE_Weighted'!$C:$C,$N$39,'4.6 LCOE_Weighted'!$D:$D,VLOOKUP($B$2,'3. LCOE Results>>>'!$M$3:$N$5,2,FALSE),'4.6 LCOE_Weighted'!$E:$E,$F$2,'4.6 LCOE_Weighted'!$F:$F,AD$41) -> 3.807264057 | AF45: OPEX add. equipmet | AG45: =SUMIFS('4.6 LCOE_Weighted'!$J:$J,'4.6 LCOE_Weighted'!$B:$B,VLOOKUP('3.1 per Market'!AG$40,'3. LCOE Results>>>'!$G$3:$H$10,2,FALSE),'4.6 LCOE_Weighted'!$C:$C,$N$39,'4.6 LCOE_Weighted'!$D:$D,VLOOKUP($B$2,'3. LCOE Results>>>'!$M$3:$N$5,2,FALSE),'4.6 LCOE_Weighted'!$E:$E,$F$2,'4.6 LCOE_Weighted'!$F:$F,AG$41) -> 3.779179588 | AH45: =SUMIFS('4.6 LCOE_Weighted'!$J:$J,'4.6 LCOE_Weighted'!$B:$B,VLOOKUP('3.1 per Market'!AG$40,'3. LCOE Results>>>'!$G$3:$H$10,2,FALSE),'4.6 LCOE_Weighted'!$C:$C,$N$39,'4.6 LCOE_Weighted'!$D:$D,VLOOKUP($B$2,'3. LCOE Results>>>'!$M$3:$N$5,2,FALSE),'4.6 LCOE_Weighted'!$E:$E,$F$2,'4.6 LCOE_Weighted'!$F:$F,AH$41) -> 3.705728064 | AI45: =SUMIFS('4.6 LCOE_Weighted'!$J:$J,'4.6 LCOE_Weighted'!$B:$B,VLOOKUP('3.1 per Market'!AG$40,'3. LCOE Results>>>'!$G$3:$H$10,2,FALSE),'4.6 LCOE_Weighted'!$C:$C,$N$39,'4.6 LCOE_Weighted'!$D:$D,VLOOKUP($B$2,'3. LCOE Results>>>'!$M$3:$N$5,2,FALSE),'4.6 LCOE_Weighted'!$E:$E,$F$2,'4.6 LCOE_Weighted'!$F:$F,AI$41) -> 3.595550777 | AJ45: =SUMIFS('4.6 LCOE_Weighted'!$J:$J,'4.6 LCOE_Weighted'!$B:$B,VLOOKUP('3.1 per Market'!AG$40,'3. LCOE Results>>>'!$G$3:$H$10,2,FALSE),'4.6 LCOE_Weighted'!$C:$C,$N$39,'4.6 LCOE_Weighted'!$D:$D,VLOOKUP($B$2,'3. LCOE Results>>>'!$M$3:$N$5,2,FALSE),'4.6 LCOE_Weighted'!$E:$E,$F$2,'4.6 LCOE_Weighted'!$F:$F,AJ$41) -> 3.522099253 | AL45: OPEX add. equipmet | AM45: =SUMIFS('4.6 LCOE_Weighted'!$J:$J,'4.6 LCOE_Weighted'!$B:$B,VLOOKUP('3.1 per Market'!AM$40,'3. LCOE Results>>>'!$G$3:$H$10,2,FALSE),'4.6 LCOE_Weighted'!$C:$C,$N$39,'4.6 LCOE_Weighted'!$D:$D,VLOOKUP($B$2,'3. LCOE Results>>>'!$M$3:$N$5,2,FALSE),'4.6 LCOE_Weighted'!$E:$E,$F$2,'4.6 LCOE_Weighted'!$F:$F,AM$41) -> 1.312617436 | AN45: =SUMIFS('4.6 LCOE_Weighted'!$J:$J,'4.6 LCOE_Weighted'!$B:$B,VLOOKUP('3.1 per Market'!AM$40,'3. LCOE Results>>>'!$G$3:$H$10,2,FALSE),'4.6 LCOE_Weighted'!$C:$C,$N$39,'4.6 LCOE_Weighted'!$D:$D,VLOOKUP($B$2,'3. LCOE Results>>>'!$M$3:$N$5,2,FALSE),'4.6 LCOE_Weighted'!$E:$E,$F$2,'4.6 LCOE_Weighted'!$F:$F,AN$41) -> 1.312617436 | AO45: =SUMIFS('4.6 LCOE_Weighted'!$J:$J,'4.6 LCOE_Weighted'!$B:$B,VLOOKUP('3.1 per Market'!AM$40,'3. LCOE Results>>>'!$G$3:$H$10,2,FALSE),'4.6 LCOE_Weighted'!$C:$C,$N$39,'4.6 LCOE_Weighted'!$D:$D,VLOOKUP($B$2,'3. LCOE Results>>>'!$M$3:$N$5,2,FALSE),'4.6 LCOE_Weighted'!$E:$E,$F$2,'4.6 LCOE_Weighted'!$F:$F,AO$41) -> 1.312617436 | AP45: =SUMIFS('4.6 LCOE_Weighted'!$J:$J,'4.6 LCOE_Weighted'!$B:$B,VLOOKUP('3.1 per Market'!AM$40,'3. LCOE Results>>>'!$G$3:$H$10,2,FALSE),'4.6 LCOE_Weighted'!$C:$C,$N$39,'4.6 LCOE_Weighted'!$D:$D,VLOOKUP($B$2,'3. LCOE Results>>>'!$M$3:$N$5,2,FALSE),'4.6 LCOE_Weighted'!$E:$E,$F$2,'4.6 LCOE_Weighted'!$F:$F,AP$41) -> 1.312617436 | AR45: OPEX add. equipmet | AS45: =SUMIFS('4.6 LCOE_Weighted'!$J:$J,'4.6 LCOE_Weighted'!$B:$B,VLOOKUP('3.1 per Market'!AS$40,'3. LCOE Results>>>'!$G$3:$H$10,2,FALSE),'4.6 LCOE_Weighted'!$C:$C,$N$39,'4.6 LCOE_Weighted'!$D:$D,VLOOKUP($B$2,'3. LCOE Results>>>'!$M$3:$N$5,2,FALSE),'4.6 LCOE_Weighted'!$E:$E,$F$2,'4.6 LCOE_Weighted'!$F:$F,AS$41) -> 2.939247129 | AT45: =SUMIFS('4.6 LCOE_Weighted'!$J:$J,'4.6 LCOE_Weighted'!$B:$B,VLOOKUP('3.1 per Market'!AS$40,'3. LCOE Results>>>'!$G$3:$H$10,2,FALSE),'4.6 LCOE_Weighted'!$C:$C,$N$39,'4.6 LCOE_Weighted'!$D:$D,VLOOKUP($B$2,'3. LCOE Results>>>'!$M$3:$N$5,2,FALSE),'4.6 LCOE_Weighted'!$E:$E,$F$2,'4.6 LCOE_Weighted'!$F:$F,AT$41) -> 2.882120396 | AU45: =SUMIFS('4.6 LCOE_Weighted'!$J:$J,'4.6 LCOE_Weighted'!$B:$B,VLOOKUP('3.1 per Market'!AS$40,'3. LCOE Results>>>'!$G$3:$H$10,2,FALSE),'4.6 LCOE_Weighted'!$C:$C,$N$39,'4.6 LCOE_Weighted'!$D:$D,VLOOKUP($B$2,'3. LCOE Results>>>'!$M$3:$N$5,2,FALSE),'4.6 LCOE_Weighted'!$E:$E,$F$2,'4.6 LCOE_Weighted'!$F:$F,AU$41) -> 2.796430297 | AV45: =SUMIFS('4.6 LCOE_Weighted'!$J:$J,'4.6 LCOE_Weighted'!$B:$B,VLOOKUP('3.1 per Market'!AS$40,'3. LCOE Results>>>'!$G$3:$H$10,2,FALSE),'4.6 LCOE_Weighted'!$C:$C,$N$39,'4.6 LCOE_Weighted'!$D:$D,VLOOKUP($B$2,'3. LCOE Results>>>'!$M$3:$N$5,2,FALSE),'4.6 LCOE_Weighted'!$E:$E,$F$2,'4.6 LCOE_Weighted'!$F:$F,AV$41) -> 2.739303564
B46: Pellet Solar Hybrid | C46: =(SUMIFS('4.6 LCOE_Weighted'!$L:$L,'4.6 LCOE_Weighted'!$B:$B,VLOOKUP('3.1 per Market'!$B46,'3. LCOE Results>>>'!$G$3:$H$10,2,FALSE),'4.6 LCOE_Weighted'!$C:$C,'3.1 per Market'!$B$39,'4.6 LCOE_Weighted'!$D:$D,VLOOKUP($B$2,'3. LCOE Results>>>'!$M$3:$N$5,2,FALSE),'4.6 LCOE_Weighted'!$E:$E,'3.1 per Market'!$F$2,'4.6 LCOE_Weighted'!$F:$F,'3.1 per Market'!C$40)) -> 199.714724 | D46: =(SUMIFS('4.6 LCOE_Weighted'!$L:$L,'4.6 LCOE_Weighted'!$B:$B,VLOOKUP('3.1 per Market'!$B46,'3. LCOE Results>>>'!$G$3:$H$10,2,FALSE),'4.6 LCOE_Weighted'!$C:$C,'3.1 per Market'!$B$39,'4.6 LCOE_Weighted'!$D:$D,VLOOKUP($B$2,'3. LCOE Results>>>'!$M$3:$N$5,2,FALSE),'4.6 LCOE_Weighted'!$E:$E,'3.1 per Market'!$F$2,'4.6 LCOE_Weighted'!$F:$F,'3.1 per Market'!D$40)) -> 203.5811553 | E46: =(SUMIFS('4.6 LCOE_Weighted'!$L:$L,'4.6 LCOE_Weighted'!$B:$B,VLOOKUP('3.1 per Market'!$B46,'3. LCOE Results>>>'!$G$3:$H$10,2,FALSE),'4.6 LCOE_Weighted'!$C:$C,'3.1 per Market'!$B$39,'4.6 LCOE_Weighted'!$D:$D,VLOOKUP($B$2,'3. LCOE Results>>>'!$M$3:$N$5,2,FALSE),'4.6 LCOE_Weighted'!$E:$E,'3.1 per Market'!$F$2,'4.6 LCOE_Weighted'!$F:$F,'3.1 per Market'!E$40)) -> 197.0512024 | F46: =(SUMIFS('4.6 LCOE_Weighted'!$L:$L,'4.6 LCOE_Weighted'!$B:$B,VLOOKUP('3.1 per Market'!$B46,'3. LCOE Results>>>'!$G$3:$H$10,2,FALSE),'4.6 LCOE_Weighted'!$C:$C,'3.1 per Market'!$B$39,'4.6 LCOE_Weighted'!$D:$D,VLOOKUP($B$2,'3. LCOE Results>>>'!$M$3:$N$5,2,FALSE),'4.6 LCOE_Weighted'!$E:$E,'3.1 per Market'!$F$2,'4.6 LCOE_Weighted'!$F:$F,'3.1 per Market'!F$40)) -> 191.8217674 | G46: =(SUMIFS('4.6 LCOE_Weighted'!$L:$L,'4.6 LCOE_Weighted'!$B:$B,VLOOKUP('3.1 per Market'!$B46,'3. LCOE Results>>>'!$G$3:$H$10,2,FALSE),'4.6 LCOE_Weighted'!$C:$C,'3.1 per Market'!$B$39,'4.6 LCOE_Weighted'!$D:$D,VLOOKUP($B$2,'3. LCOE Results>>>'!$M$3:$N$5,2,FALSE),'4.6 LCOE_Weighted'!$E:$E,'3.1 per Market'!$F$2,'4.6 LCOE_Weighted'!$F:$F,'3.1 per Market'!G$40)) -> 188.4805032 | H46: =(SUMIFS('4.6 LCOE_Weighted'!$L:$L,'4.6 LCOE_Weighted'!$B:$B,VLOOKUP('3.1 per Market'!$B46,'3. LCOE Results>>>'!$G$3:$H$10,2,FALSE),'4.6 LCOE_Weighted'!$C:$C,'3.1 per Market'!$B$39,'4.6 LCOE_Weighted'!$D:$D,VLOOKUP($B$2,'3. LCOE Results>>>'!$M$3:$N$5,2,FALSE),'4.6 LCOE_Weighted'!$E:$E,'3.1 per Market'!$F$2,'4.6 LCOE_Weighted'!$F:$F,'3.1 per Market'!H$40)) -> 186.0284024 | I46: =(SUMIFS('4.6 LCOE_Weighted'!$L:$L,'4.6 LCOE_Weighted'!$B:$B,VLOOKUP('3.1 per Market'!$B46,'3. LCOE Results>>>'!$G$3:$H$10,2,FALSE),'4.6 LCOE_Weighted'!$C:$C,'3.1 per Market'!$B$39,'4.6 LCOE_Weighted'!$D:$D,VLOOKUP($B$2,'3. LCOE Results>>>'!$M$3:$N$5,2,FALSE),'4.6 LCOE_Weighted'!$E:$E,'3.1 per Market'!$F$2,'4.6 LCOE_Weighted'!$F:$F,'3.1 per Market'!I$40)) -> 183.9371242 | J46: =(SUMIFS('4.6 LCOE_Weighted'!$L:$L,'4.6 LCOE_Weighted'!$B:$B,VLOOKUP('3.1 per Market'!$B46,'3. LCOE Results>>>'!$G$3:$H$10,2,FALSE),'4.6 LCOE_Weighted'!$C:$C,'3.1 per Market'!$B$39,'4.6 LCOE_Weighted'!$D:$D,VLOOKUP($B$2,'3. LCOE Results>>>'!$M$3:$N$5,2,FALSE),'4.6 LCOE_Weighted'!$E:$E,'3.1 per Market'!$F$2,'4.6 LCOE_Weighted'!$F:$F,'3.1 per Market'!J$40)) -> 182.2235026 | K46: =(SUMIFS('4.6 LCOE_Weighted'!$L:$L,'4.6 LCOE_Weighted'!$B:$B,VLOOKUP('3.1 per Market'!$B46,'3. LCOE Results>>>'!$G$3:$H$10,2,FALSE),'4.6 LCOE_Weighted'!$C:$C,'3.1 per Market'!$B$39,'4.6 LCOE_Weighted'!$D:$D,VLOOKUP($B$2,'3. LCOE Results>>>'!$M$3:$N$5,2,FALSE),'4.6 LCOE_Weighted'!$E:$E,'3.1 per Market'!$F$2,'4.6 LCOE_Weighted'!$F:$F,'3.1 per Market'!K$40)) -> 180.9018959 | N46: Fuel cost | O46: =SUMIFS('4.6 LCOE_Weighted'!$K:$K,'4.6 LCOE_Weighted'!$B:$B,VLOOKUP('3.1 per Market'!O$40,'3. LCOE Results>>>'!$G$3:$H$10,2,FALSE),'4.6 LCOE_Weighted'!$C:$C,$N$39,'4.6 LCOE_Weighted'!$D:$D,VLOOKUP($B$2,'3. LCOE Results>>>'!$M$3:$N$5,2,FALSE),'4.6 LCOE_Weighted'!$E:$E,$F$2,'4.6 LCOE_Weighted'!$F:$F,O$41) -> 97.58967416 | P46: =SUMIFS('4.6 LCOE_Weighted'!$K:$K,'4.6 LCOE_Weighted'!$B:$B,VLOOKUP('3.1 per Market'!O$40,'3. LCOE Results>>>'!$G$3:$H$10,2,FALSE),'4.6 LCOE_Weighted'!$C:$C,$N$39,'4.6 LCOE_Weighted'!$D:$D,VLOOKUP($B$2,'3. LCOE Results>>>'!$M$3:$N$5,2,FALSE),'4.6 LCOE_Weighted'!$E:$E,$F$2,'4.6 LCOE_Weighted'!$F:$F,P$41) -> 89.48891067 | Q46: =SUMIFS('4.6 LCOE_Weighted'!$K:$K,'4.6 LCOE_Weighted'!$B:$B,VLOOKUP('3.1 per Market'!O$40,'3. LCOE Results>>>'!$G$3:$H$10,2,FALSE),'4.6 LCOE_Weighted'!$C:$C,$N$39,'4.6 LCOE_Weighted'!$D:$D,VLOOKUP($B$2,'3. LCOE Results>>>'!$M$3:$N$5,2,FALSE),'4.6 LCOE_Weighted'!$E:$E,$F$2,'4.6 LCOE_Weighted'!$F:$F,Q$41) -> 88.11279553 | R46: =SUMIFS('4.6 LCOE_Weighted'!$K:$K,'4.6 LCOE_Weighted'!$B:$B,VLOOKUP('3.1 per Market'!O$40,'3. LCOE Results>>>'!$G$3:$H$10,2,FALSE),'4.6 LCOE_Weighted'!$C:$C,$N$39,'4.6 LCOE_Weighted'!$D:$D,VLOOKUP($B$2,'3. LCOE Results>>>'!$M$3:$N$5,2,FALSE),'4.6 LCOE_Weighted'!$E:$E,$F$2,'4.6 LCOE_Weighted'!$F:$F,R$41) -> 88.84909457 | T46: Fuel cost | U46: =SUMIFS('4.6 LCOE_Weighted'!$K:$K,'4.6 LCOE_Weighted'!$B:$B,VLOOKUP('3.1 per Market'!U$40,'3. LCOE Results>>>'!$G$3:$H$10,2,FALSE),'4.6 LCOE_Weighted'!$C:$C,$N$39,'4.6 LCOE_Weighted'!$D:$D,VLOOKUP($B$2,'3. LCOE Results>>>'!$M$3:$N$5,2,FALSE),'4.6 LCOE_Weighted'!$E:$E,$F$2,'4.6 LCOE_Weighted'!$F:$F,U$41) -> 77.31073336 | V46: =SUMIFS('4.6 LCOE_Weighted'!$K:$K,'4.6 LCOE_Weighted'!$B:$B,VLOOKUP('3.1 per Market'!U$40,'3. LCOE Results>>>'!$G$3:$H$10,2,FALSE),'4.6 LCOE_Weighted'!$C:$C,$N$39,'4.6 LCOE_Weighted'!$D:$D,VLOOKUP($B$2,'3. LCOE Results>>>'!$M$3:$N$5,2,FALSE),'4.6 LCOE_Weighted'!$E:$E,$F$2,'4.6 LCOE_Weighted'!$F:$F,V$41) -> 73.14426621 | W46: =SUMIFS('4.6 LCOE_Weighted'!$K:$K,'4.6 LCOE_Weighted'!$B:$B,VLOOKUP('3.1 per Market'!U$40,'3. LCOE Results>>>'!$G$3:$H$10,2,FALSE),'4.6 LCOE_Weighted'!$C:$C,$N$39,'4.6 LCOE_Weighted'!$D:$D,VLOOKUP($B$2,'3. LCOE Results>>>'!$M$3:$N$5,2,FALSE),'4.6 LCOE_Weighted'!$E:$E,$F$2,'4.6 LCOE_Weighted'!$F:$F,W$41) -> 68.52136179 | X46: =SUMIFS('4.6 LCOE_Weighted'!$K:$K,'4.6 LCOE_Weighted'!$B:$B,VLOOKUP('3.1 per Market'!U$40,'3. LCOE Results>>>'!$G$3:$H$10,2,FALSE),'4.6 LCOE_Weighted'!$C:$C,$N$39,'4.6 LCOE_Weighted'!$D:$D,VLOOKUP($B$2,'3. LCOE Results>>>'!$M$3:$N$5,2,FALSE),'4.6 LCOE_Weighted'!$E:$E,$F$2,'4.6 LCOE_Weighted'!$F:$F,X$41) -> 66.70935343 | Z46: Fuel cost | AA46: =SUMIFS('4.6 LCOE_Weighted'!$K:$K,'4.6 LCOE_Weighted'!$B:$B,VLOOKUP('3.1 per Market'!AA$40,'3. LCOE Results>>>'!$G$3:$H$10,2,FALSE),'4.6 LCOE_Weighted'!$C:$C,$N$39,'4.6 LCOE_Weighted'!$D:$D,VLOOKUP($B$2,'3. LCOE Results>>>'!$M$3:$N$5,2,FALSE),'4.6 LCOE_Weighted'!$E:$E,$F$2,'4.6 LCOE_Weighted'!$F:$F,AA$41) -> 92.90709036 | AB46: =SUMIFS('4.6 LCOE_Weighted'!$K:$K,'4.6 LCOE_Weighted'!$B:$B,VLOOKUP('3.1 per Market'!AA$40,'3. LCOE Results>>>'!$G$3:$H$10,2,FALSE),'4.6 LCOE_Weighted'!$C:$C,$N$39,'4.6 LCOE_Weighted'!$D:$D,VLOOKUP($B$2,'3. LCOE Results>>>'!$M$3:$N$5,2,FALSE),'4.6 LCOE_Weighted'!$E:$E,$F$2,'4.6 LCOE_Weighted'!$F:$F,AB$41) -> 87.62866449 | AC46: =SUMIFS('4.6 LCOE_Weighted'!$K:$K,'4.6 LCOE_Weighted'!$B:$B,VLOOKUP('3.1 per Market'!AA$40,'3. LCOE Results>>>'!$G$3:$H$10,2,FALSE),'4.6 LCOE_Weighted'!$C:$C,$N$39,'4.6 LCOE_Weighted'!$D:$D,VLOOKUP($B$2,'3. LCOE Results>>>'!$M$3:$N$5,2,FALSE),'4.6 LCOE_Weighted'!$E:$E,$F$2,'4.6 LCOE_Weighted'!$F:$F,AC$41) -> 81.74185029 | AD46: =SUMIFS('4.6 LCOE_Weighted'!$K:$K,'4.6 LCOE_Weighted'!$B:$B,VLOOKUP('3.1 per Market'!AA$40,'3. LCOE Results>>>'!$G$3:$H$10,2,FALSE),'4.6 LCOE_Weighted'!$C:$C,$N$39,'4.6 LCOE_Weighted'!$D:$D,VLOOKUP($B$2,'3. LCOE Results>>>'!$M$3:$N$5,2,FALSE),'4.6 LCOE_Weighted'!$E:$E,$F$2,'4.6 LCOE_Weighted'!$F:$F,AD$41) -> 79.42815078 | AF46: Fuel cost | AG46: =SUMIFS('4.6 LCOE_Weighted'!$K:$K,'4.6 LCOE_Weighted'!$B:$B,VLOOKUP('3.1 per Market'!AG$40,'3. LCOE Results>>>'!$G$3:$H$10,2,FALSE),'4.6 LCOE_Weighted'!$C:$C,$N$39,'4.6 LCOE_Weighted'!$D:$D,VLOOKUP($B$2,'3. LCOE Results>>>'!$M$3:$N$5,2,FALSE),'4.6 LCOE_Weighted'!$E:$E,$F$2,'4.6 LCOE_Weighted'!$F:$F,AG$41) -> 65.64937942 | AH46: =SUMIFS('4.6 LCOE_Weighted'!$K:$K,'4.6 LCOE_Weighted'!$B:$B,VLOOKUP('3.1 per Market'!AG$40,'3. LCOE Results>>>'!$G$3:$H$10,2,FALSE),'4.6 LCOE_Weighted'!$C:$C,$N$39,'4.6 LCOE_Weighted'!$D:$D,VLOOKUP($B$2,'3. LCOE Results>>>'!$M$3:$N$5,2,FALSE),'4.6 LCOE_Weighted'!$E:$E,$F$2,'4.6 LCOE_Weighted'!$F:$F,AH$41) -> 54.85968738 | AI46: =SUMIFS('4.6 LCOE_Weighted'!$K:$K,'4.6 LCOE_Weighted'!$B:$B,VLOOKUP('3.1 per Market'!AG$40,'3. LCOE Results>>>'!$G$3:$H$10,2,FALSE),'4.6 LCOE_Weighted'!$C:$C,$N$39,'4.6 LCOE_Weighted'!$D:$D,VLOOKUP($B$2,'3. LCOE Results>>>'!$M$3:$N$5,2,FALSE),'4.6 LCOE_Weighted'!$E:$E,$F$2,'4.6 LCOE_Weighted'!$F:$F,AI$41) -> 49.14942158 | AJ46: =SUMIFS('4.6 LCOE_Weighted'!$K:$K,'4.6 LCOE_Weighted'!$B:$B,VLOOKUP('3.1 per Market'!AG$40,'3. LCOE Results>>>'!$G$3:$H$10,2,FALSE),'4.6 LCOE_Weighted'!$C:$C,$N$39,'4.6 LCOE_Weighted'!$D:$D,VLOOKUP($B$2,'3. LCOE Results>>>'!$M$3:$N$5,2,FALSE),'4.6 LCOE_Weighted'!$E:$E,$F$2,'4.6 LCOE_Weighted'!$F:$F,AJ$41) -> 47.72901294 | AL46: Fuel cost | AM46: =SUMIFS('4.6 LCOE_Weighted'!$K:$K,'4.6 LCOE_Weighted'!$B:$B,VLOOKUP('3.1 per Market'!AM$40,'3. LCOE Results>>>'!$G$3:$H$10,2,FALSE),'4.6 LCOE_Weighted'!$C:$C,$N$39,'4.6 LCOE_Weighted'!$D:$D,VLOOKUP($B$2,'3. LCOE Results>>>'!$M$3:$N$5,2,FALSE),'4.6 LCOE_Weighted'!$E:$E,$F$2,'4.6 LCOE_Weighted'!$F:$F,AM$41) -> 87.88163878 | AN46: =SUMIFS('4.6 LCOE_Weighted'!$K:$K,'4.6 LCOE_Weighted'!$B:$B,VLOOKUP('3.1 per Market'!AM$40,'3. LCOE Results>>>'!$G$3:$H$10,2,FALSE),'4.6 LCOE_Weighted'!$C:$C,$N$39,'4.6 LCOE_Weighted'!$D:$D,VLOOKUP($B$2,'3. LCOE Results>>>'!$M$3:$N$5,2,FALSE),'4.6 LCOE_Weighted'!$E:$E,$F$2,'4.6 LCOE_Weighted'!$F:$F,AN$41) -> 80.45748427 | AO46: =SUMIFS('4.6 LCOE_Weighted'!$K:$K,'4.6 LCOE_Weighted'!$B:$B,VLOOKUP('3.1 per Market'!AM$40,'3. LCOE Results>>>'!$G$3:$H$10,2,FALSE),'4.6 LCOE_Weighted'!$C:$C,$N$39,'4.6 LCOE_Weighted'!$D:$D,VLOOKUP($B$2,'3. LCOE Results>>>'!$M$3:$N$5,2,FALSE),'4.6 LCOE_Weighted'!$E:$E,$F$2,'4.6 LCOE_Weighted'!$F:$F,AO$41) -> 79.03013499 | AP46: =SUMIFS('4.6 LCOE_Weighted'!$K:$K,'4.6 LCOE_Weighted'!$B:$B,VLOOKUP('3.1 per Market'!AM$40,'3. LCOE Results>>>'!$G$3:$H$10,2,FALSE),'4.6 LCOE_Weighted'!$C:$C,$N$39,'4.6 LCOE_Weighted'!$D:$D,VLOOKUP($B$2,'3. LCOE Results>>>'!$M$3:$N$5,2,FALSE),'4.6 LCOE_Weighted'!$E:$E,$F$2,'4.6 LCOE_Weighted'!$F:$F,AP$41) -> 79.56324439 | AR46: Fuel cost | AS46: =SUMIFS('4.6 LCOE_Weighted'!$K:$K,'4.6 LCOE_Weighted'!$B:$B,VLOOKUP('3.1 per Market'!AS$40,'3. LCOE Results>>>'!$G$3:$H$10,2,FALSE),'4.6 LCOE_Weighted'!$C:$C,$N$39,'4.6 LCOE_Weighted'!$D:$D,VLOOKUP($B$2,'3. LCOE Results>>>'!$M$3:$N$5,2,FALSE),'4.6 LCOE_Weighted'!$E:$E,$F$2,'4.6 LCOE_Weighted'!$F:$F,AS$41) -> 61.06355852 | AT46: =SUMIFS('4.6 LCOE_Weighted'!$K:$K,'4.6 LCOE_Weighted'!$B:$B,VLOOKUP('3.1 per Market'!AS$40,'3. LCOE Results>>>'!$G$3:$H$10,2,FALSE),'4.6 LCOE_Weighted'!$C:$C,$N$39,'4.6 LCOE_Weighted'!$D:$D,VLOOKUP($B$2,'3. LCOE Results>>>'!$M$3:$N$5,2,FALSE),'4.6 LCOE_Weighted'!$E:$E,$F$2,'4.6 LCOE_Weighted'!$F:$F,AT$41) -> 50.98594301 | AU46: =SUMIFS('4.6 LCOE_Weighted'!$K:$K,'4.6 LCOE_Weighted'!$B:$B,VLOOKUP('3.1 per Market'!AS$40,'3. LCOE Results>>>'!$G$3:$H$10,2,FALSE),'4.6 LCOE_Weighted'!$C:$C,$N$39,'4.6 LCOE_Weighted'!$D:$D,VLOOKUP($B$2,'3. LCOE Results>>>'!$M$3:$N$5,2,FALSE),'4.6 LCOE_Weighted'!$E:$E,$F$2,'4.6 LCOE_Weighted'!$F:$F,AU$41) -> 45.62395828 | AV46: =SUMIFS('4.6 LCOE_Weighted'!$K:$K,'4.6 LCOE_Weighted'!$B:$B,VLOOKUP('3.1 per Market'!AS$40,'3. LCOE Results>>>'!$G$3:$H$10,2,FALSE),'4.6 LCOE_Weighted'!$C:$C,$N$39,'4.6 LCOE_Weighted'!$D:$D,VLOOKUP($B$2,'3. LCOE Results>>>'!$M$3:$N$5,2,FALSE),'4.6 LCOE_Weighted'!$E:$E,$F$2,'4.6 LCOE_Weighted'!$F:$F,AV$41) -> 44.27050233
N47: SUM | O47: =SUM(O42:O46) -> 157.3986637 | P47: =SUM(P42:P46) -> 148.6003865 | Q47: 146.1780009 | R47: 146.2167862 | T47: SUM | U47: =SUM(U42:U46) -> 192.9308859 | V47: =SUM(V42:V46) -> 176.1188653 | W47: 152.5276308 | X47: 138.0700691 | Z47: SUM | AA47: =SUM(AA42:AA46) -> 205.8060144 | AB47: =SUM(AB42:AB46) -> 190.4231225 | AC47: 169.3796093 | AD47: 156.9614438 | AF47: SUM | AG47: =SUM(AG42:AG46) -> 182.6976068 | AH47: =SUM(AH42:AH46) -> 170.4017662 | AI47: 162.4322775 | AJ47: 159.5057203 | AL47: SUM | AM47: =SUM(AM42:AM46) -> 171.4143203 | AN47: =SUM(AN42:AN46) -> 162.948933 | AO47: 159.9597345 | AP47: 159.4516111 | AR47: SUM | AS47: =SUM(AS42:AS46) -> 203.5811553 | AT47: =SUM(AT42:AT46) -> 191.8217674 | AU47: 183.9371242 | AV47: 180.9018959
B49: Bavaria | N49: Bavaria | U49: HP brine-to-water | V49: HP brine-to-water | W49: HP brine-to-water | X49: HP brine-to-water | AA49: HP air-to-water | AB49: HP air-to-water | AC49: HP air-to-water | AD49: HP air-to-water | AG49: Pellet boiler | AH49: Pellet boiler | AI49: Pellet boiler | AJ49: Pellet boiler | AM49: Gas Solar Hybrid | AN49: Gas Solar Hybrid | AO49: Gas Solar Hybrid | AP49: Gas Solar Hybrid | AS49: Pellet Solar Hybrid | AT49: Pellet Solar Hybrid | AU49: Pellet Solar Hybrid | AV49: Pellet Solar Hybrid
B50: Technology\Year | C50: 2022 | D50: 2023 | E50: 2024 | F50: 2025 | G50: 2026 | H50: 2027 | I50: 2028 | J50: 2029 | K50: 2030 | N50: Technology | O50: Gas boiler | P50: Gas boiler | Q50: Gas boiler | R50: Gas boiler | U50: HP brine-to-water | AA50: HP air-to-water | AG50: Pellet boiler | AM50: Gas Solar Hybrid | AS50: Pellet Solar Hybrid
B51: Gas boiler | C51: =(SUMIFS('4.6 LCOE_Weighted'!$L:$L,'4.6 LCOE_Weighted'!$B:$B,VLOOKUP('3.1 per Market'!$B51,'3. LCOE Results>>>'!$G$3:$H$10,2,FALSE),'4.6 LCOE_Weighted'!$C:$C,'3.1 per Market'!$B$49,'4.6 LCOE_Weighted'!$D:$D,VLOOKUP($B$2,'3. LCOE Results>>>'!$M$3:$N$5,2,FALSE),'4.6 LCOE_Weighted'!$E:$E,'3.1 per Market'!$F$2,'4.6 LCOE_Weighted'!$F:$F,'3.1 per Market'!C$50)) -> 146.8272445 | D51: =(SUMIFS('4.6 LCOE_Weighted'!$L:$L,'4.6 LCOE_Weighted'!$B:$B,VLOOKUP('3.1 per Market'!$B51,'3. LCOE Results>>>'!$G$3:$H$10,2,FALSE),'4.6 LCOE_Weighted'!$C:$C,'3.1 per Market'!$B$49,'4.6 LCOE_Weighted'!$D:$D,VLOOKUP($B$2,'3. LCOE Results>>>'!$M$3:$N$5,2,FALSE),'4.6 LCOE_Weighted'!$E:$E,'3.1 per Market'!$F$2,'4.6 LCOE_Weighted'!$F:$F,'3.1 per Market'!D$50)) -> 154.2606714 | E51: =(SUMIFS('4.6 LCOE_Weighted'!$L:$L,'4.6 LCOE_Weighted'!$B:$B,VLOOKUP('3.1 per Market'!$B51,'3. LCOE Results>>>'!$G$3:$H$10,2,FALSE),'4.6 LCOE_Weighted'!$C:$C,'3.1 per Market'!$B$49,'4.6 LCOE_Weighted'!$D:$D,VLOOKUP($B$2,'3. LCOE Results>>>'!$M$3:$N$5,2,FALSE),'4.6 LCOE_Weighted'!$E:$E,'3.1 per Market'!$F$2,'4.6 LCOE_Weighted'!$F:$F,'3.1 per Market'!E$50)) -> 149.1647182 | F51: =(SUMIFS('4.6 LCOE_Weighted'!$L:$L,'4.6 LCOE_Weighted'!$B:$B,VLOOKUP('3.1 per Market'!$B51,'3. LCOE Results>>>'!$G$3:$H$10,2,FALSE),'4.6 LCOE_Weighted'!$C:$C,'3.1 per Market'!$B$49,'4.6 LCOE_Weighted'!$D:$D,VLOOKUP($B$2,'3. LCOE Results>>>'!$M$3:$N$5,2,FALSE),'4.6 LCOE_Weighted'!$E:$E,'3.1 per Market'!$F$2,'4.6 LCOE_Weighted'!$F:$F,'3.1 per Market'!F$50)) -> 145.5000533 | G51: =(SUMIFS('4.6 LCOE_Weighted'!$L:$L,'4.6 LCOE_Weighted'!$B:$B,VLOOKUP('3.1 per Market'!$B51,'3. LCOE Results>>>'!$G$3:$H$10,2,FALSE),'4.6 LCOE_Weighted'!$C:$C,'3.1 per Market'!$B$49,'4.6 LCOE_Weighted'!$D:$D,VLOOKUP($B$2,'3. LCOE Results>>>'!$M$3:$N$5,2,FALSE),'4.6 LCOE_Weighted'!$E:$E,'3.1 per Market'!$F$2,'4.6 LCOE_Weighted'!$F:$F,'3.1 per Market'!G$50)) -> 143.9603274 | H51: =(SUMIFS('4.6 LCOE_Weighted'!$L:$L,'4.6 LCOE_Weighted'!$B:$B,VLOOKUP('3.1 per Market'!$B51,'3. LCOE Results>>>'!$G$3:$H$10,2,FALSE),'4.6 LCOE_Weighted'!$C:$C,'3.1 per Market'!$B$49,'4.6 LCOE_Weighted'!$D:$D,VLOOKUP($B$2,'3. LCOE Results>>>'!$M$3:$N$5,2,FALSE),'4.6 LCOE_Weighted'!$E:$E,'3.1 per Market'!$F$2,'4.6 LCOE_Weighted'!$F:$F,'3.1 per Market'!H$50)) -> 143.4454637 | I51: =(SUMIFS('4.6 LCOE_Weighted'!$L:$L,'4.6 LCOE_Weighted'!$B:$B,VLOOKUP('3.1 per Market'!$B51,'3. LCOE Results>>>'!$G$3:$H$10,2,FALSE),'4.6 LCOE_Weighted'!$C:$C,'3.1 per Market'!$B$49,'4.6 LCOE_Weighted'!$D:$D,VLOOKUP($B$2,'3. LCOE Results>>>'!$M$3:$N$5,2,FALSE),'4.6 LCOE_Weighted'!$E:$E,'3.1 per Market'!$F$2,'4.6 LCOE_Weighted'!$F:$F,'3.1 per Market'!I$50)) -> 143.1341561 | J51: =(SUMIFS('4.6 LCOE_Weighted'!$L:$L,'4.6 LCOE_Weighted'!$B:$B,VLOOKUP('3.1 per Market'!$B51,'3. LCOE Results>>>'!$G$3:$H$10,2,FALSE),'4.6 LCOE_Weighted'!$C:$C,'3.1 per Market'!$B$49,'4.6 LCOE_Weighted'!$D:$D,VLOOKUP($B$2,'3. LCOE Results>>>'!$M$3:$N$5,2,FALSE),'4.6 LCOE_Weighted'!$E:$E,'3.1 per Market'!$F$2,'4.6 LCOE_Weighted'!$F:$F,'3.1 per Market'!J$50)) -> 143.0483157 | K51: =(SUMIFS('4.6 LCOE_Weighted'!$L:$L,'4.6 LCOE_Weighted'!$B:$B,VLOOKUP('3.1 per Market'!$B51,'3. LCOE Results>>>'!$G$3:$H$10,2,FALSE),'4.6 LCOE_Weighted'!$C:$C,'3.1 per Market'!$B$49,'4.6 LCOE_Weighted'!$D:$D,VLOOKUP($B$2,'3. LCOE Results>>>'!$M$3:$N$5,2,FALSE),'4.6 LCOE_Weighted'!$E:$E,'3.1 per Market'!$F$2,'4.6 LCOE_Weighted'!$F:$F,'3.1 per Market'!K$50)) -> 143.2106005 | N51: Cost composition\Year | O51: 2023 | P51: 2025 | Q51: 2028 | R51: 2030 | U51: 2023 | V51: 2025 | W51: 2028 | X51: 2030 | AA51: 2023 | AB51: 2025 | AC51: 2028 | AD51: 2030 | AG51: 2023 | AH51: 2025 | AI51: 2028 | AJ51: 2030 | AM51: 2023 | AN51: 2025 | AO51: 2028 | AP51: 2030 | AS51: 2023 | AT51: 2025 | AU51: 2028 | AV51: 2030
B52: HP brine-to-water | C52: =(SUMIFS('4.6 LCOE_Weighted'!$L:$L,'4.6 LCOE_Weighted'!$B:$B,VLOOKUP('3.1 per Market'!$B52,'3. LCOE Results>>>'!$G$3:$H$10,2,FALSE),'4.6 LCOE_Weighted'!$C:$C,'3.1 per Market'!$B$49,'4.6 LCOE_Weighted'!$D:$D,VLOOKUP($B$2,'3. LCOE Results>>>'!$M$3:$N$5,2,FALSE),'4.6 LCOE_Weighted'!$E:$E,'3.1 per Market'!$F$2,'4.6 LCOE_Weighted'!$F:$F,'3.1 per Market'!C$50)) -> 189.6228585 | D52: =(SUMIFS('4.6 LCOE_Weighted'!$L:$L,'4.6 LCOE_Weighted'!$B:$B,VLOOKUP('3.1 per Market'!$B52,'3. LCOE Results>>>'!$G$3:$H$10,2,FALSE),'4.6 LCOE_Weighted'!$C:$C,'3.1 per Market'!$B$49,'4.6 LCOE_Weighted'!$D:$D,VLOOKUP($B$2,'3. LCOE Results>>>'!$M$3:$N$5,2,FALSE),'4.6 LCOE_Weighted'!$E:$E,'3.1 per Market'!$F$2,'4.6 LCOE_Weighted'!$F:$F,'3.1 per Market'!D$50)) -> 189.0536814 | E52: =(SUMIFS('4.6 LCOE_Weighted'!$L:$L,'4.6 LCOE_Weighted'!$B:$B,VLOOKUP('3.1 per Market'!$B52,'3. LCOE Results>>>'!$G$3:$H$10,2,FALSE),'4.6 LCOE_Weighted'!$C:$C,'3.1 per Market'!$B$49,'4.6 LCOE_Weighted'!$D:$D,VLOOKUP($B$2,'3. LCOE Results>>>'!$M$3:$N$5,2,FALSE),'4.6 LCOE_Weighted'!$E:$E,'3.1 per Market'!$F$2,'4.6 LCOE_Weighted'!$F:$F,'3.1 per Market'!E$50)) -> 180.8185743 | F52: =(SUMIFS('4.6 LCOE_Weighted'!$L:$L,'4.6 LCOE_Weighted'!$B:$B,VLOOKUP('3.1 per Market'!$B52,'3. LCOE Results>>>'!$G$3:$H$10,2,FALSE),'4.6 LCOE_Weighted'!$C:$C,'3.1 per Market'!$B$49,'4.6 LCOE_Weighted'!$D:$D,VLOOKUP($B$2,'3. LCOE Results>>>'!$M$3:$N$5,2,FALSE),'4.6 LCOE_Weighted'!$E:$E,'3.1 per Market'!$F$2,'4.6 LCOE_Weighted'!$F:$F,'3.1 per Market'!F$50)) -> 172.78532 | G52: =(SUMIFS('4.6 LCOE_Weighted'!$L:$L,'4.6 LCOE_Weighted'!$B:$B,VLOOKUP('3.1 per Market'!$B52,'3. LCOE Results>>>'!$G$3:$H$10,2,FALSE),'4.6 LCOE_Weighted'!$C:$C,'3.1 per Market'!$B$49,'4.6 LCOE_Weighted'!$D:$D,VLOOKUP($B$2,'3. LCOE Results>>>'!$M$3:$N$5,2,FALSE),'4.6 LCOE_Weighted'!$E:$E,'3.1 per Market'!$F$2,'4.6 LCOE_Weighted'!$F:$F,'3.1 per Market'!G$50)) -> 164.9632612 | H52: =(SUMIFS('4.6 LCOE_Weighted'!$L:$L,'4.6 LCOE_Weighted'!$B:$B,VLOOKUP('3.1 per Market'!$B52,'3. LCOE Results>>>'!$G$3:$H$10,2,FALSE),'4.6 LCOE_Weighted'!$C:$C,'3.1 per Market'!$B$49,'4.6 LCOE_Weighted'!$D:$D,VLOOKUP($B$2,'3. LCOE Results>>>'!$M$3:$N$5,2,FALSE),'4.6 LCOE_Weighted'!$E:$E,'3.1 per Market'!$F$2,'4.6 LCOE_Weighted'!$F:$F,'3.1 per Market'!H$50)) -> 157.3641199 | I52: =(SUMIFS('4.6 LCOE_Weighted'!$L:$L,'4.6 LCOE_Weighted'!$B:$B,VLOOKUP('3.1 per Market'!$B52,'3. LCOE Results>>>'!$G$3:$H$10,2,FALSE),'4.6 LCOE_Weighted'!$C:$C,'3.1 per Market'!$B$49,'4.6 LCOE_Weighted'!$D:$D,VLOOKUP($B$2,'3. LCOE Results>>>'!$M$3:$N$5,2,FALSE),'4.6 LCOE_Weighted'!$E:$E,'3.1 per Market'!$F$2,'4.6 LCOE_Weighted'!$F:$F,'3.1 per Market'!I$50)) -> 150.0136139 | J52: =(SUMIFS('4.6 LCOE_Weighted'!$L:$L,'4.6 LCOE_Weighted'!$B:$B,VLOOKUP('3.1 per Market'!$B52,'3. LCOE Results>>>'!$G$3:$H$10,2,FALSE),'4.6 LCOE_Weighted'!$C:$C,'3.1 per Market'!$B$49,'4.6 LCOE_Weighted'!$D:$D,VLOOKUP($B$2,'3. LCOE Results>>>'!$M$3:$N$5,2,FALSE),'4.6 LCOE_Weighted'!$E:$E,'3.1 per Market'!$F$2,'4.6 LCOE_Weighted'!$F:$F,'3.1 per Market'!J$50)) -> 142.9233559 | K52: =(SUMIFS('4.6 LCOE_Weighted'!$L:$L,'4.6 LCOE_Weighted'!$B:$B,VLOOKUP('3.1 per Market'!$B52,'3. LCOE Results>>>'!$G$3:$H$10,2,FALSE),'4.6 LCOE_Weighted'!$C:$C,'3.1 per Market'!$B$49,'4.6 LCOE_Weighted'!$D:$D,VLOOKUP($B$2,'3. LCOE Results>>>'!$M$3:$N$5,2,FALSE),'4.6 LCOE_Weighted'!$E:$E,'3.1 per Market'!$F$2,'4.6 LCOE_Weighted'!$F:$F,'3.1 per Market'!K$50)) -> 136.1055307 | N52: CAPEX heating unit | O52: =SUMIFS('4.6 LCOE_Weighted'!$G:$G,'4.6 LCOE_Weighted'!$B:$B,VLOOKUP('3.1 per Market'!O$50,'3. LCOE Results>>>'!$G$3:$H$10,2,FALSE),'4.6 LCOE_Weighted'!$C:$C,$N$49,'4.6 LCOE_Weighted'!$D:$D,VLOOKUP($B$2,'3. LCOE Results>>>'!$M$3:$N$5,2,FALSE),'4.6 LCOE_Weighted'!$E:$E,$F$2,'4.6 LCOE_Weighted'!$F:$F,O$51) -> 36.32866566 | P52: =SUMIFS('4.6 LCOE_Weighted'!$G:$G,'4.6 LCOE_Weighted'!$B:$B,VLOOKUP('3.1 per Market'!O$50,'3. LCOE Results>>>'!$G$3:$H$10,2,FALSE),'4.6 LCOE_Weighted'!$C:$C,$N$49,'4.6 LCOE_Weighted'!$D:$D,VLOOKUP($B$2,'3. LCOE Results>>>'!$M$3:$N$5,2,FALSE),'4.6 LCOE_Weighted'!$E:$E,$F$2,'4.6 LCOE_Weighted'!$F:$F,P$51) -> 35.66881099 | Q52: =SUMIFS('4.6 LCOE_Weighted'!$G:$G,'4.6 LCOE_Weighted'!$B:$B,VLOOKUP('3.1 per Market'!O$50,'3. LCOE Results>>>'!$G$3:$H$10,2,FALSE),'4.6 LCOE_Weighted'!$C:$C,$N$49,'4.6 LCOE_Weighted'!$D:$D,VLOOKUP($B$2,'3. LCOE Results>>>'!$M$3:$N$5,2,FALSE),'4.6 LCOE_Weighted'!$E:$E,$F$2,'4.6 LCOE_Weighted'!$F:$F,Q$51) -> 34.67902898 | R52: =SUMIFS('4.6 LCOE_Weighted'!$G:$G,'4.6 LCOE_Weighted'!$B:$B,VLOOKUP('3.1 per Market'!R$50,'3. LCOE Results>>>'!$G$3:$H$10,2,FALSE),'4.6 LCOE_Weighted'!$C:$C,$N$49,'4.6 LCOE_Weighted'!$D:$D,VLOOKUP($B$2,'3. LCOE Results>>>'!$M$3:$N$5,2,FALSE),'4.6 LCOE_Weighted'!$E:$E,$F$2,'4.6 LCOE_Weighted'!$F:$F,R$51) -> 34.0191743 | T52: CAPEX heating unit | U52: =SUMIFS('4.6 LCOE_Weighted'!$G:$G,'4.6 LCOE_Weighted'!$B:$B,VLOOKUP('3.1 per Market'!U$49,'3. LCOE Results>>>'!$G$3:$H$10,2,FALSE),'4.6 LCOE_Weighted'!$C:$C,$N$49,'4.6 LCOE_Weighted'!$D:$D,VLOOKUP($B$2,'3. LCOE Results>>>'!$M$3:$N$5,2,FALSE),'4.6 LCOE_Weighted'!$E:$E,$F$2,'4.6 LCOE_Weighted'!$F:$F,U$51) -> 80.34557287 | V52: =SUMIFS('4.6 LCOE_Weighted'!$G:$G,'4.6 LCOE_Weighted'!$B:$B,VLOOKUP('3.1 per Market'!U$49,'3. LCOE Results>>>'!$G$3:$H$10,2,FALSE),'4.6 LCOE_Weighted'!$C:$C,$N$49,'4.6 LCOE_Weighted'!$D:$D,VLOOKUP($B$2,'3. LCOE Results>>>'!$M$3:$N$5,2,FALSE),'4.6 LCOE_Weighted'!$E:$E,$F$2,'4.6 LCOE_Weighted'!$F:$F,V$51) -> 68.5771634 | W52: =SUMIFS('4.6 LCOE_Weighted'!$G:$G,'4.6 LCOE_Weighted'!$B:$B,VLOOKUP('3.1 per Market'!U$49,'3. LCOE Results>>>'!$G$3:$H$10,2,FALSE),'4.6 LCOE_Weighted'!$C:$C,$N$49,'4.6 LCOE_Weighted'!$D:$D,VLOOKUP($B$2,'3. LCOE Results>>>'!$M$3:$N$5,2,FALSE),'4.6 LCOE_Weighted'!$E:$E,$F$2,'4.6 LCOE_Weighted'!$F:$F,W$51) -> 50.9245492 | X52: =SUMIFS('4.6 LCOE_Weighted'!$G:$G,'4.6 LCOE_Weighted'!$B:$B,VLOOKUP('3.1 per Market'!U$49,'3. LCOE Results>>>'!$G$3:$H$10,2,FALSE),'4.6 LCOE_Weighted'!$C:$C,$N$49,'4.6 LCOE_Weighted'!$D:$D,VLOOKUP($B$2,'3. LCOE Results>>>'!$M$3:$N$5,2,FALSE),'4.6 LCOE_Weighted'!$E:$E,$F$2,'4.6 LCOE_Weighted'!$F:$F,X$51) -> 39.15613973 | Z52: CAPEX heating unit | AA52: =SUMIFS('4.6 LCOE_Weighted'!$G:$G,'4.6 LCOE_Weighted'!$B:$B,VLOOKUP('3.1 per Market'!AA$49,'3. LCOE Results>>>'!$G$3:$H$10,2,FALSE),'4.6 LCOE_Weighted'!$C:$C,$N$49,'4.6 LCOE_Weighted'!$D:$D,VLOOKUP($B$2,'3. LCOE Results>>>'!$M$3:$N$5,2,FALSE),'4.6 LCOE_Weighted'!$E:$E,$F$2,'4.6 LCOE_Weighted'!$F:$F,AA$51) -> 66.79762876 | AB52: =SUMIFS('4.6 LCOE_Weighted'!$G:$G,'4.6 LCOE_Weighted'!$B:$B,VLOOKUP('3.1 per Market'!AA$49,'3. LCOE Results>>>'!$G$3:$H$10,2,FALSE),'4.6 LCOE_Weighted'!$C:$C,$N$49,'4.6 LCOE_Weighted'!$D:$D,VLOOKUP($B$2,'3. LCOE Results>>>'!$M$3:$N$5,2,FALSE),'4.6 LCOE_Weighted'!$E:$E,$F$2,'4.6 LCOE_Weighted'!$F:$F,AB$51) -> 57.01361928 | AC52: =SUMIFS('4.6 LCOE_Weighted'!$G:$G,'4.6 LCOE_Weighted'!$B:$B,VLOOKUP('3.1 per Market'!AA$49,'3. LCOE Results>>>'!$G$3:$H$10,2,FALSE),'4.6 LCOE_Weighted'!$C:$C,$N$49,'4.6 LCOE_Weighted'!$D:$D,VLOOKUP($B$2,'3. LCOE Results>>>'!$M$3:$N$5,2,FALSE),'4.6 LCOE_Weighted'!$E:$E,$F$2,'4.6 LCOE_Weighted'!$F:$F,AC$51) -> 42.33760506 | AD52: =SUMIFS('4.6 LCOE_Weighted'!$G:$G,'4.6 LCOE_Weighted'!$B:$B,VLOOKUP('3.1 per Market'!AA$49,'3. LCOE Results>>>'!$G$3:$H$10,2,FALSE),'4.6 LCOE_Weighted'!$C:$C,$N$49,'4.6 LCOE_Weighted'!$D:$D,VLOOKUP($B$2,'3. LCOE Results>>>'!$M$3:$N$5,2,FALSE),'4.6 LCOE_Weighted'!$E:$E,$F$2,'4.6 LCOE_Weighted'!$F:$F,AD$51) -> 32.55359557 | AF52: CAPEX heating unit | AG52: =SUMIFS('4.6 LCOE_Weighted'!$G:$G,'4.6 LCOE_Weighted'!$B:$B,VLOOKUP('3.1 per Market'!AG$49,'3. LCOE Results>>>'!$G$3:$H$10,2,FALSE),'4.6 LCOE_Weighted'!$C:$C,$N$49,'4.6 LCOE_Weighted'!$D:$D,VLOOKUP($B$2,'3. LCOE Results>>>'!$M$3:$N$5,2,FALSE),'4.6 LCOE_Weighted'!$E:$E,$F$2,'4.6 LCOE_Weighted'!$F:$F,AG$51) -> 51.76941338 | AH52: =SUMIFS('4.6 LCOE_Weighted'!$G:$G,'4.6 LCOE_Weighted'!$B:$B,VLOOKUP('3.1 per Market'!AG$49,'3. LCOE Results>>>'!$G$3:$H$10,2,FALSE),'4.6 LCOE_Weighted'!$C:$C,$N$49,'4.6 LCOE_Weighted'!$D:$D,VLOOKUP($B$2,'3. LCOE Results>>>'!$M$3:$N$5,2,FALSE),'4.6 LCOE_Weighted'!$E:$E,$F$2,'4.6 LCOE_Weighted'!$F:$F,AH$51) -> 51.45786224 | AI52: =SUMIFS('4.6 LCOE_Weighted'!$G:$G,'4.6 LCOE_Weighted'!$B:$B,VLOOKUP('3.1 per Market'!AG$49,'3. LCOE Results>>>'!$G$3:$H$10,2,FALSE),'4.6 LCOE_Weighted'!$C:$C,$N$49,'4.6 LCOE_Weighted'!$D:$D,VLOOKUP($B$2,'3. LCOE Results>>>'!$M$3:$N$5,2,FALSE),'4.6 LCOE_Weighted'!$E:$E,$F$2,'4.6 LCOE_Weighted'!$F:$F,AI$51) -> 50.99053554 | AJ52: =SUMIFS('4.6 LCOE_Weighted'!$G:$G,'4.6 LCOE_Weighted'!$B:$B,VLOOKUP('3.1 per Market'!AG$49,'3. LCOE Results>>>'!$G$3:$H$10,2,FALSE),'4.6 LCOE_Weighted'!$C:$C,$N$49,'4.6 LCOE_Weighted'!$D:$D,VLOOKUP($B$2,'3. LCOE Results>>>'!$M$3:$N$5,2,FALSE),'4.6 LCOE_Weighted'!$E:$E,$F$2,'4.6 LCOE_Weighted'!$F:$F,AJ$51) -> 50.67898441 | AL52: CAPEX heating unit | AM52: =SUMIFS('4.6 LCOE_Weighted'!$G:$G,'4.6 LCOE_Weighted'!$B:$B,VLOOKUP('3.1 per Market'!AM$49,'3. LCOE Results>>>'!$G$3:$H$10,2,FALSE),'4.6 LCOE_Weighted'!$C:$C,$N$49,'4.6 LCOE_Weighted'!$D:$D,VLOOKUP($B$2,'3. LCOE Results>>>'!$M$3:$N$5,2,FALSE),'4.6 LCOE_Weighted'!$E:$E,$F$2,'4.6 LCOE_Weighted'!$F:$F,AM$51) -> 54.6608252 | AN52: =SUMIFS('4.6 LCOE_Weighted'!$G:$G,'4.6 LCOE_Weighted'!$B:$B,VLOOKUP('3.1 per Market'!AM$49,'3. LCOE Results>>>'!$G$3:$H$10,2,FALSE),'4.6 LCOE_Weighted'!$C:$C,$N$49,'4.6 LCOE_Weighted'!$D:$D,VLOOKUP($B$2,'3. LCOE Results>>>'!$M$3:$N$5,2,FALSE),'4.6 LCOE_Weighted'!$E:$E,$F$2,'4.6 LCOE_Weighted'!$F:$F,AN$51) -> 53.66799487 | AO52: =SUMIFS('4.6 LCOE_Weighted'!$G:$G,'4.6 LCOE_Weighted'!$B:$B,VLOOKUP('3.1 per Market'!AM$49,'3. LCOE Results>>>'!$G$3:$H$10,2,FALSE),'4.6 LCOE_Weighted'!$C:$C,$N$49,'4.6 LCOE_Weighted'!$D:$D,VLOOKUP($B$2,'3. LCOE Results>>>'!$M$3:$N$5,2,FALSE),'4.6 LCOE_Weighted'!$E:$E,$F$2,'4.6 LCOE_Weighted'!$F:$F,AO$51) -> 52.17874938 | AP52: =SUMIFS('4.6 LCOE_Weighted'!$G:$G,'4.6 LCOE_Weighted'!$B:$B,VLOOKUP('3.1 per Market'!AM$49,'3. LCOE Results>>>'!$G$3:$H$10,2,FALSE),'4.6 LCOE_Weighted'!$C:$C,$N$49,'4.6 LCOE_Weighted'!$D:$D,VLOOKUP($B$2,'3. LCOE Results>>>'!$M$3:$N$5,2,FALSE),'4.6 LCOE_Weighted'!$E:$E,$F$2,'4.6 LCOE_Weighted'!$F:$F,AP$51) -> 51.18591906 | AR52: CAPEX heating unit | AS52: =SUMIFS('4.6 LCOE_Weighted'!$G:$G,'4.6 LCOE_Weighted'!$B:$B,VLOOKUP('3.1 per Market'!AS$49,'3. LCOE Results>>>'!$G$3:$H$10,2,FALSE),'4.6 LCOE_Weighted'!$C:$C,$N$49,'4.6 LCOE_Weighted'!$D:$D,VLOOKUP($B$2,'3. LCOE Results>>>'!$M$3:$N$5,2,FALSE),'4.6 LCOE_Weighted'!$E:$E,$F$2,'4.6 LCOE_Weighted'!$F:$F,AS$51) -> 75.25280186 | AT52: =SUMIFS('4.6 LCOE_Weighted'!$G:$G,'4.6 LCOE_Weighted'!$B:$B,VLOOKUP('3.1 per Market'!AS$49,'3. LCOE Results>>>'!$G$3:$H$10,2,FALSE),'4.6 LCOE_Weighted'!$C:$C,$N$49,'4.6 LCOE_Weighted'!$D:$D,VLOOKUP($B$2,'3. LCOE Results>>>'!$M$3:$N$5,2,FALSE),'4.6 LCOE_Weighted'!$E:$E,$F$2,'4.6 LCOE_Weighted'!$F:$F,AT$51) -> 74.79992642 | AU52: =SUMIFS('4.6 LCOE_Weighted'!$G:$G,'4.6 LCOE_Weighted'!$B:$B,VLOOKUP('3.1 per Market'!AS$49,'3. LCOE Results>>>'!$G$3:$H$10,2,FALSE),'4.6 LCOE_Weighted'!$C:$C,$N$49,'4.6 LCOE_Weighted'!$D:$D,VLOOKUP($B$2,'3. LCOE Results>>>'!$M$3:$N$5,2,FALSE),'4.6 LCOE_Weighted'!$E:$E,$F$2,'4.6 LCOE_Weighted'!$F:$F,AU$51) -> 74.12061327 | AV52: =SUMIFS('4.6 LCOE_Weighted'!$G:$G,'4.6 LCOE_Weighted'!$B:$B,VLOOKUP('3.1 per Market'!AS$49,'3. LCOE Results>>>'!$G$3:$H$10,2,FALSE),'4.6 LCOE_Weighted'!$C:$C,$N$49,'4.6 LCOE_Weighted'!$D:$D,VLOOKUP($B$2,'3. LCOE Results>>>'!$M$3:$N$5,2,FALSE),'4.6 LCOE_Weighted'!$E:$E,$F$2,'4.6 LCOE_Weighted'!$F:$F,AV$51) -> 73.66773783
B53: HP air-to-water | C53: =(SUMIFS('4.6 LCOE_Weighted'!$L:$L,'4.6 LCOE_Weighted'!$B:$B,VLOOKUP('3.1 per Market'!$B53,'3. LCOE Results>>>'!$G$3:$H$10,2,FALSE),'4.6 LCOE_Weighted'!$C:$C,'3.1 per Market'!$B$49,'4.6 LCOE_Weighted'!$D:$D,VLOOKUP($B$2,'3. LCOE Results>>>'!$M$3:$N$5,2,FALSE),'4.6 LCOE_Weighted'!$E:$E,'3.1 per Market'!$F$2,'4.6 LCOE_Weighted'!$F:$F,'3.1 per Market'!C$50)) -> 201.7124998 | D53: =(SUMIFS('4.6 LCOE_Weighted'!$L:$L,'4.6 LCOE_Weighted'!$B:$B,VLOOKUP('3.1 per Market'!$B53,'3. LCOE Results>>>'!$G$3:$H$10,2,FALSE),'4.6 LCOE_Weighted'!$C:$C,'3.1 per Market'!$B$49,'4.6 LCOE_Weighted'!$D:$D,VLOOKUP($B$2,'3. LCOE Results>>>'!$M$3:$N$5,2,FALSE),'4.6 LCOE_Weighted'!$E:$E,'3.1 per Market'!$F$2,'4.6 LCOE_Weighted'!$F:$F,'3.1 per Market'!D$50)) -> 203.8092495 | E53: =(SUMIFS('4.6 LCOE_Weighted'!$L:$L,'4.6 LCOE_Weighted'!$B:$B,VLOOKUP('3.1 per Market'!$B53,'3. LCOE Results>>>'!$G$3:$H$10,2,FALSE),'4.6 LCOE_Weighted'!$C:$C,'3.1 per Market'!$B$49,'4.6 LCOE_Weighted'!$D:$D,VLOOKUP($B$2,'3. LCOE Results>>>'!$M$3:$N$5,2,FALSE),'4.6 LCOE_Weighted'!$E:$E,'3.1 per Market'!$F$2,'4.6 LCOE_Weighted'!$F:$F,'3.1 per Market'!E$50)) -> 196.1496133 | F53: =(SUMIFS('4.6 LCOE_Weighted'!$L:$L,'4.6 LCOE_Weighted'!$B:$B,VLOOKUP('3.1 per Market'!$B53,'3. LCOE Results>>>'!$G$3:$H$10,2,FALSE),'4.6 LCOE_Weighted'!$C:$C,'3.1 per Market'!$B$49,'4.6 LCOE_Weighted'!$D:$D,VLOOKUP($B$2,'3. LCOE Results>>>'!$M$3:$N$5,2,FALSE),'4.6 LCOE_Weighted'!$E:$E,'3.1 per Market'!$F$2,'4.6 LCOE_Weighted'!$F:$F,'3.1 per Market'!F$50)) -> 188.72301 | G53: =(SUMIFS('4.6 LCOE_Weighted'!$L:$L,'4.6 LCOE_Weighted'!$B:$B,VLOOKUP('3.1 per Market'!$B53,'3. LCOE Results>>>'!$G$3:$H$10,2,FALSE),'4.6 LCOE_Weighted'!$C:$C,'3.1 per Market'!$B$49,'4.6 LCOE_Weighted'!$D:$D,VLOOKUP($B$2,'3. LCOE Results>>>'!$M$3:$N$5,2,FALSE),'4.6 LCOE_Weighted'!$E:$E,'3.1 per Market'!$F$2,'4.6 LCOE_Weighted'!$F:$F,'3.1 per Market'!G$50)) -> 181.5653437 | H53: =(SUMIFS('4.6 LCOE_Weighted'!$L:$L,'4.6 LCOE_Weighted'!$B:$B,VLOOKUP('3.1 per Market'!$B53,'3. LCOE Results>>>'!$G$3:$H$10,2,FALSE),'4.6 LCOE_Weighted'!$C:$C,'3.1 per Market'!$B$49,'4.6 LCOE_Weighted'!$D:$D,VLOOKUP($B$2,'3. LCOE Results>>>'!$M$3:$N$5,2,FALSE),'4.6 LCOE_Weighted'!$E:$E,'3.1 per Market'!$F$2,'4.6 LCOE_Weighted'!$F:$F,'3.1 per Market'!H$50)) -> 174.6913352 | I53: =(SUMIFS('4.6 LCOE_Weighted'!$L:$L,'4.6 LCOE_Weighted'!$B:$B,VLOOKUP('3.1 per Market'!$B53,'3. LCOE Results>>>'!$G$3:$H$10,2,FALSE),'4.6 LCOE_Weighted'!$C:$C,'3.1 per Market'!$B$49,'4.6 LCOE_Weighted'!$D:$D,VLOOKUP($B$2,'3. LCOE Results>>>'!$M$3:$N$5,2,FALSE),'4.6 LCOE_Weighted'!$E:$E,'3.1 per Market'!$F$2,'4.6 LCOE_Weighted'!$F:$F,'3.1 per Market'!I$50)) -> 168.1334468 | J53: =(SUMIFS('4.6 LCOE_Weighted'!$L:$L,'4.6 LCOE_Weighted'!$B:$B,VLOOKUP('3.1 per Market'!$B53,'3. LCOE Results>>>'!$G$3:$H$10,2,FALSE),'4.6 LCOE_Weighted'!$C:$C,'3.1 per Market'!$B$49,'4.6 LCOE_Weighted'!$D:$D,VLOOKUP($B$2,'3. LCOE Results>>>'!$M$3:$N$5,2,FALSE),'4.6 LCOE_Weighted'!$E:$E,'3.1 per Market'!$F$2,'4.6 LCOE_Weighted'!$F:$F,'3.1 per Market'!J$50)) -> 161.9062302 | K53: =(SUMIFS('4.6 LCOE_Weighted'!$L:$L,'4.6 LCOE_Weighted'!$B:$B,VLOOKUP('3.1 per Market'!$B53,'3. LCOE Results>>>'!$G$3:$H$10,2,FALSE),'4.6 LCOE_Weighted'!$C:$C,'3.1 per Market'!$B$49,'4.6 LCOE_Weighted'!$D:$D,VLOOKUP($B$2,'3. LCOE Results>>>'!$M$3:$N$5,2,FALSE),'4.6 LCOE_Weighted'!$E:$E,'3.1 per Market'!$F$2,'4.6 LCOE_Weighted'!$F:$F,'3.1 per Market'!K$50)) -> 156.0249525 | N53: CAPEX add. equipmet | O53: =SUMIFS('4.6 LCOE_Weighted'!$H:$H,'4.6 LCOE_Weighted'!$B:$B,VLOOKUP('3.1 per Market'!O$50,'3. LCOE Results>>>'!$G$3:$H$10,2,FALSE),'4.6 LCOE_Weighted'!$C:$C,$N$49,'4.6 LCOE_Weighted'!$D:$D,VLOOKUP($B$2,'3. LCOE Results>>>'!$M$3:$N$5,2,FALSE),'4.6 LCOE_Weighted'!$E:$E,$F$2,'4.6 LCOE_Weighted'!$F:$F,O$51) -> 10.10325183 | P53: =SUMIFS('4.6 LCOE_Weighted'!$H:$H,'4.6 LCOE_Weighted'!$B:$B,VLOOKUP('3.1 per Market'!O$50,'3. LCOE Results>>>'!$G$3:$H$10,2,FALSE),'4.6 LCOE_Weighted'!$C:$C,$N$49,'4.6 LCOE_Weighted'!$D:$D,VLOOKUP($B$2,'3. LCOE Results>>>'!$M$3:$N$5,2,FALSE),'4.6 LCOE_Weighted'!$E:$E,$F$2,'4.6 LCOE_Weighted'!$F:$F,P$51) -> 10.10325183 | Q53: =SUMIFS('4.6 LCOE_Weighted'!$H:$H,'4.6 LCOE_Weighted'!$B:$B,VLOOKUP('3.1 per Market'!O$50,'3. LCOE Results>>>'!$G$3:$H$10,2,FALSE),'4.6 LCOE_Weighted'!$C:$C,$N$49,'4.6 LCOE_Weighted'!$D:$D,VLOOKUP($B$2,'3. LCOE Results>>>'!$M$3:$N$5,2,FALSE),'4.6 LCOE_Weighted'!$E:$E,$F$2,'4.6 LCOE_Weighted'!$F:$F,Q$51) -> 10.10325183 | R53: =SUMIFS('4.6 LCOE_Weighted'!$H:$H,'4.6 LCOE_Weighted'!$B:$B,VLOOKUP('3.1 per Market'!R$50,'3. LCOE Results>>>'!$G$3:$H$10,2,FALSE),'4.6 LCOE_Weighted'!$C:$C,$N$49,'4.6 LCOE_Weighted'!$D:$D,VLOOKUP($B$2,'3. LCOE Results>>>'!$M$3:$N$5,2,FALSE),'4.6 LCOE_Weighted'!$E:$E,$F$2,'4.6 LCOE_Weighted'!$F:$F,R$51) -> 10.10325183 | T53: CAPEX add. equipmet | U53: =SUMIFS('4.6 LCOE_Weighted'!$H:$H,'4.6 LCOE_Weighted'!$B:$B,VLOOKUP('3.1 per Market'!U$49,'3. LCOE Results>>>'!$G$3:$H$10,2,FALSE),'4.6 LCOE_Weighted'!$C:$C,$N$49,'4.6 LCOE_Weighted'!$D:$D,VLOOKUP($B$2,'3. LCOE Results>>>'!$M$3:$N$5,2,FALSE),'4.6 LCOE_Weighted'!$E:$E,$F$2,'4.6 LCOE_Weighted'!$F:$F,U$51) -> 17.60040577 | V53: =SUMIFS('4.6 LCOE_Weighted'!$H:$H,'4.6 LCOE_Weighted'!$B:$B,VLOOKUP('3.1 per Market'!U$49,'3. LCOE Results>>>'!$G$3:$H$10,2,FALSE),'4.6 LCOE_Weighted'!$C:$C,$N$49,'4.6 LCOE_Weighted'!$D:$D,VLOOKUP($B$2,'3. LCOE Results>>>'!$M$3:$N$5,2,FALSE),'4.6 LCOE_Weighted'!$E:$E,$F$2,'4.6 LCOE_Weighted'!$F:$F,V$51) -> 17.27746255 | W53: =SUMIFS('4.6 LCOE_Weighted'!$H:$H,'4.6 LCOE_Weighted'!$B:$B,VLOOKUP('3.1 per Market'!U$49,'3. LCOE Results>>>'!$G$3:$H$10,2,FALSE),'4.6 LCOE_Weighted'!$C:$C,$N$49,'4.6 LCOE_Weighted'!$D:$D,VLOOKUP($B$2,'3. LCOE Results>>>'!$M$3:$N$5,2,FALSE),'4.6 LCOE_Weighted'!$E:$E,$F$2,'4.6 LCOE_Weighted'!$F:$F,W$51) -> 16.79304771 | X53: =SUMIFS('4.6 LCOE_Weighted'!$H:$H,'4.6 LCOE_Weighted'!$B:$B,VLOOKUP('3.1 per Market'!U$49,'3. LCOE Results>>>'!$G$3:$H$10,2,FALSE),'4.6 LCOE_Weighted'!$C:$C,$N$49,'4.6 LCOE_Weighted'!$D:$D,VLOOKUP($B$2,'3. LCOE Results>>>'!$M$3:$N$5,2,FALSE),'4.6 LCOE_Weighted'!$E:$E,$F$2,'4.6 LCOE_Weighted'!$F:$F,X$51) -> 16.47010449 | Z53: CAPEX add. equipmet | AA53: =SUMIFS('4.6 LCOE_Weighted'!$H:$H,'4.6 LCOE_Weighted'!$B:$B,VLOOKUP('3.1 per Market'!AA$49,'3. LCOE Results>>>'!$G$3:$H$10,2,FALSE),'4.6 LCOE_Weighted'!$C:$C,$N$49,'4.6 LCOE_Weighted'!$D:$D,VLOOKUP($B$2,'3. LCOE Results>>>'!$M$3:$N$5,2,FALSE),'4.6 LCOE_Weighted'!$E:$E,$F$2,'4.6 LCOE_Weighted'!$F:$F,AA$51) -> 31.08651744 | AB53: =SUMIFS('4.6 LCOE_Weighted'!$H:$H,'4.6 LCOE_Weighted'!$B:$B,VLOOKUP('3.1 per Market'!AA$49,'3. LCOE Results>>>'!$G$3:$H$10,2,FALSE),'4.6 LCOE_Weighted'!$C:$C,$N$49,'4.6 LCOE_Weighted'!$D:$D,VLOOKUP($B$2,'3. LCOE Results>>>'!$M$3:$N$5,2,FALSE),'4.6 LCOE_Weighted'!$E:$E,$F$2,'4.6 LCOE_Weighted'!$F:$F,AB$51) -> 31.08651744 | AC53: =SUMIFS('4.6 LCOE_Weighted'!$H:$H,'4.6 LCOE_Weighted'!$B:$B,VLOOKUP('3.1 per Market'!AA$49,'3. LCOE Results>>>'!$G$3:$H$10,2,FALSE),'4.6 LCOE_Weighted'!$C:$C,$N$49,'4.6 LCOE_Weighted'!$D:$D,VLOOKUP($B$2,'3. LCOE Results>>>'!$M$3:$N$5,2,FALSE),'4.6 LCOE_Weighted'!$E:$E,$F$2,'4.6 LCOE_Weighted'!$F:$F,AC$51) -> 31.08651744 | AD53: =SUMIFS('4.6 LCOE_Weighted'!$H:$H,'4.6 LCOE_Weighted'!$B:$B,VLOOKUP('3.1 per Market'!AA$49,'3. LCOE Results>>>'!$G$3:$H$10,2,FALSE),'4.6 LCOE_Weighted'!$C:$C,$N$49,'4.6 LCOE_Weighted'!$D:$D,VLOOKUP($B$2,'3. LCOE Results>>>'!$M$3:$N$5,2,FALSE),'4.6 LCOE_Weighted'!$E:$E,$F$2,'4.6 LCOE_Weighted'!$F:$F,AD$51) -> 31.08651744 | AF53: CAPEX add. equipmet | AG53: =SUMIFS('4.6 LCOE_Weighted'!$H:$H,'4.6 LCOE_Weighted'!$B:$B,VLOOKUP('3.1 per Market'!AG$49,'3. LCOE Results>>>'!$G$3:$H$10,2,FALSE),'4.6 LCOE_Weighted'!$C:$C,$N$49,'4.6 LCOE_Weighted'!$D:$D,VLOOKUP($B$2,'3. LCOE Results>>>'!$M$3:$N$5,2,FALSE),'4.6 LCOE_Weighted'!$E:$E,$F$2,'4.6 LCOE_Weighted'!$F:$F,AG$51) -> 35.38672943 | AH53: =SUMIFS('4.6 LCOE_Weighted'!$H:$H,'4.6 LCOE_Weighted'!$B:$B,VLOOKUP('3.1 per Market'!AG$49,'3. LCOE Results>>>'!$G$3:$H$10,2,FALSE),'4.6 LCOE_Weighted'!$C:$C,$N$49,'4.6 LCOE_Weighted'!$D:$D,VLOOKUP($B$2,'3. LCOE Results>>>'!$M$3:$N$5,2,FALSE),'4.6 LCOE_Weighted'!$E:$E,$F$2,'4.6 LCOE_Weighted'!$F:$F,AH$51) -> 34.73743164 | AI53: =SUMIFS('4.6 LCOE_Weighted'!$H:$H,'4.6 LCOE_Weighted'!$B:$B,VLOOKUP('3.1 per Market'!AG$49,'3. LCOE Results>>>'!$G$3:$H$10,2,FALSE),'4.6 LCOE_Weighted'!$C:$C,$N$49,'4.6 LCOE_Weighted'!$D:$D,VLOOKUP($B$2,'3. LCOE Results>>>'!$M$3:$N$5,2,FALSE),'4.6 LCOE_Weighted'!$E:$E,$F$2,'4.6 LCOE_Weighted'!$F:$F,AI$51) -> 33.76348496 | AJ53: =SUMIFS('4.6 LCOE_Weighted'!$H:$H,'4.6 LCOE_Weighted'!$B:$B,VLOOKUP('3.1 per Market'!AG$49,'3. LCOE Results>>>'!$G$3:$H$10,2,FALSE),'4.6 LCOE_Weighted'!$C:$C,$N$49,'4.6 LCOE_Weighted'!$D:$D,VLOOKUP($B$2,'3. LCOE Results>>>'!$M$3:$N$5,2,FALSE),'4.6 LCOE_Weighted'!$E:$E,$F$2,'4.6 LCOE_Weighted'!$F:$F,AJ$51) -> 33.11418717 | AL53: CAPEX add. equipmet | AM53: =SUMIFS('4.6 LCOE_Weighted'!$H:$H,'4.6 LCOE_Weighted'!$B:$B,VLOOKUP('3.1 per Market'!AM$49,'3. LCOE Results>>>'!$G$3:$H$10,2,FALSE),'4.6 LCOE_Weighted'!$C:$C,$N$49,'4.6 LCOE_Weighted'!$D:$D,VLOOKUP($B$2,'3. LCOE Results>>>'!$M$3:$N$5,2,FALSE),'4.6 LCOE_Weighted'!$E:$E,$F$2,'4.6 LCOE_Weighted'!$F:$F,AM$51) -> 10.38266672 | AN53: =SUMIFS('4.6 LCOE_Weighted'!$H:$H,'4.6 LCOE_Weighted'!$B:$B,VLOOKUP('3.1 per Market'!AM$49,'3. LCOE Results>>>'!$G$3:$H$10,2,FALSE),'4.6 LCOE_Weighted'!$C:$C,$N$49,'4.6 LCOE_Weighted'!$D:$D,VLOOKUP($B$2,'3. LCOE Results>>>'!$M$3:$N$5,2,FALSE),'4.6 LCOE_Weighted'!$E:$E,$F$2,'4.6 LCOE_Weighted'!$F:$F,AN$51) -> 10.38266672 | AO53: =SUMIFS('4.6 LCOE_Weighted'!$H:$H,'4.6 LCOE_Weighted'!$B:$B,VLOOKUP('3.1 per Market'!AM$49,'3. LCOE Results>>>'!$G$3:$H$10,2,FALSE),'4.6 LCOE_Weighted'!$C:$C,$N$49,'4.6 LCOE_Weighted'!$D:$D,VLOOKUP($B$2,'3. LCOE Results>>>'!$M$3:$N$5,2,FALSE),'4.6 LCOE_Weighted'!$E:$E,$F$2,'4.6 LCOE_Weighted'!$F:$F,AO$51) -> 10.38266672 | AP53: =SUMIFS('4.6 LCOE_Weighted'!$H:$H,'4.6 LCOE_Weighted'!$B:$B,VLOOKUP('3.1 per Market'!AM$49,'3. LCOE Results>>>'!$G$3:$H$10,2,FALSE),'4.6 LCOE_Weighted'!$C:$C,$N$49,'4.6 LCOE_Weighted'!$D:$D,VLOOKUP($B$2,'3. LCOE Results>>>'!$M$3:$N$5,2,FALSE),'4.6 LCOE_Weighted'!$E:$E,$F$2,'4.6 LCOE_Weighted'!$F:$F,AP$51) -> 10.38266672 | AR53: CAPEX add. equipmet | AS53: =SUMIFS('4.6 LCOE_Weighted'!$H:$H,'4.6 LCOE_Weighted'!$B:$B,VLOOKUP('3.1 per Market'!AS$49,'3. LCOE Results>>>'!$G$3:$H$10,2,FALSE),'4.6 LCOE_Weighted'!$C:$C,$N$49,'4.6 LCOE_Weighted'!$D:$D,VLOOKUP($B$2,'3. LCOE Results>>>'!$M$3:$N$5,2,FALSE),'4.6 LCOE_Weighted'!$E:$E,$F$2,'4.6 LCOE_Weighted'!$F:$F,AS$51) -> 27.57648885 | AT53: =SUMIFS('4.6 LCOE_Weighted'!$H:$H,'4.6 LCOE_Weighted'!$B:$B,VLOOKUP('3.1 per Market'!AS$49,'3. LCOE Results>>>'!$G$3:$H$10,2,FALSE),'4.6 LCOE_Weighted'!$C:$C,$N$49,'4.6 LCOE_Weighted'!$D:$D,VLOOKUP($B$2,'3. LCOE Results>>>'!$M$3:$N$5,2,FALSE),'4.6 LCOE_Weighted'!$E:$E,$F$2,'4.6 LCOE_Weighted'!$F:$F,AT$51) -> 27.07049823 | AU53: =SUMIFS('4.6 LCOE_Weighted'!$H:$H,'4.6 LCOE_Weighted'!$B:$B,VLOOKUP('3.1 per Market'!AS$49,'3. LCOE Results>>>'!$G$3:$H$10,2,FALSE),'4.6 LCOE_Weighted'!$C:$C,$N$49,'4.6 LCOE_Weighted'!$D:$D,VLOOKUP($B$2,'3. LCOE Results>>>'!$M$3:$N$5,2,FALSE),'4.6 LCOE_Weighted'!$E:$E,$F$2,'4.6 LCOE_Weighted'!$F:$F,AU$51) -> 26.3115123 | AV53: =SUMIFS('4.6 LCOE_Weighted'!$H:$H,'4.6 LCOE_Weighted'!$B:$B,VLOOKUP('3.1 per Market'!AS$49,'3. LCOE Results>>>'!$G$3:$H$10,2,FALSE),'4.6 LCOE_Weighted'!$C:$C,$N$49,'4.6 LCOE_Weighted'!$D:$D,VLOOKUP($B$2,'3. LCOE Results>>>'!$M$3:$N$5,2,FALSE),'4.6 LCOE_Weighted'!$E:$E,$F$2,'4.6 LCOE_Weighted'!$F:$F,AV$51) -> 25.80552168
B54: Pellet boiler | C54: =(SUMIFS('4.6 LCOE_Weighted'!$L:$L,'4.6 LCOE_Weighted'!$B:$B,VLOOKUP('3.1 per Market'!$B54,'3. LCOE Results>>>'!$G$3:$H$10,2,FALSE),'4.6 LCOE_Weighted'!$C:$C,'3.1 per Market'!$B$49,'4.6 LCOE_Weighted'!$D:$D,VLOOKUP($B$2,'3. LCOE Results>>>'!$M$3:$N$5,2,FALSE),'4.6 LCOE_Weighted'!$E:$E,'3.1 per Market'!$F$2,'4.6 LCOE_Weighted'!$F:$F,'3.1 per Market'!C$50)) -> 173.2582756 | D54: =(SUMIFS('4.6 LCOE_Weighted'!$L:$L,'4.6 LCOE_Weighted'!$B:$B,VLOOKUP('3.1 per Market'!$B54,'3. LCOE Results>>>'!$G$3:$H$10,2,FALSE),'4.6 LCOE_Weighted'!$C:$C,'3.1 per Market'!$B$49,'4.6 LCOE_Weighted'!$D:$D,VLOOKUP($B$2,'3. LCOE Results>>>'!$M$3:$N$5,2,FALSE),'4.6 LCOE_Weighted'!$E:$E,'3.1 per Market'!$F$2,'4.6 LCOE_Weighted'!$F:$F,'3.1 per Market'!D$50)) -> 177.6224831 | E54: =(SUMIFS('4.6 LCOE_Weighted'!$L:$L,'4.6 LCOE_Weighted'!$B:$B,VLOOKUP('3.1 per Market'!$B54,'3. LCOE Results>>>'!$G$3:$H$10,2,FALSE),'4.6 LCOE_Weighted'!$C:$C,'3.1 per Market'!$B$49,'4.6 LCOE_Weighted'!$D:$D,VLOOKUP($B$2,'3. LCOE Results>>>'!$M$3:$N$5,2,FALSE),'4.6 LCOE_Weighted'!$E:$E,'3.1 per Market'!$F$2,'4.6 LCOE_Weighted'!$F:$F,'3.1 per Market'!E$50)) -> 170.8089543 | F54: =(SUMIFS('4.6 LCOE_Weighted'!$L:$L,'4.6 LCOE_Weighted'!$B:$B,VLOOKUP('3.1 per Market'!$B54,'3. LCOE Results>>>'!$G$3:$H$10,2,FALSE),'4.6 LCOE_Weighted'!$C:$C,'3.1 per Market'!$B$49,'4.6 LCOE_Weighted'!$D:$D,VLOOKUP($B$2,'3. LCOE Results>>>'!$M$3:$N$5,2,FALSE),'4.6 LCOE_Weighted'!$E:$E,'3.1 per Market'!$F$2,'4.6 LCOE_Weighted'!$F:$F,'3.1 per Market'!F$50)) -> 165.3896037 | G54: =(SUMIFS('4.6 LCOE_Weighted'!$L:$L,'4.6 LCOE_Weighted'!$B:$B,VLOOKUP('3.1 per Market'!$B54,'3. LCOE Results>>>'!$G$3:$H$10,2,FALSE),'4.6 LCOE_Weighted'!$C:$C,'3.1 per Market'!$B$49,'4.6 LCOE_Weighted'!$D:$D,VLOOKUP($B$2,'3. LCOE Results>>>'!$M$3:$N$5,2,FALSE),'4.6 LCOE_Weighted'!$E:$E,'3.1 per Market'!$F$2,'4.6 LCOE_Weighted'!$F:$F,'3.1 per Market'!G$50)) -> 161.9987325 | H54: =(SUMIFS('4.6 LCOE_Weighted'!$L:$L,'4.6 LCOE_Weighted'!$B:$B,VLOOKUP('3.1 per Market'!$B54,'3. LCOE Results>>>'!$G$3:$H$10,2,FALSE),'4.6 LCOE_Weighted'!$C:$C,'3.1 per Market'!$B$49,'4.6 LCOE_Weighted'!$D:$D,VLOOKUP($B$2,'3. LCOE Results>>>'!$M$3:$N$5,2,FALSE),'4.6 LCOE_Weighted'!$E:$E,'3.1 per Market'!$F$2,'4.6 LCOE_Weighted'!$F:$F,'3.1 per Market'!H$50)) -> 159.5630504 | I54: =(SUMIFS('4.6 LCOE_Weighted'!$L:$L,'4.6 LCOE_Weighted'!$B:$B,VLOOKUP('3.1 per Market'!$B54,'3. LCOE Results>>>'!$G$3:$H$10,2,FALSE),'4.6 LCOE_Weighted'!$C:$C,'3.1 per Market'!$B$49,'4.6 LCOE_Weighted'!$D:$D,VLOOKUP($B$2,'3. LCOE Results>>>'!$M$3:$N$5,2,FALSE),'4.6 LCOE_Weighted'!$E:$E,'3.1 per Market'!$F$2,'4.6 LCOE_Weighted'!$F:$F,'3.1 per Market'!I$50)) -> 157.5145568 | J54: =(SUMIFS('4.6 LCOE_Weighted'!$L:$L,'4.6 LCOE_Weighted'!$B:$B,VLOOKUP('3.1 per Market'!$B54,'3. LCOE Results>>>'!$G$3:$H$10,2,FALSE),'4.6 LCOE_Weighted'!$C:$C,'3.1 per Market'!$B$49,'4.6 LCOE_Weighted'!$D:$D,VLOOKUP($B$2,'3. LCOE Results>>>'!$M$3:$N$5,2,FALSE),'4.6 LCOE_Weighted'!$E:$E,'3.1 per Market'!$F$2,'4.6 LCOE_Weighted'!$F:$F,'3.1 per Market'!J$50)) -> 155.87187 | K54: =(SUMIFS('4.6 LCOE_Weighted'!$L:$L,'4.6 LCOE_Weighted'!$B:$B,VLOOKUP('3.1 per Market'!$B54,'3. LCOE Results>>>'!$G$3:$H$10,2,FALSE),'4.6 LCOE_Weighted'!$C:$C,'3.1 per Market'!$B$49,'4.6 LCOE_Weighted'!$D:$D,VLOOKUP($B$2,'3. LCOE Results>>>'!$M$3:$N$5,2,FALSE),'4.6 LCOE_Weighted'!$E:$E,'3.1 per Market'!$F$2,'4.6 LCOE_Weighted'!$F:$F,'3.1 per Market'!K$50)) -> 154.6509608 | N54: OPEX heating unit | O54: =SUMIFS('4.6 LCOE_Weighted'!$I:$I,'4.6 LCOE_Weighted'!$B:$B,VLOOKUP('3.1 per Market'!O$50,'3. LCOE Results>>>'!$G$3:$H$10,2,FALSE),'4.6 LCOE_Weighted'!$C:$C,$N$49,'4.6 LCOE_Weighted'!$D:$D,VLOOKUP($B$2,'3. LCOE Results>>>'!$M$3:$N$5,2,FALSE),'4.6 LCOE_Weighted'!$E:$E,$F$2,'4.6 LCOE_Weighted'!$F:$F,O$51) -> 8.99899998 | P54: =SUMIFS('4.6 LCOE_Weighted'!$I:$I,'4.6 LCOE_Weighted'!$B:$B,VLOOKUP('3.1 per Market'!O$50,'3. LCOE Results>>>'!$G$3:$H$10,2,FALSE),'4.6 LCOE_Weighted'!$C:$C,$N$49,'4.6 LCOE_Weighted'!$D:$D,VLOOKUP($B$2,'3. LCOE Results>>>'!$M$3:$N$5,2,FALSE),'4.6 LCOE_Weighted'!$E:$E,$F$2,'4.6 LCOE_Weighted'!$F:$F,P$51) -> 8.99899998 | Q54: =SUMIFS('4.6 LCOE_Weighted'!$I:$I,'4.6 LCOE_Weighted'!$B:$B,VLOOKUP('3.1 per Market'!O$50,'3. LCOE Results>>>'!$G$3:$H$10,2,FALSE),'4.6 LCOE_Weighted'!$C:$C,$N$49,'4.6 LCOE_Weighted'!$D:$D,VLOOKUP($B$2,'3. LCOE Results>>>'!$M$3:$N$5,2,FALSE),'4.6 LCOE_Weighted'!$E:$E,$F$2,'4.6 LCOE_Weighted'!$F:$F,Q$51) -> 8.99899998 | R54: =SUMIFS('4.6 LCOE_Weighted'!$I:$I,'4.6 LCOE_Weighted'!$B:$B,VLOOKUP('3.1 per Market'!R$50,'3. LCOE Results>>>'!$G$3:$H$10,2,FALSE),'4.6 LCOE_Weighted'!$C:$C,$N$49,'4.6 LCOE_Weighted'!$D:$D,VLOOKUP($B$2,'3. LCOE Results>>>'!$M$3:$N$5,2,FALSE),'4.6 LCOE_Weighted'!$E:$E,$F$2,'4.6 LCOE_Weighted'!$F:$F,R$51) -> 8.99899998 | T54: OPEX heating unit | U54: =SUMIFS('4.6 LCOE_Weighted'!$I:$I,'4.6 LCOE_Weighted'!$B:$B,VLOOKUP('3.1 per Market'!U$49,'3. LCOE Results>>>'!$G$3:$H$10,2,FALSE),'4.6 LCOE_Weighted'!$C:$C,$N$49,'4.6 LCOE_Weighted'!$D:$D,VLOOKUP($B$2,'3. LCOE Results>>>'!$M$3:$N$5,2,FALSE),'4.6 LCOE_Weighted'!$E:$E,$F$2,'4.6 LCOE_Weighted'!$F:$F,U$51) -> 11.28344308 | V54: =SUMIFS('4.6 LCOE_Weighted'!$I:$I,'4.6 LCOE_Weighted'!$B:$B,VLOOKUP('3.1 per Market'!U$49,'3. LCOE Results>>>'!$G$3:$H$10,2,FALSE),'4.6 LCOE_Weighted'!$C:$C,$N$49,'4.6 LCOE_Weighted'!$D:$D,VLOOKUP($B$2,'3. LCOE Results>>>'!$M$3:$N$5,2,FALSE),'4.6 LCOE_Weighted'!$E:$E,$F$2,'4.6 LCOE_Weighted'!$F:$F,V$51) -> 11.28344308 | W54: =SUMIFS('4.6 LCOE_Weighted'!$I:$I,'4.6 LCOE_Weighted'!$B:$B,VLOOKUP('3.1 per Market'!U$49,'3. LCOE Results>>>'!$G$3:$H$10,2,FALSE),'4.6 LCOE_Weighted'!$C:$C,$N$49,'4.6 LCOE_Weighted'!$D:$D,VLOOKUP($B$2,'3. LCOE Results>>>'!$M$3:$N$5,2,FALSE),'4.6 LCOE_Weighted'!$E:$E,$F$2,'4.6 LCOE_Weighted'!$F:$F,W$51) -> 11.28344308 | X54: =SUMIFS('4.6 LCOE_Weighted'!$I:$I,'4.6 LCOE_Weighted'!$B:$B,VLOOKUP('3.1 per Market'!U$49,'3. LCOE Results>>>'!$G$3:$H$10,2,FALSE),'4.6 LCOE_Weighted'!$C:$C,$N$49,'4.6 LCOE_Weighted'!$D:$D,VLOOKUP($B$2,'3. LCOE Results>>>'!$M$3:$N$5,2,FALSE),'4.6 LCOE_Weighted'!$E:$E,$F$2,'4.6 LCOE_Weighted'!$F:$F,X$51) -> 11.28344308 | Z54: OPEX heating unit | AA54: =SUMIFS('4.6 LCOE_Weighted'!$I:$I,'4.6 LCOE_Weighted'!$B:$B,VLOOKUP('3.1 per Market'!AA$49,'3. LCOE Results>>>'!$G$3:$H$10,2,FALSE),'4.6 LCOE_Weighted'!$C:$C,$N$49,'4.6 LCOE_Weighted'!$D:$D,VLOOKUP($B$2,'3. LCOE Results>>>'!$M$3:$N$5,2,FALSE),'4.6 LCOE_Weighted'!$E:$E,$F$2,'4.6 LCOE_Weighted'!$F:$F,AA$51) -> 8.799233109 | AB54: =SUMIFS('4.6 LCOE_Weighted'!$I:$I,'4.6 LCOE_Weighted'!$B:$B,VLOOKUP('3.1 per Market'!AA$49,'3. LCOE Results>>>'!$G$3:$H$10,2,FALSE),'4.6 LCOE_Weighted'!$C:$C,$N$49,'4.6 LCOE_Weighted'!$D:$D,VLOOKUP($B$2,'3. LCOE Results>>>'!$M$3:$N$5,2,FALSE),'4.6 LCOE_Weighted'!$E:$E,$F$2,'4.6 LCOE_Weighted'!$F:$F,AB$51) -> 8.799233109 | AC54: =SUMIFS('4.6 LCOE_Weighted'!$I:$I,'4.6 LCOE_Weighted'!$B:$B,VLOOKUP('3.1 per Market'!AA$49,'3. LCOE Results>>>'!$G$3:$H$10,2,FALSE),'4.6 LCOE_Weighted'!$C:$C,$N$49,'4.6 LCOE_Weighted'!$D:$D,VLOOKUP($B$2,'3. LCOE Results>>>'!$M$3:$N$5,2,FALSE),'4.6 LCOE_Weighted'!$E:$E,$F$2,'4.6 LCOE_Weighted'!$F:$F,AC$51) -> 8.799233109 | AD54: =SUMIFS('4.6 LCOE_Weighted'!$I:$I,'4.6 LCOE_Weighted'!$B:$B,VLOOKUP('3.1 per Market'!AA$49,'3. LCOE Results>>>'!$G$3:$H$10,2,FALSE),'4.6 LCOE_Weighted'!$C:$C,$N$49,'4.6 LCOE_Weighted'!$D:$D,VLOOKUP($B$2,'3. LCOE Results>>>'!$M$3:$N$5,2,FALSE),'4.6 LCOE_Weighted'!$E:$E,$F$2,'4.6 LCOE_Weighted'!$F:$F,AD$51) -> 8.799233109 | AF54: OPEX heating unit | AG54: =SUMIFS('4.6 LCOE_Weighted'!$I:$I,'4.6 LCOE_Weighted'!$B:$B,VLOOKUP('3.1 per Market'!AG$49,'3. LCOE Results>>>'!$G$3:$H$10,2,FALSE),'4.6 LCOE_Weighted'!$C:$C,$N$49,'4.6 LCOE_Weighted'!$D:$D,VLOOKUP($B$2,'3. LCOE Results>>>'!$M$3:$N$5,2,FALSE),'4.6 LCOE_Weighted'!$E:$E,$F$2,'4.6 LCOE_Weighted'!$F:$F,AG$51) -> 21.17602538 | AH54: =SUMIFS('4.6 LCOE_Weighted'!$I:$I,'4.6 LCOE_Weighted'!$B:$B,VLOOKUP('3.1 per Market'!AG$49,'3. LCOE Results>>>'!$G$3:$H$10,2,FALSE),'4.6 LCOE_Weighted'!$C:$C,$N$49,'4.6 LCOE_Weighted'!$D:$D,VLOOKUP($B$2,'3. LCOE Results>>>'!$M$3:$N$5,2,FALSE),'4.6 LCOE_Weighted'!$E:$E,$F$2,'4.6 LCOE_Weighted'!$F:$F,AH$51) -> 20.76445156 | AI54: =SUMIFS('4.6 LCOE_Weighted'!$I:$I,'4.6 LCOE_Weighted'!$B:$B,VLOOKUP('3.1 per Market'!AG$49,'3. LCOE Results>>>'!$G$3:$H$10,2,FALSE),'4.6 LCOE_Weighted'!$C:$C,$N$49,'4.6 LCOE_Weighted'!$D:$D,VLOOKUP($B$2,'3. LCOE Results>>>'!$M$3:$N$5,2,FALSE),'4.6 LCOE_Weighted'!$E:$E,$F$2,'4.6 LCOE_Weighted'!$F:$F,AI$51) -> 20.14709085 | AJ54: =SUMIFS('4.6 LCOE_Weighted'!$I:$I,'4.6 LCOE_Weighted'!$B:$B,VLOOKUP('3.1 per Market'!AG$49,'3. LCOE Results>>>'!$G$3:$H$10,2,FALSE),'4.6 LCOE_Weighted'!$C:$C,$N$49,'4.6 LCOE_Weighted'!$D:$D,VLOOKUP($B$2,'3. LCOE Results>>>'!$M$3:$N$5,2,FALSE),'4.6 LCOE_Weighted'!$E:$E,$F$2,'4.6 LCOE_Weighted'!$F:$F,AJ$51) -> 19.73551704 | AL54: OPEX heating unit | AM54: =SUMIFS('4.6 LCOE_Weighted'!$I:$I,'4.6 LCOE_Weighted'!$B:$B,VLOOKUP('3.1 per Market'!AM$49,'3. LCOE Results>>>'!$G$3:$H$10,2,FALSE),'4.6 LCOE_Weighted'!$C:$C,$N$49,'4.6 LCOE_Weighted'!$D:$D,VLOOKUP($B$2,'3. LCOE Results>>>'!$M$3:$N$5,2,FALSE),'4.6 LCOE_Weighted'!$E:$E,$F$2,'4.6 LCOE_Weighted'!$F:$F,AM$51) -> 13.54007245 | AN54: =SUMIFS('4.6 LCOE_Weighted'!$I:$I,'4.6 LCOE_Weighted'!$B:$B,VLOOKUP('3.1 per Market'!AM$49,'3. LCOE Results>>>'!$G$3:$H$10,2,FALSE),'4.6 LCOE_Weighted'!$C:$C,$N$49,'4.6 LCOE_Weighted'!$D:$D,VLOOKUP($B$2,'3. LCOE Results>>>'!$M$3:$N$5,2,FALSE),'4.6 LCOE_Weighted'!$E:$E,$F$2,'4.6 LCOE_Weighted'!$F:$F,AN$51) -> 13.54007245 | AO54: =SUMIFS('4.6 LCOE_Weighted'!$I:$I,'4.6 LCOE_Weighted'!$B:$B,VLOOKUP('3.1 per Market'!AM$49,'3. LCOE Results>>>'!$G$3:$H$10,2,FALSE),'4.6 LCOE_Weighted'!$C:$C,$N$49,'4.6 LCOE_Weighted'!$D:$D,VLOOKUP($B$2,'3. LCOE Results>>>'!$M$3:$N$5,2,FALSE),'4.6 LCOE_Weighted'!$E:$E,$F$2,'4.6 LCOE_Weighted'!$F:$F,AO$51) -> 13.54007245 | AP54: =SUMIFS('4.6 LCOE_Weighted'!$I:$I,'4.6 LCOE_Weighted'!$B:$B,VLOOKUP('3.1 per Market'!AM$49,'3. LCOE Results>>>'!$G$3:$H$10,2,FALSE),'4.6 LCOE_Weighted'!$C:$C,$N$49,'4.6 LCOE_Weighted'!$D:$D,VLOOKUP($B$2,'3. LCOE Results>>>'!$M$3:$N$5,2,FALSE),'4.6 LCOE_Weighted'!$E:$E,$F$2,'4.6 LCOE_Weighted'!$F:$F,AP$51) -> 13.54007245 | AR54: OPEX heating unit | AS54: =SUMIFS('4.6 LCOE_Weighted'!$I:$I,'4.6 LCOE_Weighted'!$B:$B,VLOOKUP('3.1 per Market'!AS$49,'3. LCOE Results>>>'!$G$3:$H$10,2,FALSE),'4.6 LCOE_Weighted'!$C:$C,$N$49,'4.6 LCOE_Weighted'!$D:$D,VLOOKUP($B$2,'3. LCOE Results>>>'!$M$3:$N$5,2,FALSE),'4.6 LCOE_Weighted'!$E:$E,$F$2,'4.6 LCOE_Weighted'!$F:$F,AS$51) -> 30.78179059 | AT54: =SUMIFS('4.6 LCOE_Weighted'!$I:$I,'4.6 LCOE_Weighted'!$B:$B,VLOOKUP('3.1 per Market'!AS$49,'3. LCOE Results>>>'!$G$3:$H$10,2,FALSE),'4.6 LCOE_Weighted'!$C:$C,$N$49,'4.6 LCOE_Weighted'!$D:$D,VLOOKUP($B$2,'3. LCOE Results>>>'!$M$3:$N$5,2,FALSE),'4.6 LCOE_Weighted'!$E:$E,$F$2,'4.6 LCOE_Weighted'!$F:$F,AT$51) -> 30.18352068 | AU54: =SUMIFS('4.6 LCOE_Weighted'!$I:$I,'4.6 LCOE_Weighted'!$B:$B,VLOOKUP('3.1 per Market'!AS$49,'3. LCOE Results>>>'!$G$3:$H$10,2,FALSE),'4.6 LCOE_Weighted'!$C:$C,$N$49,'4.6 LCOE_Weighted'!$D:$D,VLOOKUP($B$2,'3. LCOE Results>>>'!$M$3:$N$5,2,FALSE),'4.6 LCOE_Weighted'!$E:$E,$F$2,'4.6 LCOE_Weighted'!$F:$F,AU$51) -> 29.28611581 | AV54: =SUMIFS('4.6 LCOE_Weighted'!$I:$I,'4.6 LCOE_Weighted'!$B:$B,VLOOKUP('3.1 per Market'!AS$49,'3. LCOE Results>>>'!$G$3:$H$10,2,FALSE),'4.6 LCOE_Weighted'!$C:$C,$N$49,'4.6 LCOE_Weighted'!$D:$D,VLOOKUP($B$2,'3. LCOE Results>>>'!$M$3:$N$5,2,FALSE),'4.6 LCOE_Weighted'!$E:$E,$F$2,'4.6 LCOE_Weighted'!$F:$F,AV$51) -> 28.6878459
B55: Gas Solar Hybrid | C55: =(SUMIFS('4.6 LCOE_Weighted'!$L:$L,'4.6 LCOE_Weighted'!$B:$B,VLOOKUP('3.1 per Market'!$B55,'3. LCOE Results>>>'!$G$3:$H$10,2,FALSE),'4.6 LCOE_Weighted'!$C:$C,'3.1 per Market'!$B$49,'4.6 LCOE_Weighted'!$D:$D,VLOOKUP($B$2,'3. LCOE Results>>>'!$M$3:$N$5,2,FALSE),'4.6 LCOE_Weighted'!$E:$E,'3.1 per Market'!$F$2,'4.6 LCOE_Weighted'!$F:$F,'3.1 per Market'!C$50)) -> 161.309943 | D55: =(SUMIFS('4.6 LCOE_Weighted'!$L:$L,'4.6 LCOE_Weighted'!$B:$B,VLOOKUP('3.1 per Market'!$B55,'3. LCOE Results>>>'!$G$3:$H$10,2,FALSE),'4.6 LCOE_Weighted'!$C:$C,'3.1 per Market'!$B$49,'4.6 LCOE_Weighted'!$D:$D,VLOOKUP($B$2,'3. LCOE Results>>>'!$M$3:$N$5,2,FALSE),'4.6 LCOE_Weighted'!$E:$E,'3.1 per Market'!$F$2,'4.6 LCOE_Weighted'!$F:$F,'3.1 per Market'!D$50)) -> 167.7395785 | E55: =(SUMIFS('4.6 LCOE_Weighted'!$L:$L,'4.6 LCOE_Weighted'!$B:$B,VLOOKUP('3.1 per Market'!$B55,'3. LCOE Results>>>'!$G$3:$H$10,2,FALSE),'4.6 LCOE_Weighted'!$C:$C,'3.1 per Market'!$B$49,'4.6 LCOE_Weighted'!$D:$D,VLOOKUP($B$2,'3. LCOE Results>>>'!$M$3:$N$5,2,FALSE),'4.6 LCOE_Weighted'!$E:$E,'3.1 per Market'!$F$2,'4.6 LCOE_Weighted'!$F:$F,'3.1 per Market'!E$50)) -> 162.884171 | F55: =(SUMIFS('4.6 LCOE_Weighted'!$L:$L,'4.6 LCOE_Weighted'!$B:$B,VLOOKUP('3.1 per Market'!$B55,'3. LCOE Results>>>'!$G$3:$H$10,2,FALSE),'4.6 LCOE_Weighted'!$C:$C,'3.1 per Market'!$B$49,'4.6 LCOE_Weighted'!$D:$D,VLOOKUP($B$2,'3. LCOE Results>>>'!$M$3:$N$5,2,FALSE),'4.6 LCOE_Weighted'!$E:$E,'3.1 per Market'!$F$2,'4.6 LCOE_Weighted'!$F:$F,'3.1 per Market'!F$50)) -> 159.3225937 | G55: =(SUMIFS('4.6 LCOE_Weighted'!$L:$L,'4.6 LCOE_Weighted'!$B:$B,VLOOKUP('3.1 per Market'!$B55,'3. LCOE Results>>>'!$G$3:$H$10,2,FALSE),'4.6 LCOE_Weighted'!$C:$C,'3.1 per Market'!$B$49,'4.6 LCOE_Weighted'!$D:$D,VLOOKUP($B$2,'3. LCOE Results>>>'!$M$3:$N$5,2,FALSE),'4.6 LCOE_Weighted'!$E:$E,'3.1 per Market'!$F$2,'4.6 LCOE_Weighted'!$F:$F,'3.1 per Market'!G$50)) -> 157.6748827 | H55: =(SUMIFS('4.6 LCOE_Weighted'!$L:$L,'4.6 LCOE_Weighted'!$B:$B,VLOOKUP('3.1 per Market'!$B55,'3. LCOE Results>>>'!$G$3:$H$10,2,FALSE),'4.6 LCOE_Weighted'!$C:$C,'3.1 per Market'!$B$49,'4.6 LCOE_Weighted'!$D:$D,VLOOKUP($B$2,'3. LCOE Results>>>'!$M$3:$N$5,2,FALSE),'4.6 LCOE_Weighted'!$E:$E,'3.1 per Market'!$F$2,'4.6 LCOE_Weighted'!$F:$F,'3.1 per Market'!H$50)) -> 156.9489704 | I55: =(SUMIFS('4.6 LCOE_Weighted'!$L:$L,'4.6 LCOE_Weighted'!$B:$B,VLOOKUP('3.1 per Market'!$B55,'3. LCOE Results>>>'!$G$3:$H$10,2,FALSE),'4.6 LCOE_Weighted'!$C:$C,'3.1 per Market'!$B$49,'4.6 LCOE_Weighted'!$D:$D,VLOOKUP($B$2,'3. LCOE Results>>>'!$M$3:$N$5,2,FALSE),'4.6 LCOE_Weighted'!$E:$E,'3.1 per Market'!$F$2,'4.6 LCOE_Weighted'!$F:$F,'3.1 per Market'!I$50)) -> 156.4059989 | J55: =(SUMIFS('4.6 LCOE_Weighted'!$L:$L,'4.6 LCOE_Weighted'!$B:$B,VLOOKUP('3.1 per Market'!$B55,'3. LCOE Results>>>'!$G$3:$H$10,2,FALSE),'4.6 LCOE_Weighted'!$C:$C,'3.1 per Market'!$B$49,'4.6 LCOE_Weighted'!$D:$D,VLOOKUP($B$2,'3. LCOE Results>>>'!$M$3:$N$5,2,FALSE),'4.6 LCOE_Weighted'!$E:$E,'3.1 per Market'!$F$2,'4.6 LCOE_Weighted'!$F:$F,'3.1 per Market'!J$50)) -> 156.0651662 | K55: =(SUMIFS('4.6 LCOE_Weighted'!$L:$L,'4.6 LCOE_Weighted'!$B:$B,VLOOKUP('3.1 per Market'!$B55,'3. LCOE Results>>>'!$G$3:$H$10,2,FALSE),'4.6 LCOE_Weighted'!$C:$C,'3.1 per Market'!$B$49,'4.6 LCOE_Weighted'!$D:$D,VLOOKUP($B$2,'3. LCOE Results>>>'!$M$3:$N$5,2,FALSE),'4.6 LCOE_Weighted'!$E:$E,'3.1 per Market'!$F$2,'4.6 LCOE_Weighted'!$F:$F,'3.1 per Market'!K$50)) -> 155.946278 | N55: OPEX add. equipmet | O55: =SUMIFS('4.6 LCOE_Weighted'!$J:$J,'4.6 LCOE_Weighted'!$B:$B,VLOOKUP('3.1 per Market'!O$50,'3. LCOE Results>>>'!$G$3:$H$10,2,FALSE),'4.6 LCOE_Weighted'!$C:$C,$N$49,'4.6 LCOE_Weighted'!$D:$D,VLOOKUP($B$2,'3. LCOE Results>>>'!$M$3:$N$5,2,FALSE),'4.6 LCOE_Weighted'!$E:$E,$F$2,'4.6 LCOE_Weighted'!$F:$F,O$51) -> 1.240079822 | P55: =SUMIFS('4.6 LCOE_Weighted'!$J:$J,'4.6 LCOE_Weighted'!$B:$B,VLOOKUP('3.1 per Market'!O$50,'3. LCOE Results>>>'!$G$3:$H$10,2,FALSE),'4.6 LCOE_Weighted'!$C:$C,$N$49,'4.6 LCOE_Weighted'!$D:$D,VLOOKUP($B$2,'3. LCOE Results>>>'!$M$3:$N$5,2,FALSE),'4.6 LCOE_Weighted'!$E:$E,$F$2,'4.6 LCOE_Weighted'!$F:$F,P$51) -> 1.240079822 | Q55: =SUMIFS('4.6 LCOE_Weighted'!$J:$J,'4.6 LCOE_Weighted'!$B:$B,VLOOKUP('3.1 per Market'!O$50,'3. LCOE Results>>>'!$G$3:$H$10,2,FALSE),'4.6 LCOE_Weighted'!$C:$C,$N$49,'4.6 LCOE_Weighted'!$D:$D,VLOOKUP($B$2,'3. LCOE Results>>>'!$M$3:$N$5,2,FALSE),'4.6 LCOE_Weighted'!$E:$E,$F$2,'4.6 LCOE_Weighted'!$F:$F,Q$51) -> 1.240079822 | R55: =SUMIFS('4.6 LCOE_Weighted'!$J:$J,'4.6 LCOE_Weighted'!$B:$B,VLOOKUP('3.1 per Market'!R$50,'3. LCOE Results>>>'!$G$3:$H$10,2,FALSE),'4.6 LCOE_Weighted'!$C:$C,$N$49,'4.6 LCOE_Weighted'!$D:$D,VLOOKUP($B$2,'3. LCOE Results>>>'!$M$3:$N$5,2,FALSE),'4.6 LCOE_Weighted'!$E:$E,$F$2,'4.6 LCOE_Weighted'!$F:$F,R$51) -> 1.240079822 | T55: OPEX add. equipmet | U55: =SUMIFS('4.6 LCOE_Weighted'!$J:$J,'4.6 LCOE_Weighted'!$B:$B,VLOOKUP('3.1 per Market'!U$49,'3. LCOE Results>>>'!$G$3:$H$10,2,FALSE),'4.6 LCOE_Weighted'!$C:$C,$N$49,'4.6 LCOE_Weighted'!$D:$D,VLOOKUP($B$2,'3. LCOE Results>>>'!$M$3:$N$5,2,FALSE),'4.6 LCOE_Weighted'!$E:$E,$F$2,'4.6 LCOE_Weighted'!$F:$F,U$51) -> 2.324198647 | V55: =SUMIFS('4.6 LCOE_Weighted'!$J:$J,'4.6 LCOE_Weighted'!$B:$B,VLOOKUP('3.1 per Market'!U$49,'3. LCOE Results>>>'!$G$3:$H$10,2,FALSE),'4.6 LCOE_Weighted'!$C:$C,$N$49,'4.6 LCOE_Weighted'!$D:$D,VLOOKUP($B$2,'3. LCOE Results>>>'!$M$3:$N$5,2,FALSE),'4.6 LCOE_Weighted'!$E:$E,$F$2,'4.6 LCOE_Weighted'!$F:$F,V$51) -> 2.324198647 | W55: =SUMIFS('4.6 LCOE_Weighted'!$J:$J,'4.6 LCOE_Weighted'!$B:$B,VLOOKUP('3.1 per Market'!U$49,'3. LCOE Results>>>'!$G$3:$H$10,2,FALSE),'4.6 LCOE_Weighted'!$C:$C,$N$49,'4.6 LCOE_Weighted'!$D:$D,VLOOKUP($B$2,'3. LCOE Results>>>'!$M$3:$N$5,2,FALSE),'4.6 LCOE_Weighted'!$E:$E,$F$2,'4.6 LCOE_Weighted'!$F:$F,W$51) -> 2.324198647 | X55: =SUMIFS('4.6 LCOE_Weighted'!$J:$J,'4.6 LCOE_Weighted'!$B:$B,VLOOKUP('3.1 per Market'!U$49,'3. LCOE Results>>>'!$G$3:$H$10,2,FALSE),'4.6 LCOE_Weighted'!$C:$C,$N$49,'4.6 LCOE_Weighted'!$D:$D,VLOOKUP($B$2,'3. LCOE Results>>>'!$M$3:$N$5,2,FALSE),'4.6 LCOE_Weighted'!$E:$E,$F$2,'4.6 LCOE_Weighted'!$F:$F,X$51) -> 2.324198647 | Z55: OPEX add. equipmet | AA55: =SUMIFS('4.6 LCOE_Weighted'!$J:$J,'4.6 LCOE_Weighted'!$B:$B,VLOOKUP('3.1 per Market'!AA$49,'3. LCOE Results>>>'!$G$3:$H$10,2,FALSE),'4.6 LCOE_Weighted'!$C:$C,$N$49,'4.6 LCOE_Weighted'!$D:$D,VLOOKUP($B$2,'3. LCOE Results>>>'!$M$3:$N$5,2,FALSE),'4.6 LCOE_Weighted'!$E:$E,$F$2,'4.6 LCOE_Weighted'!$F:$F,AA$51) -> 3.815579744 | AB55: =SUMIFS('4.6 LCOE_Weighted'!$J:$J,'4.6 LCOE_Weighted'!$B:$B,VLOOKUP('3.1 per Market'!AA$49,'3. LCOE Results>>>'!$G$3:$H$10,2,FALSE),'4.6 LCOE_Weighted'!$C:$C,$N$49,'4.6 LCOE_Weighted'!$D:$D,VLOOKUP($B$2,'3. LCOE Results>>>'!$M$3:$N$5,2,FALSE),'4.6 LCOE_Weighted'!$E:$E,$F$2,'4.6 LCOE_Weighted'!$F:$F,AB$51) -> 3.815579744 | AC55: =SUMIFS('4.6 LCOE_Weighted'!$J:$J,'4.6 LCOE_Weighted'!$B:$B,VLOOKUP('3.1 per Market'!AA$49,'3. LCOE Results>>>'!$G$3:$H$10,2,FALSE),'4.6 LCOE_Weighted'!$C:$C,$N$49,'4.6 LCOE_Weighted'!$D:$D,VLOOKUP($B$2,'3. LCOE Results>>>'!$M$3:$N$5,2,FALSE),'4.6 LCOE_Weighted'!$E:$E,$F$2,'4.6 LCOE_Weighted'!$F:$F,AC$51) -> 3.815579744 | AD55: =SUMIFS('4.6 LCOE_Weighted'!$J:$J,'4.6 LCOE_Weighted'!$B:$B,VLOOKUP('3.1 per Market'!AA$49,'3. LCOE Results>>>'!$G$3:$H$10,2,FALSE),'4.6 LCOE_Weighted'!$C:$C,$N$49,'4.6 LCOE_Weighted'!$D:$D,VLOOKUP($B$2,'3. LCOE Results>>>'!$M$3:$N$5,2,FALSE),'4.6 LCOE_Weighted'!$E:$E,$F$2,'4.6 LCOE_Weighted'!$F:$F,AD$51) -> 3.815579744 | AF55: OPEX add. equipmet | AG55: =SUMIFS('4.6 LCOE_Weighted'!$J:$J,'4.6 LCOE_Weighted'!$B:$B,VLOOKUP('3.1 per Market'!AG$49,'3. LCOE Results>>>'!$G$3:$H$10,2,FALSE),'4.6 LCOE_Weighted'!$C:$C,$N$49,'4.6 LCOE_Weighted'!$D:$D,VLOOKUP($B$2,'3. LCOE Results>>>'!$M$3:$N$5,2,FALSE),'4.6 LCOE_Weighted'!$E:$E,$F$2,'4.6 LCOE_Weighted'!$F:$F,AG$51) -> 3.640935492 | AH55: =SUMIFS('4.6 LCOE_Weighted'!$J:$J,'4.6 LCOE_Weighted'!$B:$B,VLOOKUP('3.1 per Market'!AG$49,'3. LCOE Results>>>'!$G$3:$H$10,2,FALSE),'4.6 LCOE_Weighted'!$C:$C,$N$49,'4.6 LCOE_Weighted'!$D:$D,VLOOKUP($B$2,'3. LCOE Results>>>'!$M$3:$N$5,2,FALSE),'4.6 LCOE_Weighted'!$E:$E,$F$2,'4.6 LCOE_Weighted'!$F:$F,AH$51) -> 3.570170858 | AI55: =SUMIFS('4.6 LCOE_Weighted'!$J:$J,'4.6 LCOE_Weighted'!$B:$B,VLOOKUP('3.1 per Market'!AG$49,'3. LCOE Results>>>'!$G$3:$H$10,2,FALSE),'4.6 LCOE_Weighted'!$C:$C,$N$49,'4.6 LCOE_Weighted'!$D:$D,VLOOKUP($B$2,'3. LCOE Results>>>'!$M$3:$N$5,2,FALSE),'4.6 LCOE_Weighted'!$E:$E,$F$2,'4.6 LCOE_Weighted'!$F:$F,AI$51) -> 3.464023906 | AJ55: =SUMIFS('4.6 LCOE_Weighted'!$J:$J,'4.6 LCOE_Weighted'!$B:$B,VLOOKUP('3.1 per Market'!AG$49,'3. LCOE Results>>>'!$G$3:$H$10,2,FALSE),'4.6 LCOE_Weighted'!$C:$C,$N$49,'4.6 LCOE_Weighted'!$D:$D,VLOOKUP($B$2,'3. LCOE Results>>>'!$M$3:$N$5,2,FALSE),'4.6 LCOE_Weighted'!$E:$E,$F$2,'4.6 LCOE_Weighted'!$F:$F,AJ$51) -> 3.393259271 | AL55: OPEX add. equipmet | AM55: =SUMIFS('4.6 LCOE_Weighted'!$J:$J,'4.6 LCOE_Weighted'!$B:$B,VLOOKUP('3.1 per Market'!AM$49,'3. LCOE Results>>>'!$G$3:$H$10,2,FALSE),'4.6 LCOE_Weighted'!$C:$C,$N$49,'4.6 LCOE_Weighted'!$D:$D,VLOOKUP($B$2,'3. LCOE Results>>>'!$M$3:$N$5,2,FALSE),'4.6 LCOE_Weighted'!$E:$E,$F$2,'4.6 LCOE_Weighted'!$F:$F,AM$51) -> 1.274375391 | AN55: =SUMIFS('4.6 LCOE_Weighted'!$J:$J,'4.6 LCOE_Weighted'!$B:$B,VLOOKUP('3.1 per Market'!AM$49,'3. LCOE Results>>>'!$G$3:$H$10,2,FALSE),'4.6 LCOE_Weighted'!$C:$C,$N$49,'4.6 LCOE_Weighted'!$D:$D,VLOOKUP($B$2,'3. LCOE Results>>>'!$M$3:$N$5,2,FALSE),'4.6 LCOE_Weighted'!$E:$E,$F$2,'4.6 LCOE_Weighted'!$F:$F,AN$51) -> 1.274375391 | AO55: =SUMIFS('4.6 LCOE_Weighted'!$J:$J,'4.6 LCOE_Weighted'!$B:$B,VLOOKUP('3.1 per Market'!AM$49,'3. LCOE Results>>>'!$G$3:$H$10,2,FALSE),'4.6 LCOE_Weighted'!$C:$C,$N$49,'4.6 LCOE_Weighted'!$D:$D,VLOOKUP($B$2,'3. LCOE Results>>>'!$M$3:$N$5,2,FALSE),'4.6 LCOE_Weighted'!$E:$E,$F$2,'4.6 LCOE_Weighted'!$F:$F,AO$51) -> 1.274375391 | AP55: =SUMIFS('4.6 LCOE_Weighted'!$J:$J,'4.6 LCOE_Weighted'!$B:$B,VLOOKUP('3.1 per Market'!AM$49,'3. LCOE Results>>>'!$G$3:$H$10,2,FALSE),'4.6 LCOE_Weighted'!$C:$C,$N$49,'4.6 LCOE_Weighted'!$D:$D,VLOOKUP($B$2,'3. LCOE Results>>>'!$M$3:$N$5,2,FALSE),'4.6 LCOE_Weighted'!$E:$E,$F$2,'4.6 LCOE_Weighted'!$F:$F,AP$51) -> 1.274375391 | AR55: OPEX add. equipmet | AS55: =SUMIFS('4.6 LCOE_Weighted'!$J:$J,'4.6 LCOE_Weighted'!$B:$B,VLOOKUP('3.1 per Market'!AS$49,'3. LCOE Results>>>'!$G$3:$H$10,2,FALSE),'4.6 LCOE_Weighted'!$C:$C,$N$49,'4.6 LCOE_Weighted'!$D:$D,VLOOKUP($B$2,'3. LCOE Results>>>'!$M$3:$N$5,2,FALSE),'4.6 LCOE_Weighted'!$E:$E,$F$2,'4.6 LCOE_Weighted'!$F:$F,AS$51) -> 2.837340965 | AT55: =SUMIFS('4.6 LCOE_Weighted'!$J:$J,'4.6 LCOE_Weighted'!$B:$B,VLOOKUP('3.1 per Market'!AS$49,'3. LCOE Results>>>'!$G$3:$H$10,2,FALSE),'4.6 LCOE_Weighted'!$C:$C,$N$49,'4.6 LCOE_Weighted'!$D:$D,VLOOKUP($B$2,'3. LCOE Results>>>'!$M$3:$N$5,2,FALSE),'4.6 LCOE_Weighted'!$E:$E,$F$2,'4.6 LCOE_Weighted'!$F:$F,AT$51) -> 2.782194864 | AU55: =SUMIFS('4.6 LCOE_Weighted'!$J:$J,'4.6 LCOE_Weighted'!$B:$B,VLOOKUP('3.1 per Market'!AS$49,'3. LCOE Results>>>'!$G$3:$H$10,2,FALSE),'4.6 LCOE_Weighted'!$C:$C,$N$49,'4.6 LCOE_Weighted'!$D:$D,VLOOKUP($B$2,'3. LCOE Results>>>'!$M$3:$N$5,2,FALSE),'4.6 LCOE_Weighted'!$E:$E,$F$2,'4.6 LCOE_Weighted'!$F:$F,AU$51) -> 2.699475712 | AV55: =SUMIFS('4.6 LCOE_Weighted'!$J:$J,'4.6 LCOE_Weighted'!$B:$B,VLOOKUP('3.1 per Market'!AS$49,'3. LCOE Results>>>'!$G$3:$H$10,2,FALSE),'4.6 LCOE_Weighted'!$C:$C,$N$49,'4.6 LCOE_Weighted'!$D:$D,VLOOKUP($B$2,'3. LCOE Results>>>'!$M$3:$N$5,2,FALSE),'4.6 LCOE_Weighted'!$E:$E,$F$2,'4.6 LCOE_Weighted'!$F:$F,AV$51) -> 2.644329611
B56: Pellet Solar Hybrid | C56: =(SUMIFS('4.6 LCOE_Weighted'!$L:$L,'4.6 LCOE_Weighted'!$B:$B,VLOOKUP('3.1 per Market'!$B56,'3. LCOE Results>>>'!$G$3:$H$10,2,FALSE),'4.6 LCOE_Weighted'!$C:$C,'3.1 per Market'!$B$49,'4.6 LCOE_Weighted'!$D:$D,VLOOKUP($B$2,'3. LCOE Results>>>'!$M$3:$N$5,2,FALSE),'4.6 LCOE_Weighted'!$E:$E,'3.1 per Market'!$F$2,'4.6 LCOE_Weighted'!$F:$F,'3.1 per Market'!C$50)) -> 193.6108043 | D56: =(SUMIFS('4.6 LCOE_Weighted'!$L:$L,'4.6 LCOE_Weighted'!$B:$B,VLOOKUP('3.1 per Market'!$B56,'3. LCOE Results>>>'!$G$3:$H$10,2,FALSE),'4.6 LCOE_Weighted'!$C:$C,'3.1 per Market'!$B$49,'4.6 LCOE_Weighted'!$D:$D,VLOOKUP($B$2,'3. LCOE Results>>>'!$M$3:$N$5,2,FALSE),'4.6 LCOE_Weighted'!$E:$E,'3.1 per Market'!$F$2,'4.6 LCOE_Weighted'!$F:$F,'3.1 per Market'!D$50)) -> 197.5119808 | E56: =(SUMIFS('4.6 LCOE_Weighted'!$L:$L,'4.6 LCOE_Weighted'!$B:$B,VLOOKUP('3.1 per Market'!$B56,'3. LCOE Results>>>'!$G$3:$H$10,2,FALSE),'4.6 LCOE_Weighted'!$C:$C,'3.1 per Market'!$B$49,'4.6 LCOE_Weighted'!$D:$D,VLOOKUP($B$2,'3. LCOE Results>>>'!$M$3:$N$5,2,FALSE),'4.6 LCOE_Weighted'!$E:$E,'3.1 per Market'!$F$2,'4.6 LCOE_Weighted'!$F:$F,'3.1 per Market'!E$50)) -> 191.0167731 | F56: =(SUMIFS('4.6 LCOE_Weighted'!$L:$L,'4.6 LCOE_Weighted'!$B:$B,VLOOKUP('3.1 per Market'!$B56,'3. LCOE Results>>>'!$G$3:$H$10,2,FALSE),'4.6 LCOE_Weighted'!$C:$C,'3.1 per Market'!$B$49,'4.6 LCOE_Weighted'!$D:$D,VLOOKUP($B$2,'3. LCOE Results>>>'!$M$3:$N$5,2,FALSE),'4.6 LCOE_Weighted'!$E:$E,'3.1 per Market'!$F$2,'4.6 LCOE_Weighted'!$F:$F,'3.1 per Market'!F$50)) -> 185.8220832 | G56: =(SUMIFS('4.6 LCOE_Weighted'!$L:$L,'4.6 LCOE_Weighted'!$B:$B,VLOOKUP('3.1 per Market'!$B56,'3. LCOE Results>>>'!$G$3:$H$10,2,FALSE),'4.6 LCOE_Weighted'!$C:$C,'3.1 per Market'!$B$49,'4.6 LCOE_Weighted'!$D:$D,VLOOKUP($B$2,'3. LCOE Results>>>'!$M$3:$N$5,2,FALSE),'4.6 LCOE_Weighted'!$E:$E,'3.1 per Market'!$F$2,'4.6 LCOE_Weighted'!$F:$F,'3.1 per Market'!G$50)) -> 182.5155641 | H56: =(SUMIFS('4.6 LCOE_Weighted'!$L:$L,'4.6 LCOE_Weighted'!$B:$B,VLOOKUP('3.1 per Market'!$B56,'3. LCOE Results>>>'!$G$3:$H$10,2,FALSE),'4.6 LCOE_Weighted'!$C:$C,'3.1 per Market'!$B$49,'4.6 LCOE_Weighted'!$D:$D,VLOOKUP($B$2,'3. LCOE Results>>>'!$M$3:$N$5,2,FALSE),'4.6 LCOE_Weighted'!$E:$E,'3.1 per Market'!$F$2,'4.6 LCOE_Weighted'!$F:$F,'3.1 per Market'!H$50)) -> 180.0982085 | I56: =(SUMIFS('4.6 LCOE_Weighted'!$L:$L,'4.6 LCOE_Weighted'!$B:$B,VLOOKUP('3.1 per Market'!$B56,'3. LCOE Results>>>'!$G$3:$H$10,2,FALSE),'4.6 LCOE_Weighted'!$C:$C,'3.1 per Market'!$B$49,'4.6 LCOE_Weighted'!$D:$D,VLOOKUP($B$2,'3. LCOE Results>>>'!$M$3:$N$5,2,FALSE),'4.6 LCOE_Weighted'!$E:$E,'3.1 per Market'!$F$2,'4.6 LCOE_Weighted'!$F:$F,'3.1 per Market'!I$50)) -> 178.0416754 | J56: =(SUMIFS('4.6 LCOE_Weighted'!$L:$L,'4.6 LCOE_Weighted'!$B:$B,VLOOKUP('3.1 per Market'!$B56,'3. LCOE Results>>>'!$G$3:$H$10,2,FALSE),'4.6 LCOE_Weighted'!$C:$C,'3.1 per Market'!$B$49,'4.6 LCOE_Weighted'!$D:$D,VLOOKUP($B$2,'3. LCOE Results>>>'!$M$3:$N$5,2,FALSE),'4.6 LCOE_Weighted'!$E:$E,'3.1 per Market'!$F$2,'4.6 LCOE_Weighted'!$F:$F,'3.1 per Market'!J$50)) -> 176.362799 | K56: =(SUMIFS('4.6 LCOE_Weighted'!$L:$L,'4.6 LCOE_Weighted'!$B:$B,VLOOKUP('3.1 per Market'!$B56,'3. LCOE Results>>>'!$G$3:$H$10,2,FALSE),'4.6 LCOE_Weighted'!$C:$C,'3.1 per Market'!$B$49,'4.6 LCOE_Weighted'!$D:$D,VLOOKUP($B$2,'3. LCOE Results>>>'!$M$3:$N$5,2,FALSE),'4.6 LCOE_Weighted'!$E:$E,'3.1 per Market'!$F$2,'4.6 LCOE_Weighted'!$F:$F,'3.1 per Market'!K$50)) -> 175.0759373 | N56: Fuel cost | O56: =SUMIFS('4.6 LCOE_Weighted'!$K:$K,'4.6 LCOE_Weighted'!$B:$B,VLOOKUP('3.1 per Market'!O$50,'3. LCOE Results>>>'!$G$3:$H$10,2,FALSE),'4.6 LCOE_Weighted'!$C:$C,$N$49,'4.6 LCOE_Weighted'!$D:$D,VLOOKUP($B$2,'3. LCOE Results>>>'!$M$3:$N$5,2,FALSE),'4.6 LCOE_Weighted'!$E:$E,$F$2,'4.6 LCOE_Weighted'!$F:$F,O$51) -> 97.58967416 | P56: =SUMIFS('4.6 LCOE_Weighted'!$K:$K,'4.6 LCOE_Weighted'!$B:$B,VLOOKUP('3.1 per Market'!O$50,'3. LCOE Results>>>'!$G$3:$H$10,2,FALSE),'4.6 LCOE_Weighted'!$C:$C,$N$49,'4.6 LCOE_Weighted'!$D:$D,VLOOKUP($B$2,'3. LCOE Results>>>'!$M$3:$N$5,2,FALSE),'4.6 LCOE_Weighted'!$E:$E,$F$2,'4.6 LCOE_Weighted'!$F:$F,P$51) -> 89.48891067 | Q56: =SUMIFS('4.6 LCOE_Weighted'!$K:$K,'4.6 LCOE_Weighted'!$B:$B,VLOOKUP('3.1 per Market'!O$50,'3. LCOE Results>>>'!$G$3:$H$10,2,FALSE),'4.6 LCOE_Weighted'!$C:$C,$N$49,'4.6 LCOE_Weighted'!$D:$D,VLOOKUP($B$2,'3. LCOE Results>>>'!$M$3:$N$5,2,FALSE),'4.6 LCOE_Weighted'!$E:$E,$F$2,'4.6 LCOE_Weighted'!$F:$F,Q$51) -> 88.11279553 | R56: =SUMIFS('4.6 LCOE_Weighted'!$K:$K,'4.6 LCOE_Weighted'!$B:$B,VLOOKUP('3.1 per Market'!R$50,'3. LCOE Results>>>'!$G$3:$H$10,2,FALSE),'4.6 LCOE_Weighted'!$C:$C,$N$49,'4.6 LCOE_Weighted'!$D:$D,VLOOKUP($B$2,'3. LCOE Results>>>'!$M$3:$N$5,2,FALSE),'4.6 LCOE_Weighted'!$E:$E,$F$2,'4.6 LCOE_Weighted'!$F:$F,R$51) -> 88.84909457 | T56: Fuel cost | U56: =SUMIFS('4.6 LCOE_Weighted'!$K:$K,'4.6 LCOE_Weighted'!$B:$B,VLOOKUP('3.1 per Market'!U$49,'3. LCOE Results>>>'!$G$3:$H$10,2,FALSE),'4.6 LCOE_Weighted'!$C:$C,$N$49,'4.6 LCOE_Weighted'!$D:$D,VLOOKUP($B$2,'3. LCOE Results>>>'!$M$3:$N$5,2,FALSE),'4.6 LCOE_Weighted'!$E:$E,$F$2,'4.6 LCOE_Weighted'!$F:$F,U$51) -> 77.50006104 | V56: =SUMIFS('4.6 LCOE_Weighted'!$K:$K,'4.6 LCOE_Weighted'!$B:$B,VLOOKUP('3.1 per Market'!U$49,'3. LCOE Results>>>'!$G$3:$H$10,2,FALSE),'4.6 LCOE_Weighted'!$C:$C,$N$49,'4.6 LCOE_Weighted'!$D:$D,VLOOKUP($B$2,'3. LCOE Results>>>'!$M$3:$N$5,2,FALSE),'4.6 LCOE_Weighted'!$E:$E,$F$2,'4.6 LCOE_Weighted'!$F:$F,V$51) -> 73.32305237 | W56: =SUMIFS('4.6 LCOE_Weighted'!$K:$K,'4.6 LCOE_Weighted'!$B:$B,VLOOKUP('3.1 per Market'!U$49,'3. LCOE Results>>>'!$G$3:$H$10,2,FALSE),'4.6 LCOE_Weighted'!$C:$C,$N$49,'4.6 LCOE_Weighted'!$D:$D,VLOOKUP($B$2,'3. LCOE Results>>>'!$M$3:$N$5,2,FALSE),'4.6 LCOE_Weighted'!$E:$E,$F$2,'4.6 LCOE_Weighted'!$F:$F,W$51) -> 68.68837523 | X56: =SUMIFS('4.6 LCOE_Weighted'!$K:$K,'4.6 LCOE_Weighted'!$B:$B,VLOOKUP('3.1 per Market'!U$49,'3. LCOE Results>>>'!$G$3:$H$10,2,FALSE),'4.6 LCOE_Weighted'!$C:$C,$N$49,'4.6 LCOE_Weighted'!$D:$D,VLOOKUP($B$2,'3. LCOE Results>>>'!$M$3:$N$5,2,FALSE),'4.6 LCOE_Weighted'!$E:$E,$F$2,'4.6 LCOE_Weighted'!$F:$F,X$51) -> 66.87164477 | Z56: Fuel cost | AA56: =SUMIFS('4.6 LCOE_Weighted'!$K:$K,'4.6 LCOE_Weighted'!$B:$B,VLOOKUP('3.1 per Market'!AA$49,'3. LCOE Results>>>'!$G$3:$H$10,2,FALSE),'4.6 LCOE_Weighted'!$C:$C,$N$49,'4.6 LCOE_Weighted'!$D:$D,VLOOKUP($B$2,'3. LCOE Results>>>'!$M$3:$N$5,2,FALSE),'4.6 LCOE_Weighted'!$E:$E,$F$2,'4.6 LCOE_Weighted'!$F:$F,AA$51) -> 93.3102904 | AB56: =SUMIFS('4.6 LCOE_Weighted'!$K:$K,'4.6 LCOE_Weighted'!$B:$B,VLOOKUP('3.1 per Market'!AA$49,'3. LCOE Results>>>'!$G$3:$H$10,2,FALSE),'4.6 LCOE_Weighted'!$C:$C,$N$49,'4.6 LCOE_Weighted'!$D:$D,VLOOKUP($B$2,'3. LCOE Results>>>'!$M$3:$N$5,2,FALSE),'4.6 LCOE_Weighted'!$E:$E,$F$2,'4.6 LCOE_Weighted'!$F:$F,AB$51) -> 88.00806039 | AC56: =SUMIFS('4.6 LCOE_Weighted'!$K:$K,'4.6 LCOE_Weighted'!$B:$B,VLOOKUP('3.1 per Market'!AA$49,'3. LCOE Results>>>'!$G$3:$H$10,2,FALSE),'4.6 LCOE_Weighted'!$C:$C,$N$49,'4.6 LCOE_Weighted'!$D:$D,VLOOKUP($B$2,'3. LCOE Results>>>'!$M$3:$N$5,2,FALSE),'4.6 LCOE_Weighted'!$E:$E,$F$2,'4.6 LCOE_Weighted'!$F:$F,AC$51) -> 82.09451143 | AD56: =SUMIFS('4.6 LCOE_Weighted'!$K:$K,'4.6 LCOE_Weighted'!$B:$B,VLOOKUP('3.1 per Market'!AA$49,'3. LCOE Results>>>'!$G$3:$H$10,2,FALSE),'4.6 LCOE_Weighted'!$C:$C,$N$49,'4.6 LCOE_Weighted'!$D:$D,VLOOKUP($B$2,'3. LCOE Results>>>'!$M$3:$N$5,2,FALSE),'4.6 LCOE_Weighted'!$E:$E,$F$2,'4.6 LCOE_Weighted'!$F:$F,AD$51) -> 79.77002666 | AF56: Fuel cost | AG56: =SUMIFS('4.6 LCOE_Weighted'!$K:$K,'4.6 LCOE_Weighted'!$B:$B,VLOOKUP('3.1 per Market'!AG$49,'3. LCOE Results>>>'!$G$3:$H$10,2,FALSE),'4.6 LCOE_Weighted'!$C:$C,$N$49,'4.6 LCOE_Weighted'!$D:$D,VLOOKUP($B$2,'3. LCOE Results>>>'!$M$3:$N$5,2,FALSE),'4.6 LCOE_Weighted'!$E:$E,$F$2,'4.6 LCOE_Weighted'!$F:$F,AG$51) -> 65.64937942 | AH56: =SUMIFS('4.6 LCOE_Weighted'!$K:$K,'4.6 LCOE_Weighted'!$B:$B,VLOOKUP('3.1 per Market'!AG$49,'3. LCOE Results>>>'!$G$3:$H$10,2,FALSE),'4.6 LCOE_Weighted'!$C:$C,$N$49,'4.6 LCOE_Weighted'!$D:$D,VLOOKUP($B$2,'3. LCOE Results>>>'!$M$3:$N$5,2,FALSE),'4.6 LCOE_Weighted'!$E:$E,$F$2,'4.6 LCOE_Weighted'!$F:$F,AH$51) -> 54.85968738 | AI56: =SUMIFS('4.6 LCOE_Weighted'!$K:$K,'4.6 LCOE_Weighted'!$B:$B,VLOOKUP('3.1 per Market'!AG$49,'3. LCOE Results>>>'!$G$3:$H$10,2,FALSE),'4.6 LCOE_Weighted'!$C:$C,$N$49,'4.6 LCOE_Weighted'!$D:$D,VLOOKUP($B$2,'3. LCOE Results>>>'!$M$3:$N$5,2,FALSE),'4.6 LCOE_Weighted'!$E:$E,$F$2,'4.6 LCOE_Weighted'!$F:$F,AI$51) -> 49.14942158 | AJ56: =SUMIFS('4.6 LCOE_Weighted'!$K:$K,'4.6 LCOE_Weighted'!$B:$B,VLOOKUP('3.1 per Market'!AG$49,'3. LCOE Results>>>'!$G$3:$H$10,2,FALSE),'4.6 LCOE_Weighted'!$C:$C,$N$49,'4.6 LCOE_Weighted'!$D:$D,VLOOKUP($B$2,'3. LCOE Results>>>'!$M$3:$N$5,2,FALSE),'4.6 LCOE_Weighted'!$E:$E,$F$2,'4.6 LCOE_Weighted'!$F:$F,AJ$51) -> 47.72901294 | AL56: Fuel cost | AM56: =SUMIFS('4.6 LCOE_Weighted'!$K:$K,'4.6 LCOE_Weighted'!$B:$B,VLOOKUP('3.1 per Market'!AM$49,'3. LCOE Results>>>'!$G$3:$H$10,2,FALSE),'4.6 LCOE_Weighted'!$C:$C,$N$49,'4.6 LCOE_Weighted'!$D:$D,VLOOKUP($B$2,'3. LCOE Results>>>'!$M$3:$N$5,2,FALSE),'4.6 LCOE_Weighted'!$E:$E,$F$2,'4.6 LCOE_Weighted'!$F:$F,AM$51) -> 87.88163878 | AN56: =SUMIFS('4.6 LCOE_Weighted'!$K:$K,'4.6 LCOE_Weighted'!$B:$B,VLOOKUP('3.1 per Market'!AM$49,'3. LCOE Results>>>'!$G$3:$H$10,2,FALSE),'4.6 LCOE_Weighted'!$C:$C,$N$49,'4.6 LCOE_Weighted'!$D:$D,VLOOKUP($B$2,'3. LCOE Results>>>'!$M$3:$N$5,2,FALSE),'4.6 LCOE_Weighted'!$E:$E,$F$2,'4.6 LCOE_Weighted'!$F:$F,AN$51) -> 80.45748427 | AO56: =SUMIFS('4.6 LCOE_Weighted'!$K:$K,'4.6 LCOE_Weighted'!$B:$B,VLOOKUP('3.1 per Market'!AM$49,'3. LCOE Results>>>'!$G$3:$H$10,2,FALSE),'4.6 LCOE_Weighted'!$C:$C,$N$49,'4.6 LCOE_Weighted'!$D:$D,VLOOKUP($B$2,'3. LCOE Results>>>'!$M$3:$N$5,2,FALSE),'4.6 LCOE_Weighted'!$E:$E,$F$2,'4.6 LCOE_Weighted'!$F:$F,AO$51) -> 79.03013499 | AP56: =SUMIFS('4.6 LCOE_Weighted'!$K:$K,'4.6 LCOE_Weighted'!$B:$B,VLOOKUP('3.1 per Market'!AM$49,'3. LCOE Results>>>'!$G$3:$H$10,2,FALSE),'4.6 LCOE_Weighted'!$C:$C,$N$49,'4.6 LCOE_Weighted'!$D:$D,VLOOKUP($B$2,'3. LCOE Results>>>'!$M$3:$N$5,2,FALSE),'4.6 LCOE_Weighted'!$E:$E,$F$2,'4.6 LCOE_Weighted'!$F:$F,AP$51) -> 79.56324439 | AR56: Fuel cost | AS56: =SUMIFS('4.6 LCOE_Weighted'!$K:$K,'4.6 LCOE_Weighted'!$B:$B,VLOOKUP('3.1 per Market'!AS$49,'3. LCOE Results>>>'!$G$3:$H$10,2,FALSE),'4.6 LCOE_Weighted'!$C:$C,$N$49,'4.6 LCOE_Weighted'!$D:$D,VLOOKUP($B$2,'3. LCOE Results>>>'!$M$3:$N$5,2,FALSE),'4.6 LCOE_Weighted'!$E:$E,$F$2,'4.6 LCOE_Weighted'!$F:$F,AS$51) -> 61.06355852 | AT56: =SUMIFS('4.6 LCOE_Weighted'!$K:$K,'4.6 LCOE_Weighted'!$B:$B,VLOOKUP('3.1 per Market'!AS$49,'3. LCOE Results>>>'!$G$3:$H$10,2,FALSE),'4.6 LCOE_Weighted'!$C:$C,$N$49,'4.6 LCOE_Weighted'!$D:$D,VLOOKUP($B$2,'3. LCOE Results>>>'!$M$3:$N$5,2,FALSE),'4.6 LCOE_Weighted'!$E:$E,$F$2,'4.6 LCOE_Weighted'!$F:$F,AT$51) -> 50.98594301 | AU56: =SUMIFS('4.6 LCOE_Weighted'!$K:$K,'4.6 LCOE_Weighted'!$B:$B,VLOOKUP('3.1 per Market'!AS$49,'3. LCOE Results>>>'!$G$3:$H$10,2,FALSE),'4.6 LCOE_Weighted'!$C:$C,$N$49,'4.6 LCOE_Weighted'!$D:$D,VLOOKUP($B$2,'3. LCOE Results>>>'!$M$3:$N$5,2,FALSE),'4.6 LCOE_Weighted'!$E:$E,$F$2,'4.6 LCOE_Weighted'!$F:$F,AU$51) -> 45.62395828 | AV56: =SUMIFS('4.6 LCOE_Weighted'!$K:$K,'4.6 LCOE_Weighted'!$B:$B,VLOOKUP('3.1 per Market'!AS$49,'3. LCOE Results>>>'!$G$3:$H$10,2,FALSE),'4.6 LCOE_Weighted'!$C:$C,$N$49,'4.6 LCOE_Weighted'!$D:$D,VLOOKUP($B$2,'3. LCOE Results>>>'!$M$3:$N$5,2,FALSE),'4.6 LCOE_Weighted'!$E:$E,$F$2,'4.6 LCOE_Weighted'!$F:$F,AV$51) -> 44.27050233
N57: SUM | O57: =SUM(O52:O56) -> 154.2606714 | P57: =SUM(P52:P56) -> 145.5000533 | Q57: 143.1341561 | R57: 143.2106005 | T57: SUM | U57: =SUM(U52:U56) -> 189.0536814 | V57: =SUM(V52:V56) -> 172.78532 | W57: =SUM(W52:W56) -> 150.0136139 | X57: =SUM(X52:X56) -> 136.1055307 | Z57: SUM | AA57: =SUM(AA52:AA56) -> 203.8092495 | AB57: =SUM(AB52:AB56) -> 188.72301 | AC57: =SUM(AC52:AC56) -> 168.1334468 | AD57: =SUM(AD52:AD56) -> 156.0249525 | AF57: SUM | AG57: =SUM(AG52:AG56) -> 177.6224831 | AH57: =SUM(AH52:AH56) -> 165.3896037 | AI57: =SUM(AI52:AI56) -> 157.5145568 | AJ57: =SUM(AJ52:AJ56) -> 154.6509608 | AL57: SUM | AM57: =SUM(AM52:AM56) -> 167.7395785 | AN57: =SUM(AN52:AN56) -> 159.3225937 | AO57: =SUM(AO52:AO56) -> 156.4059989 | AP57: =SUM(AP52:AP56) -> 155.946278 | AR57: SUM | AS57: =SUM(AS52:AS56) -> 197.5119808 | AT57: =SUM(AT52:AT56) -> 185.8220832 | AU57: =SUM(AU52:AU56) -> 178.0416754 | AV57: =SUM(AV52:AV56) -> 175.0759373
B59: Brandenburg | N59: Brandenburg
B60: Technology\Year | C60: 2022 | D60: 2023 | E60: 2024 | F60: 2025 | G60: 2026 | H60: 2027 | I60: 2028 | J60: 2029 | K60: 2030 | N60: Technology | O60: Gas boiler | P60: Gas boiler | Q60: Gas boiler | R60: Gas boiler | U60: HP brine-to-water | V60: HP brine-to-water | W60: HP brine-to-water | X60: HP brine-to-water | AA60: HP air-to-water | AB60: HP air-to-water | AC60: HP air-to-water | AD60: HP air-to-water | AG60: Pellet boiler | AH60: Pellet boiler | AI60: Pellet boiler | AJ60: Pellet boiler | AM60: Gas Solar Hybrid | AN60: Gas Solar Hybrid | AO60: Gas Solar Hybrid | AP60: Gas Solar Hybrid | AS60: Pellet Solar Hybrid | AT60: Pellet Solar Hybrid | AU60: Pellet Solar Hybrid | AV60: Pellet Solar Hybrid
B61: Gas boiler | C61: =(SUMIFS('4.6 LCOE_Weighted'!$L:$L,'4.6 LCOE_Weighted'!$B:$B,VLOOKUP('3.1 per Market'!$B61,'3. LCOE Results>>>'!$G$3:$H$10,2,FALSE),'4.6 LCOE_Weighted'!$C:$C,'3.1 per Market'!$B$59,'4.6 LCOE_Weighted'!$D:$D,VLOOKUP($B$2,'3. LCOE Results>>>'!$M$3:$N$5,2,FALSE),'4.6 LCOE_Weighted'!$E:$E,'3.1 per Market'!$F$2,'4.6 LCOE_Weighted'!$F:$F,'3.1 per Market'!C$60)) -> 143.6973292 | D61: =(SUMIFS('4.6 LCOE_Weighted'!$L:$L,'4.6 LCOE_Weighted'!$B:$B,VLOOKUP('3.1 per Market'!$B61,'3. LCOE Results>>>'!$G$3:$H$10,2,FALSE),'4.6 LCOE_Weighted'!$C:$C,'3.1 per Market'!$B$59,'4.6 LCOE_Weighted'!$D:$D,VLOOKUP($B$2,'3. LCOE Results>>>'!$M$3:$N$5,2,FALSE),'4.6 LCOE_Weighted'!$E:$E,'3.1 per Market'!$F$2,'4.6 LCOE_Weighted'!$F:$F,'3.1 per Market'!D$60)) -> 151.145754 | E61: =(SUMIFS('4.6 LCOE_Weighted'!$L:$L,'4.6 LCOE_Weighted'!$B:$B,VLOOKUP('3.1 per Market'!$B61,'3. LCOE Results>>>'!$G$3:$H$10,2,FALSE),'4.6 LCOE_Weighted'!$C:$C,'3.1 per Market'!$B$59,'4.6 LCOE_Weighted'!$D:$D,VLOOKUP($B$2,'3. LCOE Results>>>'!$M$3:$N$5,2,FALSE),'4.6 LCOE_Weighted'!$E:$E,'3.1 per Market'!$F$2,'4.6 LCOE_Weighted'!$F:$F,'3.1 per Market'!E$60)) -> 146.0647986 | F61: =(SUMIFS('4.6 LCOE_Weighted'!$L:$L,'4.6 LCOE_Weighted'!$B:$B,VLOOKUP('3.1 per Market'!$B61,'3. LCOE Results>>>'!$G$3:$H$10,2,FALSE),'4.6 LCOE_Weighted'!$C:$C,'3.1 per Market'!$B$59,'4.6 LCOE_Weighted'!$D:$D,VLOOKUP($B$2,'3. LCOE Results>>>'!$M$3:$N$5,2,FALSE),'4.6 LCOE_Weighted'!$E:$E,'3.1 per Market'!$F$2,'4.6 LCOE_Weighted'!$F:$F,'3.1 per Market'!F$60)) -> 142.4151315 | G61: =(SUMIFS('4.6 LCOE_Weighted'!$L:$L,'4.6 LCOE_Weighted'!$B:$B,VLOOKUP('3.1 per Market'!$B61,'3. LCOE Results>>>'!$G$3:$H$10,2,FALSE),'4.6 LCOE_Weighted'!$C:$C,'3.1 per Market'!$B$59,'4.6 LCOE_Weighted'!$D:$D,VLOOKUP($B$2,'3. LCOE Results>>>'!$M$3:$N$5,2,FALSE),'4.6 LCOE_Weighted'!$E:$E,'3.1 per Market'!$F$2,'4.6 LCOE_Weighted'!$F:$F,'3.1 per Market'!G$60)) -> 140.8904035 | H61: =(SUMIFS('4.6 LCOE_Weighted'!$L:$L,'4.6 LCOE_Weighted'!$B:$B,VLOOKUP('3.1 per Market'!$B61,'3. LCOE Results>>>'!$G$3:$H$10,2,FALSE),'4.6 LCOE_Weighted'!$C:$C,'3.1 per Market'!$B$59,'4.6 LCOE_Weighted'!$D:$D,VLOOKUP($B$2,'3. LCOE Results>>>'!$M$3:$N$5,2,FALSE),'4.6 LCOE_Weighted'!$E:$E,'3.1 per Market'!$F$2,'4.6 LCOE_Weighted'!$F:$F,'3.1 per Market'!H$60)) -> 140.3905376 | I61: =(SUMIFS('4.6 LCOE_Weighted'!$L:$L,'4.6 LCOE_Weighted'!$B:$B,VLOOKUP('3.1 per Market'!$B61,'3. LCOE Results>>>'!$G$3:$H$10,2,FALSE),'4.6 LCOE_Weighted'!$C:$C,'3.1 per Market'!$B$59,'4.6 LCOE_Weighted'!$D:$D,VLOOKUP($B$2,'3. LCOE Results>>>'!$M$3:$N$5,2,FALSE),'4.6 LCOE_Weighted'!$E:$E,'3.1 per Market'!$F$2,'4.6 LCOE_Weighted'!$F:$F,'3.1 per Market'!I$60)) -> 140.0942279 | J61: =(SUMIFS('4.6 LCOE_Weighted'!$L:$L,'4.6 LCOE_Weighted'!$B:$B,VLOOKUP('3.1 per Market'!$B61,'3. LCOE Results>>>'!$G$3:$H$10,2,FALSE),'4.6 LCOE_Weighted'!$C:$C,'3.1 per Market'!$B$59,'4.6 LCOE_Weighted'!$D:$D,VLOOKUP($B$2,'3. LCOE Results>>>'!$M$3:$N$5,2,FALSE),'4.6 LCOE_Weighted'!$E:$E,'3.1 per Market'!$F$2,'4.6 LCOE_Weighted'!$F:$F,'3.1 per Market'!J$60)) -> 140.0233854 | K61: =(SUMIFS('4.6 LCOE_Weighted'!$L:$L,'4.6 LCOE_Weighted'!$B:$B,VLOOKUP('3.1 per Market'!$B61,'3. LCOE Results>>>'!$G$3:$H$10,2,FALSE),'4.6 LCOE_Weighted'!$C:$C,'3.1 per Market'!$B$59,'4.6 LCOE_Weighted'!$D:$D,VLOOKUP($B$2,'3. LCOE Results>>>'!$M$3:$N$5,2,FALSE),'4.6 LCOE_Weighted'!$E:$E,'3.1 per Market'!$F$2,'4.6 LCOE_Weighted'!$F:$F,'3.1 per Market'!K$60)) -> 140.200668 | N61: Cost composition\Year | O61: 2023 | P61: 2025 | Q61: 2028 | R61: 2030 | U61: 2023 | V61: 2025 | W61: 2028 | X61: 2030 | AA61: 2023 | AB61: 2025 | AC61: 2028 | AD61: 2030 | AG61: 2023 | AH61: 2025 | AI61: 2028 | AJ61: 2030 | AM61: 2023 | AN61: 2025 | AO61: 2028 | AP61: 2030 | AS61: 2023 | AT61: 2025 | AU61: 2028 | AV61: 2030
B62: HP brine-to-water | C62: =(SUMIFS('4.6 LCOE_Weighted'!$L:$L,'4.6 LCOE_Weighted'!$B:$B,VLOOKUP('3.1 per Market'!$B62,'3. LCOE Results>>>'!$G$3:$H$10,2,FALSE),'4.6 LCOE_Weighted'!$C:$C,'3.1 per Market'!$B$59,'4.6 LCOE_Weighted'!$D:$D,VLOOKUP($B$2,'3. LCOE Results>>>'!$M$3:$N$5,2,FALSE),'4.6 LCOE_Weighted'!$E:$E,'3.1 per Market'!$F$2,'4.6 LCOE_Weighted'!$F:$F,'3.1 per Market'!C$60)) -> 195.7969857 | D62: =(SUMIFS('4.6 LCOE_Weighted'!$L:$L,'4.6 LCOE_Weighted'!$B:$B,VLOOKUP('3.1 per Market'!$B62,'3. LCOE Results>>>'!$G$3:$H$10,2,FALSE),'4.6 LCOE_Weighted'!$C:$C,'3.1 per Market'!$B$59,'4.6 LCOE_Weighted'!$D:$D,VLOOKUP($B$2,'3. LCOE Results>>>'!$M$3:$N$5,2,FALSE),'4.6 LCOE_Weighted'!$E:$E,'3.1 per Market'!$F$2,'4.6 LCOE_Weighted'!$F:$F,'3.1 per Market'!D$60)) -> 195.1989105 | E62: =(SUMIFS('4.6 LCOE_Weighted'!$L:$L,'4.6 LCOE_Weighted'!$B:$B,VLOOKUP('3.1 per Market'!$B62,'3. LCOE Results>>>'!$G$3:$H$10,2,FALSE),'4.6 LCOE_Weighted'!$C:$C,'3.1 per Market'!$B$59,'4.6 LCOE_Weighted'!$D:$D,VLOOKUP($B$2,'3. LCOE Results>>>'!$M$3:$N$5,2,FALSE),'4.6 LCOE_Weighted'!$E:$E,'3.1 per Market'!$F$2,'4.6 LCOE_Weighted'!$F:$F,'3.1 per Market'!E$60)) -> 186.7491632 | F62: =(SUMIFS('4.6 LCOE_Weighted'!$L:$L,'4.6 LCOE_Weighted'!$B:$B,VLOOKUP('3.1 per Market'!$B62,'3. LCOE Results>>>'!$G$3:$H$10,2,FALSE),'4.6 LCOE_Weighted'!$C:$C,'3.1 per Market'!$B$59,'4.6 LCOE_Weighted'!$D:$D,VLOOKUP($B$2,'3. LCOE Results>>>'!$M$3:$N$5,2,FALSE),'4.6 LCOE_Weighted'!$E:$E,'3.1 per Market'!$F$2,'4.6 LCOE_Weighted'!$F:$F,'3.1 per Market'!F$60)) -> 178.5062512 | G62: =(SUMIFS('4.6 LCOE_Weighted'!$L:$L,'4.6 LCOE_Weighted'!$B:$B,VLOOKUP('3.1 per Market'!$B62,'3. LCOE Results>>>'!$G$3:$H$10,2,FALSE),'4.6 LCOE_Weighted'!$C:$C,'3.1 per Market'!$B$59,'4.6 LCOE_Weighted'!$D:$D,VLOOKUP($B$2,'3. LCOE Results>>>'!$M$3:$N$5,2,FALSE),'4.6 LCOE_Weighted'!$E:$E,'3.1 per Market'!$F$2,'4.6 LCOE_Weighted'!$F:$F,'3.1 per Market'!G$60)) -> 170.4797286 | H62: =(SUMIFS('4.6 LCOE_Weighted'!$L:$L,'4.6 LCOE_Weighted'!$B:$B,VLOOKUP('3.1 per Market'!$B62,'3. LCOE Results>>>'!$G$3:$H$10,2,FALSE),'4.6 LCOE_Weighted'!$C:$C,'3.1 per Market'!$B$59,'4.6 LCOE_Weighted'!$D:$D,VLOOKUP($B$2,'3. LCOE Results>>>'!$M$3:$N$5,2,FALSE),'4.6 LCOE_Weighted'!$E:$E,'3.1 per Market'!$F$2,'4.6 LCOE_Weighted'!$F:$F,'3.1 per Market'!H$60)) -> 162.6815859 | I62: =(SUMIFS('4.6 LCOE_Weighted'!$L:$L,'4.6 LCOE_Weighted'!$B:$B,VLOOKUP('3.1 per Market'!$B62,'3. LCOE Results>>>'!$G$3:$H$10,2,FALSE),'4.6 LCOE_Weighted'!$C:$C,'3.1 per Market'!$B$59,'4.6 LCOE_Weighted'!$D:$D,VLOOKUP($B$2,'3. LCOE Results>>>'!$M$3:$N$5,2,FALSE),'4.6 LCOE_Weighted'!$E:$E,'3.1 per Market'!$F$2,'4.6 LCOE_Weighted'!$F:$F,'3.1 per Market'!I$60)) -> 155.1381453 | J62: =(SUMIFS('4.6 LCOE_Weighted'!$L:$L,'4.6 LCOE_Weighted'!$B:$B,VLOOKUP('3.1 per Market'!$B62,'3. LCOE Results>>>'!$G$3:$H$10,2,FALSE),'4.6 LCOE_Weighted'!$C:$C,'3.1 per Market'!$B$59,'4.6 LCOE_Weighted'!$D:$D,VLOOKUP($B$2,'3. LCOE Results>>>'!$M$3:$N$5,2,FALSE),'4.6 LCOE_Weighted'!$E:$E,'3.1 per Market'!$F$2,'4.6 LCOE_Weighted'!$F:$F,'3.1 per Market'!J$60)) -> 147.8612825 | K62: =(SUMIFS('4.6 LCOE_Weighted'!$L:$L,'4.6 LCOE_Weighted'!$B:$B,VLOOKUP('3.1 per Market'!$B62,'3. LCOE Results>>>'!$G$3:$H$10,2,FALSE),'4.6 LCOE_Weighted'!$C:$C,'3.1 per Market'!$B$59,'4.6 LCOE_Weighted'!$D:$D,VLOOKUP($B$2,'3. LCOE Results>>>'!$M$3:$N$5,2,FALSE),'4.6 LCOE_Weighted'!$E:$E,'3.1 per Market'!$F$2,'4.6 LCOE_Weighted'!$F:$F,'3.1 per Market'!K$60)) -> 140.8634576 | N62: CAPEX heating unit | O62: =SUMIFS('4.6 LCOE_Weighted'!$G:$G,'4.6 LCOE_Weighted'!$B:$B,VLOOKUP('3.1 per Market'!O$60,'3. LCOE Results>>>'!$G$3:$H$10,2,FALSE),'4.6 LCOE_Weighted'!$C:$C,$N$59,'4.6 LCOE_Weighted'!$D:$D,VLOOKUP($B$2,'3. LCOE Results>>>'!$M$3:$N$5,2,FALSE),'4.6 LCOE_Weighted'!$E:$E,$F$2,'4.6 LCOE_Weighted'!$F:$F,O$61) -> 34.67723529 | P62: =SUMIFS('4.6 LCOE_Weighted'!$G:$G,'4.6 LCOE_Weighted'!$B:$B,VLOOKUP('3.1 per Market'!P$60,'3. LCOE Results>>>'!$G$3:$H$10,2,FALSE),'4.6 LCOE_Weighted'!$C:$C,$N$59,'4.6 LCOE_Weighted'!$D:$D,VLOOKUP($B$2,'3. LCOE Results>>>'!$M$3:$N$5,2,FALSE),'4.6 LCOE_Weighted'!$E:$E,$F$2,'4.6 LCOE_Weighted'!$F:$F,P$61) -> 34.04737632 | Q62: =SUMIFS('4.6 LCOE_Weighted'!$G:$G,'4.6 LCOE_Weighted'!$B:$B,VLOOKUP('3.1 per Market'!Q$60,'3. LCOE Results>>>'!$G$3:$H$10,2,FALSE),'4.6 LCOE_Weighted'!$C:$C,$N$59,'4.6 LCOE_Weighted'!$D:$D,VLOOKUP($B$2,'3. LCOE Results>>>'!$M$3:$N$5,2,FALSE),'4.6 LCOE_Weighted'!$E:$E,$F$2,'4.6 LCOE_Weighted'!$F:$F,Q$61) -> 33.10258788 | R62: =SUMIFS('4.6 LCOE_Weighted'!$G:$G,'4.6 LCOE_Weighted'!$B:$B,VLOOKUP('3.1 per Market'!R$60,'3. LCOE Results>>>'!$G$3:$H$10,2,FALSE),'4.6 LCOE_Weighted'!$C:$C,$N$59,'4.6 LCOE_Weighted'!$D:$D,VLOOKUP($B$2,'3. LCOE Results>>>'!$M$3:$N$5,2,FALSE),'4.6 LCOE_Weighted'!$E:$E,$F$2,'4.6 LCOE_Weighted'!$F:$F,R$61) -> 32.47272891 | T62: CAPEX heating unit | U62: =SUMIFS('4.6 LCOE_Weighted'!$G:$G,'4.6 LCOE_Weighted'!$B:$B,VLOOKUP('3.1 per Market'!U$60,'3. LCOE Results>>>'!$G$3:$H$10,2,FALSE),'4.6 LCOE_Weighted'!$C:$C,$N$59,'4.6 LCOE_Weighted'!$D:$D,VLOOKUP($B$2,'3. LCOE Results>>>'!$M$3:$N$5,2,FALSE),'4.6 LCOE_Weighted'!$E:$E,$F$2,'4.6 LCOE_Weighted'!$F:$F,U$61) -> 82.30373849 | V62: =SUMIFS('4.6 LCOE_Weighted'!$G:$G,'4.6 LCOE_Weighted'!$B:$B,VLOOKUP('3.1 per Market'!V$60,'3. LCOE Results>>>'!$G$3:$H$10,2,FALSE),'4.6 LCOE_Weighted'!$C:$C,$N$59,'4.6 LCOE_Weighted'!$D:$D,VLOOKUP($B$2,'3. LCOE Results>>>'!$M$3:$N$5,2,FALSE),'4.6 LCOE_Weighted'!$E:$E,$F$2,'4.6 LCOE_Weighted'!$F:$F,V$61) -> 70.24851179 | W62: =SUMIFS('4.6 LCOE_Weighted'!$G:$G,'4.6 LCOE_Weighted'!$B:$B,VLOOKUP('3.1 per Market'!W$60,'3. LCOE Results>>>'!$G$3:$H$10,2,FALSE),'4.6 LCOE_Weighted'!$C:$C,$N$59,'4.6 LCOE_Weighted'!$D:$D,VLOOKUP($B$2,'3. LCOE Results>>>'!$M$3:$N$5,2,FALSE),'4.6 LCOE_Weighted'!$E:$E,$F$2,'4.6 LCOE_Weighted'!$F:$F,W$61) -> 52.16567174 | X62: =SUMIFS('4.6 LCOE_Weighted'!$G:$G,'4.6 LCOE_Weighted'!$B:$B,VLOOKUP('3.1 per Market'!X$60,'3. LCOE Results>>>'!$G$3:$H$10,2,FALSE),'4.6 LCOE_Weighted'!$C:$C,$N$59,'4.6 LCOE_Weighted'!$D:$D,VLOOKUP($B$2,'3. LCOE Results>>>'!$M$3:$N$5,2,FALSE),'4.6 LCOE_Weighted'!$E:$E,$F$2,'4.6 LCOE_Weighted'!$F:$F,X$61) -> 40.11044504 | Z62: CAPEX heating unit | AA62: =SUMIFS('4.6 LCOE_Weighted'!$G:$G,'4.6 LCOE_Weighted'!$B:$B,VLOOKUP('3.1 per Market'!AA$60,'3. LCOE Results>>>'!$G$3:$H$10,2,FALSE),'4.6 LCOE_Weighted'!$C:$C,$N$59,'4.6 LCOE_Weighted'!$D:$D,VLOOKUP($B$2,'3. LCOE Results>>>'!$M$3:$N$5,2,FALSE),'4.6 LCOE_Weighted'!$E:$E,$F$2,'4.6 LCOE_Weighted'!$F:$F,AA$61) -> 64.84746289 | AB62: =SUMIFS('4.6 LCOE_Weighted'!$G:$G,'4.6 LCOE_Weighted'!$B:$B,VLOOKUP('3.1 per Market'!AB$60,'3. LCOE Results>>>'!$G$3:$H$10,2,FALSE),'4.6 LCOE_Weighted'!$C:$C,$N$59,'4.6 LCOE_Weighted'!$D:$D,VLOOKUP($B$2,'3. LCOE Results>>>'!$M$3:$N$5,2,FALSE),'4.6 LCOE_Weighted'!$E:$E,$F$2,'4.6 LCOE_Weighted'!$F:$F,AB$61) -> 55.3490989 | AC62: =SUMIFS('4.6 LCOE_Weighted'!$G:$G,'4.6 LCOE_Weighted'!$B:$B,VLOOKUP('3.1 per Market'!AC$60,'3. LCOE Results>>>'!$G$3:$H$10,2,FALSE),'4.6 LCOE_Weighted'!$C:$C,$N$59,'4.6 LCOE_Weighted'!$D:$D,VLOOKUP($B$2,'3. LCOE Results>>>'!$M$3:$N$5,2,FALSE),'4.6 LCOE_Weighted'!$E:$E,$F$2,'4.6 LCOE_Weighted'!$F:$F,AC$61) -> 41.10155291 | AD62: =SUMIFS('4.6 LCOE_Weighted'!$G:$G,'4.6 LCOE_Weighted'!$B:$B,VLOOKUP('3.1 per Market'!AD$60,'3. LCOE Results>>>'!$G$3:$H$10,2,FALSE),'4.6 LCOE_Weighted'!$C:$C,$N$59,'4.6 LCOE_Weighted'!$D:$D,VLOOKUP($B$2,'3. LCOE Results>>>'!$M$3:$N$5,2,FALSE),'4.6 LCOE_Weighted'!$E:$E,$F$2,'4.6 LCOE_Weighted'!$F:$F,AD$61) -> 31.60318891 | AF62: CAPEX heating unit | AG62: =SUMIFS('4.6 LCOE_Weighted'!$G:$G,'4.6 LCOE_Weighted'!$B:$B,VLOOKUP('3.1 per Market'!AG$60,'3. LCOE Results>>>'!$G$3:$H$10,2,FALSE),'4.6 LCOE_Weighted'!$C:$C,$N$59,'4.6 LCOE_Weighted'!$D:$D,VLOOKUP($B$2,'3. LCOE Results>>>'!$M$3:$N$5,2,FALSE),'4.6 LCOE_Weighted'!$E:$E,$F$2,'4.6 LCOE_Weighted'!$F:$F,AG$61) -> 51.64879216 | AH62: =SUMIFS('4.6 LCOE_Weighted'!$G:$G,'4.6 LCOE_Weighted'!$B:$B,VLOOKUP('3.1 per Market'!AH$60,'3. LCOE Results>>>'!$G$3:$H$10,2,FALSE),'4.6 LCOE_Weighted'!$C:$C,$N$59,'4.6 LCOE_Weighted'!$D:$D,VLOOKUP($B$2,'3. LCOE Results>>>'!$M$3:$N$5,2,FALSE),'4.6 LCOE_Weighted'!$E:$E,$F$2,'4.6 LCOE_Weighted'!$F:$F,AH$61) -> 51.33796693 | AI62: =SUMIFS('4.6 LCOE_Weighted'!$G:$G,'4.6 LCOE_Weighted'!$B:$B,VLOOKUP('3.1 per Market'!AI$60,'3. LCOE Results>>>'!$G$3:$H$10,2,FALSE),'4.6 LCOE_Weighted'!$C:$C,$N$59,'4.6 LCOE_Weighted'!$D:$D,VLOOKUP($B$2,'3. LCOE Results>>>'!$M$3:$N$5,2,FALSE),'4.6 LCOE_Weighted'!$E:$E,$F$2,'4.6 LCOE_Weighted'!$F:$F,AI$61) -> 50.87172909 | AJ62: =SUMIFS('4.6 LCOE_Weighted'!$G:$G,'4.6 LCOE_Weighted'!$B:$B,VLOOKUP('3.1 per Market'!AJ$60,'3. LCOE Results>>>'!$G$3:$H$10,2,FALSE),'4.6 LCOE_Weighted'!$C:$C,$N$59,'4.6 LCOE_Weighted'!$D:$D,VLOOKUP($B$2,'3. LCOE Results>>>'!$M$3:$N$5,2,FALSE),'4.6 LCOE_Weighted'!$E:$E,$F$2,'4.6 LCOE_Weighted'!$F:$F,AJ$61) -> 50.56090386 | AL62: CAPEX heating unit | AM62: =SUMIFS('4.6 LCOE_Weighted'!$G:$G,'4.6 LCOE_Weighted'!$B:$B,VLOOKUP('3.1 per Market'!AM$60,'3. LCOE Results>>>'!$G$3:$H$10,2,FALSE),'4.6 LCOE_Weighted'!$C:$C,$N$59,'4.6 LCOE_Weighted'!$D:$D,VLOOKUP($B$2,'3. LCOE Results>>>'!$M$3:$N$5,2,FALSE),'4.6 LCOE_Weighted'!$E:$E,$F$2,'4.6 LCOE_Weighted'!$F:$F,AM$61) -> 55.04187943 | AN62: =SUMIFS('4.6 LCOE_Weighted'!$G:$G,'4.6 LCOE_Weighted'!$B:$B,VLOOKUP('3.1 per Market'!AN$60,'3. LCOE Results>>>'!$G$3:$H$10,2,FALSE),'4.6 LCOE_Weighted'!$C:$C,$N$59,'4.6 LCOE_Weighted'!$D:$D,VLOOKUP($B$2,'3. LCOE Results>>>'!$M$3:$N$5,2,FALSE),'4.6 LCOE_Weighted'!$E:$E,$F$2,'4.6 LCOE_Weighted'!$F:$F,AN$61) -> 54.04212783 | AO62: =SUMIFS('4.6 LCOE_Weighted'!$G:$G,'4.6 LCOE_Weighted'!$B:$B,VLOOKUP('3.1 per Market'!AO$60,'3. LCOE Results>>>'!$G$3:$H$10,2,FALSE),'4.6 LCOE_Weighted'!$C:$C,$N$59,'4.6 LCOE_Weighted'!$D:$D,VLOOKUP($B$2,'3. LCOE Results>>>'!$M$3:$N$5,2,FALSE),'4.6 LCOE_Weighted'!$E:$E,$F$2,'4.6 LCOE_Weighted'!$F:$F,AO$61) -> 52.54250044 | AP62: =SUMIFS('4.6 LCOE_Weighted'!$G:$G,'4.6 LCOE_Weighted'!$B:$B,VLOOKUP('3.1 per Market'!AP$60,'3. LCOE Results>>>'!$G$3:$H$10,2,FALSE),'4.6 LCOE_Weighted'!$C:$C,$N$59,'4.6 LCOE_Weighted'!$D:$D,VLOOKUP($B$2,'3. LCOE Results>>>'!$M$3:$N$5,2,FALSE),'4.6 LCOE_Weighted'!$E:$E,$F$2,'4.6 LCOE_Weighted'!$F:$F,AP$61) -> 51.54274885 | AR62: CAPEX heating unit | AS62: =SUMIFS('4.6 LCOE_Weighted'!$G:$G,'4.6 LCOE_Weighted'!$B:$B,VLOOKUP('3.1 per Market'!AS$60,'3. LCOE Results>>>'!$G$3:$H$10,2,FALSE),'4.6 LCOE_Weighted'!$C:$C,$N$59,'4.6 LCOE_Weighted'!$D:$D,VLOOKUP($B$2,'3. LCOE Results>>>'!$M$3:$N$5,2,FALSE),'4.6 LCOE_Weighted'!$E:$E,$F$2,'4.6 LCOE_Weighted'!$F:$F,AS$61) -> 75.94591958 | AT62: =SUMIFS('4.6 LCOE_Weighted'!$G:$G,'4.6 LCOE_Weighted'!$B:$B,VLOOKUP('3.1 per Market'!AT$60,'3. LCOE Results>>>'!$G$3:$H$10,2,FALSE),'4.6 LCOE_Weighted'!$C:$C,$N$59,'4.6 LCOE_Weighted'!$D:$D,VLOOKUP($B$2,'3. LCOE Results>>>'!$M$3:$N$5,2,FALSE),'4.6 LCOE_Weighted'!$E:$E,$F$2,'4.6 LCOE_Weighted'!$F:$F,AT$61) -> 75.48887292 | AU62: =SUMIFS('4.6 LCOE_Weighted'!$G:$G,'4.6 LCOE_Weighted'!$B:$B,VLOOKUP('3.1 per Market'!AU$60,'3. LCOE Results>>>'!$G$3:$H$10,2,FALSE),'4.6 LCOE_Weighted'!$C:$C,$N$59,'4.6 LCOE_Weighted'!$D:$D,VLOOKUP($B$2,'3. LCOE Results>>>'!$M$3:$N$5,2,FALSE),'4.6 LCOE_Weighted'!$E:$E,$F$2,'4.6 LCOE_Weighted'!$F:$F,AU$61) -> 74.80330294 | AV62: =SUMIFS('4.6 LCOE_Weighted'!$G:$G,'4.6 LCOE_Weighted'!$B:$B,VLOOKUP('3.1 per Market'!AV$60,'3. LCOE Results>>>'!$G$3:$H$10,2,FALSE),'4.6 LCOE_Weighted'!$C:$C,$N$59,'4.6 LCOE_Weighted'!$D:$D,VLOOKUP($B$2,'3. LCOE Results>>>'!$M$3:$N$5,2,FALSE),'4.6 LCOE_Weighted'!$E:$E,$F$2,'4.6 LCOE_Weighted'!$F:$F,AV$61) -> 74.34625628
B63: HP air-to-water | C63: =(SUMIFS('4.6 LCOE_Weighted'!$L:$L,'4.6 LCOE_Weighted'!$B:$B,VLOOKUP('3.1 per Market'!$B63,'3. LCOE Results>>>'!$G$3:$H$10,2,FALSE),'4.6 LCOE_Weighted'!$C:$C,'3.1 per Market'!$B$59,'4.6 LCOE_Weighted'!$D:$D,VLOOKUP($B$2,'3. LCOE Results>>>'!$M$3:$N$5,2,FALSE),'4.6 LCOE_Weighted'!$E:$E,'3.1 per Market'!$F$2,'4.6 LCOE_Weighted'!$F:$F,'3.1 per Market'!C$60)) -> 201.4848379 | D63: =(SUMIFS('4.6 LCOE_Weighted'!$L:$L,'4.6 LCOE_Weighted'!$B:$B,VLOOKUP('3.1 per Market'!$B63,'3. LCOE Results>>>'!$G$3:$H$10,2,FALSE),'4.6 LCOE_Weighted'!$C:$C,'3.1 per Market'!$B$59,'4.6 LCOE_Weighted'!$D:$D,VLOOKUP($B$2,'3. LCOE Results>>>'!$M$3:$N$5,2,FALSE),'4.6 LCOE_Weighted'!$E:$E,'3.1 per Market'!$F$2,'4.6 LCOE_Weighted'!$F:$F,'3.1 per Market'!D$60)) -> 204.0184508 | E63: =(SUMIFS('4.6 LCOE_Weighted'!$L:$L,'4.6 LCOE_Weighted'!$B:$B,VLOOKUP('3.1 per Market'!$B63,'3. LCOE Results>>>'!$G$3:$H$10,2,FALSE),'4.6 LCOE_Weighted'!$C:$C,'3.1 per Market'!$B$59,'4.6 LCOE_Weighted'!$D:$D,VLOOKUP($B$2,'3. LCOE Results>>>'!$M$3:$N$5,2,FALSE),'4.6 LCOE_Weighted'!$E:$E,'3.1 per Market'!$F$2,'4.6 LCOE_Weighted'!$F:$F,'3.1 per Market'!E$60)) -> 196.3789811 | F63: =(SUMIFS('4.6 LCOE_Weighted'!$L:$L,'4.6 LCOE_Weighted'!$B:$B,VLOOKUP('3.1 per Market'!$B63,'3. LCOE Results>>>'!$G$3:$H$10,2,FALSE),'4.6 LCOE_Weighted'!$C:$C,'3.1 per Market'!$B$59,'4.6 LCOE_Weighted'!$D:$D,VLOOKUP($B$2,'3. LCOE Results>>>'!$M$3:$N$5,2,FALSE),'4.6 LCOE_Weighted'!$E:$E,'3.1 per Market'!$F$2,'4.6 LCOE_Weighted'!$F:$F,'3.1 per Market'!F$60)) -> 188.9827548 | G63: =(SUMIFS('4.6 LCOE_Weighted'!$L:$L,'4.6 LCOE_Weighted'!$B:$B,VLOOKUP('3.1 per Market'!$B63,'3. LCOE Results>>>'!$G$3:$H$10,2,FALSE),'4.6 LCOE_Weighted'!$C:$C,'3.1 per Market'!$B$59,'4.6 LCOE_Weighted'!$D:$D,VLOOKUP($B$2,'3. LCOE Results>>>'!$M$3:$N$5,2,FALSE),'4.6 LCOE_Weighted'!$E:$E,'3.1 per Market'!$F$2,'4.6 LCOE_Weighted'!$F:$F,'3.1 per Market'!G$60)) -> 181.8671682 | H63: =(SUMIFS('4.6 LCOE_Weighted'!$L:$L,'4.6 LCOE_Weighted'!$B:$B,VLOOKUP('3.1 per Market'!$B63,'3. LCOE Results>>>'!$G$3:$H$10,2,FALSE),'4.6 LCOE_Weighted'!$C:$C,'3.1 per Market'!$B$59,'4.6 LCOE_Weighted'!$D:$D,VLOOKUP($B$2,'3. LCOE Results>>>'!$M$3:$N$5,2,FALSE),'4.6 LCOE_Weighted'!$E:$E,'3.1 per Market'!$F$2,'4.6 LCOE_Weighted'!$F:$F,'3.1 per Market'!H$60)) -> 175.0475265 | I63: =(SUMIFS('4.6 LCOE_Weighted'!$L:$L,'4.6 LCOE_Weighted'!$B:$B,VLOOKUP('3.1 per Market'!$B63,'3. LCOE Results>>>'!$G$3:$H$10,2,FALSE),'4.6 LCOE_Weighted'!$C:$C,'3.1 per Market'!$B$59,'4.6 LCOE_Weighted'!$D:$D,VLOOKUP($B$2,'3. LCOE Results>>>'!$M$3:$N$5,2,FALSE),'4.6 LCOE_Weighted'!$E:$E,'3.1 per Market'!$F$2,'4.6 LCOE_Weighted'!$F:$F,'3.1 per Market'!I$60)) -> 168.557627 | J63: =(SUMIFS('4.6 LCOE_Weighted'!$L:$L,'4.6 LCOE_Weighted'!$B:$B,VLOOKUP('3.1 per Market'!$B63,'3. LCOE Results>>>'!$G$3:$H$10,2,FALSE),'4.6 LCOE_Weighted'!$C:$C,'3.1 per Market'!$B$59,'4.6 LCOE_Weighted'!$D:$D,VLOOKUP($B$2,'3. LCOE Results>>>'!$M$3:$N$5,2,FALSE),'4.6 LCOE_Weighted'!$E:$E,'3.1 per Market'!$F$2,'4.6 LCOE_Weighted'!$F:$F,'3.1 per Market'!J$60)) -> 162.4125911 | K63: =(SUMIFS('4.6 LCOE_Weighted'!$L:$L,'4.6 LCOE_Weighted'!$B:$B,VLOOKUP('3.1 per Market'!$B63,'3. LCOE Results>>>'!$G$3:$H$10,2,FALSE),'4.6 LCOE_Weighted'!$C:$C,'3.1 per Market'!$B$59,'4.6 LCOE_Weighted'!$D:$D,VLOOKUP($B$2,'3. LCOE Results>>>'!$M$3:$N$5,2,FALSE),'4.6 LCOE_Weighted'!$E:$E,'3.1 per Market'!$F$2,'4.6 LCOE_Weighted'!$F:$F,'3.1 per Market'!K$60)) -> 156.6282829 | N63: CAPEX add. equipmet | O63: =SUMIFS('4.6 LCOE_Weighted'!$H:$H,'4.6 LCOE_Weighted'!$B:$B,VLOOKUP('3.1 per Market'!O$60,'3. LCOE Results>>>'!$G$3:$H$10,2,FALSE),'4.6 LCOE_Weighted'!$C:$C,$N$59,'4.6 LCOE_Weighted'!$D:$D,VLOOKUP($B$2,'3. LCOE Results>>>'!$M$3:$N$5,2,FALSE),'4.6 LCOE_Weighted'!$E:$E,$F$2,'4.6 LCOE_Weighted'!$F:$F,O$61) -> 9.164112346 | P63: =SUMIFS('4.6 LCOE_Weighted'!$H:$H,'4.6 LCOE_Weighted'!$B:$B,VLOOKUP('3.1 per Market'!P$60,'3. LCOE Results>>>'!$G$3:$H$10,2,FALSE),'4.6 LCOE_Weighted'!$C:$C,$N$59,'4.6 LCOE_Weighted'!$D:$D,VLOOKUP($B$2,'3. LCOE Results>>>'!$M$3:$N$5,2,FALSE),'4.6 LCOE_Weighted'!$E:$E,$F$2,'4.6 LCOE_Weighted'!$F:$F,P$61) -> 9.164112346 | Q63: =SUMIFS('4.6 LCOE_Weighted'!$H:$H,'4.6 LCOE_Weighted'!$B:$B,VLOOKUP('3.1 per Market'!Q$60,'3. LCOE Results>>>'!$G$3:$H$10,2,FALSE),'4.6 LCOE_Weighted'!$C:$C,$N$59,'4.6 LCOE_Weighted'!$D:$D,VLOOKUP($B$2,'3. LCOE Results>>>'!$M$3:$N$5,2,FALSE),'4.6 LCOE_Weighted'!$E:$E,$F$2,'4.6 LCOE_Weighted'!$F:$F,Q$61) -> 9.164112346 | R63: =SUMIFS('4.6 LCOE_Weighted'!$H:$H,'4.6 LCOE_Weighted'!$B:$B,VLOOKUP('3.1 per Market'!R$60,'3. LCOE Results>>>'!$G$3:$H$10,2,FALSE),'4.6 LCOE_Weighted'!$C:$C,$N$59,'4.6 LCOE_Weighted'!$D:$D,VLOOKUP($B$2,'3. LCOE Results>>>'!$M$3:$N$5,2,FALSE),'4.6 LCOE_Weighted'!$E:$E,$F$2,'4.6 LCOE_Weighted'!$F:$F,R$61) -> 9.164112346 | T63: CAPEX add. equipmet | U63: =SUMIFS('4.6 LCOE_Weighted'!$H:$H,'4.6 LCOE_Weighted'!$B:$B,VLOOKUP('3.1 per Market'!U$60,'3. LCOE Results>>>'!$G$3:$H$10,2,FALSE),'4.6 LCOE_Weighted'!$C:$C,$N$59,'4.6 LCOE_Weighted'!$D:$D,VLOOKUP($B$2,'3. LCOE Results>>>'!$M$3:$N$5,2,FALSE),'4.6 LCOE_Weighted'!$E:$E,$F$2,'4.6 LCOE_Weighted'!$F:$F,U$61) -> 19.39802283 | V63: =SUMIFS('4.6 LCOE_Weighted'!$H:$H,'4.6 LCOE_Weighted'!$B:$B,VLOOKUP('3.1 per Market'!V$60,'3. LCOE Results>>>'!$G$3:$H$10,2,FALSE),'4.6 LCOE_Weighted'!$C:$C,$N$59,'4.6 LCOE_Weighted'!$D:$D,VLOOKUP($B$2,'3. LCOE Results>>>'!$M$3:$N$5,2,FALSE),'4.6 LCOE_Weighted'!$E:$E,$F$2,'4.6 LCOE_Weighted'!$F:$F,V$61) -> 19.0420958 | W63: =SUMIFS('4.6 LCOE_Weighted'!$H:$H,'4.6 LCOE_Weighted'!$B:$B,VLOOKUP('3.1 per Market'!W$60,'3. LCOE Results>>>'!$G$3:$H$10,2,FALSE),'4.6 LCOE_Weighted'!$C:$C,$N$59,'4.6 LCOE_Weighted'!$D:$D,VLOOKUP($B$2,'3. LCOE Results>>>'!$M$3:$N$5,2,FALSE),'4.6 LCOE_Weighted'!$E:$E,$F$2,'4.6 LCOE_Weighted'!$F:$F,W$61) -> 18.50820527 | X63: =SUMIFS('4.6 LCOE_Weighted'!$H:$H,'4.6 LCOE_Weighted'!$B:$B,VLOOKUP('3.1 per Market'!X$60,'3. LCOE Results>>>'!$G$3:$H$10,2,FALSE),'4.6 LCOE_Weighted'!$C:$C,$N$59,'4.6 LCOE_Weighted'!$D:$D,VLOOKUP($B$2,'3. LCOE Results>>>'!$M$3:$N$5,2,FALSE),'4.6 LCOE_Weighted'!$E:$E,$F$2,'4.6 LCOE_Weighted'!$F:$F,X$61) -> 18.15227824 | Z63: CAPEX add. equipmet | AA63: =SUMIFS('4.6 LCOE_Weighted'!$H:$H,'4.6 LCOE_Weighted'!$B:$B,VLOOKUP('3.1 per Market'!AA$60,'3. LCOE Results>>>'!$G$3:$H$10,2,FALSE),'4.6 LCOE_Weighted'!$C:$C,$N$59,'4.6 LCOE_Weighted'!$D:$D,VLOOKUP($B$2,'3. LCOE Results>>>'!$M$3:$N$5,2,FALSE),'4.6 LCOE_Weighted'!$E:$E,$F$2,'4.6 LCOE_Weighted'!$F:$F,AA$61) -> 29.69071579 | AB63: =SUMIFS('4.6 LCOE_Weighted'!$H:$H,'4.6 LCOE_Weighted'!$B:$B,VLOOKUP('3.1 per Market'!AB$60,'3. LCOE Results>>>'!$G$3:$H$10,2,FALSE),'4.6 LCOE_Weighted'!$C:$C,$N$59,'4.6 LCOE_Weighted'!$D:$D,VLOOKUP($B$2,'3. LCOE Results>>>'!$M$3:$N$5,2,FALSE),'4.6 LCOE_Weighted'!$E:$E,$F$2,'4.6 LCOE_Weighted'!$F:$F,AB$61) -> 29.69071579 | AC63: =SUMIFS('4.6 LCOE_Weighted'!$H:$H,'4.6 LCOE_Weighted'!$B:$B,VLOOKUP('3.1 per Market'!AC$60,'3. LCOE Results>>>'!$G$3:$H$10,2,FALSE),'4.6 LCOE_Weighted'!$C:$C,$N$59,'4.6 LCOE_Weighted'!$D:$D,VLOOKUP($B$2,'3. LCOE Results>>>'!$M$3:$N$5,2,FALSE),'4.6 LCOE_Weighted'!$E:$E,$F$2,'4.6 LCOE_Weighted'!$F:$F,AC$61) -> 29.69071579 | AD63: =SUMIFS('4.6 LCOE_Weighted'!$H:$H,'4.6 LCOE_Weighted'!$B:$B,VLOOKUP('3.1 per Market'!AD$60,'3. LCOE Results>>>'!$G$3:$H$10,2,FALSE),'4.6 LCOE_Weighted'!$C:$C,$N$59,'4.6 LCOE_Weighted'!$D:$D,VLOOKUP($B$2,'3. LCOE Results>>>'!$M$3:$N$5,2,FALSE),'4.6 LCOE_Weighted'!$E:$E,$F$2,'4.6 LCOE_Weighted'!$F:$F,AD$61) -> 29.69071579 | AF63: CAPEX add. equipmet | AG63: =SUMIFS('4.6 LCOE_Weighted'!$H:$H,'4.6 LCOE_Weighted'!$B:$B,VLOOKUP('3.1 per Market'!AG$60,'3. LCOE Results>>>'!$G$3:$H$10,2,FALSE),'4.6 LCOE_Weighted'!$C:$C,$N$59,'4.6 LCOE_Weighted'!$D:$D,VLOOKUP($B$2,'3. LCOE Results>>>'!$M$3:$N$5,2,FALSE),'4.6 LCOE_Weighted'!$E:$E,$F$2,'4.6 LCOE_Weighted'!$F:$F,AG$61) -> 35.60973894 | AH63: =SUMIFS('4.6 LCOE_Weighted'!$H:$H,'4.6 LCOE_Weighted'!$B:$B,VLOOKUP('3.1 per Market'!AH$60,'3. LCOE Results>>>'!$G$3:$H$10,2,FALSE),'4.6 LCOE_Weighted'!$C:$C,$N$59,'4.6 LCOE_Weighted'!$D:$D,VLOOKUP($B$2,'3. LCOE Results>>>'!$M$3:$N$5,2,FALSE),'4.6 LCOE_Weighted'!$E:$E,$F$2,'4.6 LCOE_Weighted'!$F:$F,AH$61) -> 34.95634924 | AI63: =SUMIFS('4.6 LCOE_Weighted'!$H:$H,'4.6 LCOE_Weighted'!$B:$B,VLOOKUP('3.1 per Market'!AI$60,'3. LCOE Results>>>'!$G$3:$H$10,2,FALSE),'4.6 LCOE_Weighted'!$C:$C,$N$59,'4.6 LCOE_Weighted'!$D:$D,VLOOKUP($B$2,'3. LCOE Results>>>'!$M$3:$N$5,2,FALSE),'4.6 LCOE_Weighted'!$E:$E,$F$2,'4.6 LCOE_Weighted'!$F:$F,AI$61) -> 33.97626468 | AJ63: =SUMIFS('4.6 LCOE_Weighted'!$H:$H,'4.6 LCOE_Weighted'!$B:$B,VLOOKUP('3.1 per Market'!AJ$60,'3. LCOE Results>>>'!$G$3:$H$10,2,FALSE),'4.6 LCOE_Weighted'!$C:$C,$N$59,'4.6 LCOE_Weighted'!$D:$D,VLOOKUP($B$2,'3. LCOE Results>>>'!$M$3:$N$5,2,FALSE),'4.6 LCOE_Weighted'!$E:$E,$F$2,'4.6 LCOE_Weighted'!$F:$F,AJ$61) -> 33.32287497 | AL63: CAPEX add. equipmet | AM63: =SUMIFS('4.6 LCOE_Weighted'!$H:$H,'4.6 LCOE_Weighted'!$B:$B,VLOOKUP('3.1 per Market'!AM$60,'3. LCOE Results>>>'!$G$3:$H$10,2,FALSE),'4.6 LCOE_Weighted'!$C:$C,$N$59,'4.6 LCOE_Weighted'!$D:$D,VLOOKUP($B$2,'3. LCOE Results>>>'!$M$3:$N$5,2,FALSE),'4.6 LCOE_Weighted'!$E:$E,$F$2,'4.6 LCOE_Weighted'!$F:$F,AM$61) -> 10.70414319 | AN63: =SUMIFS('4.6 LCOE_Weighted'!$H:$H,'4.6 LCOE_Weighted'!$B:$B,VLOOKUP('3.1 per Market'!AN$60,'3. LCOE Results>>>'!$G$3:$H$10,2,FALSE),'4.6 LCOE_Weighted'!$C:$C,$N$59,'4.6 LCOE_Weighted'!$D:$D,VLOOKUP($B$2,'3. LCOE Results>>>'!$M$3:$N$5,2,FALSE),'4.6 LCOE_Weighted'!$E:$E,$F$2,'4.6 LCOE_Weighted'!$F:$F,AN$61) -> 10.70414319 | AO63: =SUMIFS('4.6 LCOE_Weighted'!$H:$H,'4.6 LCOE_Weighted'!$B:$B,VLOOKUP('3.1 per Market'!AO$60,'3. LCOE Results>>>'!$G$3:$H$10,2,FALSE),'4.6 LCOE_Weighted'!$C:$C,$N$59,'4.6 LCOE_Weighted'!$D:$D,VLOOKUP($B$2,'3. LCOE Results>>>'!$M$3:$N$5,2,FALSE),'4.6 LCOE_Weighted'!$E:$E,$F$2,'4.6 LCOE_Weighted'!$F:$F,AO$61) -> 10.70414319 | AP63: =SUMIFS('4.6 LCOE_Weighted'!$H:$H,'4.6 LCOE_Weighted'!$B:$B,VLOOKUP('3.1 per Market'!AP$60,'3. LCOE Results>>>'!$G$3:$H$10,2,FALSE),'4.6 LCOE_Weighted'!$C:$C,$N$59,'4.6 LCOE_Weighted'!$D:$D,VLOOKUP($B$2,'3. LCOE Results>>>'!$M$3:$N$5,2,FALSE),'4.6 LCOE_Weighted'!$E:$E,$F$2,'4.6 LCOE_Weighted'!$F:$F,AP$61) -> 10.70414319 | AR63: CAPEX add. equipmet | AS63: =SUMIFS('4.6 LCOE_Weighted'!$H:$H,'4.6 LCOE_Weighted'!$B:$B,VLOOKUP('3.1 per Market'!AS$60,'3. LCOE Results>>>'!$G$3:$H$10,2,FALSE),'4.6 LCOE_Weighted'!$C:$C,$N$59,'4.6 LCOE_Weighted'!$D:$D,VLOOKUP($B$2,'3. LCOE Results>>>'!$M$3:$N$5,2,FALSE),'4.6 LCOE_Weighted'!$E:$E,$F$2,'4.6 LCOE_Weighted'!$F:$F,AS$61) -> 28.21616894 | AT63: =SUMIFS('4.6 LCOE_Weighted'!$H:$H,'4.6 LCOE_Weighted'!$B:$B,VLOOKUP('3.1 per Market'!AT$60,'3. LCOE Results>>>'!$G$3:$H$10,2,FALSE),'4.6 LCOE_Weighted'!$C:$C,$N$59,'4.6 LCOE_Weighted'!$D:$D,VLOOKUP($B$2,'3. LCOE Results>>>'!$M$3:$N$5,2,FALSE),'4.6 LCOE_Weighted'!$E:$E,$F$2,'4.6 LCOE_Weighted'!$F:$F,AT$61) -> 27.69844106 | AU63: =SUMIFS('4.6 LCOE_Weighted'!$H:$H,'4.6 LCOE_Weighted'!$B:$B,VLOOKUP('3.1 per Market'!AU$60,'3. LCOE Results>>>'!$G$3:$H$10,2,FALSE),'4.6 LCOE_Weighted'!$C:$C,$N$59,'4.6 LCOE_Weighted'!$D:$D,VLOOKUP($B$2,'3. LCOE Results>>>'!$M$3:$N$5,2,FALSE),'4.6 LCOE_Weighted'!$E:$E,$F$2,'4.6 LCOE_Weighted'!$F:$F,AU$61) -> 26.92184926 | AV63: =SUMIFS('4.6 LCOE_Weighted'!$H:$H,'4.6 LCOE_Weighted'!$B:$B,VLOOKUP('3.1 per Market'!AV$60,'3. LCOE Results>>>'!$G$3:$H$10,2,FALSE),'4.6 LCOE_Weighted'!$C:$C,$N$59,'4.6 LCOE_Weighted'!$D:$D,VLOOKUP($B$2,'3. LCOE Results>>>'!$M$3:$N$5,2,FALSE),'4.6 LCOE_Weighted'!$E:$E,$F$2,'4.6 LCOE_Weighted'!$F:$F,AV$61) -> 26.40412139
B64: Pellet boiler | C64: =(SUMIFS('4.6 LCOE_Weighted'!$L:$L,'4.6 LCOE_Weighted'!$B:$B,VLOOKUP('3.1 per Market'!$B64,'3. LCOE Results>>>'!$G$3:$H$10,2,FALSE),'4.6 LCOE_Weighted'!$C:$C,'3.1 per Market'!$B$59,'4.6 LCOE_Weighted'!$D:$D,VLOOKUP($B$2,'3. LCOE Results>>>'!$M$3:$N$5,2,FALSE),'4.6 LCOE_Weighted'!$E:$E,'3.1 per Market'!$F$2,'4.6 LCOE_Weighted'!$F:$F,'3.1 per Market'!C$60)) -> 173.3356963 | D64: =(SUMIFS('4.6 LCOE_Weighted'!$L:$L,'4.6 LCOE_Weighted'!$B:$B,VLOOKUP('3.1 per Market'!$B64,'3. LCOE Results>>>'!$G$3:$H$10,2,FALSE),'4.6 LCOE_Weighted'!$C:$C,'3.1 per Market'!$B$59,'4.6 LCOE_Weighted'!$D:$D,VLOOKUP($B$2,'3. LCOE Results>>>'!$M$3:$N$5,2,FALSE),'4.6 LCOE_Weighted'!$E:$E,'3.1 per Market'!$F$2,'4.6 LCOE_Weighted'!$F:$F,'3.1 per Market'!D$60)) -> 177.6984773 | E64: =(SUMIFS('4.6 LCOE_Weighted'!$L:$L,'4.6 LCOE_Weighted'!$B:$B,VLOOKUP('3.1 per Market'!$B64,'3. LCOE Results>>>'!$G$3:$H$10,2,FALSE),'4.6 LCOE_Weighted'!$C:$C,'3.1 per Market'!$B$59,'4.6 LCOE_Weighted'!$D:$D,VLOOKUP($B$2,'3. LCOE Results>>>'!$M$3:$N$5,2,FALSE),'4.6 LCOE_Weighted'!$E:$E,'3.1 per Market'!$F$2,'4.6 LCOE_Weighted'!$F:$F,'3.1 per Market'!E$60)) -> 170.8835219 | F64: =(SUMIFS('4.6 LCOE_Weighted'!$L:$L,'4.6 LCOE_Weighted'!$B:$B,VLOOKUP('3.1 per Market'!$B64,'3. LCOE Results>>>'!$G$3:$H$10,2,FALSE),'4.6 LCOE_Weighted'!$C:$C,'3.1 per Market'!$B$59,'4.6 LCOE_Weighted'!$D:$D,VLOOKUP($B$2,'3. LCOE Results>>>'!$M$3:$N$5,2,FALSE),'4.6 LCOE_Weighted'!$E:$E,'3.1 per Market'!$F$2,'4.6 LCOE_Weighted'!$F:$F,'3.1 per Market'!F$60)) -> 165.4627449 | G64: =(SUMIFS('4.6 LCOE_Weighted'!$L:$L,'4.6 LCOE_Weighted'!$B:$B,VLOOKUP('3.1 per Market'!$B64,'3. LCOE Results>>>'!$G$3:$H$10,2,FALSE),'4.6 LCOE_Weighted'!$C:$C,'3.1 per Market'!$B$59,'4.6 LCOE_Weighted'!$D:$D,VLOOKUP($B$2,'3. LCOE Results>>>'!$M$3:$N$5,2,FALSE),'4.6 LCOE_Weighted'!$E:$E,'3.1 per Market'!$F$2,'4.6 LCOE_Weighted'!$F:$F,'3.1 per Market'!G$60)) -> 162.0704471 | H64: =(SUMIFS('4.6 LCOE_Weighted'!$L:$L,'4.6 LCOE_Weighted'!$B:$B,VLOOKUP('3.1 per Market'!$B64,'3. LCOE Results>>>'!$G$3:$H$10,2,FALSE),'4.6 LCOE_Weighted'!$C:$C,'3.1 per Market'!$B$59,'4.6 LCOE_Weighted'!$D:$D,VLOOKUP($B$2,'3. LCOE Results>>>'!$M$3:$N$5,2,FALSE),'4.6 LCOE_Weighted'!$E:$E,'3.1 per Market'!$F$2,'4.6 LCOE_Weighted'!$F:$F,'3.1 per Market'!H$60)) -> 159.6333385 | I64: =(SUMIFS('4.6 LCOE_Weighted'!$L:$L,'4.6 LCOE_Weighted'!$B:$B,VLOOKUP('3.1 per Market'!$B64,'3. LCOE Results>>>'!$G$3:$H$10,2,FALSE),'4.6 LCOE_Weighted'!$C:$C,'3.1 per Market'!$B$59,'4.6 LCOE_Weighted'!$D:$D,VLOOKUP($B$2,'3. LCOE Results>>>'!$M$3:$N$5,2,FALSE),'4.6 LCOE_Weighted'!$E:$E,'3.1 per Market'!$F$2,'4.6 LCOE_Weighted'!$F:$F,'3.1 per Market'!I$60)) -> 157.5834185 | J64: =(SUMIFS('4.6 LCOE_Weighted'!$L:$L,'4.6 LCOE_Weighted'!$B:$B,VLOOKUP('3.1 per Market'!$B64,'3. LCOE Results>>>'!$G$3:$H$10,2,FALSE),'4.6 LCOE_Weighted'!$C:$C,'3.1 per Market'!$B$59,'4.6 LCOE_Weighted'!$D:$D,VLOOKUP($B$2,'3. LCOE Results>>>'!$M$3:$N$5,2,FALSE),'4.6 LCOE_Weighted'!$E:$E,'3.1 per Market'!$F$2,'4.6 LCOE_Weighted'!$F:$F,'3.1 per Market'!J$60)) -> 155.9393051 | K64: =(SUMIFS('4.6 LCOE_Weighted'!$L:$L,'4.6 LCOE_Weighted'!$B:$B,VLOOKUP('3.1 per Market'!$B64,'3. LCOE Results>>>'!$G$3:$H$10,2,FALSE),'4.6 LCOE_Weighted'!$C:$C,'3.1 per Market'!$B$59,'4.6 LCOE_Weighted'!$D:$D,VLOOKUP($B$2,'3. LCOE Results>>>'!$M$3:$N$5,2,FALSE),'4.6 LCOE_Weighted'!$E:$E,'3.1 per Market'!$F$2,'4.6 LCOE_Weighted'!$F:$F,'3.1 per Market'!K$60)) -> 154.7169694 | N64: OPEX heating unit | O64: =SUMIFS('4.6 LCOE_Weighted'!$I:$I,'4.6 LCOE_Weighted'!$B:$B,VLOOKUP('3.1 per Market'!O$60,'3. LCOE Results>>>'!$G$3:$H$10,2,FALSE),'4.6 LCOE_Weighted'!$C:$C,$N$59,'4.6 LCOE_Weighted'!$D:$D,VLOOKUP($B$2,'3. LCOE Results>>>'!$M$3:$N$5,2,FALSE),'4.6 LCOE_Weighted'!$E:$E,$F$2,'4.6 LCOE_Weighted'!$F:$F,O$61) -> 8.589922972 | P64: =SUMIFS('4.6 LCOE_Weighted'!$I:$I,'4.6 LCOE_Weighted'!$B:$B,VLOOKUP('3.1 per Market'!P$60,'3. LCOE Results>>>'!$G$3:$H$10,2,FALSE),'4.6 LCOE_Weighted'!$C:$C,$N$59,'4.6 LCOE_Weighted'!$D:$D,VLOOKUP($B$2,'3. LCOE Results>>>'!$M$3:$N$5,2,FALSE),'4.6 LCOE_Weighted'!$E:$E,$F$2,'4.6 LCOE_Weighted'!$F:$F,P$61) -> 8.589922972 | Q64: =SUMIFS('4.6 LCOE_Weighted'!$I:$I,'4.6 LCOE_Weighted'!$B:$B,VLOOKUP('3.1 per Market'!Q$60,'3. LCOE Results>>>'!$G$3:$H$10,2,FALSE),'4.6 LCOE_Weighted'!$C:$C,$N$59,'4.6 LCOE_Weighted'!$D:$D,VLOOKUP($B$2,'3. LCOE Results>>>'!$M$3:$N$5,2,FALSE),'4.6 LCOE_Weighted'!$E:$E,$F$2,'4.6 LCOE_Weighted'!$F:$F,Q$61) -> 8.589922972 | R64: =SUMIFS('4.6 LCOE_Weighted'!$I:$I,'4.6 LCOE_Weighted'!$B:$B,VLOOKUP('3.1 per Market'!R$60,'3. LCOE Results>>>'!$G$3:$H$10,2,FALSE),'4.6 LCOE_Weighted'!$C:$C,$N$59,'4.6 LCOE_Weighted'!$D:$D,VLOOKUP($B$2,'3. LCOE Results>>>'!$M$3:$N$5,2,FALSE),'4.6 LCOE_Weighted'!$E:$E,$F$2,'4.6 LCOE_Weighted'!$F:$F,R$61) -> 8.589922972 | T64: OPEX heating unit | U64: =SUMIFS('4.6 LCOE_Weighted'!$I:$I,'4.6 LCOE_Weighted'!$B:$B,VLOOKUP('3.1 per Market'!U$60,'3. LCOE Results>>>'!$G$3:$H$10,2,FALSE),'4.6 LCOE_Weighted'!$C:$C,$N$59,'4.6 LCOE_Weighted'!$D:$D,VLOOKUP($B$2,'3. LCOE Results>>>'!$M$3:$N$5,2,FALSE),'4.6 LCOE_Weighted'!$E:$E,$F$2,'4.6 LCOE_Weighted'!$F:$F,U$61) -> 11.55844081 | V64: =SUMIFS('4.6 LCOE_Weighted'!$I:$I,'4.6 LCOE_Weighted'!$B:$B,VLOOKUP('3.1 per Market'!V$60,'3. LCOE Results>>>'!$G$3:$H$10,2,FALSE),'4.6 LCOE_Weighted'!$C:$C,$N$59,'4.6 LCOE_Weighted'!$D:$D,VLOOKUP($B$2,'3. LCOE Results>>>'!$M$3:$N$5,2,FALSE),'4.6 LCOE_Weighted'!$E:$E,$F$2,'4.6 LCOE_Weighted'!$F:$F,V$61) -> 11.55844081 | W64: =SUMIFS('4.6 LCOE_Weighted'!$I:$I,'4.6 LCOE_Weighted'!$B:$B,VLOOKUP('3.1 per Market'!W$60,'3. LCOE Results>>>'!$G$3:$H$10,2,FALSE),'4.6 LCOE_Weighted'!$C:$C,$N$59,'4.6 LCOE_Weighted'!$D:$D,VLOOKUP($B$2,'3. LCOE Results>>>'!$M$3:$N$5,2,FALSE),'4.6 LCOE_Weighted'!$E:$E,$F$2,'4.6 LCOE_Weighted'!$F:$F,W$61) -> 11.55844081 | X64: =SUMIFS('4.6 LCOE_Weighted'!$I:$I,'4.6 LCOE_Weighted'!$B:$B,VLOOKUP('3.1 per Market'!X$60,'3. LCOE Results>>>'!$G$3:$H$10,2,FALSE),'4.6 LCOE_Weighted'!$C:$C,$N$59,'4.6 LCOE_Weighted'!$D:$D,VLOOKUP($B$2,'3. LCOE Results>>>'!$M$3:$N$5,2,FALSE),'4.6 LCOE_Weighted'!$E:$E,$F$2,'4.6 LCOE_Weighted'!$F:$F,X$61) -> 11.55844081 | Z64: OPEX heating unit | AA64: =SUMIFS('4.6 LCOE_Weighted'!$I:$I,'4.6 LCOE_Weighted'!$B:$B,VLOOKUP('3.1 per Market'!AA$60,'3. LCOE Results>>>'!$G$3:$H$10,2,FALSE),'4.6 LCOE_Weighted'!$C:$C,$N$59,'4.6 LCOE_Weighted'!$D:$D,VLOOKUP($B$2,'3. LCOE Results>>>'!$M$3:$N$5,2,FALSE),'4.6 LCOE_Weighted'!$E:$E,$F$2,'4.6 LCOE_Weighted'!$F:$F,AA$61) -> 8.542338299 | AB64: =SUMIFS('4.6 LCOE_Weighted'!$I:$I,'4.6 LCOE_Weighted'!$B:$B,VLOOKUP('3.1 per Market'!AB$60,'3. LCOE Results>>>'!$G$3:$H$10,2,FALSE),'4.6 LCOE_Weighted'!$C:$C,$N$59,'4.6 LCOE_Weighted'!$D:$D,VLOOKUP($B$2,'3. LCOE Results>>>'!$M$3:$N$5,2,FALSE),'4.6 LCOE_Weighted'!$E:$E,$F$2,'4.6 LCOE_Weighted'!$F:$F,AB$61) -> 8.542338299 | AC64: =SUMIFS('4.6 LCOE_Weighted'!$I:$I,'4.6 LCOE_Weighted'!$B:$B,VLOOKUP('3.1 per Market'!AC$60,'3. LCOE Results>>>'!$G$3:$H$10,2,FALSE),'4.6 LCOE_Weighted'!$C:$C,$N$59,'4.6 LCOE_Weighted'!$D:$D,VLOOKUP($B$2,'3. LCOE Results>>>'!$M$3:$N$5,2,FALSE),'4.6 LCOE_Weighted'!$E:$E,$F$2,'4.6 LCOE_Weighted'!$F:$F,AC$61) -> 8.542338299 | AD64: =SUMIFS('4.6 LCOE_Weighted'!$I:$I,'4.6 LCOE_Weighted'!$B:$B,VLOOKUP('3.1 per Market'!AD$60,'3. LCOE Results>>>'!$G$3:$H$10,2,FALSE),'4.6 LCOE_Weighted'!$C:$C,$N$59,'4.6 LCOE_Weighted'!$D:$D,VLOOKUP($B$2,'3. LCOE Results>>>'!$M$3:$N$5,2,FALSE),'4.6 LCOE_Weighted'!$E:$E,$F$2,'4.6 LCOE_Weighted'!$F:$F,AD$61) -> 8.542338299 | AF64: OPEX heating unit | AG64: =SUMIFS('4.6 LCOE_Weighted'!$I:$I,'4.6 LCOE_Weighted'!$B:$B,VLOOKUP('3.1 per Market'!AG$60,'3. LCOE Results>>>'!$G$3:$H$10,2,FALSE),'4.6 LCOE_Weighted'!$C:$C,$N$59,'4.6 LCOE_Weighted'!$D:$D,VLOOKUP($B$2,'3. LCOE Results>>>'!$M$3:$N$5,2,FALSE),'4.6 LCOE_Weighted'!$E:$E,$F$2,'4.6 LCOE_Weighted'!$F:$F,AG$61) -> 21.12668585 | AH64: =SUMIFS('4.6 LCOE_Weighted'!$I:$I,'4.6 LCOE_Weighted'!$B:$B,VLOOKUP('3.1 per Market'!AH$60,'3. LCOE Results>>>'!$G$3:$H$10,2,FALSE),'4.6 LCOE_Weighted'!$C:$C,$N$59,'4.6 LCOE_Weighted'!$D:$D,VLOOKUP($B$2,'3. LCOE Results>>>'!$M$3:$N$5,2,FALSE),'4.6 LCOE_Weighted'!$E:$E,$F$2,'4.6 LCOE_Weighted'!$F:$F,AH$61) -> 20.716071 | AI64: =SUMIFS('4.6 LCOE_Weighted'!$I:$I,'4.6 LCOE_Weighted'!$B:$B,VLOOKUP('3.1 per Market'!AI$60,'3. LCOE Results>>>'!$G$3:$H$10,2,FALSE),'4.6 LCOE_Weighted'!$C:$C,$N$59,'4.6 LCOE_Weighted'!$D:$D,VLOOKUP($B$2,'3. LCOE Results>>>'!$M$3:$N$5,2,FALSE),'4.6 LCOE_Weighted'!$E:$E,$F$2,'4.6 LCOE_Weighted'!$F:$F,AI$61) -> 20.10014871 | AJ64: =SUMIFS('4.6 LCOE_Weighted'!$I:$I,'4.6 LCOE_Weighted'!$B:$B,VLOOKUP('3.1 per Market'!AJ$60,'3. LCOE Results>>>'!$G$3:$H$10,2,FALSE),'4.6 LCOE_Weighted'!$C:$C,$N$59,'4.6 LCOE_Weighted'!$D:$D,VLOOKUP($B$2,'3. LCOE Results>>>'!$M$3:$N$5,2,FALSE),'4.6 LCOE_Weighted'!$E:$E,$F$2,'4.6 LCOE_Weighted'!$F:$F,AJ$61) -> 19.68953386 | AL64: OPEX heating unit | AM64: =SUMIFS('4.6 LCOE_Weighted'!$I:$I,'4.6 LCOE_Weighted'!$B:$B,VLOOKUP('3.1 per Market'!AM$60,'3. LCOE Results>>>'!$G$3:$H$10,2,FALSE),'4.6 LCOE_Weighted'!$C:$C,$N$59,'4.6 LCOE_Weighted'!$D:$D,VLOOKUP($B$2,'3. LCOE Results>>>'!$M$3:$N$5,2,FALSE),'4.6 LCOE_Weighted'!$E:$E,$F$2,'4.6 LCOE_Weighted'!$F:$F,AM$61) -> 13.63446366 | AN64: =SUMIFS('4.6 LCOE_Weighted'!$I:$I,'4.6 LCOE_Weighted'!$B:$B,VLOOKUP('3.1 per Market'!AN$60,'3. LCOE Results>>>'!$G$3:$H$10,2,FALSE),'4.6 LCOE_Weighted'!$C:$C,$N$59,'4.6 LCOE_Weighted'!$D:$D,VLOOKUP($B$2,'3. LCOE Results>>>'!$M$3:$N$5,2,FALSE),'4.6 LCOE_Weighted'!$E:$E,$F$2,'4.6 LCOE_Weighted'!$F:$F,AN$61) -> 13.63446366 | AO64: =SUMIFS('4.6 LCOE_Weighted'!$I:$I,'4.6 LCOE_Weighted'!$B:$B,VLOOKUP('3.1 per Market'!AO$60,'3. LCOE Results>>>'!$G$3:$H$10,2,FALSE),'4.6 LCOE_Weighted'!$C:$C,$N$59,'4.6 LCOE_Weighted'!$D:$D,VLOOKUP($B$2,'3. LCOE Results>>>'!$M$3:$N$5,2,FALSE),'4.6 LCOE_Weighted'!$E:$E,$F$2,'4.6 LCOE_Weighted'!$F:$F,AO$61) -> 13.63446366 | AP64: =SUMIFS('4.6 LCOE_Weighted'!$I:$I,'4.6 LCOE_Weighted'!$B:$B,VLOOKUP('3.1 per Market'!AP$60,'3. LCOE Results>>>'!$G$3:$H$10,2,FALSE),'4.6 LCOE_Weighted'!$C:$C,$N$59,'4.6 LCOE_Weighted'!$D:$D,VLOOKUP($B$2,'3. LCOE Results>>>'!$M$3:$N$5,2,FALSE),'4.6 LCOE_Weighted'!$E:$E,$F$2,'4.6 LCOE_Weighted'!$F:$F,AP$61) -> 13.63446366 | AR64: OPEX heating unit | AS64: =SUMIFS('4.6 LCOE_Weighted'!$I:$I,'4.6 LCOE_Weighted'!$B:$B,VLOOKUP('3.1 per Market'!AS$60,'3. LCOE Results>>>'!$G$3:$H$10,2,FALSE),'4.6 LCOE_Weighted'!$C:$C,$N$59,'4.6 LCOE_Weighted'!$D:$D,VLOOKUP($B$2,'3. LCOE Results>>>'!$M$3:$N$5,2,FALSE),'4.6 LCOE_Weighted'!$E:$E,$F$2,'4.6 LCOE_Weighted'!$F:$F,AS$61) -> 31.06530701 | AT64: =SUMIFS('4.6 LCOE_Weighted'!$I:$I,'4.6 LCOE_Weighted'!$B:$B,VLOOKUP('3.1 per Market'!AT$60,'3. LCOE Results>>>'!$G$3:$H$10,2,FALSE),'4.6 LCOE_Weighted'!$C:$C,$N$59,'4.6 LCOE_Weighted'!$D:$D,VLOOKUP($B$2,'3. LCOE Results>>>'!$M$3:$N$5,2,FALSE),'4.6 LCOE_Weighted'!$E:$E,$F$2,'4.6 LCOE_Weighted'!$F:$F,AT$61) -> 30.46152671 | AU64: =SUMIFS('4.6 LCOE_Weighted'!$I:$I,'4.6 LCOE_Weighted'!$B:$B,VLOOKUP('3.1 per Market'!AU$60,'3. LCOE Results>>>'!$G$3:$H$10,2,FALSE),'4.6 LCOE_Weighted'!$C:$C,$N$59,'4.6 LCOE_Weighted'!$D:$D,VLOOKUP($B$2,'3. LCOE Results>>>'!$M$3:$N$5,2,FALSE),'4.6 LCOE_Weighted'!$E:$E,$F$2,'4.6 LCOE_Weighted'!$F:$F,AU$61) -> 29.55585628 | AV64: =SUMIFS('4.6 LCOE_Weighted'!$I:$I,'4.6 LCOE_Weighted'!$B:$B,VLOOKUP('3.1 per Market'!AV$60,'3. LCOE Results>>>'!$G$3:$H$10,2,FALSE),'4.6 LCOE_Weighted'!$C:$C,$N$59,'4.6 LCOE_Weighted'!$D:$D,VLOOKUP($B$2,'3. LCOE Results>>>'!$M$3:$N$5,2,FALSE),'4.6 LCOE_Weighted'!$E:$E,$F$2,'4.6 LCOE_Weighted'!$F:$F,AV$61) -> 28.95207598
